Workbook

Sheet INICIO

Sheet LÍNEA 1
B3: ALCALDÍA DE BUCARAMANGA
B4: PLAN DE DESARROLLO 2016 - 2019 "GOBIERNO DE LAS CIUDADANAS Y LOS CIUDADANOS"
B5: LÍNEA ESTRATÉGICA 1: GOBERNANZA DEMOCRÁTICA
B8: POND | C8: LÍNEA ESTRATÉGICA | D8: POND | E8: COMPONENTE | F8: META DE RESULTADO | G8: LÍNEA BASE | H8: RESULTADO CUATRIENIO | J8: META POR VIGENCIA | V8: LOGRO POR VIGENCIA | AD8: PORCENTAJE DE CUMPLIMIENTO | AO8: POND | AP8: PROGRAMA | AQ8: META DE PRODUCTO | AR8: RUBRO PPTAL | AS8: INDICADOR DE PRODUCTO | BD8: LOGRO POR VIGENCIA | BH8: PORCENTAJE DE CUMPLIMIENTO | BS8: RECURSOS POR FUENTE DE FINANCIACIÓN PARA CADA VIGENCIA (Cifras en Miles de Pesos) | CR8: ODS | CS8: SECTOR
BS9: 2016 | BX9: 2017 | CC9: 2018 | CH9: 2019 | CM9: 2016 - 2019
J10: 2016 | M10: 2017 | P10: 2018 | S10: 2019 | V10: 2016 | X10: 2017 | Z10: 2018 | AB10: 2019 | AD10: 2016 | AF10: 2017 | AH10: 2018 | AJ10: 2019 | AL10: 2016 - 2019 | AS10: NOMBRE INDICADOR | AT10: LÍNEA BASE | AU10: ESPERADO CUATRIENIO | AV10: 2016 | AX10: 2017 | AZ10: 2018 | BB10: 2019 | BD10: 2016 | BE10: 2017 | BF10: 2018 | BG10: 2019 | BH10: 2016 | BJ10: 2017 | BL10: 2018 | BN10: 2019 | BP10: 2016 - 2019 | BS10: RECURSOS PROGRAMADOS | BT10: RECURSOS EJECUTADOS | BU10: RECURSOS GESTIONADOS | BV10: PORCENTAJE EJECUCIÓN | BW10: NIVEL DE GESTIÓN | BX10: RECURSOS PROGRAMADOS | BY10: RECURSOS EJECUTADOS | BZ10: RECURSOS GESTIONADOS | CA10: PORCENTAJE EJECUCIÓN | CB10: NIVEL DE GESTIÓN | CC10: RECURSOS PROGRAMADOS | CD10: RECURSOS EJECUTADOS | CE10: RECURSOS GESTIONADOS | CF10: PORCENTAJE EJECUCIÓN | CG10: NIVEL DE GESTIÓN | CH10: RECURSOS PROGRAMADOS | CI10: RECURSOS EJECUTADOS | CJ10: RECURSOS GESTIONADOS | CK10: PORCENTAJE EJECUCIÓN | CL10: NIVEL DE GESTIÓN | CM10: RECURSOS PROGRAMADOS | CN10: RECURSOS EJECUTADOS | CO10: RECURSOS GESTIONADOS | CP10: PORCENTAJE EJECUCIÓN | CQ10: NIVEL DE GESTIÓN | CT10: RESPONSABLE
B11: =+RESUMEN!J8 -> 0.648816984 | C11: 1 - GOBERNANZA DEMOCRÁTICA | D11: =+RESUMEN!J9 -> 0.6466582551 | E11: GOBIERNO PARTICIPATIVO Y ABIERTO | F11: Lograr una calificación de 85 sobre 100 en el componente visibilidad en el Índice de Transparencia de las Entidades Públicas - ITEP. | G11: 69.8 | H11: 85 | I11: =+H11-G11 -> 15.2 | J11: 69.8 | K11: =+J11-G11 -> 0 | M11: 85 | N11: =+M11-J11 -> 15.2 | P11: 85 | Q11: =+P11-M11 -> 0 | S11: 85 | T11: =+S11-P11 -> 0 | V11: 65.5 | W11: =+IF(V11=0,0,V11-G11) -> -4.3 | Y11: =+IF(X11=0,0,X11-V11) -> 0 | AA11: =+IF(Z11=0,0,Z11-X11) -> 0 | AC11: =+IF(AB11=0,0,AB11-Z11) -> 0 | AD11: =+IF(K11=0," -",W11/K11) -> - | AE11: =+IF(K11=0," -",IF(AD11>100%,100%,AD11)) -> - | AF11: =+IF(N11=0," -",Y11/N11) -> 0 | AG11: =+IF(N11=0," -",IF(AF11>100%,100%,AF11)) -> 0 | AH11: =+IF(Q11=0," -",AA11/Q11) -> - | AI11: =+IF(Q11=0," -",IF(AH11>100%,100%,AH11)) -> - | AJ11: =+IF(T11=0," -",AC11/T11) -> - | AK11: =+IF(T11=0," -",IF(AJ11>100%,100%,AJ11)) -> - | AL11: =+SUM(AC11,AA11,Y11,W11)/I11 -> -0.2828947368 | AM11: =+IF(AL11>100%,100%,IF(AL11<0%,0%,AL11)) -> 0 | AO11: =+RESUMEN!J10 -> 0.6531746032 | AP11: NUEVOS LIDERAZGOS | AQ11: Implementar y mantener la estrategia de casas para nuevos liderazgos. | AR11: ='[1]LÍNEA 1'!P11 -> 2210980 | AS11: Número de estrategias de casas para nuevos liderazgos implementadas y mantenidas. | AT11: 0 | AU11: ='[1]LÍNEA 1'!S11 -> 1 | AV11: ='[1]LÍNEA 1'!T11 -> 1 | AW11: 0.25 | AX11: ='[1]LÍNEA 1'!U11 -> 1 | AY11: 0.25 | AZ11: ='[1]LÍNEA 1'!V11 -> 1 | BA11: 0.25 | BB11: ='[1]LÍNEA 1'!W11 -> 1 | BC11: 0.25 | BD11: ='[2]2016'!$K$12 -> 1 | BE11: ='[2]2017'!$K$12 -> 1 | BF11: ='[2]2018'!$K$12 -> 1 | BG11: ='[2]2019'!$K$12 -> 0 | BH11: =IF(AV11=0," -",BD11/AV11) -> 1 | BI11: =IF(AV11=0," -",IF(BH11>100%,100%,BH11)) -> 1 | BJ11: =IF(AX11=0," -",BE11/AX11) -> 1 | BK11: =IF(AX11=0," -",IF(BJ11>100%,100%,BJ11)) -> 1 | BL11: =IF(AZ11=0," -",BF11/AZ11) -> 1 | BM11: =IF(AZ11=0," -",IF(BL11>100%,100%,BL11)) -> 1 | BN11: =IF(BB11=0," -",BG11/BB11) -> 0 | BO11: =IF(BB11=0," -",IF(BN11>100%,100%,BN11)) -> 0 | BP11: =+AVERAGE(BD11:BG11)/AU11 -> 0.75 | BQ11: =+IF(BP11>100%,100%,BP11) -> 0.75 | BR11: =+BQ11 -> 0.75 | BS11: ='[2]2016'!P12 -> 100000 | BT11: ='[2]2016'!Q12 -> 65333 | BU11: ='[2]2016'!R12 -> 0 | BV11: =IF(BS11=0," -",BT11/BS11) -> 0.65333 | BW11: =IF(BU11=0," -",IF(BT11=0,100%,BU11/BT11)) -> - | BX11: ='[2]2017'!P12 -> 167836 | BY11: ='[2]2017'!Q12 -> 167003 | BZ11: ='[2]2017'!R12 -> 0 | CA11: =IF(BX11=0," -",BY11/BX11) -> 0.9950368217 | CB11: =IF(BZ11=0," -",IF(BY11=0,100%,BZ11/BY11)) -> - | CC11: ='[2]2018'!P12 -> 240000 | CD11: ='[2]2018'!Q12 -> 99000 | CE11: ='[2]2018'!R12 -> 0 | CF11: =IF(CC11=0," -",CD11/CC11) -> 0.4125 | CG11: =IF(CE11=0," -",IF(CD11=0,100%,CE11/CD11)) -> - | CH11: ='[2]2019'!P12 -> 213500 | CI11: ='[2]2019'!Q12 -> 0 | CJ11: ='[2]2019'!R12 -> 0 | CK11: =IF(CH11=0," -",CI11/CH11) -> 0 | CL11: =IF(CJ11=0," -",IF(CI11=0,100%,CJ11/CI11)) -> - | CM11: =+BS11+BX11+CC11+CH11 -> 721336 | CN11: 331336 | CO11: 0 | CP11: =IF(CM11=0," -",CN11/CM11) -> 0.4593365644 | CQ11: =IF(CO11=0," -",IF(CN11=0,100%,CO11/CN11)) -> - | CR11: 16. Paz, justicia e instituciones sólidas | CS11: Promoción del Desarrollo | CT11: ='[1]LÍNEA 1'!AQ11 -> Sec. Interior
AQ12: Implementar y mantener la estrategia escuela de liderazgo para mujeres las Mil Manuelas. | AR12: ='[1]LÍNEA 1'!P12 -> 2210708 | AS12: Número de estrategias escuela de liderazgo para mujeres las Mil Manuelas implementadas y mantenidas. | AT12: 0 | AU12: ='[1]LÍNEA 1'!S12 -> 1 | AV12: ='[1]LÍNEA 1'!T12 -> 0 | AW12: =+AV12/AU12 -> 0 | AX12: ='[1]LÍNEA 1'!U12 -> 1 | AY12: 0.33 | AZ12: ='[1]LÍNEA 1'!V12 -> 1 | BA12: 0.33 | BB12: ='[1]LÍNEA 1'!W12 -> 1 | BC12: 0.34 | BD12: ='[3]2016'!$K$12 -> 0 | BE12: ='[3]2017'!$K$12 -> 1 | BF12: ='[3]2018'!$K$12 -> 1 | BG12: ='[3]2019'!$K$12 -> 0 | BH12: =IF(AV12=0," -",BD12/AV12) -> - | BI12: =IF(AV12=0," -",IF(BH12>100%,100%,BH12)) -> - | BJ12: =IF(AX12=0," -",BE12/AX12) -> 1 | BK12: =IF(AX12=0," -",IF(BJ12>100%,100%,BJ12)) -> 1 | BL12: =IF(AZ12=0," -",BF12/AZ12) -> 1 | BM12: =IF(AZ12=0," -",IF(BL12>100%,100%,BL12)) -> 1 | BN12: =IF(BB12=0," -",BG12/BB12) -> 0 | BO12: =IF(BB12=0," -",IF(BN12>100%,100%,BN12)) -> 0 | BP12: =+AVERAGE(BE12:BG12)/AU12 -> 0.6666666667 | BQ12: =+IF(BP12>100%,100%,BP12) -> 0.6666666667 | BR12: =+BQ12 -> 0.6666666667 | BS12: ='[3]2016'!P12 -> 0 | BT12: ='[3]2016'!Q12 -> 0 | BU12: ='[3]2016'!R12 -> 0 | BV12: =IF(BS12=0," -",BT12/BS12) -> - | BW12: =IF(BU12=0," -",IF(BT12=0,100%,BU12/BT12)) -> - | BX12: ='[3]2017'!P12 -> 6320 | BY12: ='[3]2017'!Q12 -> 1820 | BZ12: ='[3]2017'!R12 -> 0 | CA12: =IF(BX12=0," -",BY12/BX12) -> 0.2879746835 | CB12: =IF(BZ12=0," -",IF(BY12=0,100%,BZ12/BY12)) -> - | CC12: ='[3]2018'!P12 -> 36228 | CD12: ='[3]2018'!Q12 -> 18000 | CE12: ='[3]2018'!R12 -> 0 | CF12: =IF(CC12=0," -",CD12/CC12) -> 0.4968532627 | CG12: =IF(CE12=0," -",IF(CD12=0,100%,CE12/CD12)) -> - | CH12: ='[3]2019'!P12 -> 150000 | CI12: ='[3]2019'!Q12 -> 0 | CJ12: ='[3]2019'!R12 -> 0 | CK12: =IF(CH12=0," -",CI12/CH12) -> 0 | CL12: =IF(CJ12=0," -",IF(CI12=0,100%,CJ12/CI12)) -> - | CM12: 192548 | CN12: 19820 | CO12: 0 | CP12: =IF(CM12=0," -",CN12/CM12) -> 0.102935372 | CQ12: =IF(CO12=0," -",IF(CN12=0,100%,CO12/CN12)) -> - | CR12: 10. Reducción de las desigualdades | CS12: Promoción del Desarrollo | CT12: ='[1]LÍNEA 1'!AQ12 -> Sec. Desarrollo Social
AQ13: Realizar 35 actividades o iniciativas para promover, visibilizar y empoderar el gobierno escolar en las instituciones educativas oficiales. | AR13: ='[1]LÍNEA 1'!P13 -> 0 | AS13: Número de actividades o iniciativas realizadas para promover, visibilizar y empoderar el gobierno escolar en las instituciones educativas oficiales. | AT13: 0 | AU13: ='[1]LÍNEA 1'!S13 -> 35 | AV13: ='[1]LÍNEA 1'!T13 -> 3 | AW13: =+AV13/AU13 -> 0.08571428571 | AX13: ='[1]LÍNEA 1'!U13 -> 12 | AY13: =+AX13/AU13 -> 0.3428571429 | AZ13: ='[1]LÍNEA 1'!V13 -> 10 | BA13: =+AZ13/AU13 -> 0.2857142857 | BB13: ='[1]LÍNEA 1'!W13 -> 10 | BC13: =+BB13/AU13 -> 0.2857142857 | BD13: ='[4]2016'!$K$12 -> 3 | BE13: ='[4]2017'!$K$12 -> 12 | BF13: ='[4]2018'!$K$12 -> 4 | BG13: ='[4]2019'!$K$12 -> 0 | BH13: 1 | BI13: 1 | BJ13: 1 | BK13: 1 | BL13: 0.4 | BM13: 0.4 | BN13: 0 | BO13: 0 | BP13: =+SUM(BD13:BG13)/AU13 -> 0.5428571429 | BQ13: 0.5428571429 | BR13: 0.5428571429 | BS13: ='[4]2016'!P12 -> 0 | BT13: ='[4]2016'!Q12 -> 0 | BU13: ='[4]2016'!R12 -> 0 | BV13: =IF(BS13=0," -",BT13/BS13) -> - | BW13: =IF(BU13=0," -",IF(BT13=0,100%,BU13/BT13)) -> - | BX13: ='[4]2017'!P12 -> 0 | BY13: ='[4]2017'!Q12 -> 0 | BZ13: ='[4]2017'!R12 -> 0 | CA13: =IF(BX13=0," -",BY13/BX13) -> - | CB13: =IF(BZ13=0," -",IF(BY13=0,100%,BZ13/BY13)) -> - | CC13: ='[4]2018'!P12 -> 0 | CD13: ='[4]2018'!Q12 -> 0 | CE13: ='[4]2018'!R12 -> 0 | CF13: =IF(CC13=0," -",CD13/CC13) -> - | CG13: =IF(CE13=0," -",IF(CD13=0,100%,CE13/CD13)) -> - | CH13: ='[4]2019'!P12 -> 20000 | CI13: ='[4]2019'!Q12 -> 0 | CJ13: ='[4]2019'!R12 -> 0 | CK13: =IF(CH13=0," -",CI13/CH13) -> 0 | CL13: =IF(CJ13=0," -",IF(CI13=0,100%,CJ13/CI13)) -> - | CM13: =+BS13+BX13+CC13+CH13 -> 20000 | CN13: =+BT13+BY13+CD13+CI13 -> 0 | CO13: =+BU13+BZ13+CE13+CJ13 -> 0 | CP13: =IF(CM13=0," -",CN13/CM13) -> 0 | CQ13: =IF(CO13=0," -",IF(CN13=0,100%,CO13/CN13)) -> - | CR13: 16. Paz, justicia e instituciones sólidas | CS13: Educación | CT13: ='[1]LÍNEA 1'!AQ13 -> Sec. Educación
AO14: =+RESUMEN!J11 -> 0.6004901961 | AP14: PRESUPUESTOS INCLUYENTES | AQ14: Crear y mantener 1 sección web en línea para que la ciudadanía pueda consultar el presupuesto y vigilar su aprobación y ejecución. | AR14: ='[1]LÍNEA 1'!P14 -> - | AS14: Número de secciones web en línea creadas y mantenidas para que la ciudadanía pueda consultar el presupuesto y vigilar su aprobación y ejecución. | AT14: 0 | AU14: ='[1]LÍNEA 1'!S14 -> 1 | AV14: ='[1]LÍNEA 1'!T14 -> 1 | AW14: 0.25 | AX14: ='[1]LÍNEA 1'!U14 -> 1 | AY14: 0.25 | AZ14: ='[1]LÍNEA 1'!V14 -> 1 | BA14: 0.25 | BB14: ='[1]LÍNEA 1'!W14 -> 1 | BC14: 0.25 | BD14: ='[5]2016'!K12 -> 1 | BE14: ='[5]2017'!K12 -> 1 | BF14: ='[5]2018'!K12 -> 1 | BG14: ='[5]2019'!K12 -> 0 | BH14: 1 | BI14: 1 | BJ14: 1 | BK14: 1 | BL14: 1 | BM14: 1 | BN14: 0 | BO14: 0 | BP14: =+AVERAGE(BD14:BG14)/AU14 -> 0.75 | BQ14: 0.75 | BR14: 0.75 | BS14: ='[5]2016'!P12 -> 0 | BT14: ='[5]2016'!Q12 -> 0 | BU14: ='[5]2016'!R12 -> 0 | BV14: - | BW14: - | BX14: ='[5]2017'!P12 -> 0 | BY14: ='[5]2017'!Q12 -> 0 | BZ14: ='[5]2017'!R12 -> 0 | CA14: - | CB14: - | CC14: ='[5]2018'!P12 -> 0 | CD14: ='[5]2018'!Q12 -> 0 | CE14: ='[5]2018'!R12 -> 0 | CF14: - | CG14: - | CH14: ='[5]2019'!P12 -> 0 | CI14: ='[5]2019'!Q12 -> 0 | CJ14: ='[5]2019'!R12 -> 0 | CK14: - | CL14: - | CM14: 0 | CN14: 0 | CO14: 0 | CP14: - | CQ14: - | CR14: 16. Paz, justicia e instituciones sólidas | CS14: Fortalecimiento Institucional | CT14: ='[1]LÍNEA 1'!AQ14 -> Sec. Hacienda
AQ15: Ejecutar 4 planes de socialización del proyecto de acuerdo del presupuesto municipal previa presentación al Concejo. | AR15: ='[1]LÍNEA 1'!P15 -> - | AS15: Número de planes de socialización ejecutados del proyecto de acuerdo del presupuesto municipal previa presentación al Concejo. | AT15: 0 | AU15: ='[1]LÍNEA 1'!S15 -> 4 | AV15: ='[1]LÍNEA 1'!T15 -> 1 | AW15: 0.25 | AX15: ='[1]LÍNEA 1'!U15 -> 1 | AY15: 0.25 | AZ15: ='[1]LÍNEA 1'!V15 -> 1 | BA15: 0.25 | BB15: ='[1]LÍNEA 1'!W15 -> 1 | BC15: 0.25 | BD15: ='[5]2016'!K13 -> 1 | BE15: ='[5]2017'!K13 -> 1 | BF15: ='[5]2018'!K13 -> 0 | BG15: ='[5]2019'!K13 -> 0 | BH15: 1 | BI15: 1 | BJ15: 1 | BK15: 1 | BL15: 0 | BM15: 0 | BN15: 0 | BO15: 0 | BP15: =+SUM(BD15:BG15)/AU15 -> 0.5 | BQ15: 0.5 | BR15: 0.5 | BS15: ='[5]2016'!P13 -> 0 | BT15: ='[5]2016'!Q13 -> 0 | BU15: ='[5]2016'!R13 -> 0 | BV15: - | BW15: - | BX15: ='[5]2017'!P13 -> 0 | BY15: ='[5]2017'!Q13 -> 0 | BZ15: ='[5]2017'!R13 -> 0 | CA15: - | CB15: - | CC15: ='[5]2018'!P13 -> 0 | CD15: ='[5]2018'!Q13 -> 0 | CE15: ='[5]2018'!R13 -> 0 | CF15: - | CG15: - | CH15: ='[5]2019'!P13 -> 0 | CI15: ='[5]2019'!Q13 -> 0 | CJ15: ='[5]2019'!R13 -> 0 | CK15: - | CL15: - | CM15: 0 | CN15: 0 | CO15: 0 | CP15: - | CQ15: - | CR15: 16. Paz, justicia e instituciones sólidas | CS15: Fortalecimiento Institucional | CT15: ='[1]LÍNEA 1'!AQ15 -> Sec. Hacienda
AQ16: Celebrar 4 cabildos ciudadanos para asignar presupuesto a obras comunitarias y discutir otros asuntos del presupuesto. | AR16: ='[1]LÍNEA 1'!P16 -> - | AS16: Número de cabildos ciudadanos celebrados para asignar presupuesto a obras comunitarias y discutir otros asuntos del presupuesto. | AT16: 0 | AU16: ='[1]LÍNEA 1'!S16 -> 4 | AV16: ='[1]LÍNEA 1'!T16 -> 1 | AW16: 0.25 | AX16: ='[1]LÍNEA 1'!U16 -> 1 | AY16: 0.25 | AZ16: ='[1]LÍNEA 1'!V16 -> 1 | BA16: 0.25 | BB16: ='[1]LÍNEA 1'!W16 -> 1 | BC16: 0.25 | BD16: ='[5]2016'!K14 -> 1 | BE16: ='[5]2017'!K14 -> 1 | BF16: ='[5]2018'!K14 -> 1 | BG16: ='[5]2019'!K14 -> 0 | BH16: 1 | BI16: 1 | BJ16: 1 | BK16: 1 | BL16: 1 | BM16: 1 | BN16: 0 | BO16: 0 | BP16: =+SUM(BD16:BG16)/AU16 -> 0.75 | BQ16: 0.75 | BR16: 0.75 | BS16: ='[5]2016'!P14 -> 0 | BT16: ='[5]2016'!Q14 -> 0 | BU16: ='[5]2016'!R14 -> 0 | BV16: - | BW16: - | BX16: ='[5]2017'!P14 -> 0 | BY16: ='[5]2017'!Q14 -> 0 | BZ16: ='[5]2017'!R14 -> 0 | CA16: - | CB16: - | CC16: ='[5]2018'!P14 -> 0 | CD16: ='[5]2018'!Q14 -> 0 | CE16: ='[5]2018'!R14 -> 0 | CF16: - | CG16: - | CH16: ='[5]2019'!P14 -> 0 | CI16: ='[5]2019'!Q14 -> 0 | CJ16: ='[5]2019'!R14 -> 0 | CK16: - | CL16: - | CM16: 0 | CN16: 0 | CO16: 0 | CP16: - | CQ16: - | CR16: 16. Paz, justicia e instituciones sólidas | CS16: Fortalecimiento Institucional | CT16: ='[1]LÍNEA 1'!AQ16 -> Sec. Hacienda
AQ17: Implementar y mantener 1 estrategia de implementación del acuerdo de presupuestos participativos y del decreto reglamentario. | AR17: ='[1]LÍNEA 1'!P17 -> - | AS17: Número de estrategias de implementación del acuerdo de presupuestos participativos y del decreto reglamentario implementadas y mantenidas. | AT17: 1 | AU17: ='[1]LÍNEA 1'!S17 -> 1 | AV17: ='[1]LÍNEA 1'!T17 -> 1 | AW17: 0.25 | AX17: ='[1]LÍNEA 1'!U17 -> 1 | AY17: 0.25 | AZ17: ='[1]LÍNEA 1'!V17 -> 1 | BA17: 0.25 | BB17: ='[1]LÍNEA 1'!W17 -> 1 | BC17: 0.25 | BD17: ='[6]2016'!$K$12 -> 1 | BE17: ='[6]2017'!$K$12 -> 1 | BF17: ='[6]2018'!$K$12 -> 1 | BG17: ='[6]2019'!$K$12 -> 0 | BH17: 1 | BI17: 1 | BJ17: 1 | BK17: 1 | BL17: 1 | BM17: 1 | BN17: 0 | BO17: 0 | BP17: 0.75 | BQ17: 0.75 | BR17: 0.75 | BS17: ='[6]2016'!P12 -> 0 | BT17: ='[6]2016'!Q12 -> 0 | BU17: ='[6]2016'!R12 -> 0 | BV17: - | BW17: - | BX17: ='[6]2017'!P12 -> 0 | BY17: ='[6]2017'!Q12 -> 0 | BZ17: ='[6]2017'!R12 -> 0 | CA17: - | CB17: - | CC17: ='[6]2018'!P12 -> 21000 | CD17: ='[6]2018'!Q12 -> 21000 | CE17: ='[6]2018'!R12 -> 0 | CF17: 1 | CG17: - | CH17: ='[6]2019'!P12 -> 0 | CI17: ='[6]2019'!Q12 -> 0 | CJ17: ='[6]2019'!R12 -> 0 | CK17: - | CL17: - | CM17: 21000 | CN17: 21000 | CO17: 0 | CP17: 1 | CQ17: - | CR17: 16. Paz, justicia e instituciones sólidas | CS17: Fortalecimiento Institucional | CT17: ='[1]LÍNEA 1'!AQ17 -> Sec. Planeación
AQ18: Implementar 1 estrategia para la formación y capacitación técnica en planeación participativa para los ciudadanos bumangueses. | AR18: ='[1]LÍNEA 1'!P18 -> 2210230 | AS18: Número de estrategias implementadas para la formación y capacitación técnica en planeación participativa para los ciudadanos bumangueses. | AT18: 0 | AU18: ='[1]LÍNEA 1'!S18 -> 1 | AV18: ='[1]LÍNEA 1'!T18 -> 1 | AW18: 0.25 | AX18: ='[1]LÍNEA 1'!U18 -> 1 | AY18: 0.25 | AZ18: ='[1]LÍNEA 1'!V18 -> 1 | BA18: 0.25 | BB18: ='[1]LÍNEA 1'!W18 -> 1 | BC18: 0.25 | BD18: ='[3]2016'!$K$13 -> 1 | BE18: ='[3]2017'!$K$13 -> 1 | BF18: ='[3]2018'!$K$13 -> 1 | BG18: ='[3]2019'!$K$13 -> 0 | BH18: 1 | BI18: 1 | BJ18: 1 | BK18: 1 | BL18: 1 | BM18: 1 | BN18: 0 | BO18: 0 | BP18: 0.75 | BQ18: 0.75 | BR18: 0.75 | BS18: ='[3]2016'!P13 -> 35000 | BT18: ='[3]2016'!Q13 -> 15000 | BU18: ='[3]2016'!R13 -> 0 | BV18: 0.4285714286 | BW18: - | BX18: ='[3]2017'!P13 -> 0 | BY18: ='[3]2017'!Q13 -> 0 | BZ18: ='[3]2017'!R13 -> 0 | CA18: - | CB18: - | CC18: ='[3]2018'!P13 -> 0 | CD18: ='[3]2018'!Q13 -> 0 | CE18: ='[3]2018'!R13 -> 0 | CF18: - | CG18: - | CH18: ='[3]2019'!P13 -> 50000 | CI18: ='[3]2019'!Q13 -> 0 | CJ18: ='[3]2019'!R13 -> 0 | CK18: 0 | CL18: - | CM18: 85000 | CN18: 15000 | CO18: 0 | CP18: 0.1764705882 | CQ18: - | CR18: 16. Paz, justicia e instituciones sólidas | CS18: Fortalecimiento Institucional | CT18: ='[1]LÍNEA 1'!AQ18 -> Sec. Desarrollo Social
AQ19: Ejecutar obras comunitarias con presupuestos participatios en las 17 comunas. | AR19: ='[1]LÍNEA 1'!P19 -> 2210219 | AS19: Número de comunas con obras comunitarias ejecutadas con presupuesto participativo. | AT19: 0 | AU19: ='[1]LÍNEA 1'!S19 -> 17 | AV19: ='[1]LÍNEA 1'!T19 -> 17 | AW19: 0.25 | AX19: ='[1]LÍNEA 1'!U19 -> 17 | AY19: 0.25 | AZ19: ='[1]LÍNEA 1'!V19 -> 17 | BA19: 0.25 | BB19: ='[1]LÍNEA 1'!W19 -> 17 | BC19: 0.25 | BD19: ='[7]2016'!$K$12 -> 0 | BE19: ='[7]2017'!$K$12 -> 7 | BF19: ='[7]2018'!$K$12 -> 0 | BG19: ='[7]2019'!$K$12 -> 0 | BH19: 0 | BI19: 0 | BJ19: 0.4117647059 | BK19: 0.4117647059 | BL19: 0 | BM19: 0 | BN19: 0 | BO19: 0 | BP19: 0.1029411765 | BQ19: 0.1029411765 | BR19: 0.1029411765 | BS19: ='[7]2016'!P12 -> 0 | BT19: ='[7]2016'!Q12 -> 0 | BU19: ='[7]2016'!R12 -> 0 | BV19: - | BW19: - | BX19: ='[7]2017'!P12 -> 755144 | BY19: ='[7]2017'!Q12 -> 755144 | BZ19: ='[7]2017'!R12 -> 0 | CA19: 1 | CB19: - | CC19: ='[7]2018'!P12 -> 6975188 | CD19: ='[7]2018'!Q12 -> 0 | CE19: ='[7]2018'!R12 -> 0 | CF19: 0 | CG19: - | CH19: ='[7]2019'!P12 -> 0 | CI19: ='[7]2019'!Q12 -> 0 | CJ19: ='[7]2019'!R12 -> 0 | CK19: - | CL19: - | CM19: 7730332 | CN19: 755144 | CO19: 0 | CP19: 0.09768584325 | CQ19: - | CR19: 16. Paz, justicia e instituciones sólidas | CS19: Fortalecimiento Institucional | CT19: ='[1]LÍNEA 1'!AQ19 -> Sec. Infraestructura
AO20: =+RESUMEN!J12 -> 0.5056111111 | AP20: CIUDADANÍA EMPODERADA Y DEBATE PÚBLICO | AQ20: Implementar y mantener 1 estrategia de comunicaciones para difundir las iniciativas de la Administración Municipal y promover el debate público sobre temas de gobierno y de ciudad. | AR20: ='[1]LÍNEA 1'!P20 -> 0 | AS20: Número de estrategias de comunicación implementadas y mantenidas para difundir las iniciativas de la Administración Municipal y promover el debate público sobre temas de gobierno y de ciudad. | AT20: 0 | AU20: ='[1]LÍNEA 1'!S20 -> 1 | AV20: ='[1]LÍNEA 1'!T20 -> 1 | AW20: 0.25 | AX20: ='[1]LÍNEA 1'!U20 -> 1 | AY20: 0.25 | AZ20: ='[1]LÍNEA 1'!V20 -> 1 | BA20: 0.25 | BB20: ='[1]LÍNEA 1'!W20 -> 1 | BC20: 0.25 | BD20: ='[8]2016'!K12 -> 1 | BE20: ='[8]2017'!K12 -> 1 | BF20: ='[8]2018'!K12 -> 1 | BG20: ='[8]2019'!K12 -> 0 | BH20: 1 | BI20: 1 | BJ20: 1 | BK20: 1 | BL20: 1 | BM20: 1 | BN20: 0 | BO20: 0 | BP20: 0.75 | BQ20: 0.75 | BR20: 0.75 | BS20: ='[8]2016'!P12 -> 1190000 | BT20: ='[8]2016'!Q12 -> 213597 | BU20: ='[8]2016'!R12 -> 0 | BV20: 0.1794932773 | BW20: - | BX20: ='[8]2017'!P12 -> 270000 | BY20: ='[8]2017'!Q12 -> 179476 | BZ20: ='[8]2017'!R12 -> 0 | CA20: 0.6647259259 | CB20: - | CC20: ='[8]2018'!P12 -> 174554 | CD20: ='[8]2018'!Q12 -> 74554 | CE20: ='[8]2018'!R12 -> 0 | CF20: 0.427111381 | CG20: - | CH20: ='[8]2019'!P12 -> 500000 | CI20: ='[8]2019'!Q12 -> 0 | CJ20: ='[8]2019'!R12 -> 0 | CK20: 0 | CL20: - | CM20: 2134554 | CN20: 467627 | CO20: 0 | CP20: 0.2190748044 | CQ20: - | CR20: 16. Paz, justicia e instituciones sólidas | CS20: Fortalecimiento Institucional | CT20: ='[1]LÍNEA 1'!AQ20 -> Ofc. Prensa
AQ21: Implementar y mantener 1 Plan de medios para informar a la ciudadanía sobre las políticas e iniciativas del gobierno. | AR21: ='[1]LÍNEA 1'!P21 -> - | AS21: Número de Planes de medios implementados y mantenidos para informar a la ciudadanía las políticas e iniciativas del gobierno. | AT21: 0 | AU21: ='[1]LÍNEA 1'!S21 -> 1 | AV21: ='[1]LÍNEA 1'!T21 -> 1 | AW21: 0.25 | AX21: ='[1]LÍNEA 1'!U21 -> 1 | AY21: 0.25 | AZ21: ='[1]LÍNEA 1'!V21 -> 1 | BA21: 0.25 | BB21: ='[1]LÍNEA 1'!W21 -> 1 | BC21: 0.25 | BD21: ='[8]2016'!K13 -> 1 | BE21: ='[8]2017'!K13 -> 1 | BF21: ='[8]2018'!K13 -> 0 | BG21: ='[8]2019'!K13 -> 0 | BH21: 1 | BI21: 1 | BJ21: 1 | BK21: 1 | BL21: 0 | BM21: 0 | BN21: 0 | BO21: 0 | BP21: 0.5 | BQ21: 0.5 | BR21: 0.5 | BS21: ='[8]2016'!P13 -> 600000 | BT21: ='[8]2016'!Q13 -> 213597 | BU21: ='[8]2016'!R13 -> 0 | BV21: 0.355995 | BW21: - | BX21: ='[8]2017'!P13 -> 653331 | BY21: ='[8]2017'!Q13 -> 616621 | BZ21: ='[8]2017'!R13 -> 0 | CA21: 0.9438110238 | CB21: - | CC21: ='[8]2018'!P13 -> 601786 | CD21: ='[8]2018'!Q13 -> 0 | CE21: ='[8]2018'!R13 -> 0 | CF21: 0 | CG21: - | CH21: ='[8]2019'!P13 -> 0 | CI21: ='[8]2019'!Q13 -> 0 | CJ21: ='[8]2019'!R13 -> 0 | CK21: - | CL21: - | CM21: 1855117 | CN21: 830218 | CO21: 0 | CP21: 0.4475286464 | CQ21: - | CR21: 16. Paz, justicia e instituciones sólidas | CS21: Fortalecimiento Institucional | CT21: ='[1]LÍNEA 1'!AQ21 -> Ofc. Prensa
AQ22: Implementar y mantener 1 estrategia de comunicaciones para difundir las acciones de la Administración Municipal y promover el debate público sobre temas de gobierno y de ciudad en la emisora cultural. | AR22: ='[1]LÍNEA 1'!P22 -> 0 | AS22: Número de estrategias de comunicación implementadas y mantenidas para difundir las acciones de la Administración Municipal y promover el debate público sobre temas de gobierno y de ciudad en la emisora cultural. | AT22: 0 | AU22: ='[1]LÍNEA 1'!S22 -> 1 | AV22: ='[1]LÍNEA 1'!T22 -> 1 | AW22: 0.25 | AX22: ='[1]LÍNEA 1'!U22 -> 1 | AY22: 0.25 | AZ22: ='[1]LÍNEA 1'!V22 -> 1 | BA22: 0.25 | BB22: ='[1]LÍNEA 1'!W22 -> 1 | BC22: 0.25 | BD22: ='[8]2016'!K14 -> 1 | BE22: ='[8]2017'!K14 -> 1 | BF22: ='[8]2018'!K14 -> 0 | BG22: ='[8]2019'!K14 -> 0 | BH22: 1 | BI22: 1 | BJ22: 1 | BK22: 1 | BL22: 0 | BM22: 0 | BN22: 0 | BO22: 0 | BP22: 0.5 | BQ22: 0.5 | BR22: 0.5 | BS22: ='[8]2016'!P14 -> 100000 | BT22: ='[8]2016'!Q14 -> 0 | BU22: ='[8]2016'!R14 -> 0 | BV22: 0 | BW22: - | BX22: ='[8]2017'!P14 -> 0 | BY22: ='[8]2017'!Q14 -> 0 | BZ22: ='[8]2017'!R14 -> 0 | CA22: - | CB22: - | CC22: ='[8]2018'!P14 -> 0 | CD22: ='[8]2018'!Q14 -> 0 | CE22: ='[8]2018'!R14 -> 0 | CF22: - | CG22: - | CH22: ='[8]2019'!P14 -> 300000 | CI22: ='[8]2019'!Q14 -> 0 | CJ22: ='[8]2019'!R14 -> 0 | CK22: 0 | CL22: - | CM22: 400000 | CN22: 0 | CO22: 0 | CP22: 0 | CQ22: - | CR22: 16. Paz, justicia e instituciones sólidas | CS22: Fortalecimiento Institucional | CT22: ='[1]LÍNEA 1'!AQ22 -> Ofc. Prensa
AQ23: Convocar y realizar 40 ruedas de prensa por el despacho del Alcalde. | AR23: ='[1]LÍNEA 1'!P23 -> - | AS23: Número de ruedas de prensa convocadas y realizadas por el despacho del Alcalde. | AT23: 0 | AU23: ='[1]LÍNEA 1'!S23 -> 40 | AV23: ='[1]LÍNEA 1'!T23 -> 6 | AW23: 0.15 | AX23: ='[1]LÍNEA 1'!U23 -> 12 | AY23: 0.3 | AZ23: ='[1]LÍNEA 1'!V23 -> 12 | BA23: 0.3 | BB23: ='[1]LÍNEA 1'!W23 -> 10 | BC23: 0.25 | BD23: ='[8]2016'!K15 -> 31 | BE23: ='[8]2017'!K15 -> 45 | BF23: ='[8]2018'!K15 -> 7 | BG23: ='[8]2019'!K15 -> 0 | BH23: 5.166666667 | BI23: 1 | BJ23: 3.75 | BK23: 1 | BL23: 0.5833333333 | BM23: 0.5833333333 | BN23: 0 | BO23: 0 | BP23: =+SUM(BD23:BG23)/AU23 -> 2.075 | BQ23: 1 | BR23: 1 | BS23: ='[8]2016'!P15 -> 0 | BT23: ='[8]2016'!Q15 -> 0 | BU23: ='[8]2016'!R15 -> 0 | BV23: - | BW23: - | BX23: ='[8]2017'!P15 -> 0 | BY23: ='[8]2017'!Q15 -> 0 | BZ23: ='[8]2017'!R15 -> 0 | CA23: - | CB23: - | CC23: ='[8]2018'!P15 -> 0 | CD23: ='[8]2018'!Q15 -> 0 | CE23: ='[8]2018'!R15 -> 0 | CF23: - | CG23: - | CH23: ='[8]2019'!P15 -> 0 | CI23: ='[8]2019'!Q15 -> 0 | CJ23: ='[8]2019'!R15 -> 0 | CK23: - | CL23: - | CM23: 0 | CN23: 0 | CO23: 0 | CP23: - | CQ23: - | CR23: 16. Paz, justicia e instituciones sólidas | CS23: Fortalecimiento Institucional | CT23: ='[1]LÍNEA 1'!AQ23 -> Ofc. Prensa
AQ24: Implementar y mantener 1 estrategia de comunicación para promover la participación ciudadana sobre asuntos de interés públicos. | AR24: ='[1]LÍNEA 1'!P24 -> 0 | AS24: Número de estrategias de comunicación implementadas y mantenidas para promover la participación ciudadana sobre asuntos de interés públicos. | AT24: 0 | AU24: ='[1]LÍNEA 1'!S24 -> 1 | AV24: ='[1]LÍNEA 1'!T24 -> 1 | AW24: 0.25 | AX24: ='[1]LÍNEA 1'!U24 -> 1 | AY24: 0.25 | AZ24: ='[1]LÍNEA 1'!V24 -> 1 | BA24: 0.25 | BB24: ='[1]LÍNEA 1'!W24 -> 1 | BC24: 0.25 | BD24: ='[8]2016'!K16 -> 1 | BE24: ='[8]2017'!K16 -> 1 | BF24: ='[8]2018'!K16 -> 1 | BG24: ='[8]2019'!K16 -> 0 | BH24: 1 | BI24: 1 | BJ24: 1 | BK24: 1 | BL24: 1 | BM24: 1 | BN24: 0 | BO24: 0 | BP24: 0.75 | BQ24: 0.75 | BR24: 0.75 | BS24: ='[8]2016'!P16 -> 0 | BT24: ='[8]2016'!Q16 -> 0 | BU24: ='[8]2016'!R16 -> 0 | BV24: - | BW24: - | BX24: ='[8]2017'!P16 -> 281600 | BY24: ='[8]2017'!Q16 -> 281600 | BZ24: ='[8]2017'!R16 -> 0 | CA24: 1 | CB24: - | CC24: ='[8]2018'!P16 -> 74554 | CD24: ='[8]2018'!Q16 -> 74554 | CE24: ='[8]2018'!R16 -> 0 | CF24: 1 | CG24: - | CH24: ='[8]2019'!P16 -> 100000 | CI24: ='[8]2019'!Q16 -> 0 | CJ24: ='[8]2019'!R16 -> 0 | CK24: 0 | CL24: - | CM24: 456154 | CN24: 356154 | CO24: 0 | CP24: 0.7807757906 | CQ24: - | CR24: 16. Paz, justicia e instituciones sólidas | CS24: Fortalecimiento Institucional | CT24: ='[1]LÍNEA 1'!AQ24 -> Ofc. Prensa
F25: Lograr una calificación de 80 sobre 100 en el componente de control y sanción en el Índice de Transparencia de las Entidades Públicas - ITEP. | G25: 62.4 | H25: 80 | I25: =+H25-G25 -> 17.6 | J25: 62.4 | K25: =+J25-G25 -> 0 | M25: 80 | N25: =+M25-J25 -> 17.6 | P25: 80 | Q25: =+P25-M25 -> 0 | S25: 80 | T25: =+S25-P25 -> 0 | V25: 65.1 | W25: =+IF(V25=0,0,V25-G25) -> 2.7 | Y25: =+IF(X25=0,0,X25-V25) -> 0 | AA25: =+IF(Z25=0,0,Z25-X25) -> 0 | AC25: =+IF(AB25=0,0,AB25-Z25) -> 0 | AD25: =+IF(K25=0," -",W25/K25) -> - | AE25: =+IF(K25=0," -",IF(AD25>100%,100%,AD25)) -> - | AF25: =+IF(N25=0," -",Y25/N25) -> 0 | AG25: =+IF(N25=0," -",IF(AF25>100%,100%,AF25)) -> 0 | AH25: =+IF(Q25=0," -",AA25/Q25) -> - | AI25: =+IF(Q25=0," -",IF(AH25>100%,100%,AH25)) -> - | AJ25: =+IF(T25=0," -",AC25/T25) -> - | AK25: =+IF(T25=0," -",IF(AJ25>100%,100%,AJ25)) -> - | AL25: =+SUM(AC25,AA25,Y25,W25)/I25 -> 0.1534090909 | AM25: =+IF(AL25>100%,100%,IF(AL25<0%,0%,AL25)) -> 0.1534090909 | AQ25: Implementar y mantener 1 estrategia para la creación y promoción del Consejo Municipal de participación ciudadana. | AR25: ='[1]LÍNEA 1'!P25 -> 0 | AS25: Número de estrategias implementadas y mantenidas para la creación y promoción del Consejo Municipal de participación ciudadana. | AT25: 0 | AU25: ='[1]LÍNEA 1'!S25 -> 1 | AV25: ='[1]LÍNEA 1'!T25 -> 1 | AW25: 0.25 | AX25: ='[1]LÍNEA 1'!U25 -> 1 | AY25: 0.25 | AZ25: ='[1]LÍNEA 1'!V25 -> 1 | BA25: 0.25 | BB25: ='[1]LÍNEA 1'!W25 -> 1 | BC25: 0.25 | BD25: ='[3]2016'!K14 -> 0 | BE25: ='[3]2017'!K14 -> 1 | BF25: ='[3]2018'!K14 -> 1 | BG25: ='[3]2019'!K14 -> 0 | BH25: 0 | BI25: 0 | BJ25: 1 | BK25: 1 | BL25: 1 | BM25: 1 | BN25: 0 | BO25: 0 | BP25: 0.5 | BQ25: 0.5 | BR25: 0.5 | BS25: ='[3]2016'!P14 -> 0 | BT25: ='[3]2016'!Q14 -> 0 | BU25: ='[3]2016'!R14 -> 0 | BV25: - | BW25: - | BX25: ='[3]2017'!P14 -> 0 | BY25: ='[3]2017'!Q14 -> 0 | BZ25: ='[3]2017'!R14 -> 0 | CA25: - | CB25: - | CC25: ='[3]2018'!P14 -> 0 | CD25: ='[3]2018'!Q14 -> 0 | CE25: ='[3]2018'!R14 -> 0 | CF25: - | CG25: - | CH25: ='[3]2019'!P14 -> 25000 | CI25: ='[3]2019'!Q14 -> 0 | CJ25: ='[3]2019'!R14 -> 0 | CK25: 0 | CL25: - | CM25: 25000 | CN25: 0 | CO25: 0 | CP25: 0 | CQ25: - | CR25: 16. Paz, justicia e instituciones sólidas | CS25: Fortalecimiento Institucional | CT25: ='[1]LÍNEA 1'!AQ25 -> Sec. Desarrollo Social
AQ26: Implementar y mantener 1 estrategia para difundir la ley 1757 de 2015 y promover la apropiación por parte de la ciudadanía de los mecanismos allí establecidos. | AR26: ='[1]LÍNEA 1'!P26 -> 0 | AS26: Número de estrategias implementadas y mantenidas para difundir la ley 1757 de 2015 y promover la apropiación por parte de la ciudadanía de los mecanismos allí establecidos. | AT26: 0 | AU26: ='[1]LÍNEA 1'!S26 -> 1 | AV26: ='[1]LÍNEA 1'!T26 -> 1 | AW26: 0.25 | AX26: ='[1]LÍNEA 1'!U26 -> 1 | AY26: 0.25 | AZ26: ='[1]LÍNEA 1'!V26 -> 1 | BA26: 0.25 | BB26: ='[1]LÍNEA 1'!W26 -> 1 | BC26: 0.25 | BD26: ='[3]2016'!K15 -> 0 | BE26: ='[3]2017'!K15 -> 0.67 | BF26: ='[3]2018'!K15 -> 0 | BG26: ='[3]2019'!K15 -> 0 | BH26: 0 | BI26: 0 | BJ26: 0.67 | BK26: 0.67 | BL26: 0 | BM26: 0 | BN26: 0 | BO26: 0 | BP26: 0.1675 | BQ26: 0.1675 | BR26: 0.1675 | BS26: ='[3]2016'!P15 -> 0 | BT26: ='[3]2016'!Q15 -> 0 | BU26: ='[3]2016'!R15 -> 0 | BV26: - | BW26: - | BX26: ='[3]2017'!P15 -> 0 | BY26: ='[3]2017'!Q15 -> 0 | BZ26: ='[3]2017'!R15 -> 0 | CA26: - | CB26: - | CC26: ='[3]2018'!P15 -> 0 | CD26: ='[3]2018'!Q15 -> 0 | CE26: ='[3]2018'!R15 -> 0 | CF26: - | CG26: - | CH26: ='[3]2019'!P15 -> 25000 | CI26: ='[3]2019'!Q15 -> 0 | CJ26: ='[3]2019'!R15 -> 0 | CK26: 0 | CL26: - | CM26: 25000 | CN26: 0 | CO26: 0 | CP26: 0 | CQ26: - | CR26: 16. Paz, justicia e instituciones sólidas | CS26: Fortalecimiento Institucional | CT26: ='[1]LÍNEA 1'!AQ26 -> Sec. Desarrollo Social
AQ27: Implementar y mantener 1 estrategia de gobierno para la aplicación cabal de la ley 1757 de 2015 de participación ciudadana. | AR27: ='[1]LÍNEA 1'!P27 -> - | AS27: Número de estrategias de gobierno implementadas y mantenidas para la aplicación cabal de la ley 1757 de 2015 de participación ciudadana. | AT27: 0 | AU27: ='[1]LÍNEA 1'!S27 -> 1 | AV27: ='[1]LÍNEA 1'!T27 -> 1 | AW27: 0.25 | AX27: ='[1]LÍNEA 1'!U27 -> 1 | AY27: 0.25 | AZ27: ='[1]LÍNEA 1'!V27 -> 1 | BA27: 0.25 | BB27: ='[1]LÍNEA 1'!W27 -> 1 | BC27: 0.25 | BD27: ='[3]2016'!K16 -> 0 | BE27: ='[3]2017'!K16 -> 1 | BF27: ='[3]2018'!K16 -> 1 | BG27: ='[3]2019'!K16 -> 0 | BH27: 0 | BI27: 0 | BJ27: 1 | BK27: 1 | BL27: 1 | BM27: 1 | BN27: 0 | BO27: 0 | BP27: 0.5 | BQ27: 0.5 | BR27: 0.5 | BS27: ='[3]2016'!P16 -> 0 | BT27: ='[3]2016'!Q16 -> 0 | BU27: ='[3]2016'!R16 -> 0 | BV27: - | BW27: - | BX27: ='[3]2017'!P16 -> 0 | BY27: ='[3]2017'!Q16 -> 0 | BZ27: ='[3]2017'!R16 -> 0 | CA27: - | CB27: - | CC27: ='[3]2018'!P16 -> 0 | CD27: ='[3]2018'!Q16 -> 0 | CE27: ='[3]2018'!R16 -> 0 | CF27: - | CG27: - | CH27: ='[3]2019'!P16 -> 0 | CI27: ='[3]2019'!Q16 -> 0 | CJ27: ='[3]2019'!R16 -> 0 | CK27: - | CL27: - | CM27: 0 | CN27: 0 | CO27: 0 | CP27: - | CQ27: - | CR27: 16. Paz, justicia e instituciones sólidas | CS27: Fortalecimiento Institucional | CT27: ='[1]LÍNEA 1'!AQ27 -> Sec. Desarrollo Social
AQ28: Implementar y mantener 1 estrategia para la promoción y el fortalecimiento de las veedurías. | AR28: ='[1]LÍNEA 1'!P28 -> 0 | AS28: Número de estrategias implementadas y mantenidas para la promoción y el fortalecimiento de las veedurías. | AT28: 0 | AU28: ='[1]LÍNEA 1'!S28 -> 1 | AV28: ='[1]LÍNEA 1'!T28 -> 1 | AW28: 0.25 | AX28: ='[1]LÍNEA 1'!U28 -> 1 | AY28: 0.25 | AZ28: ='[1]LÍNEA 1'!V28 -> 1 | BA28: 0.25 | BB28: ='[1]LÍNEA 1'!W28 -> 1 | BC28: 0.25 | BD28: ='[3]2016'!K17 -> 0 | BE28: ='[3]2017'!K17 -> 0.5 | BF28: ='[3]2018'!K17 -> 0 | BG28: ='[3]2019'!K17 -> 0 | BH28: 0 | BI28: 0 | BJ28: 0.5 | BK28: 0.5 | BL28: 0 | BM28: 0 | BN28: 0 | BO28: 0 | BP28: 0.125 | BQ28: 0.125 | BR28: 0.125 | BS28: ='[3]2016'!P17 -> 0 | BT28: ='[3]2016'!Q17 -> 0 | BU28: ='[3]2016'!R17 -> 0 | BV28: - | BW28: - | BX28: ='[3]2017'!P17 -> 0 | BY28: ='[3]2017'!Q17 -> 0 | BZ28: ='[3]2017'!R17 -> 0 | CA28: - | CB28: - | CC28: ='[3]2018'!P17 -> 0 | CD28: ='[3]2018'!Q17 -> 0 | CE28: ='[3]2018'!R17 -> 0 | CF28: - | CG28: - | CH28: ='[3]2019'!P17 -> 25000 | CI28: ='[3]2019'!Q17 -> 0 | CJ28: ='[3]2019'!R17 -> 0 | CK28: 0 | CL28: - | CM28: 25000 | CN28: 0 | CO28: 0 | CP28: 0 | CQ28: - | CR28: 16. Paz, justicia e instituciones sólidas | CS28: Fortalecimiento Institucional | CT28: ='[1]LÍNEA 1'!AQ28 -> Sec. Desarrollo Social
AQ29: Implementar y mantener 1 estrategia para el fortalecimiento del Consejo Municipal de Desarrollo Rural. | AR29: ='[1]LÍNEA 1'!P29 -> 0 | AS29: Número de estrategias implementadas y mantenidas para el fortalecimiento del Consejo Municipal de Desarrollo Rural. | AT29: 1 | AU29: ='[1]LÍNEA 1'!S29 -> 1 | AV29: ='[1]LÍNEA 1'!T29 -> 1 | AW29: 0.25 | AX29: ='[1]LÍNEA 1'!U29 -> 1 | AY29: 0.25 | AZ29: ='[1]LÍNEA 1'!V29 -> 1 | BA29: 0.25 | BB29: ='[1]LÍNEA 1'!W29 -> 1 | BC29: 0.25 | BD29: ='[3]2016'!K18 -> 1 | BE29: ='[3]2017'!K18 -> 0.5 | BF29: ='[3]2018'!K18 -> 1 | BG29: ='[3]2019'!K18 -> 0 | BH29: 1 | BI29: 1 | BJ29: 0.5 | BK29: 0.5 | BL29: 1 | BM29: 1 | BN29: 0 | BO29: 0 | BP29: 0.625 | BQ29: 0.625 | BR29: 0.625 | BS29: ='[3]2016'!P18 -> 0 | BT29: ='[3]2016'!Q18 -> 0 | BU29: ='[3]2016'!R18 -> 0 | BV29: - | BW29: - | BX29: ='[3]2017'!P18 -> 0 | BY29: ='[3]2017'!Q18 -> 0 | BZ29: ='[3]2017'!R18 -> 0 | CA29: - | CB29: - | CC29: ='[3]2018'!P18 -> 0 | CD29: ='[3]2018'!Q18 -> 0 | CE29: ='[3]2018'!R18 -> 0 | CF29: - | CG29: - | CH29: ='[3]2019'!P18 -> 25000 | CI29: ='[3]2019'!Q18 -> 0 | CJ29: ='[3]2019'!R18 -> 0 | CK29: 0 | CL29: - | CM29: 25000 | CN29: 0 | CO29: 0 | CP29: 0 | CQ29: - | CR29: 16. Paz, justicia e instituciones sólidas | CS29: Fortalecimiento Institucional | CT29: ='[1]LÍNEA 1'!AQ29 -> Sec. Desarrollo Social
AQ30: Crear 1 cargo del nivel directivo o asesor para que la coordinación de los asuntos de prensa y comunicaciones (Jefe de Prensa). | AR30: ='[1]LÍNEA 1'!P30 -> - | AS30: Número de cargos creados para la coordinación de los asuntos de prensa y comunicaciones (Jefe de prensa) | AT30: 0 | AU30: ='[1]LÍNEA 1'!S30 -> 1 | AV30: ='[1]LÍNEA 1'!T30 -> 0 | AW30: 0 | AX30: ='[1]LÍNEA 1'!U30 -> 1 | AY30: 1 | AZ30: ='[1]LÍNEA 1'!V30 -> 0 | BA30: 0 | BB30: ='[1]LÍNEA 1'!W30 -> 0 | BC30: 0 | BD30: ='[9]2016'!K12 -> 0 | BE30: ='[9]2017'!K12 -> 0 | BF30: ='[9]2018'!K12 -> 0 | BG30: ='[9]2019'!K12 -> 0 | BH30: - | BI30: - | BJ30: 0 | BK30: 0 | BL30: - | BM30: - | BN30: - | BO30: - | BP30: =+SUM(BD30:BG30)/AU30 -> 0 | BQ30: 0 | BR30: 0 | BS30: ='[9]2016'!P12 -> 0 | BT30: ='[9]2016'!Q12 -> 0 | BU30: ='[9]2016'!R12 -> 0 | BV30: - | BW30: - | BX30: ='[9]2017'!P12 -> 0 | BY30: ='[9]2017'!Q12 -> 0 | BZ30: ='[9]2017'!R12 -> 0 | CA30: - | CB30: - | CC30: ='[9]2018'!P12 -> 0 | CD30: ='[9]2018'!Q12 -> 0 | CE30: ='[9]2018'!R12 -> 0 | CF30: - | CG30: - | CH30: ='[9]2019'!P12 -> 0 | CI30: ='[9]2019'!Q12 -> 0 | CJ30: ='[9]2019'!R12 -> 0 | CK30: - | CL30: - | CM30: 0 | CN30: 0 | CO30: 0 | CP30: - | CQ30: - | CR30: 16. Paz, justicia e instituciones sólidas | CS30: Fortalecimiento Institucional | CT30: ='[1]LÍNEA 1'!AQ30 -> Sec. Administrativa
AQ31: Crear 1 cargo del nivel directivo y/o asesor adscrito al despacho del Alcalde como encargado de asuntos de participación ciudadana. | AR31: ='[1]LÍNEA 1'!P31 -> - | AS31: Número de cargos del nivel directivo y/o asesor adscritos al despacho del Alcalde como encargado de asuntos de participación ciudadana. | AT31: 0 | AU31: ='[1]LÍNEA 1'!S31 -> 1 | AV31: ='[1]LÍNEA 1'!T31 -> 0 | AW31: 0 | AX31: ='[1]LÍNEA 1'!U31 -> 1 | AY31: 1 | AZ31: ='[1]LÍNEA 1'!V31 -> 0 | BA31: 0 | BB31: ='[1]LÍNEA 1'!W31 -> 0 | BC31: 0 | BD31: ='[9]2016'!K13 -> 0 | BE31: ='[9]2017'!K13 -> 0 | BF31: ='[9]2018'!K13 -> 0 | BG31: ='[9]2019'!K13 -> 0 | BH31: - | BI31: - | BJ31: 0 | BK31: 0 | BL31: - | BM31: - | BN31: - | BO31: - | BP31: =+SUM(BD31:BG31)/AU31 -> 0 | BQ31: 0 | BR31: 0 | BS31: ='[9]2016'!P13 -> 0 | BT31: ='[9]2016'!Q13 -> 0 | BU31: ='[9]2016'!R13 -> 0 | BV31: - | BW31: - | BX31: ='[9]2017'!P13 -> 0 | BY31: ='[9]2017'!Q13 -> 0 | BZ31: ='[9]2017'!R13 -> 0 | CA31: - | CB31: - | CC31: ='[9]2018'!P13 -> 0 | CD31: ='[9]2018'!Q13 -> 0 | CE31: ='[9]2018'!R13 -> 0 | CF31: - | CG31: - | CH31: ='[9]2019'!P13 -> 0 | CI31: ='[9]2019'!Q13 -> 0 | CJ31: ='[9]2019'!R13 -> 0 | CK31: - | CL31: - | CM31: 0 | CN31: 0 | CO31: 0 | CP31: - | CQ31: - | CR31: 16. Paz, justicia e instituciones sólidas | CS31: Fortalecimiento Institucional | CT31: ='[1]LÍNEA 1'!AQ31 -> Sec. Administrativa
AQ32: Convocar y realizar 48 conversatorios con organizaciones sociales, organizaciones políticas, periodísticas o grupos de líderes de opinión para discutir asuntos del gobierno y la ciudad. | AR32: ='[1]LÍNEA 1'!P32 -> 2210289 | AS32: Número de conversatorios convocados y realizados con organizaciones sociales, organizaciones políticas, periodísticas o grupos de líderes de opinión para discutir asuntos del gobierno y la ciudad. | AT32: 0 | AU32: ='[1]LÍNEA 1'!S32 -> 48 | AV32: ='[1]LÍNEA 1'!T32 -> 4 | AW32: 0.08333333333 | AX32: ='[1]LÍNEA 1'!U32 -> 15 | AY32: 0.3125 | AZ32: ='[1]LÍNEA 1'!V32 -> 14 | BA32: 0.2916666667 | BB32: ='[1]LÍNEA 1'!W32 -> 15 | BC32: 0.3125 | BD32: ='[2]2016'!$K$13 -> 3 | BE32: ='[2]2017'!$K$13 -> 19 | BF32: ='[2]2018'!$K$13 -> 20 | BG32: ='[2]2019'!$K$13 -> 0 | BH32: 0.75 | BI32: 0.75 | BJ32: 1.266666667 | BK32: 1 | BL32: 1.428571429 | BM32: 1 | BN32: 0 | BO32: 0 | BP32: =+SUM(BD32:BG32)/AU32 -> 0.875 | BQ32: 0.875 | BR32: 0.875 | BS32: ='[2]2016'!P13 -> 0 | BT32: ='[2]2016'!Q13 -> 0 | BU32: ='[2]2016'!R13 -> 0 | BV32: - | BW32: - | BX32: ='[2]2017'!P13 -> 0 | BY32: ='[2]2017'!Q13 -> 0 | BZ32: ='[2]2017'!R13 -> 0 | CA32: - | CB32: - | CC32: ='[2]2018'!P13 -> 24000 | CD32: ='[2]2018'!Q13 -> 24000 | CE32: ='[2]2018'!R13 -> 0 | CF32: 1 | CG32: - | CH32: ='[2]2019'!P13 -> 0 | CI32: ='[2]2019'!Q13 -> 0 | CJ32: ='[2]2019'!R13 -> 0 | CK32: - | CL32: - | CM32: 24000 | CN32: 24000 | CO32: 0 | CP32: 1 | CQ32: - | CR32: 16. Paz, justicia e instituciones sólidas | CS32: Fortalecimiento Institucional | CT32: ='[1]LÍNEA 1'!AQ32 -> Sec. Interior
AQ33: Implementar y mantener 1 sección en la página web institucional para informar sobre los debates, las relaciones y los acuerdos con el Concejo e interactuar con la ciudadanía. | AR33: ='[1]LÍNEA 1'!P33 -> - | AS33: Número de secciones implementadas y mantenidas en la página web institucional para informar sobre los debates, las relaciones y los acuerdos con el Concejo e interactuar con la ciudadanía. | AT33: 0 | AU33: ='[1]LÍNEA 1'!S33 -> 1 | AV33: ='[1]LÍNEA 1'!T33 -> 0 | AW33: 0 | AX33: ='[1]LÍNEA 1'!U33 -> 1 | AY33: 0.33 | AZ33: ='[1]LÍNEA 1'!V33 -> 1 | BA33: 0.33 | BB33: ='[1]LÍNEA 1'!W33 -> 1 | BC33: 0.34 | BD33: ='[10]2016'!K12 -> 0.33 | BE33: ='[10]2017'!K12 -> 1 | BF33: ='[10]2018'!K12 -> 1 | BG33: ='[10]2019'!K12 -> 0 | BH33: - | BI33: - | BJ33: 1 | BK33: 1 | BL33: 1 | BM33: 1 | BN33: 0 | BO33: 0 | BP33: =+AVERAGE(BE33:BG33)/AU33 -> 0.6666666667 | BQ33: 0.6666666667 | BR33: 0.6666666667 | BS33: ='[10]2016'!P12 -> 0 | BT33: ='[10]2016'!Q12 -> 0 | BU33: ='[10]2016'!R12 -> 0 | BV33: - | BW33: - | BX33: ='[10]2017'!P12 -> 0 | BY33: ='[10]2017'!Q12 -> 0 | BZ33: ='[10]2017'!R12 -> 0 | CA33: - | CB33: - | CC33: ='[10]2018'!P12 -> 0 | CD33: ='[10]2018'!Q12 -> 0 | CE33: ='[10]2018'!R12 -> 0 | CF33: - | CG33: - | CH33: ='[10]2019'!P12 -> 0 | CI33: ='[10]2019'!Q12 -> 0 | CJ33: ='[10]2019'!R12 -> 0 | CK33: - | CL33: - | CM33: 0 | CN33: 0 | CO33: 0 | CP33: - | CQ33: - | CR33: 16. Paz, justicia e instituciones sólidas | CS33: Fortalecimiento Institucional | CT33: ='[1]LÍNEA 1'!AQ33 -> Asesor TIC
AQ34: Implementar y mantener 1 sección en la página web institucional para que la ciudadanía pueda compartir textos, imágenes, audios y videos sobre condiciones y problemas de la ciudad o propuestas de política. | AR34: ='[1]LÍNEA 1'!P34 -> - | AS34: Número de secciones implementadas y mantenidas en la página web institucional para que la ciudadanía pueda compartir textos, imágenes, audios y videos sobre condiciones y problemas de la ciudad o propuestas de política. | AT34: 0 | AU34: ='[1]LÍNEA 1'!S34 -> 1 | AV34: ='[1]LÍNEA 1'!T34 -> 0 | AW34: 0 | AX34: ='[1]LÍNEA 1'!U34 -> 1 | AY34: 0.33 | AZ34: ='[1]LÍNEA 1'!V34 -> 1 | BA34: 0.33 | BB34: ='[1]LÍNEA 1'!W34 -> 1 | BC34: 0.34 | BD34: ='[10]2016'!K13 -> 0.5 | BE34: ='[10]2017'!K13 -> 1 | BF34: ='[10]2018'!K13 -> 1 | BG34: ='[10]2019'!K13 -> 0 | BH34: - | BI34: - | BJ34: 1 | BK34: 1 | BL34: 1 | BM34: 1 | BN34: 0 | BO34: 0 | BP34: 0.625 | BQ34: 0.625 | BR34: 0.625 | BS34: ='[10]2016'!P13 -> 0 | BT34: ='[10]2016'!Q13 -> 0 | BU34: ='[10]2016'!R13 -> 0 | BV34: - | BW34: - | BX34: ='[10]2017'!P13 -> 0 | BY34: ='[10]2017'!Q13 -> 0 | BZ34: ='[10]2017'!R13 -> 0 | CA34: - | CB34: - | CC34: ='[10]2018'!P13 -> 0 | CD34: ='[10]2018'!Q13 -> 0 | CE34: ='[10]2018'!R13 -> 0 | CF34: - | CG34: - | CH34: ='[10]2019'!P13 -> 0 | CI34: ='[10]2019'!Q13 -> 0 | CJ34: ='[10]2019'!R13 -> 0 | CK34: - | CL34: - | CM34: 0 | CN34: 0 | CO34: 0 | CP34: - | CQ34: - | CR34: 16. Paz, justicia e instituciones sólidas | CS34: Fortalecimiento Institucional | CT34: ='[1]LÍNEA 1'!AQ34 -> Asesor TIC
AO35: =+RESUMEN!J13 -> 0.7682692308 | AP35: INSTITUCIONES DEMOCRÁTICAS DE BASE FORTALECIDAS E INCLUYENTES | AQ35: Beneficiar al 100% de los ediles con pago de EPS, Pensión, ARL y póliza de vida. | AR35: ='[1]LÍNEA 1'!P35 -> 2210216 | AS35: Porcentaje de ediles beneficiados con pago de EPS, Pensión, ARL y póliza de vida. | AT35: 1 | AU35: ='[1]LÍNEA 1'!S35 -> 1 | AV35: ='[1]LÍNEA 1'!T35 -> 1 | AW35: 0.25 | AX35: ='[1]LÍNEA 1'!U35 -> 1 | AY35: 0.25 | AZ35: ='[1]LÍNEA 1'!V35 -> 1 | BA35: 0.25 | BB35: ='[1]LÍNEA 1'!W35 -> 1 | BC35: 0.25 | BD35: ='[3]2016'!K19 -> 1 | BE35: ='[3]2017'!K19 -> 1 | BF35: ='[3]2018'!K19 -> 1 | BG35: ='[3]2019'!K19 -> 0 | BH35: 1 | BI35: 1 | BJ35: 1 | BK35: 1 | BL35: 1 | BM35: 1 | BN35: 0 | BO35: 0 | BP35: 0.75 | BQ35: 0.75 | BR35: 0.75 | BS35: ='[3]2016'!P19 -> 500000 | BT35: ='[3]2016'!Q19 -> 483730 | BU35: ='[3]2016'!R19 -> 0 | BV35: 0.96746 | BW35: - | BX35: ='[3]2017'!P19 -> 497805 | BY35: ='[3]2017'!Q19 -> 496218 | BZ35: ='[3]2017'!R19 -> 0 | CA35: 0.9968120047 | CB35: - | CC35: ='[3]2018'!P19 -> 758291 | CD35: ='[3]2018'!Q19 -> 673389 | CE35: ='[3]2018'!R19 -> 0 | CF35: 0.8880350683 | CG35: - | CH35: ='[3]2019'!P19 -> 912933 | CI35: ='[3]2019'!Q19 -> 0 | CJ35: ='[3]2019'!R19 -> 0 | CK35: 0 | CL35: - | CM35: 2669029 | CN35: 1653337 | CO35: 0 | CP35: 0.6194526174 | CQ35: - | CR35: 16. Paz, justicia e instituciones sólidas | CS35: Fortalecimiento Institucional | CT35: ='[1]LÍNEA 1'!AQ35 -> Sec. Desarrollo Social
AQ36: Implementar y mantener 1 estrategia para fortalecer la Unidad de Desarrollo Comunitario - UNDECO. | AR36: ='[1]LÍNEA 1'!P36 -> 2210706 | AS36: Número de estrategias implementadas y mantenidas para fortalecer la Unidad de Desarrollo Comunitario - UNDECO. | AT36: 1 | AU36: ='[1]LÍNEA 1'!S36 -> 1 | AV36: ='[1]LÍNEA 1'!T36 -> 1 | AW36: 0.25 | AX36: ='[1]LÍNEA 1'!U36 -> 1 | AY36: 0.25 | AZ36: ='[1]LÍNEA 1'!V36 -> 1 | BA36: 0.25 | BB36: ='[1]LÍNEA 1'!W36 -> 1 | BC36: 0.25 | BD36: ='[3]2016'!K20 -> 1 | BE36: ='[3]2017'!K20 -> 1 | BF36: ='[3]2018'!K20 -> 1 | BG36: ='[3]2019'!K20 -> 0 | BH36: 1 | BI36: 1 | BJ36: 1 | BK36: 1 | BL36: 1 | BM36: 1 | BN36: 0 | BO36: 0 | BP36: 0.75 | BQ36: 0.75 | BR36: 0.75 | BS36: ='[3]2016'!P20 -> 300000 | BT36: ='[3]2016'!Q20 -> 246783 | BU36: ='[3]2016'!R20 -> 0 | BV36: 0.82261 | BW36: - | BX36: ='[3]2017'!P20 -> 494004 | BY36: ='[3]2017'!Q20 -> 479089 | BZ36: ='[3]2017'!R20 -> 0 | CA36: 0.9698079368 | CB36: - | CC36: ='[3]2018'!P20 -> 2259200 | CD36: ='[3]2018'!Q20 -> 1953266 | CE36: ='[3]2018'!R20 -> 0 | CF36: 0.8645830382 | CG36: - | CH36: ='[3]2019'!P20 -> 0 | CI36: ='[3]2019'!Q20 -> 0 | CJ36: ='[3]2019'!R20 -> 0 | CK36: - | CL36: - | CM36: 3053204 | CN36: 2679138 | CO36: 0 | CP36: 0.8774841118 | CQ36: - | CR36: 16. Paz, justicia e instituciones sólidas | CS36: Desarrollo Comunitario | CT36: ='[1]LÍNEA 1'!AQ36 -> Sec. Desarrollo Social
AQ37: Realizar ejercicios de participación y construcción del territorio con 100 Juntas de Acción Comunal - JAC. | AR37: ='[1]LÍNEA 1'!P37 -> 2210706 | AS37: Número de Juntas de Acción Comunal - JAC que participan en ejercicios de construcción del territorio. | AT37: 0 | AU37: ='[1]LÍNEA 1'!S37 -> 100 | AV37: ='[1]LÍNEA 1'!T37 -> 25 | AW37: 0.25 | AX37: ='[1]LÍNEA 1'!U37 -> 25 | AY37: 0.25 | AZ37: ='[1]LÍNEA 1'!V37 -> 25 | BA37: 0.25 | BB37: ='[1]LÍNEA 1'!W37 -> 25 | BC37: 0.25 | BD37: ='[3]2016'!K21 -> 55 | BE37: ='[3]2017'!K21 -> 35 | BF37: ='[3]2018'!K21 -> 15 | BG37: ='[3]2019'!K21 -> 0 | BH37: 2.2 | BI37: 1 | BJ37: 1.4 | BK37: 1 | BL37: 0.6 | BM37: 0.6 | BN37: 0 | BO37: 0 | BP37: =+SUM(BD37:BG37)/AU37 -> 1.05 | BQ37: 1 | BR37: 1 | BS37: ='[3]2016'!P21 -> 35000 | BT37: ='[3]2016'!Q21 -> 15000 | BU37: ='[3]2016'!R21 -> 0 | BV37: 0.4285714286 | BW37: - | BX37: ='[3]2017'!P21 -> 0 | BY37: ='[3]2017'!Q21 -> 0 | BZ37: ='[3]2017'!R21 -> 0 | CA37: - | CB37: - | CC37: ='[3]2018'!P21 -> 0 | CD37: ='[3]2018'!Q21 -> 0 | CE37: ='[3]2018'!R21 -> 0 | CF37: - | CG37: - | CH37: ='[3]2019'!P21 -> 27300 | CI37: ='[3]2019'!Q21 -> 0 | CJ37: ='[3]2019'!R21 -> 0 | CK37: 0 | CL37: - | CM37: 62300 | CN37: 15000 | CO37: 0 | CP37: 0.2407704655 | CQ37: - | CR37: 16. Paz, justicia e instituciones sólidas | CS37: Desarrollo Comunitario | CT37: ='[1]LÍNEA 1'!AQ37 -> Sec. Desarrollo Social
F38: Lograr que el 60% de los ciudadanos confíe en la gestión del Alcalde/Gobierno Municipal de acuerdo a la encuesta Cómo Vamos. | G38: 0.3 | H38: 0.6 | I38: =+H38-G38 -> 0.3 | J38: 0.4 | K38: =+J38-G38 -> 0.1 | M38: 0.5 | N38: =+M38-J38 -> 0.1 | P38: 0.6 | Q38: =+P38-M38 -> 0.1 | S38: 0.6 | T38: =+S38-P38 -> 0 | V38: 0.3 | W38: =+IF(V38=0,0,V38-G38) -> 0 | Y38: =+IF(X38=0,0,X38-V38) -> 0 | AA38: =+IF(Z38=0,0,Z38-X38) -> 0 | AC38: =+IF(AB38=0,0,AB38-Z38) -> 0 | AD38: =+IF(K38=0," -",W38/K38) -> 0 | AE38: =+IF(K38=0," -",IF(AD38>100%,100%,AD38)) -> 0 | AF38: =+IF(N38=0," -",Y38/N38) -> 0 | AG38: =+IF(N38=0," -",IF(AF38>100%,100%,AF38)) -> 0 | AH38: =+IF(Q38=0," -",AA38/Q38) -> 0 | AI38: =+IF(Q38=0," -",IF(AH38>100%,100%,AH38)) -> 0 | AJ38: =+IF(T38=0," -",AC38/T38) -> - | AK38: =+IF(T38=0," -",IF(AJ38>100%,100%,AJ38)) -> - | AL38: =+SUM(AC38,AA38,Y38,W38)/I38 -> 0 | AM38: =+IF(AL38>100%,100%,IF(AL38<0%,0%,AL38)) -> 0 | AQ38: Implementar y mantener la estrategia "Voces de los comuneros". | AR38: ='[1]LÍNEA 1'!P38 -> - | AS38: Número de estrategias "Voces de los comuneros" implementadas y mantenidas. | AT38: 0 | AU38: ='[1]LÍNEA 1'!S38 -> 1 | AV38: ='[1]LÍNEA 1'!T38 -> 1 | AW38: 0.25 | AX38: ='[1]LÍNEA 1'!U38 -> 1 | AY38: 0.25 | AZ38: ='[1]LÍNEA 1'!V38 -> 1 | BA38: 0.25 | BB38: ='[1]LÍNEA 1'!W38 -> 1 | BC38: 0.25 | BD38: ='[3]2016'!K22 -> 1 | BE38: ='[3]2017'!K22 -> 1 | BF38: ='[3]2018'!K22 -> 1 | BG38: ='[3]2019'!K22 -> 0 | BH38: 1 | BI38: 1 | BJ38: 1 | BK38: 1 | BL38: 1 | BM38: 1 | BN38: 0 | BO38: 0 | BP38: 0.75 | BQ38: 0.75 | BR38: 0.75 | BS38: ='[3]2016'!P22 -> 0 | BT38: ='[3]2016'!Q22 -> 0 | BU38: ='[3]2016'!R22 -> 0 | BV38: - | BW38: - | BX38: ='[3]2017'!P22 -> 0 | BY38: ='[3]2017'!Q22 -> 0 | BZ38: ='[3]2017'!R22 -> 0 | CA38: - | CB38: - | CC38: ='[3]2018'!P22 -> 0 | CD38: ='[3]2018'!Q22 -> 0 | CE38: ='[3]2018'!R22 -> 0 | CF38: - | CG38: - | CH38: ='[3]2019'!P22 -> 0 | CI38: ='[3]2019'!Q22 -> 0 | CJ38: ='[3]2019'!R22 -> 0 | CK38: - | CL38: - | CM38: 0 | CN38: 0 | CO38: 0 | CP38: - | CQ38: - | CR38: 16. Paz, justicia e instituciones sólidas | CS38: Justicia y Seguridad | CT38: ='[1]LÍNEA 1'!AQ38 -> Sec. Desarrollo Social
AQ39: Realizar 2 actividades de dotación para ediles con el fin de apoyar su ejercicio democrático. | AR39: ='[1]LÍNEA 1'!P39 -> 2210706 | AS39: Número de actividades de dotación realizadas para ediles con el fin de apoyar su ejercicio democrático. | AT39: 1 | AU39: ='[1]LÍNEA 1'!S39 -> 2 | AV39: ='[1]LÍNEA 1'!T39 -> 0 | AW39: 0 | AX39: ='[1]LÍNEA 1'!U39 -> 1 | AY39: 0.5 | AZ39: ='[1]LÍNEA 1'!V39 -> 1 | BA39: 0.5 | BB39: ='[1]LÍNEA 1'!W39 -> 0 | BC39: 0 | BD39: ='[3]2016'!K23 -> 0 | BE39: ='[3]2017'!K23 -> 3 | BF39: ='[3]2018'!K23 -> 0 | BG39: ='[3]2019'!K23 -> 0 | BH39: - | BI39: - | BJ39: 3 | BK39: 1 | BL39: 0 | BM39: 0 | BN39: - | BO39: - | BP39: =+SUM(BD39:BG39)/AU39 -> 1.5 | BQ39: 1 | BR39: 1 | BS39: ='[3]2016'!P23 -> 0 | BT39: ='[3]2016'!Q23 -> 0 | BU39: ='[3]2016'!R23 -> 0 | BV39: - | BW39: - | BX39: ='[3]2017'!P23 -> 30940 | BY39: ='[3]2017'!Q23 -> 9638 | BZ39: ='[3]2017'!R23 -> 0 | CA39: 0.3115061409 | CB39: - | CC39: ='[3]2018'!P23 -> 0 | CD39: ='[3]2018'!Q23 -> 0 | CE39: ='[3]2018'!R23 -> 0 | CF39: - | CG39: - | CH39: ='[3]2019'!P23 -> 41800 | CI39: ='[3]2019'!Q23 -> 0 | CJ39: ='[3]2019'!R23 -> 0 | CK39: 0 | CL39: - | CM39: 72740 | CN39: 9638 | CO39: 0 | CP39: 0.1324993126 | CQ39: - | CR39: 16. Paz, justicia e instituciones sólidas | CS39: Desarrollo Comunitario | CT39: ='[1]LÍNEA 1'!AQ39 -> Sec. Desarrollo Social
AQ40: Realizar 4 concursos "embellece tu barrio". | AR40: ='[1]LÍNEA 1'!P40 -> 2210706 | AS40: Número de concursos "embellece tu barrio" realizados. | AT40: 0 | AU40: ='[1]LÍNEA 1'!S40 -> 4 | AV40: ='[1]LÍNEA 1'!T40 -> 0 | AW40: 0 | AX40: ='[1]LÍNEA 1'!U40 -> 1 | AY40: 0.25 | AZ40: ='[1]LÍNEA 1'!V40 -> 1 | BA40: 0.25 | BB40: ='[1]LÍNEA 1'!W40 -> 2 | BC40: 0.5 | BD40: ='[3]2016'!K24 -> 0 | BE40: ='[3]2017'!K24 -> 0 | BF40: ='[3]2018'!K24 -> 0 | BG40: ='[3]2019'!K24 -> 0 | BH40: - | BI40: - | BJ40: 0 | BK40: 0 | BL40: 0 | BM40: 0 | BN40: 0 | BO40: 0 | BP40: =+SUM(BD40:BG40)/AU40 -> 0 | BQ40: 0 | BR40: 0 | BS40: ='[3]2016'!P24 -> 30000 | BT40: ='[3]2016'!Q24 -> 0 | BU40: ='[3]2016'!R24 -> 0 | BV40: 0 | BW40: - | BX40: ='[3]2017'!P24 -> 0 | BY40: ='[3]2017'!Q24 -> 0 | BZ40: ='[3]2017'!R24 -> 0 | CA40: - | CB40: - | CC40: ='[3]2018'!P24 -> 0 | CD40: ='[3]2018'!Q24 -> 0 | CE40: ='[3]2018'!R24 -> 0 | CF40: - | CG40: - | CH40: ='[3]2019'!P24 -> 22823 | CI40: ='[3]2019'!Q24 -> 0 | CJ40: ='[3]2019'!R24 -> 0 | CK40: 0 | CL40: - | CM40: 52823 | CN40: 0 | CO40: 0 | CP40: 0 | CQ40: - | CR40: 13. Acción por el clima | CS40: Ambiental | CT40: ='[1]LÍNEA 1'!AQ40 -> Sec. Desarrollo Social
AQ41: Brindar 10.000 entradas gratuitas a ediles, dignatarios y afiliados de las JAL y JAC a espacios de recreación y cultura. | AR41: ='[1]LÍNEA 1'!P41 -> 2210706 | AS41: Número de entradas gratuitas brindadas a ediles, dignatarios y afiliados de las JAL y JAC a espacios de recreación y cultura. | AT41: 0 | AU41: ='[1]LÍNEA 1'!S41 -> 10000 | AV41: ='[1]LÍNEA 1'!T41 -> 2500 | AW41: 0.25 | AX41: ='[1]LÍNEA 1'!U41 -> 2500 | AY41: 0.25 | AZ41: ='[1]LÍNEA 1'!V41 -> 2500 | BA41: 0.25 | BB41: ='[1]LÍNEA 1'!W41 -> 2500 | BC41: 0.25 | BD41: ='[3]2016'!K25 -> 4200 | BE41: ='[3]2017'!K25 -> 6500 | BF41: ='[3]2018'!K25 -> 7827 | BG41: ='[3]2019'!K25 -> 0 | BH41: 1.68 | BI41: 1 | BJ41: 2.6 | BK41: 1 | BL41: 3.1308 | BM41: 1 | BN41: 0 | BO41: 0 | BP41: 1.8527 | BQ41: 1 | BR41: 1 | BS41: ='[3]2016'!P25 -> 21000 | BT41: ='[3]2016'!Q25 -> 21000 | BU41: ='[3]2016'!R25 -> 6300 | BV41: 1 | BW41: 0.3 | BX41: ='[3]2017'!P25 -> 30000 | BY41: ='[3]2017'!Q25 -> 30000 | BZ41: ='[3]2017'!R25 -> 0 | CA41: 1 | CB41: - | CC41: ='[3]2018'!P25 -> 40000 | CD41: ='[3]2018'!Q25 -> 39996 | CE41: ='[3]2018'!R25 -> 17141 | CF41: 0.9999 | CG41: 0.4285678568 | CH41: ='[3]2019'!P25 -> 0 | CI41: ='[3]2019'!Q25 -> 0 | CJ41: ='[3]2019'!R25 -> 0 | CK41: - | CL41: - | CM41: 91000 | CN41: 90996 | CO41: 23441 | CP41: 0.999956044 | CQ41: 0.2576047299 | CR41: 16. Paz, justicia e instituciones sólidas | CS41: Desarrollo Comunitario | CT41: ='[1]LÍNEA 1'!AQ41 -> Sec. Desarrollo Social
AQ42: Realizar 80 reuniones en el territorio con Juntas Administradoras Locales - JAL para discutir política pública y problemas de la comunidad. | AR42: ='[1]LÍNEA 1'!P42 -> 2210706 | AS42: Número de reuniones realizadas en el territorio con Juntas Administradoras Locales - JAL para discutir política pública y problemas de la comunidad. | AT42: 0 | AU42: ='[1]LÍNEA 1'!S42 -> 80 | AV42: ='[1]LÍNEA 1'!T42 -> 20 | AW42: 0.25 | AX42: ='[1]LÍNEA 1'!U42 -> 20 | AY42: 0.25 | AZ42: ='[1]LÍNEA 1'!V42 -> 20 | BA42: 0.25 | BB42: ='[1]LÍNEA 1'!W42 -> 20 | BC42: 0.25 | BD42: ='[3]2016'!K26 -> 20 | BE42: ='[3]2017'!K26 -> 19 | BF42: ='[3]2018'!K26 -> 10 | BG42: ='[3]2019'!K26 -> 0 | BH42: 1 | BI42: 1 | BJ42: 0.95 | BK42: 0.95 | BL42: 0.5 | BM42: 0.5 | BN42: 0 | BO42: 0 | BP42: 0.6125 | BQ42: 0.6125 | BR42: 0.6125 | BS42: ='[3]2016'!P26 -> 20000 | BT42: ='[3]2016'!Q26 -> 0 | BU42: ='[3]2016'!R26 -> 0 | BV42: 0 | BW42: - | BX42: ='[3]2017'!P26 -> 0 | BY42: ='[3]2017'!Q26 -> 0 | BZ42: ='[3]2017'!R26 -> 0 | CA42: - | CB42: - | CC42: ='[3]2018'!P26 -> 0 | CD42: ='[3]2018'!Q26 -> 0 | CE42: ='[3]2018'!R26 -> 0 | CF42: - | CG42: - | CH42: ='[3]2019'!P26 -> 20000 | CI42: ='[3]2019'!Q26 -> 0 | CJ42: ='[3]2019'!R26 -> 0 | CK42: 0 | CL42: - | CM42: 40000 | CN42: 0 | CO42: 0 | CP42: 0 | CQ42: - | CR42: 16. Paz, justicia e instituciones sólidas | CS42: Desarrollo Comunitario | CT42: ='[1]LÍNEA 1'!AQ42 -> Sec. Desarrollo Social
AQ43: Desarrollar 1 estrategia para la formación de los conciliadores de las JAC que promuevan una cultura de trasformación de los conflictos cotidianos en la comunidad para disminuir los índices de violencia por intolerancia social. | AR43: ='[1]LÍNEA 1'!P43 -> - | AS43: Número de estrategias desarrolladas para la formación de los conciliadores de las JAC que promuevan una cultura de trasformación de los conflictos cotidianos en la comunidad para disminuir los índices de violencia por intolerancia social. | AT43: 0 | AU43: ='[1]LÍNEA 1'!S43 -> 1 | AV43: ='[1]LÍNEA 1'!T43 -> 0 | AW43: 0 | AX43: ='[1]LÍNEA 1'!U43 -> 1 | AY43: 1 | AZ43: ='[1]LÍNEA 1'!V43 -> 0 | BA43: 0 | BB43: ='[1]LÍNEA 1'!W43 -> 0 | BC43: 0 | BD43: ='[3]2016'!K27 -> 1 | BE43: ='[3]2017'!K27 -> 1 | BF43: ='[3]2018'!K27 -> 1 | BG43: ='[3]2019'!K27 -> 0 | BH43: - | BI43: - | BJ43: 1 | BK43: 1 | BL43: - | BM43: - | BN43: - | BO43: - | BP43: 3 | BQ43: 1 | BR43: 1 | BS43: ='[3]2016'!P27 -> 0 | BT43: ='[3]2016'!Q27 -> 0 | BU43: ='[3]2016'!R27 -> 0 | BV43: - | BW43: - | BX43: ='[3]2017'!P27 -> 0 | BY43: ='[3]2017'!Q27 -> 0 | BZ43: ='[3]2017'!R27 -> 0 | CA43: - | CB43: - | CC43: ='[3]2018'!P27 -> 0 | CD43: ='[3]2018'!Q27 -> 0 | CE43: ='[3]2018'!R27 -> 0 | CF43: - | CG43: - | CH43: ='[3]2019'!P27 -> 0 | CI43: ='[3]2019'!Q27 -> 0 | CJ43: ='[3]2019'!R27 -> 0 | CK43: - | CL43: - | CM43: 0 | CN43: 0 | CO43: 0 | CP43: - | CQ43: - | CR43: 16. Paz, justicia e instituciones sólidas | CS43: Desarrollo Comunitario | CT43: ='[1]LÍNEA 1'!AQ43 -> Sec. Desarrollo Social
AQ44: Realizar 8 actividades para el fortalecimiento del Consejo Territorial de Planeación. | AR44: ='[1]LÍNEA 1'!P44 -> 2210842 | AS44: Número de actividades realizadas para el fortalecimiento del Consejo Territorial de Planeación. | AT44: 0 | AU44: ='[1]LÍNEA 1'!S44 -> 8 | AV44: ='[1]LÍNEA 1'!T44 -> 1 | AW44: 0.125 | AX44: ='[1]LÍNEA 1'!U44 -> 3 | AY44: 0.375 | AZ44: ='[1]LÍNEA 1'!V44 -> 2 | BA44: 0.25 | BB44: ='[1]LÍNEA 1'!W44 -> 2 | BC44: 0.25 | BD44: ='[6]2016'!$K$13 -> 1 | BE44: ='[6]2017'!$K$13 -> 3 | BF44: ='[6]2018'!$K$13 -> 1 | BG44: ='[6]2019'!$K$13 -> 0 | BH44: 1 | BI44: 1 | BJ44: 1 | BK44: 1 | BL44: 0.5 | BM44: 0.5 | BN44: 0 | BO44: 0 | BP44: 0.625 | BQ44: 0.625 | BR44: 0.625 | BS44: ='[6]2016'!P13 -> 33500 | BT44: ='[6]2016'!Q13 -> 23650 | BU44: ='[6]2016'!R13 -> 0 | BV44: 0.7059701493 | BW44: - | BX44: ='[6]2017'!P13 -> 169800 | BY44: ='[6]2017'!Q13 -> 169800 | BZ44: ='[6]2017'!R13 -> 270000 | CA44: 1 | CB44: 1.590106007 | CC44: ='[6]2018'!P13 -> 10200 | CD44: ='[6]2018'!Q13 -> 10200 | CE44: ='[6]2018'!R13 -> 0 | CF44: 1 | CG44: - | CH44: ='[6]2019'!P13 -> 20000 | CI44: ='[6]2019'!Q13 -> 0 | CJ44: ='[6]2019'!R13 -> 0 | CK44: 0 | CL44: - | CM44: 233500 | CN44: 203650 | CO44: 270000 | CP44: 0.8721627409 | CQ44: 1.325804076 | CR44: 16. Paz, justicia e instituciones sólidas | CS44: Desarrollo Comunitario | CT44: ='[1]LÍNEA 1'!AQ44 -> Sec. Planeación
AQ45: Construir o adecuar 1 espacio de trabajo con equipamiento para ediles. | AR45: ='[1]LÍNEA 1'!P45 -> - | AS45: Número de espacios de trabajo construidos o adecuados con equipamiento para ediles. | AT45: 0 | AU45: ='[1]LÍNEA 1'!S45 -> 1 | AV45: ='[1]LÍNEA 1'!T45 -> 0 | AW45: 0 | AX45: ='[1]LÍNEA 1'!U45 -> 1 | AY45: 1 | AZ45: ='[1]LÍNEA 1'!V45 -> 0 | BA45: 0 | BB45: ='[1]LÍNEA 1'!W45 -> 0 | BC45: 0 | BD45: ='[7]2016'!$K$13 -> 0 | BE45: ='[3]2017'!$K$28 -> 1 | BF45: ='[3]2018'!$K$28 -> 0 | BG45: ='[3]2019'!$K$28 -> 0 | BH45: - | BI45: - | BJ45: 1 | BK45: 1 | BL45: - | BM45: - | BN45: - | BO45: - | BP45: 1 | BQ45: 1 | BR45: 1 | BS45: ='[7]2016'!P13 -> 0 | BT45: ='[7]2016'!Q13 -> 0 | BU45: ='[7]2016'!R13 -> 0 | BV45: - | BW45: - | BX45: ='[3]2017'!P28 -> 39156 | BY45: ='[3]2017'!Q28 -> 39156 | BZ45: ='[3]2017'!R28 -> 0 | CA45: 1 | CB45: - | CC45: ='[3]2018'!P28 -> 0 | CD45: ='[3]2018'!Q28 -> 0 | CE45: ='[3]2018'!R28 -> 0 | CF45: - | CG45: - | CH45: ='[3]2019'!P28 -> 0 | CI45: ='[3]2019'!Q28 -> 0 | CJ45: ='[3]2019'!R28 -> 0 | CK45: - | CL45: - | CM45: 39156 | CN45: 39156 | CO45: 0 | CP45: 1 | CQ45: - | CR45: 16. Paz, justicia e instituciones sólidas | CS45: Desarrollo Comunitario | CT45: ='[1]LÍNEA 1'!AQ45 -> Sec. Desarrollo Social
AQ46: Implementar y mantener 1 plataforma de interacción, registro de información y visibilización en línea para Juntas de Acción Comunal, Juntas Administradoras Locales y comités de desarrollo y control social. | AR46: ='[1]LÍNEA 1'!P46 -> - | AS46: Número de plataformas de interacción, registro de información y visibilización en línea implementadas y mantenidas para Juntas de Acción Comunal, Juntas Administradoras Locales y comités de desarrollo y control social. | AT46: 0 | AU46: ='[1]LÍNEA 1'!S46 -> 1 | AV46: ='[1]LÍNEA 1'!T46 -> 1 | AW46: 0.25 | AX46: ='[1]LÍNEA 1'!U46 -> 1 | AY46: 0.25 | AZ46: ='[1]LÍNEA 1'!V46 -> 1 | BA46: 0.25 | BB46: ='[1]LÍNEA 1'!W46 -> 1 | BC46: 0.25 | BD46: ='[10]2016'!$K$14 -> 1 | BE46: ='[10]2017'!$K$14 -> 1 | BF46: ='[10]2018'!$K$14 -> 1 | BG46: ='[10]2019'!$K$14 -> 0 | BH46: 1 | BI46: 1 | BJ46: 1 | BK46: 1 | BL46: 1 | BM46: 1 | BN46: 0 | BO46: 0 | BP46: 0.75 | BQ46: 0.75 | BR46: 0.75 | BS46: ='[10]2016'!P14 -> 0 | BT46: ='[10]2016'!Q14 -> 0 | BU46: ='[10]2016'!R14 -> 0 | BV46: - | BW46: - | BX46: ='[10]2017'!P14 -> 0 | BY46: ='[10]2017'!Q14 -> 0 | BZ46: ='[10]2017'!R14 -> 0 | CA46: - | CB46: - | CC46: ='[10]2018'!P14 -> 0 | CD46: ='[10]2018'!Q14 -> 0 | CE46: ='[10]2018'!R14 -> 0 | CF46: - | CG46: - | CH46: ='[10]2019'!P14 -> 0 | CI46: ='[10]2019'!Q14 -> 0 | CJ46: ='[10]2019'!R14 -> 0 | CK46: - | CL46: - | CM46: 0 | CN46: 0 | CO46: 0 | CP46: - | CQ46: - | CR46: 16. Paz, justicia e instituciones sólidas | CS46: Desarrollo Comunitario | CT46: ='[1]LÍNEA 1'!AQ46 -> Asesor TIC
AQ47: Mantener el acompañamiento y/o asesoría al 100% de los comites de desarrollo y control social que lo requieran. | AR47: ='[1]LÍNEA 1'!P47 -> - | AS47: Porcentaje de comités de desarrollo y control social con el acompañamiento según lo requerido. | AT47: 1 | AU47: ='[1]LÍNEA 1'!S47 -> 1 | AV47: ='[1]LÍNEA 1'!T47 -> 1 | AW47: 0.25 | AX47: ='[1]LÍNEA 1'!U47 -> 1 | AY47: 0.25 | AZ47: ='[1]LÍNEA 1'!V47 -> 1 | BA47: 0.25 | BB47: ='[1]LÍNEA 1'!W47 -> 1 | BC47: 0.25 | BD47: ='[11]2016'!$K$12 -> 1 | BE47: ='[11]2017'!$K$12 -> 1 | BF47: ='[11]2018'!$K$12 -> 1 | BG47: ='[11]2019'!$K$12 -> 0 | BH47: 1 | BI47: 1 | BJ47: 1 | BK47: 1 | BL47: 1 | BM47: 1 | BN47: 0 | BO47: 0 | BP47: 0.75 | BQ47: 0.75 | BR47: 0.75 | BS47: ='[11]2016'!P12 -> 0 | BT47: ='[11]2016'!Q12 -> 0 | BU47: ='[11]2016'!R12 -> 0 | BV47: - | BW47: - | BX47: ='[11]2017'!P12 -> 0 | BY47: ='[11]2017'!Q12 -> 0 | BZ47: ='[11]2017'!R12 -> 0 | CA47: - | CB47: - | CC47: ='[11]2018'!P12 -> 0 | CD47: ='[11]2018'!Q12 -> 0 | CE47: ='[11]2018'!R12 -> 0 | CF47: - | CG47: - | CH47: ='[11]2019'!P12 -> 0 | CI47: ='[11]2019'!Q12 -> 0 | CJ47: ='[11]2019'!R12 -> 0 | CK47: - | CL47: - | CM47: 0 | CN47: 0 | CO47: 0 | CP47: - | CQ47: - | CR47: 16. Paz, justicia e instituciones sólidas | CS47: Fortalecimiento Institucional | CT47: ='[1]LÍNEA 1'!AQ47 -> UTSP
AO48: =+RESUMEN!J14 -> 0.6494708995 | AP48: RENDICIÓN DE CUENTAS PERMANENTE E INTERACTIVA | AQ48: Mantener 1 sección en línea y actualizada sobre los planes anti-corrupción y su cumplimiento. | AR48: ='[1]LÍNEA 1'!P48 -> - | AS48: Número de secciones mantenidas en línea y actualizada sobre los planes anti-corrupción y su cumplimiento. | AT48: 1 | AU48: ='[1]LÍNEA 1'!S48 -> 1 | AV48: ='[1]LÍNEA 1'!T48 -> 1 | AW48: 0.25 | AX48: ='[1]LÍNEA 1'!U48 -> 1 | AY48: 0.25 | AZ48: ='[1]LÍNEA 1'!V48 -> 1 | BA48: 0.25 | BB48: ='[1]LÍNEA 1'!W48 -> 1 | BC48: 0.25 | BD48: ='[10]2016'!K15 -> 1 | BE48: ='[10]2017'!K15 -> 1 | BF48: ='[10]2018'!K15 -> 1 | BG48: ='[10]2019'!K15 -> 0 | BH48: 1 | BI48: 1 | BJ48: 1 | BK48: 1 | BL48: 1 | BM48: 1 | BN48: 0 | BO48: 0 | BP48: 0.75 | BQ48: 0.75 | BR48: 0.75 | BS48: ='[10]2016'!P15 -> 0 | BT48: ='[10]2016'!Q15 -> 0 | BU48: ='[10]2016'!R15 -> 0 | BV48: - | BW48: - | BX48: ='[10]2017'!P15 -> 0 | BY48: ='[10]2017'!Q15 -> 0 | BZ48: ='[10]2017'!R15 -> 0 | CA48: - | CB48: - | CC48: ='[10]2018'!P15 -> 0 | CD48: ='[10]2018'!Q15 -> 0 | CE48: ='[10]2018'!R15 -> 0 | CF48: - | CG48: - | CH48: ='[10]2019'!P15 -> 0 | CI48: ='[10]2019'!Q15 -> 0 | CJ48: ='[10]2019'!R15 -> 0 | CK48: - | CL48: - | CM48: 0 | CN48: 0 | CO48: 0 | CP48: - | CQ48: - | CR48: 16. Paz, justicia e instituciones sólidas | CS48: Fortalecimiento Institucional | CT48: ='[1]LÍNEA 1'!AQ48 -> Asesor TIC
AQ49: Implementar y mantener 1 sección en línea y actualizada de los planes de compras y adquisiciones y su ejecución. | AR49: ='[1]LÍNEA 1'!P49 -> - | AS49: Número de secciones implementadas y mantenidas en línea y actualizada de los planes de compras y adquisiciones y su ejecución. | AT49: 1 | AU49: ='[1]LÍNEA 1'!S49 -> 1 | AV49: ='[1]LÍNEA 1'!T49 -> 1 | AW49: 0.25 | AX49: ='[1]LÍNEA 1'!U49 -> 1 | AY49: 0.25 | AZ49: ='[1]LÍNEA 1'!V49 -> 1 | BA49: 0.25 | BB49: ='[1]LÍNEA 1'!W49 -> 1 | BC49: 0.25 | BD49: ='[10]2016'!K16 -> 1 | BE49: ='[10]2017'!K16 -> 1 | BF49: ='[10]2018'!K16 -> 1 | BG49: ='[10]2019'!K16 -> 0 | BH49: 1 | BI49: 1 | BJ49: 1 | BK49: 1 | BL49: 1 | BM49: 1 | BN49: 0 | BO49: 0 | BP49: 0.75 | BQ49: 0.75 | BR49: 0.75 | BS49: ='[10]2016'!P16 -> 0 | BT49: ='[10]2016'!Q16 -> 0 | BU49: ='[10]2016'!R16 -> 0 | BV49: - | BW49: - | BX49: ='[10]2017'!P16 -> 0 | BY49: ='[10]2017'!Q16 -> 0 | BZ49: ='[10]2017'!R16 -> 0 | CA49: - | CB49: - | CC49: ='[10]2018'!P16 -> 0 | CD49: ='[10]2018'!Q16 -> 0 | CE49: ='[10]2018'!R16 -> 0 | CF49: - | CG49: - | CH49: ='[10]2019'!P16 -> 0 | CI49: ='[10]2019'!Q16 -> 0 | CJ49: ='[10]2019'!R16 -> 0 | CK49: - | CL49: - | CM49: 0 | CN49: 0 | CO49: 0 | CP49: - | CQ49: - | CR49: 16. Paz, justicia e instituciones sólidas | CS49: Fortalecimiento Institucional | CT49: ='[1]LÍNEA 1'!AQ49 -> Asesor TIC
AQ50: Mantener 1 sección en línea y actualizada sobre el Plan de Desarrollo y su ejecución. | AR50: ='[1]LÍNEA 1'!P50 -> - | AS50: Número de secciones mantenidas en línea y actualizada sobre el Plan de Desarrollo y su ejecución. | AT50: 1 | AU50: ='[1]LÍNEA 1'!S50 -> 1 | AV50: ='[1]LÍNEA 1'!T50 -> 1 | AW50: 0.25 | AX50: ='[1]LÍNEA 1'!U50 -> 1 | AY50: 0.25 | AZ50: ='[1]LÍNEA 1'!V50 -> 1 | BA50: 0.25 | BB50: ='[1]LÍNEA 1'!W50 -> 1 | BC50: 0.25 | BD50: ='[10]2016'!K17 -> 1 | BE50: ='[10]2017'!K17 -> 1 | BF50: ='[10]2018'!K17 -> 1 | BG50: ='[10]2019'!K17 -> 0 | BH50: 1 | BI50: 1 | BJ50: 1 | BK50: 1 | BL50: 1 | BM50: 1 | BN50: 0 | BO50: 0 | BP50: 0.75 | BQ50: 0.75 | BR50: 0.75 | BS50: ='[10]2016'!P17 -> 0 | BT50: ='[10]2016'!Q17 -> 0 | BU50: ='[10]2016'!R17 -> 0 | BV50: - | BW50: - | BX50: ='[10]2017'!P17 -> 0 | BY50: ='[10]2017'!Q17 -> 0 | BZ50: ='[10]2017'!R17 -> 0 | CA50: - | CB50: - | CC50: ='[10]2018'!P17 -> 0 | CD50: ='[10]2018'!Q17 -> 0 | CE50: ='[10]2018'!R17 -> 0 | CF50: - | CG50: - | CH50: ='[10]2019'!P17 -> 0 | CI50: ='[10]2019'!Q17 -> 0 | CJ50: ='[10]2019'!R17 -> 0 | CK50: - | CL50: - | CM50: 0 | CN50: 0 | CO50: 0 | CP50: - | CQ50: - | CR50: 16. Paz, justicia e instituciones sólidas | CS50: Fortalecimiento Institucional | CT50: ='[1]LÍNEA 1'!AQ50 -> Asesor TIC
F51: Lograr que el 60% de los ciudadanos considere que la Alcaldía es transparente en sus actividades de acuerdo a encuesta Cómo Vamos. | G51: 0.14 | H51: 0.6 | I51: =+H51-G51 -> 0.46 | J51: 0.3 | K51: =+J51-G51 -> 0.16 | M51: 0.4 | N51: =+M51-J51 -> 0.1 | P51: 0.5 | Q51: =+P51-M51 -> 0.1 | S51: 0.6 | T51: =+S51-P51 -> 0.1 | V51: 0.37 | W51: =+IF(V51=0,0,V51-G51) -> 0.23 | Y51: =+IF(X51=0,0,X51-V51) -> 0 | AA51: =+IF(Z51=0,0,Z51-X51) -> 0 | AC51: =+IF(AB51=0,0,AB51-Z51) -> 0 | AD51: =+IF(K51=0," -",W51/K51) -> 1.4375 | AE51: =+IF(K51=0," -",IF(AD51>100%,100%,AD51)) -> 1 | AF51: =+IF(N51=0," -",Y51/N51) -> 0 | AG51: =+IF(N51=0," -",IF(AF51>100%,100%,AF51)) -> 0 | AH51: =+IF(Q51=0," -",AA51/Q51) -> 0 | AI51: =+IF(Q51=0," -",IF(AH51>100%,100%,AH51)) -> 0 | AJ51: =+IF(T51=0," -",AC51/T51) -> 0 | AK51: =+IF(T51=0," -",IF(AJ51>100%,100%,AJ51)) -> 0 | AL51: =+SUM(AC51,AA51,Y51,W51)/I51 -> 0.5 | AM51: =+IF(AL51>100%,100%,IF(AL51<0%,0%,AL51)) -> 0.5 | AQ51: Implementar y mantener 1 sección en línea y actualizada para que la ciudadanía pueda seguir la ejecución y los costos de las obras de infraestructura. | AR51: ='[1]LÍNEA 1'!P51 -> - | AS51: Número de secciones implementadas y mantenidas en línea y actualizada para que la ciudadanía pueda seguir la ejecución y los costos de las obras de infraestructura. | AT51: 0 | AU51: ='[1]LÍNEA 1'!S51 -> 1 | AV51: ='[1]LÍNEA 1'!T51 -> 0 | AW51: 0 | AX51: ='[1]LÍNEA 1'!U51 -> 1 | AY51: 0.33 | AZ51: ='[1]LÍNEA 1'!V51 -> 1 | BA51: 0.33 | BB51: ='[1]LÍNEA 1'!W51 -> 1 | BC51: 0.34 | BD51: ='[10]2016'!K18 -> 0 | BE51: ='[10]2017'!K18 -> 1 | BF51: ='[10]2018'!K18 -> 1 | BG51: ='[10]2019'!K18 -> 0 | BH51: - | BI51: - | BJ51: 1 | BK51: 1 | BL51: 1 | BM51: 1 | BN51: 0 | BO51: 0 | BP51: =+AVERAGE(BE51:BG51)/AU51 -> 0.6666666667 | BQ51: 0.6666666667 | BR51: 0.6666666667 | BS51: ='[10]2016'!P18 -> 0 | BT51: ='[10]2016'!Q18 -> 0 | BU51: ='[10]2016'!R18 -> 0 | BV51: - | BW51: - | BX51: ='[10]2017'!P18 -> 0 | BY51: ='[10]2017'!Q18 -> 0 | BZ51: ='[10]2017'!R18 -> 0 | CA51: - | CB51: - | CC51: ='[10]2018'!P18 -> 0 | CD51: ='[10]2018'!Q18 -> 0 | CE51: ='[10]2018'!R18 -> 0 | CF51: - | CG51: - | CH51: ='[10]2019'!P18 -> 0 | CI51: ='[10]2019'!Q18 -> 0 | CJ51: ='[10]2019'!R18 -> 0 | CK51: - | CL51: - | CM51: 0 | CN51: 0 | CO51: 0 | CP51: - | CQ51: - | CR51: 16. Paz, justicia e instituciones sólidas | CS51: Fortalecimiento Institucional | CT51: ='[1]LÍNEA 1'!AQ51 -> Asesor TIC
AQ52: Implementar y mantener 1 sección en línea y actualizada sobre los contratos de prestación de servicios celebrados por la Administración Central. | AR52: ='[1]LÍNEA 1'!P52 -> - | AS52: Número de secciones implementadas y mantenidas en línea y actualizada sobre los contratos de prestación de servicios celebrados por la Administración Central. | AT52: 0 | AU52: ='[1]LÍNEA 1'!S52 -> 1 | AV52: ='[1]LÍNEA 1'!T52 -> 1 | AW52: 0.25 | AX52: ='[1]LÍNEA 1'!U52 -> 1 | AY52: 0.25 | AZ52: ='[1]LÍNEA 1'!V52 -> 1 | BA52: 0.25 | BB52: ='[1]LÍNEA 1'!W52 -> 1 | BC52: 0.25 | BD52: ='[10]2016'!K19 -> 1 | BE52: ='[10]2017'!K19 -> 1 | BF52: ='[10]2018'!K19 -> 1 | BG52: ='[10]2019'!K19 -> 0 | BH52: 1 | BI52: 1 | BJ52: 1 | BK52: 1 | BL52: 1 | BM52: 1 | BN52: 0 | BO52: 0 | BP52: 0.75 | BQ52: 0.75 | BR52: 0.75 | BS52: ='[10]2016'!P19 -> 0 | BT52: ='[10]2016'!Q19 -> 0 | BU52: ='[10]2016'!R19 -> 0 | BV52: - | BW52: - | BX52: ='[10]2017'!P19 -> 0 | BY52: ='[10]2017'!Q19 -> 0 | BZ52: ='[10]2017'!R19 -> 0 | CA52: - | CB52: - | CC52: ='[10]2018'!P19 -> 0 | CD52: ='[10]2018'!Q19 -> 0 | CE52: ='[10]2018'!R19 -> 0 | CF52: - | CG52: - | CH52: ='[10]2019'!P19 -> 0 | CI52: ='[10]2019'!Q19 -> 0 | CJ52: ='[10]2019'!R19 -> 0 | CK52: - | CL52: - | CM52: 0 | CN52: 0 | CO52: 0 | CP52: - | CQ52: - | CR52: 16. Paz, justicia e instituciones sólidas | CS52: Fortalecimiento Institucional | CT52: ='[1]LÍNEA 1'!AQ52 -> Asesor TIC
AQ53: Implementar y mantener 1 sección en línea y actualizada sobre la ejecución de los proyectos estratégicos. | AR53: ='[1]LÍNEA 1'!P53 -> - | AS53: Número de secciones implementadas y mantenidas en línea y actualizada sobre la ejecución de los proyectos estratégicos. | AT53: 0 | AU53: ='[1]LÍNEA 1'!S53 -> 1 | AV53: ='[1]LÍNEA 1'!T53 -> 1 | AW53: 0.25 | AX53: ='[1]LÍNEA 1'!U53 -> 1 | AY53: 0.25 | AZ53: ='[1]LÍNEA 1'!V53 -> 1 | BA53: 0.25 | BB53: ='[1]LÍNEA 1'!W53 -> 1 | BC53: 0.25 | BD53: ='[10]2016'!K20 -> 1 | BE53: ='[10]2017'!K20 -> 1 | BF53: ='[10]2018'!K20 -> 1 | BG53: ='[10]2019'!K20 -> 0 | BH53: 1 | BI53: 1 | BJ53: 1 | BK53: 1 | BL53: 1 | BM53: 1 | BN53: 0 | BO53: 0 | BP53: 0.75 | BQ53: 0.75 | BR53: 0.75 | BS53: ='[10]2016'!P20 -> 0 | BT53: ='[10]2016'!Q20 -> 0 | BU53: ='[10]2016'!R20 -> 0 | BV53: - | BW53: - | BX53: ='[10]2017'!P20 -> 0 | BY53: ='[10]2017'!Q20 -> 0 | BZ53: ='[10]2017'!R20 -> 0 | CA53: - | CB53: - | CC53: ='[10]2018'!P20 -> 0 | CD53: ='[10]2018'!Q20 -> 0 | CE53: ='[10]2018'!R20 -> 0 | CF53: - | CG53: - | CH53: ='[10]2019'!P20 -> 0 | CI53: ='[10]2019'!Q20 -> 0 | CJ53: ='[10]2019'!R20 -> 0 | CK53: - | CL53: - | CM53: 0 | CN53: 0 | CO53: 0 | CP53: - | CQ53: - | CR53: 16. Paz, justicia e instituciones sólidas | CS53: Fortalecimiento Institucional | CT53: ='[1]LÍNEA 1'!AQ53 -> Asesor TIC
AQ54: Implementar y mantener 1 sección en línea y actualizada sobre los gastos de funcionamiento de la Administración Central. | AR54: ='[1]LÍNEA 1'!P54 -> - | AS54: Número de secciones implementadas y mantenidas en línea y actualizada sobre los gastos de funcionamiento de la Administración Central. | AT54: 1 | AU54: ='[1]LÍNEA 1'!S54 -> 1 | AV54: ='[1]LÍNEA 1'!T54 -> 1 | AW54: 0.25 | AX54: ='[1]LÍNEA 1'!U54 -> 1 | AY54: 0.25 | AZ54: ='[1]LÍNEA 1'!V54 -> 1 | BA54: 0.25 | BB54: ='[1]LÍNEA 1'!W54 -> 1 | BC54: 0.25 | BD54: ='[10]2016'!K21 -> 1 | BE54: ='[10]2017'!K21 -> 1 | BF54: ='[10]2018'!K21 -> 1 | BG54: ='[10]2019'!K21 -> 0 | BH54: 1 | BI54: 1 | BJ54: 1 | BK54: 1 | BL54: 1 | BM54: 1 | BN54: 0 | BO54: 0 | BP54: 0.75 | BQ54: 0.75 | BR54: 0.75 | BS54: ='[10]2016'!P21 -> 0 | BT54: ='[10]2016'!Q21 -> 0 | BU54: ='[10]2016'!R21 -> 0 | BV54: - | BW54: - | BX54: ='[10]2017'!P21 -> 0 | BY54: ='[10]2017'!Q21 -> 0 | BZ54: ='[10]2017'!R21 -> 0 | CA54: - | CB54: - | CC54: ='[10]2018'!P21 -> 0 | CD54: ='[10]2018'!Q21 -> 0 | CE54: ='[10]2018'!R21 -> 0 | CF54: - | CG54: - | CH54: ='[10]2019'!P21 -> 0 | CI54: ='[10]2019'!Q21 -> 0 | CJ54: ='[10]2019'!R21 -> 0 | CK54: - | CL54: - | CM54: 0 | CN54: 0 | CO54: 0 | CP54: - | CQ54: - | CR54: 16. Paz, justicia e instituciones sólidas | CS54: Fortalecimiento Institucional | CT54: ='[1]LÍNEA 1'!AQ54 -> Asesor TIC
AQ55: Celebrar 7 reuniones populares para rendir cuentas de la ejecución del Plan de Desarrollo y la ejecución del presupuesto. | AR55: ='[1]LÍNEA 1'!P55 -> 0 | AS55: Número de reuniones populares celebradas para rendir cuentas de la ejecución del Plan de Desarrollo y la ejecución del presupuesto. | AT55: 0 | AU55: ='[1]LÍNEA 1'!S55 -> 7 | AV55: ='[1]LÍNEA 1'!T55 -> 1 | AW55: 0.1428571429 | AX55: ='[1]LÍNEA 1'!U55 -> 2 | AY55: 0.2857142857 | AZ55: ='[1]LÍNEA 1'!V55 -> 2 | BA55: 0.2857142857 | BB55: ='[1]LÍNEA 1'!W55 -> 2 | BC55: 0.2857142857 | BD55: ='[5]2016'!$K$15 -> 1 | BE55: ='[5]2017'!$K$15 -> 2 | BF55: ='[5]2018'!$K$15 -> 0 | BG55: ='[5]2019'!$K$15 -> 0 | BH55: 1 | BI55: 1 | BJ55: 1 | BK55: 1 | BL55: 0 | BM55: 0 | BN55: 0 | BO55: 0 | BP55: =+SUM(BD55:BG55)/AU55 -> 0.4285714286 | BQ55: 0.4285714286 | BR55: 0.4285714286 | BS55: ='[5]2016'!P15 -> 0 | BT55: ='[5]2016'!Q15 -> 0 | BU55: ='[5]2016'!R15 -> 0 | BV55: - | BW55: - | BX55: ='[5]2017'!P15 -> 0 | BY55: ='[5]2017'!Q15 -> 0 | BZ55: ='[5]2017'!R15 -> 0 | CA55: - | CB55: - | CC55: ='[5]2018'!P15 -> 0 | CD55: ='[5]2018'!Q15 -> 0 | CE55: ='[5]2018'!R15 -> 0 | CF55: - | CG55: - | CH55: ='[5]2019'!P15 -> 40000 | CI55: ='[5]2019'!Q15 -> 0 | CJ55: ='[5]2019'!R15 -> 0 | CK55: 0 | CL55: - | CM55: 40000 | CN55: 0 | CO55: 0 | CP55: 0 | CQ55: - | CR55: 16. Paz, justicia e instituciones sólidas | CS55: Fortalecimiento Institucional | CT55: ='[1]LÍNEA 1'!AQ55 -> Sec. Hacienda
AQ56: Implementar y mantener 1 estrategia para el informe anual de rendición de cuentas en cultura. | AR56: ='[1]LÍNEA 1'!P56 -> - | AS56: Número de estrategias para el informe anual de rendición de cuentas en cultura implementadas y mantenidas | AT56: 0 | AU56: ='[1]LÍNEA 1'!S56 -> 1 | AV56: ='[1]LÍNEA 1'!T56 -> 1 | AW56: 0.25 | AX56: ='[1]LÍNEA 1'!U56 -> 1 | AY56: 0.25 | AZ56: ='[1]LÍNEA 1'!V56 -> 1 | BA56: 0.25 | BB56: ='[1]LÍNEA 1'!W56 -> 1 | BC56: 0.25 | BD56: ='[12]2016'!$K$12 -> 0 | BE56: ='[12]2017'!$K$12 -> 1 | BF56: ='[12]2018'!$K$12 -> 0 | BG56: ='[12]2019'!$K$12 -> 0 | BH56: 0 | BI56: 0 | BJ56: 1 | BK56: 1 | BL56: 0 | BM56: 0 | BN56: 0 | BO56: 0 | BP56: 0.25 | BQ56: 0.25 | BR56: 0.25 | BS56: ='[12]2016'!P12 -> 0 | BT56: ='[12]2016'!Q12 -> 0 | BU56: ='[12]2016'!R12 -> 0 | BV56: - | BW56: - | BX56: ='[12]2017'!P12 -> 0 | BY56: ='[12]2017'!Q12 -> 0 | BZ56: ='[12]2017'!R12 -> 0 | CA56: - | CB56: - | CC56: ='[12]2018'!P12 -> 0 | CD56: ='[12]2018'!Q12 -> 0 | CE56: ='[12]2018'!R12 -> 0 | CF56: - | CG56: - | CH56: ='[12]2019'!P12 -> 0 | CI56: ='[12]2019'!Q12 -> 0 | CJ56: ='[12]2019'!R12 -> 0 | CK56: - | CL56: - | CM56: 0 | CN56: 0 | CO56: 0 | CP56: - | CQ56: - | CR56: 16. Paz, justicia e instituciones sólidas | CS56: Cultura | CT56: ='[1]LÍNEA 1'!AQ56 -> IMCT
AO57: =+RESUMEN!J15 -> 0.56875 | AP57: CULTURA METROPOLITANA Y CIUDAD REGIÓN: PARTICIPACIÓN QUE ATRAVIESA FRONTERAS | AQ57: Realizar 4 audiencias de participación metropolitana en conjunto con la Alcaldía de Floridablanca. | AR57: ='[1]LÍNEA 1'!P57 -> - | AS57: Número de audiencias de participación metropolitana realizadas en conjunto con la Alcaldía de Floridablanca. | AT57: 0 | AU57: ='[1]LÍNEA 1'!S57 -> 4 | AV57: ='[1]LÍNEA 1'!T57 -> 0 | AW57: 0 | AX57: ='[1]LÍNEA 1'!U57 -> 1 | AY57: 0.25 | AZ57: ='[1]LÍNEA 1'!V57 -> 2 | BA57: 0.5 | BB57: ='[1]LÍNEA 1'!W57 -> 1 | BC57: 0.25 | BD57: ='[13]2016'!K12 -> 0 | BE57: ='[13]2017'!K12 -> 1 | BF57: ='[13]2018'!K12 -> 0 | BG57: ='[13]2019'!K12 -> 0 | BH57: - | BI57: - | BJ57: 1 | BK57: 1 | BL57: 0 | BM57: 0 | BN57: 0 | BO57: 0 | BP57: =+SUM(BD57:BG57)/AU57 -> 0.25 | BQ57: 0.25 | BR57: 0.25 | BS57: ='[13]2016'!P12 -> 0 | BT57: ='[13]2016'!Q12 -> 0 | BU57: ='[13]2016'!R12 -> 0 | BV57: - | BW57: - | BX57: ='[13]2017'!P12 -> 4000 | BY57: ='[13]2017'!Q12 -> 4000 | BZ57: ='[13]2017'!R12 -> 0 | CA57: 1 | CB57: - | CC57: ='[13]2018'!P12 -> 0 | CD57: ='[13]2018'!Q12 -> 0 | CE57: ='[13]2018'!R12 -> 0 | CF57: - | CG57: - | CH57: ='[13]2019'!P12 -> 0 | CI57: ='[13]2019'!Q12 -> 0 | CJ57: ='[13]2019'!R12 -> 0 | CK57: - | CL57: - | CM57: 4000 | CN57: 4000 | CO57: 0 | CP57: 1 | CQ57: - | CR57: 16. Paz, justicia e instituciones sólidas | CS57: Fortalecimiento Institucional | CT57: ='[1]LÍNEA 1'!AQ57 -> AMB
AQ58: Realizar 4 audiencias de participación metropolitana en conjunto con la Alcaldía de Piedecuesta. | AR58: ='[1]LÍNEA 1'!P58 -> - | AS58: Número de audiencias de participación metropolitana realizadas en conjunto con la Alcaldía de Piedecuesta. | AT58: 0 | AU58: ='[1]LÍNEA 1'!S58 -> 4 | AV58: ='[1]LÍNEA 1'!T58 -> 0 | AW58: 0 | AX58: ='[1]LÍNEA 1'!U58 -> 2 | AY58: 0.5 | AZ58: ='[1]LÍNEA 1'!V58 -> 1 | BA58: 0.25 | BB58: ='[1]LÍNEA 1'!W58 -> 1 | BC58: 0.25 | BD58: ='[13]2016'!K13 -> 0 | BE58: ='[13]2017'!K13 -> 1.5 | BF58: ='[13]2018'!K13 -> 4 | BG58: ='[13]2019'!K13 -> 0 | BH58: - | BI58: - | BJ58: 0.75 | BK58: 0.75 | BL58: 4 | BM58: 1 | BN58: 0 | BO58: 0 | BP58: 1.375 | BQ58: 1 | BR58: 1 | BS58: ='[13]2016'!P13 -> 0 | BT58: ='[13]2016'!Q13 -> 0 | BU58: ='[13]2016'!R13 -> 0 | BV58: - | BW58: - | BX58: ='[13]2017'!P13 -> 8000 | BY58: ='[13]2017'!Q13 -> 4333 | BZ58: ='[13]2017'!R13 -> 0 | CA58: 0.541625 | CB58: - | CC58: ='[13]2018'!P13 -> 0 | CD58: ='[13]2018'!Q13 -> 0 | CE58: ='[13]2018'!R13 -> 0 | CF58: - | CG58: - | CH58: ='[13]2019'!P13 -> 0 | CI58: ='[13]2019'!Q13 -> 0 | CJ58: ='[13]2019'!R13 -> 0 | CK58: - | CL58: - | CM58: 8000 | CN58: 4333 | CO58: 0 | CP58: 0.541625 | CQ58: - | CR58: 16. Paz, justicia e instituciones sólidas | CS58: Fortalecimiento Institucional | CT58: ='[1]LÍNEA 1'!AQ58 -> AMB
AQ59: Realizar 4 audiencias de participación metropolitana en conjunto con la Alcaldía de Girón. | AR59: ='[1]LÍNEA 1'!P59 -> - | AS59: Número de audiencias de participación metropolitana realizadas en conjunto con la Alcaldía de Girón. | AT59: 0 | AU59: ='[1]LÍNEA 1'!S59 -> 4 | AV59: ='[1]LÍNEA 1'!T59 -> 0 | AW59: 0 | AX59: ='[1]LÍNEA 1'!U59 -> 1 | AY59: 0.25 | AZ59: ='[1]LÍNEA 1'!V59 -> 1 | BA59: 0.25 | BB59: ='[1]LÍNEA 1'!W59 -> 2 | BC59: 0.5 | BD59: ='[13]2016'!K14 -> 0 | BE59: ='[13]2017'!K14 -> 1 | BF59: ='[13]2018'!K14 -> 4 | BG59: ='[13]2019'!K14 -> 0 | BH59: - | BI59: - | BJ59: 1 | BK59: 1 | BL59: 4 | BM59: 1 | BN59: 0 | BO59: 0 | BP59: 1.25 | BQ59: 1 | BR59: 1 | BS59: ='[13]2016'!P14 -> 0 | BT59: ='[13]2016'!Q14 -> 0 | BU59: ='[13]2016'!R14 -> 0 | BV59: - | BW59: - | BX59: ='[13]2017'!P14 -> 4000 | BY59: ='[13]2017'!Q14 -> 4000 | BZ59: ='[13]2017'!R14 -> 0 | CA59: 1 | CB59: - | CC59: ='[13]2018'!P14 -> 0 | CD59: ='[13]2018'!Q14 -> 0 | CE59: ='[13]2018'!R14 -> 0 | CF59: - | CG59: - | CH59: ='[13]2019'!P14 -> 0 | CI59: ='[13]2019'!Q14 -> 0 | CJ59: ='[13]2019'!R14 -> 0 | CK59: - | CL59: - | CM59: 4000 | CN59: 4000 | CO59: 0 | CP59: 1 | CQ59: - | CR59: 16. Paz, justicia e instituciones sólidas | CS59: Fortalecimiento Institucional | CT59: ='[1]LÍNEA 1'!AQ59 -> AMB
AQ60: Realizar 8 juntas abiertas del Área Metropolitana de Bucaramanga con presencia de los integrantes de la junta metropolitana y participación de la comunidad para una discusión pública sobre asuntos metropolitanos. | AR60: ='[1]LÍNEA 1'!P60 -> - | AS60: Número de juntas abiertas del Área Metropolitana de Bucaramanga realizadas con presencia de los integrantes de la junta metropolitana y participación de la comunidad para una discusión pública sobre asuntos metropolitanos. | AT60: 0 | AU60: ='[1]LÍNEA 1'!S60 -> 8 | AV60: ='[1]LÍNEA 1'!T60 -> 0 | AW60: 0 | AX60: ='[1]LÍNEA 1'!U60 -> 2 | AY60: 0.25 | AZ60: ='[1]LÍNEA 1'!V60 -> 3 | BA60: 0.375 | BB60: ='[1]LÍNEA 1'!W60 -> 3 | BC60: 0.375 | BD60: ='[13]2016'!K15 -> 0 | BE60: ='[13]2017'!K15 -> 0.2 | BF60: ='[13]2018'!K15 -> 0 | BG60: ='[13]2019'!K15 -> 0 | BH60: - | BI60: - | BJ60: 0.1 | BK60: 0.1 | BL60: 0 | BM60: 0 | BN60: 0 | BO60: 0 | BP60: 0.025 | BQ60: 0.025 | BR60: 0.025 | BS60: ='[13]2016'!P15 -> 0 | BT60: ='[13]2016'!Q15 -> 0 | BU60: ='[13]2016'!R15 -> 0 | BV60: - | BW60: - | BX60: ='[13]2017'!P15 -> 5000 | BY60: ='[13]2017'!Q15 -> 667 | BZ60: ='[13]2017'!R15 -> 0 | CA60: 0.1334 | CB60: - | CC60: ='[13]2018'!P15 -> 0 | CD60: ='[13]2018'!Q15 -> 0 | CE60: ='[13]2018'!R15 -> 0 | CF60: - | CG60: - | CH60: ='[13]2019'!P15 -> 0 | CI60: ='[13]2019'!Q15 -> 0 | CJ60: ='[13]2019'!R15 -> 0 | CK60: - | CL60: - | CM60: 5000 | CN60: 667 | CO60: 0 | CP60: 0.1334 | CQ60: - | CR60: 16. Paz, justicia e instituciones sólidas | CS60: Desarrollo Comunitario | CT60: ='[1]LÍNEA 1'!AQ60 -> AMB
AO61: =+RESUMEN!J16 -> 0.6625 | AP61: GOBIERNO TRANSPARENTE | AQ61: Formular e implementar 1 estrategia de comunicación para difundir los procesos de contratación pública de selección abierta y promover la participación de oferentes así como el control social ciudadano. | AR61: ='[1]LÍNEA 1'!P61 -> 0 | AS61: Número de estrategias de comunicaciones formuladas e implementadas para difundir los procesos de contratación pública de selección abierta y promover la participación de oferentes así como el control social ciudadano. | AT61: 0 | AU61: ='[1]LÍNEA 1'!S61 -> 1 | AV61: ='[1]LÍNEA 1'!T61 -> 1 | AW61: 0.25 | AX61: ='[1]LÍNEA 1'!U61 -> 1 | AY61: 0.25 | AZ61: ='[1]LÍNEA 1'!V61 -> 1 | BA61: 0.25 | BB61: ='[1]LÍNEA 1'!W61 -> 1 | BC61: 0.25 | BD61: ='[8]2016'!$K$17 -> 1 | BE61: ='[8]2017'!$K$17 -> 1 | BF61: ='[8]2018'!$K$17 -> 1 | BG61: ='[8]2019'!$K$17 -> 0 | BH61: 1 | BI61: 1 | BJ61: 1 | BK61: 1 | BL61: 1 | BM61: 1 | BN61: 0 | BO61: 0 | BP61: 0.75 | BQ61: 0.75 | BR61: 0.75 | BS61: ='[8]2016'!P17 -> 0 | BT61: ='[8]2016'!Q17 -> 0 | BU61: ='[8]2016'!R17 -> 0 | BV61: - | BW61: - | BX61: ='[8]2017'!P17 -> 0 | BY61: ='[8]2017'!Q17 -> 0 | BZ61: ='[8]2017'!R17 -> 0 | CA61: - | CB61: - | CC61: ='[8]2018'!P17 -> 74554 | CD61: ='[8]2018'!Q17 -> 74554 | CE61: ='[8]2018'!R17 -> 0 | CF61: 1 | CG61: - | CH61: ='[8]2019'!P17 -> 50000 | CI61: ='[8]2019'!Q17 -> 0 | CJ61: ='[8]2019'!R17 -> 0 | CK61: 0 | CL61: - | CM61: 124554 | CN61: 74554 | CO61: 0 | CP61: 0.5985676895 | CQ61: - | CR61: 16. Paz, justicia e instituciones sólidas | CS61: Fortalecimiento Institucional | CT61: ='[1]LÍNEA 1'!AQ61 -> Ofc. Prensa
AQ62: Elaborar y difundir 16 informes de contratación pública. | AR62: ='[1]LÍNEA 1'!P62 -> - | AS62: Número de informes de contratación pública elaboras y difundidas. | AT62: 0 | AU62: ='[1]LÍNEA 1'!S62 -> 16 | AV62: ='[1]LÍNEA 1'!T62 -> 4 | AW62: 0.25 | AX62: ='[1]LÍNEA 1'!U62 -> 4 | AY62: 0.25 | AZ62: ='[1]LÍNEA 1'!V62 -> 4 | BA62: 0.25 | BB62: ='[1]LÍNEA 1'!W62 -> 4 | BC62: 0.25 | BD62: ='[14]2016'!K12 -> 3 | BE62: ='[14]2017'!K12 -> 4 | BF62: ='[14]2018'!K12 -> 2 | BG62: ='[14]2019'!K12 -> 0 | BH62: 0.75 | BI62: 0.75 | BJ62: 1 | BK62: 1 | BL62: 0.5 | BM62: 0.5 | BN62: 0 | BO62: 0 | BP62: =+SUM(BD62:BG62)/AU62 -> 0.5625 | BQ62: 0.5625 | BR62: 0.5625 | BS62: ='[14]2016'!P12 -> 0 | BT62: ='[14]2016'!Q12 -> 0 | BU62: ='[14]2016'!R12 -> 0 | BV62: - | BW62: - | BX62: ='[14]2017'!P12 -> 0 | BY62: ='[14]2017'!Q12 -> 0 | BZ62: ='[14]2017'!R12 -> 0 | CA62: - | CB62: - | CC62: ='[14]2018'!P12 -> 19250 | CD62: ='[14]2018'!Q12 -> 19250 | CE62: ='[14]2018'!R12 -> 0 | CF62: 1 | CG62: - | CH62: ='[14]2019'!P12 -> 0 | CI62: ='[14]2019'!Q12 -> 0 | CJ62: ='[14]2019'!R12 -> 0 | CK62: - | CL62: - | CM62: 19250 | CN62: 19250 | CO62: 0 | CP62: 1 | CQ62: - | CR62: 16. Paz, justicia e instituciones sólidas | CS62: Fortalecimiento Institucional | CT62: ='[1]LÍNEA 1'!AQ62 -> Sec. Jurídica
AQ63: Implementar y mantener actualizado en línea 1 registro de intereses privados de los secretarios y sub-secretarios así como de los asesores del despacho del alcalde. | AR63: ='[1]LÍNEA 1'!P63 -> - | AS63: Número registros implementados y mantenidos actualizados en línea de intereses privados de los secretarios y sub-secretarios así como de los asesores del despacho del alcalde. | AT63: 0 | AU63: ='[1]LÍNEA 1'!S63 -> 1 | AV63: ='[1]LÍNEA 1'!T63 -> 1 | AW63: 0.25 | AX63: ='[1]LÍNEA 1'!U63 -> 1 | AY63: 0.25 | AZ63: ='[1]LÍNEA 1'!V63 -> 1 | BA63: 0.25 | BB63: ='[1]LÍNEA 1'!W63 -> 1 | BC63: 0.25 | BD63: ='[14]2016'!K13 -> 1 | BE63: ='[14]2017'!K13 -> 1 | BF63: ='[14]2018'!K13 -> 1 | BG63: ='[14]2019'!K13 -> 0 | BH63: 1 | BI63: 1 | BJ63: 1 | BK63: 1 | BL63: 1 | BM63: 1 | BN63: 0 | BO63: 0 | BP63: 0.75 | BQ63: 0.75 | BR63: 0.75 | BS63: ='[14]2016'!P13 -> 0 | BT63: ='[14]2016'!Q13 -> 0 | BU63: ='[14]2016'!R13 -> 0 | BV63: - | BW63: - | BX63: ='[14]2017'!P13 -> 0 | BY63: ='[14]2017'!Q13 -> 0 | BZ63: ='[14]2017'!R13 -> 0 | CA63: - | CB63: - | CC63: ='[14]2018'!P13 -> 19250 | CD63: ='[14]2018'!Q13 -> 19250 | CE63: ='[14]2018'!R13 -> 0 | CF63: 1 | CG63: - | CH63: ='[14]2019'!P13 -> 0 | CI63: ='[14]2019'!Q13 -> 0 | CJ63: ='[14]2019'!R13 -> 0 | CK63: - | CL63: - | CM63: 19250 | CN63: 19250 | CO63: 0 | CP63: 1 | CQ63: - | CR63: 16. Paz, justicia e instituciones sólidas | CS63: Fortalecimiento Institucional | CT63: ='[1]LÍNEA 1'!AQ63 -> Sec. Jurídica
F64: Lograr una calificación de 90 en el componente exposición de la información del IGA. | G64: 79.4 | H64: 90 | I64: =+H64-G64 -> 10.6 | J64: 79.4 | K64: =+J64-G64 -> 0 | M64: 90 | N64: =+M64-J64 -> 10.6 | P64: 90 | Q64: =+P64-M64 -> 0 | S64: 90 | T64: =+S64-P64 -> 0 | V64: 82.4 | W64: =+IF(V64=0,0,V64-G64) -> 3 | Y64: =+IF(X64=0,0,X64-V64) -> 0 | AA64: =+IF(Z64=0,0,Z64-X64) -> 0 | AC64: =+IF(AB64=0,0,AB64-Z64) -> 0 | AD64: =+IF(K64=0," -",W64/K64) -> - | AE64: =+IF(K64=0," -",IF(AD64>100%,100%,AD64)) -> - | AF64: =+IF(N64=0," -",Y64/N64) -> 0 | AG64: =+IF(N64=0," -",IF(AF64>100%,100%,AF64)) -> 0 | AH64: =+IF(Q64=0," -",AA64/Q64) -> - | AI64: =+IF(Q64=0," -",IF(AH64>100%,100%,AH64)) -> - | AJ64: =+IF(T64=0," -",AC64/T64) -> - | AK64: =+IF(T64=0," -",IF(AJ64>100%,100%,AJ64)) -> - | AL64: =+SUM(AC64,AA64,Y64,W64)/I64 -> 0.2830188679 | AM64: =+IF(AL64>100%,100%,IF(AL64<0%,0%,AL64)) -> 0.2830188679 | AQ64: Formular e implementar 1 plan de la excelencia por la transparencia enfocado al mejoramiento continuo del índice ITEP en todas sus dimensiones. | AR64: ='[1]LÍNEA 1'!P64 -> 0 | AS64: Número de planes de la excelencia formulados e implementados por la transparencia enfocado al mejoramiento continuo del índice ITEP en todas sus dimensiones. | AT64: 0 | AU64: ='[1]LÍNEA 1'!S64 -> 1 | AV64: ='[1]LÍNEA 1'!T64 -> 0 | AW64: 0 | AX64: ='[1]LÍNEA 1'!U64 -> 1 | AY64: 0.33 | AZ64: ='[1]LÍNEA 1'!V64 -> 1 | BA64: 0.33 | BB64: ='[1]LÍNEA 1'!W64 -> 1 | BC64: 0.34 | BD64: ='[14]2016'!K14 -> 0 | BE64: ='[14]2017'!K14 -> 1 | BF64: ='[14]2018'!K14 -> 0.5 | BG64: ='[14]2019'!K14 -> 0 | BH64: - | BI64: - | BJ64: 1 | BK64: 1 | BL64: 0.5 | BM64: 0.5 | BN64: 0 | BO64: 0 | BP64: =+AVERAGE(BE64:BG64)/AU64 -> 0.5 | BQ64: 0.5 | BR64: 0.5 | BS64: ='[14]2016'!P14 -> 0 | BT64: ='[14]2016'!Q14 -> 0 | BU64: ='[14]2016'!R14 -> 0 | BV64: - | BW64: - | BX64: ='[14]2017'!P14 -> 106190 | BY64: ='[14]2017'!Q14 -> 102190 | BZ64: ='[14]2017'!R14 -> 0 | CA64: 0.9623316696 | CB64: - | CC64: ='[14]2018'!P14 -> 19250 | CD64: ='[14]2018'!Q14 -> 19250 | CE64: ='[14]2018'!R14 -> 0 | CF64: 1 | CG64: - | CH64: ='[14]2019'!P14 -> 200000 | CI64: ='[14]2019'!Q14 -> 0 | CJ64: ='[14]2019'!R14 -> 0 | CK64: 0 | CL64: - | CM64: 325440 | CN64: 121440 | CO64: 0 | CP64: 0.3731563422 | CQ64: - | CR64: 16. Paz, justicia e instituciones sólidas | CS64: Fortalecimiento Institucional | CT64: ='[1]LÍNEA 1'!AQ64 -> Sec. Jurídica
AQ65: Actualizar la estrategia integral de gobierno para la aplicación cabal de los postulados y mandatos de la ley 1712 de 2014 de transparencia y del derecho al acceso a la información pública. | AR65: ='[1]LÍNEA 1'!P65 -> - | AS65: Número de estrategias integrales de gobierno actualizadas para la aplicación cabal de los postulados y mandatos de la ley 1712 de 2014 de transparencia y del derecho al acceso a la información pública. | AT65: 1 | AU65: ='[1]LÍNEA 1'!S65 -> 1 | AV65: ='[1]LÍNEA 1'!T65 -> 1 | AW65: 0.25 | AX65: ='[1]LÍNEA 1'!U65 -> 1 | AY65: 0.25 | AZ65: ='[1]LÍNEA 1'!V65 -> 1 | BA65: 0.25 | BB65: ='[1]LÍNEA 1'!W65 -> 1 | BC65: 0.25 | BD65: ='[14]2016'!K15 -> 1 | BE65: ='[14]2017'!K15 -> 1 | BF65: ='[14]2018'!K15 -> 0.9 | BG65: ='[14]2019'!K15 -> 0 | BH65: 1 | BI65: 1 | BJ65: 1 | BK65: 1 | BL65: 0.9 | BM65: 0.9 | BN65: 0 | BO65: 0 | BP65: 0.725 | BQ65: 0.725 | BR65: 0.725 | BS65: ='[14]2016'!P15 -> 250000 | BT65: ='[14]2016'!Q15 -> 14250 | BU65: ='[14]2016'!R15 -> 0 | BV65: 0.057 | BW65: - | BX65: ='[14]2017'!P15 -> 0 | BY65: ='[14]2017'!Q15 -> 0 | BZ65: ='[14]2017'!R15 -> 0 | CA65: - | CB65: - | CC65: ='[14]2018'!P15 -> 19250 | CD65: ='[14]2018'!Q15 -> 19250 | CE65: ='[14]2018'!R15 -> 0 | CF65: 1 | CG65: - | CH65: ='[14]2019'!P15 -> 0 | CI65: ='[14]2019'!Q15 -> 0 | CJ65: ='[14]2019'!R15 -> 0 | CK65: - | CL65: - | CM65: 269250 | CN65: 33500 | CO65: 0 | CP65: 0.1244196843 | CQ65: - | CR65: 16. Paz, justicia e instituciones sólidas | CS65: Fortalecimiento Institucional | CT65: ='[1]LÍNEA 1'!AQ65 -> Sec. Jurídica
AQ66: Actualizar el manual de contratación. | AR66: ='[1]LÍNEA 1'!P66 -> - | AS66: Número de manuales de contratación actualizados. | AT66: 1 | AU66: ='[1]LÍNEA 1'!S66 -> 1 | AV66: ='[1]LÍNEA 1'!T66 -> 1 | AW66: 1 | AX66: ='[1]LÍNEA 1'!U66 -> 0 | AY66: 0 | AZ66: ='[1]LÍNEA 1'!V66 -> 0 | BA66: 0 | BB66: ='[1]LÍNEA 1'!W66 -> 0 | BC66: 0 | BD66: ='[14]2016'!K16 -> 1 | BE66: ='[14]2017'!K16 -> 0 | BF66: ='[14]2018'!K16 -> 0 | BG66: ='[14]2019'!K16 -> 0 | BH66: 1 | BI66: 1 | BJ66: - | BK66: - | BL66: - | BM66: - | BN66: - | BO66: - | BP66: =+SUM(BD66:BG66)/AU66 -> 1 | BQ66: 1 | BR66: 1 | BS66: ='[14]2016'!P16 -> 0 | BT66: ='[14]2016'!Q16 -> 0 | BU66: ='[14]2016'!R16 -> 0 | BV66: - | BW66: - | BX66: ='[14]2017'!P16 -> 0 | BY66: ='[14]2017'!Q16 -> 0 | BZ66: ='[14]2017'!R16 -> 0 | CA66: - | CB66: - | CC66: ='[14]2018'!P16 -> 0 | CD66: ='[14]2018'!Q16 -> 0 | CE66: ='[14]2018'!R16 -> 0 | CF66: - | CG66: - | CH66: ='[14]2019'!P16 -> 0 | CI66: ='[14]2019'!Q16 -> 0 | CJ66: ='[14]2019'!R16 -> 0 | CK66: - | CL66: - | CM66: 0 | CN66: 0 | CO66: 0 | CP66: - | CQ66: - | CR66: 16. Paz, justicia e instituciones sólidas | CS66: Fortalecimiento Institucional | CT66: ='[1]LÍNEA 1'!AQ66 -> Sec. Jurídica
AQ67: Crear 1 cargo del nivel directivo y/o asesor adscrito al despacho del Alcalde como encargado de asuntos de transparencia en la gestión pública. | AR67: ='[1]LÍNEA 1'!P67 -> - | AS67: Número de cargos creados del nivel directivo y/o asesor adscritos al despacho del Alcalde como encargado de asuntos de transparencia en la gestión pública | AT67: 1 | AU67: ='[1]LÍNEA 1'!S67 -> 1 | AV67: ='[1]LÍNEA 1'!T67 -> 0 | AW67: 0 | AX67: ='[1]LÍNEA 1'!U67 -> 1 | AY67: 1 | AZ67: ='[1]LÍNEA 1'!V67 -> 0 | BA67: 0 | BB67: ='[1]LÍNEA 1'!W67 -> 0 | BC67: 0 | BD67: ='[9]2016'!K14 -> 0 | BE67: ='[9]2017'!K14 -> 0 | BF67: ='[9]2018'!K14 -> 0 | BG67: ='[9]2019'!K14 -> 0 | BH67: - | BI67: - | BJ67: 0 | BK67: 0 | BL67: - | BM67: - | BN67: - | BO67: - | BP67: 0 | BQ67: 0 | BR67: 0 | BS67: ='[9]2016'!P14 -> 0 | BT67: ='[9]2016'!Q14 -> 0 | BU67: ='[9]2016'!R14 -> 0 | BV67: - | BW67: - | BX67: ='[9]2017'!P14 -> 0 | BY67: ='[9]2017'!Q14 -> 0 | BZ67: ='[9]2017'!R14 -> 0 | CA67: - | CB67: - | CC67: ='[9]2018'!P14 -> 0 | CD67: ='[9]2018'!Q14 -> 0 | CE67: ='[9]2018'!R14 -> 0 | CF67: - | CG67: - | CH67: ='[9]2019'!P14 -> 0 | CI67: ='[9]2019'!Q14 -> 0 | CJ67: ='[9]2019'!R14 -> 0 | CK67: - | CL67: - | CM67: 0 | CN67: 0 | CO67: 0 | CP67: - | CQ67: - | CR67: 16. Paz, justicia e instituciones sólidas | CS67: Fortalecimiento Institucional | CT67: ='[1]LÍNEA 1'!AQ67 -> Sec. Administrativa
AQ68: Implementar y mantener 1 estrategia para publicar en línea necesidades de trabajo o de provisión de servicios del municipio y recopilar hojas de vida o propuestas (Tu Talento es lo que Vale). | AR68: ='[1]LÍNEA 1'!P68 -> - | AS68: Número de estrategias implementadas y mantenidas para publicar en línea necesidades de trabajo o de provisión de servicios del municipio y recopilar hojas de vida o propuestas (Tu Talento es lo que Vale). | AT68: 0 | AU68: ='[1]LÍNEA 1'!S68 -> 1 | AV68: ='[1]LÍNEA 1'!T68 -> 1 | AW68: 0.25 | AX68: ='[1]LÍNEA 1'!U68 -> 1 | AY68: 0.25 | AZ68: ='[1]LÍNEA 1'!V68 -> 1 | BA68: 0.25 | BB68: ='[1]LÍNEA 1'!W68 -> 1 | BC68: 0.25 | BD68: ='[9]2016'!K15 -> 1 | BE68: ='[9]2017'!K15 -> 1 | BF68: ='[9]2018'!K15 -> 1 | BG68: ='[9]2019'!K15 -> 0 | BH68: 1 | BI68: 1 | BJ68: 1 | BK68: 1 | BL68: 1 | BM68: 1 | BN68: 0 | BO68: 0 | BP68: =+AVERAGE(BD68:BG68)/AU68 -> 0.75 | BQ68: 0.75 | BR68: 0.75 | BS68: ='[9]2016'!P15 -> 0 | BT68: ='[9]2016'!Q15 -> 0 | BU68: ='[9]2016'!R15 -> 0 | BV68: - | BW68: - | BX68: ='[9]2017'!P15 -> 0 | BY68: ='[9]2017'!Q15 -> 0 | BZ68: ='[9]2017'!R15 -> 0 | CA68: - | CB68: - | CC68: ='[9]2018'!P15 -> 0 | CD68: ='[9]2018'!Q15 -> 0 | CE68: ='[9]2018'!R15 -> 0 | CF68: - | CG68: - | CH68: ='[9]2019'!P15 -> 0 | CI68: ='[9]2019'!Q15 -> 0 | CJ68: ='[9]2019'!R15 -> 0 | CK68: - | CL68: - | CM68: 0 | CN68: 0 | CO68: 0 | CP68: - | CQ68: - | CR68: 16. Paz, justicia e instituciones sólidas | CS68: Fortalecimiento Institucional | CT68: ='[1]LÍNEA 1'!AQ68 -> Sec. Administrativa
AQ69: Implementar y mantener 1 sección en línea y actualizada dentro de la página web institucional para consultar todos los procesos de contratación pública. | AR69: ='[1]LÍNEA 1'!P69 -> - | AS69: Número de secciones implementadas y mantenidas en línea y actualizada dentro de la página web institucional para consultar todos los procesos de contratación pública. | AT69: 0 | AU69: ='[1]LÍNEA 1'!S69 -> 1 | AV69: ='[1]LÍNEA 1'!T69 -> 1 | AW69: 0.25 | AX69: ='[1]LÍNEA 1'!U69 -> 1 | AY69: 0.25 | AZ69: ='[1]LÍNEA 1'!V69 -> 1 | BA69: 0.25 | BB69: ='[1]LÍNEA 1'!W69 -> 1 | BC69: 0.25 | BD69: ='[10]2016'!K22 -> 1 | BE69: ='[10]2017'!K22 -> 1 | BF69: ='[10]2018'!K22 -> 1 | BG69: ='[10]2019'!K22 -> 0 | BH69: 1 | BI69: 1 | BJ69: 1 | BK69: 1 | BL69: 1 | BM69: 1 | BN69: 0 | BO69: 0 | BP69: 0.75 | BQ69: 0.75 | BR69: 0.75 | BS69: ='[10]2016'!P22 -> 0 | BT69: ='[10]2016'!Q22 -> 0 | BU69: ='[10]2016'!R22 -> 0 | BV69: - | BW69: - | BX69: ='[10]2017'!P22 -> 0 | BY69: ='[10]2017'!Q22 -> 0 | BZ69: ='[10]2017'!R22 -> 0 | CA69: - | CB69: - | CC69: ='[10]2018'!P22 -> 0 | CD69: ='[10]2018'!Q22 -> 0 | CE69: ='[10]2018'!R22 -> 0 | CF69: - | CG69: - | CH69: ='[10]2019'!P22 -> 0 | CI69: ='[10]2019'!Q22 -> 0 | CJ69: ='[10]2019'!R22 -> 0 | CK69: - | CL69: - | CM69: 0 | CN69: 0 | CO69: 0 | CP69: - | CQ69: - | CR69: 16. Paz, justicia e instituciones sólidas | CS69: Fortalecimiento Institucional | CT69: ='[1]LÍNEA 1'!AQ69 -> Asesor TIC
AQ70: Mantener 1 sección en línea dentro de la página web institucional con información actualizada sobre decretos y resolución de la Administración así como de proyectos de acuerdo y acuerdos municipales. | AR70: ='[1]LÍNEA 1'!P70 -> - | AS70: Número de secciones mantenidas en línea dentro de la página web institucional con información actualizada sobre decretos y resolución de la Administración así como de proyectos de acuerdo y acuerdos municipales. | AT70: 1 | AU70: ='[1]LÍNEA 1'!S70 -> 1 | AV70: ='[1]LÍNEA 1'!T70 -> 1 | AW70: 0.25 | AX70: ='[1]LÍNEA 1'!U70 -> 1 | AY70: 0.25 | AZ70: ='[1]LÍNEA 1'!V70 -> 1 | BA70: 0.25 | BB70: ='[1]LÍNEA 1'!W70 -> 1 | BC70: 0.25 | BD70: ='[10]2016'!K23 -> 1 | BE70: ='[10]2017'!K23 -> 1 | BF70: ='[10]2018'!K23 -> 1 | BG70: ='[10]2019'!K23 -> 0 | BH70: 1 | BI70: 1 | BJ70: 1 | BK70: 1 | BL70: 1 | BM70: 1 | BN70: 0 | BO70: 0 | BP70: 0.75 | BQ70: 0.75 | BR70: 0.75 | BS70: ='[10]2016'!P23 -> 0 | BT70: ='[10]2016'!Q23 -> 0 | BU70: ='[10]2016'!R23 -> 0 | BV70: - | BW70: - | BX70: ='[10]2017'!P23 -> 0 | BY70: ='[10]2017'!Q23 -> 0 | BZ70: ='[10]2017'!R23 -> 0 | CA70: - | CB70: - | CC70: ='[10]2018'!P23 -> 0 | CD70: ='[10]2018'!Q23 -> 0 | CE70: ='[10]2018'!R23 -> 0 | CF70: - | CG70: - | CH70: ='[10]2019'!P23 -> 0 | CI70: ='[10]2019'!Q23 -> 0 | CJ70: ='[10]2019'!R23 -> 0 | CK70: - | CL70: - | CM70: 0 | CN70: 0 | CO70: 0 | CP70: - | CQ70: - | CR70: 16. Paz, justicia e instituciones sólidas | CS70: Fortalecimiento Institucional | CT70: ='[1]LÍNEA 1'!AQ70 -> Asesor TIC
AQ71: Implementar y mantener 1 estrategia para la socialización del plan anti-corrupción y atención al ciudadano. | AR71: ='[1]LÍNEA 1'!P71 -> 2210289 | AS71: Número de estrategias implementadas y mantenidas para la socialización del plan anti-corrupción y atención al ciudadano. | AT71: 0 | AU71: ='[1]LÍNEA 1'!S71 -> 1 | AV71: ='[1]LÍNEA 1'!T71 -> 1 | AW71: 0.25 | AX71: ='[1]LÍNEA 1'!U71 -> 1 | AY71: 0.25 | AZ71: ='[1]LÍNEA 1'!V71 -> 1 | BA71: 0.25 | BB71: ='[1]LÍNEA 1'!W71 -> 1 | BC71: 0.25 | BD71: ='[6]2016'!$K$14 -> 1 | BE71: ='[6]2017'!$K$14 -> 1 | BF71: ='[6]2018'!$K$14 -> 1 | BG71: ='[6]2019'!$K$14 -> 0 | BH71: 1 | BI71: 1 | BJ71: 1 | BK71: 1 | BL71: 1 | BM71: 1 | BN71: 0 | BO71: 0 | BP71: 0.75 | BQ71: 0.75 | BR71: 0.75 | BS71: ='[6]2016'!P14 -> 0 | BT71: ='[6]2016'!Q14 -> 0 | BU71: ='[6]2016'!R14 -> 0 | BV71: - | BW71: - | BX71: ='[6]2017'!P14 -> 762900 | BY71: ='[6]2017'!Q14 -> 728851 | BZ71: ='[6]2017'!R14 -> 0 | CA71: 0.9553689868 | CB71: - | CC71: ='[6]2018'!P14 -> 673000 | CD71: ='[6]2018'!Q14 -> 474000 | CE71: ='[6]2018'!R14 -> 0 | CF71: 0.7043090639 | CG71: - | CH71: ='[6]2019'!P14 -> 0 | CI71: ='[6]2019'!Q14 -> 0 | CJ71: ='[6]2019'!R14 -> 0 | CK71: - | CL71: - | CM71: 1435900 | CN71: 1202851 | CO71: 0 | CP71: 0.8376983077 | CQ71: - | CR71: 16. Paz, justicia e instituciones sólidas | CS71: Fortalecimiento Institucional | CT71: ='[1]LÍNEA 1'!AQ71 -> Sec. Planeación
AO72: =+RESUMEN!J17 -> 0.765 | AP72: GOBIERNO COMPRENSIBLE Y ACCESIBLE | AQ72: Publicar mantener en línea el 100% de la información sobre la estructura orgánica, las funciones y los deberes de las dependencias así como los medios de contacto y/o servicios de estas. | AR72: ='[1]LÍNEA 1'!P72 -> - | AS72: Porcentaje de información publicados y mantenidos en línea sobre la estructura orgánica, las funciones y los deberes de las dependencias así como los medios de contacto y/o servicios de estas. | AT72: 0.5 | AU72: ='[1]LÍNEA 1'!S72 -> 1 | AV72: ='[1]LÍNEA 1'!T72 -> 1 | AW72: 0.25 | AX72: ='[1]LÍNEA 1'!U72 -> 1 | AY72: 0.25 | AZ72: ='[1]LÍNEA 1'!V72 -> 1 | BA72: 0.25 | BB72: ='[1]LÍNEA 1'!W72 -> 1 | BC72: 0.25 | BD72: ='[10]2016'!K24 -> 1 | BE72: ='[10]2017'!K24 -> 0.8 | BF72: ='[10]2018'!K24 -> 1 | BG72: ='[10]2019'!K24 -> 0 | BH72: 1 | BI72: 1 | BJ72: 0.8 | BK72: 0.8 | BL72: 1 | BM72: 1 | BN72: 0 | BO72: 0 | BP72: 0.7 | BQ72: 0.7 | BR72: 0.7 | BS72: ='[10]2016'!P24 -> 0 | BT72: ='[10]2016'!Q24 -> 0 | BU72: ='[10]2016'!R24 -> 0 | BV72: - | BW72: - | BX72: ='[10]2017'!P24 -> 0 | BY72: ='[10]2017'!Q24 -> 0 | BZ72: ='[10]2017'!R24 -> 0 | CA72: - | CB72: - | CC72: ='[10]2018'!P24 -> 0 | CD72: ='[10]2018'!Q24 -> 0 | CE72: ='[10]2018'!R24 -> 0 | CF72: - | CG72: - | CH72: ='[10]2019'!P24 -> 0 | CI72: ='[10]2019'!Q24 -> 0 | CJ72: ='[10]2019'!R24 -> 0 | CK72: - | CL72: - | CM72: 0 | CN72: 0 | CO72: 0 | CP72: - | CQ72: - | CR72: 16. Paz, justicia e instituciones sólidas | CS72: Fortalecimiento Institucional | CT72: ='[1]LÍNEA 1'!AQ72 -> Asesor TIC
AQ73: Publicar y mantener actualizado en línea el directorio de servidores públicos. | AR73: ='[1]LÍNEA 1'!P73 -> - | AS73: Número de directorios de servidores públicos publicados y mantenidos en línea. | AT73: 1 | AU73: ='[1]LÍNEA 1'!S73 -> 1 | AV73: ='[1]LÍNEA 1'!T73 -> 1 | AW73: 0.25 | AX73: ='[1]LÍNEA 1'!U73 -> 1 | AY73: 0.25 | AZ73: ='[1]LÍNEA 1'!V73 -> 1 | BA73: 0.25 | BB73: ='[1]LÍNEA 1'!W73 -> 1 | BC73: 0.25 | BD73: ='[10]2016'!K25 -> 1 | BE73: ='[10]2017'!K25 -> 0.5 | BF73: ='[10]2018'!K25 -> 1 | BG73: ='[10]2019'!K25 -> 0 | BH73: 1 | BI73: 1 | BJ73: 0.5 | BK73: 0.5 | BL73: 1 | BM73: 1 | BN73: 0 | BO73: 0 | BP73: 0.625 | BQ73: 0.625 | BR73: 0.625 | BS73: ='[10]2016'!P25 -> 0 | BT73: ='[10]2016'!Q25 -> 0 | BU73: ='[10]2016'!R25 -> 0 | BV73: - | BW73: - | BX73: ='[10]2017'!P25 -> 0 | BY73: ='[10]2017'!Q25 -> 0 | BZ73: ='[10]2017'!R25 -> 0 | CA73: - | CB73: - | CC73: ='[10]2018'!P25 -> 0 | CD73: ='[10]2018'!Q25 -> 0 | CE73: ='[10]2018'!R25 -> 0 | CF73: - | CG73: - | CH73: ='[10]2019'!P25 -> 0 | CI73: ='[10]2019'!Q25 -> 0 | CJ73: ='[10]2019'!R25 -> 0 | CK73: - | CL73: - | CM73: 0 | CN73: 0 | CO73: 0 | CP73: - | CQ73: - | CR73: 16. Paz, justicia e instituciones sólidas | CS73: Fortalecimiento Institucional | CT73: ='[1]LÍNEA 1'!AQ73 -> Asesor TIC
AQ74: Publicar y mantener actualizado en línea el manual de funciones de la Administración Central. | AR74: ='[1]LÍNEA 1'!P74 -> - | AS74: Número de directorios de manuales de funciones de la Administración Central publicados y mantenidos en línea. | AT74: 1 | AU74: ='[1]LÍNEA 1'!S74 -> 1 | AV74: ='[1]LÍNEA 1'!T74 -> 1 | AW74: 0.25 | AX74: ='[1]LÍNEA 1'!U74 -> 1 | AY74: 0.25 | AZ74: ='[1]LÍNEA 1'!V74 -> 1 | BA74: 0.25 | BB74: ='[1]LÍNEA 1'!W74 -> 1 | BC74: 0.25 | BD74: ='[10]2016'!K26 -> 1 | BE74: ='[10]2017'!K26 -> 1 | BF74: ='[10]2018'!K26 -> 1 | BG74: ='[10]2019'!K26 -> 0 | BH74: 1 | BI74: 1 | BJ74: 1 | BK74: 1 | BL74: 1 | BM74: 1 | BN74: 0 | BO74: 0 | BP74: 0.75 | BQ74: 0.75 | BR74: 0.75 | BS74: ='[10]2016'!P26 -> 0 | BT74: ='[10]2016'!Q26 -> 0 | BU74: ='[10]2016'!R26 -> 0 | BV74: - | BW74: - | BX74: ='[10]2017'!P26 -> 0 | BY74: ='[10]2017'!Q26 -> 0 | BZ74: ='[10]2017'!R26 -> 0 | CA74: - | CB74: - | CC74: ='[10]2018'!P26 -> 0 | CD74: ='[10]2018'!Q26 -> 0 | CE74: ='[10]2018'!R26 -> 0 | CF74: - | CG74: - | CH74: ='[10]2019'!P26 -> 0 | CI74: ='[10]2019'!Q26 -> 0 | CJ74: ='[10]2019'!R26 -> 0 | CK74: - | CL74: - | CM74: 0 | CN74: 0 | CO74: 0 | CP74: - | CQ74: - | CR74: 16. Paz, justicia e instituciones sólidas | CS74: Fortalecimiento Institucional | CT74: ='[1]LÍNEA 1'!AQ74 -> Asesor TIC
AQ75: Realizar 1 caracterización de las personas que requieren trámites y servicios administrativos del gobierno municipal. | AR75: ='[1]LÍNEA 1'!P75 -> - | AS75: Número de caracterizaciones de las personas que requieren trámites y servicios administrativos del gobierno municipal realizadas. | AT75: 0 | AU75: ='[1]LÍNEA 1'!S75 -> 1 | AV75: ='[1]LÍNEA 1'!T75 -> 0 | AW75: 0 | AX75: ='[1]LÍNEA 1'!U75 -> 1 | AY75: 1 | AZ75: ='[1]LÍNEA 1'!V75 -> 0 | BA75: 0 | BB75: ='[1]LÍNEA 1'!W75 -> 0 | BC75: 0 | BD75: ='[9]2016'!$K$16 -> 0 | BE75: ='[9]2017'!$K$16 -> 1 | BF75: ='[9]2018'!$K$16 -> 0 | BG75: ='[9]2019'!$K$16 -> 0 | BH75: - | BI75: - | BJ75: 1 | BK75: 1 | BL75: - | BM75: - | BN75: - | BO75: - | BP75: =+SUM(BD75:BG75)/AU75 -> 1 | BQ75: 1 | BR75: 1 | BS75: ='[9]2016'!P16 -> 0 | BT75: ='[9]2016'!Q16 -> 0 | BU75: ='[9]2016'!R16 -> 0 | BV75: - | BW75: - | BX75: ='[9]2017'!P16 -> 0 | BY75: ='[9]2017'!Q16 -> 0 | BZ75: ='[9]2017'!R16 -> 0 | CA75: - | CB75: - | CC75: ='[9]2018'!P16 -> 0 | CD75: ='[9]2018'!Q16 -> 0 | CE75: ='[9]2018'!R16 -> 0 | CF75: - | CG75: - | CH75: ='[9]2019'!P16 -> 0 | CI75: ='[9]2019'!Q16 -> 0 | CJ75: ='[9]2019'!R16 -> 0 | CK75: - | CL75: - | CM75: 0 | CN75: 0 | CO75: 0 | CP75: - | CQ75: - | CR75: 16. Paz, justicia e instituciones sólidas | CS75: Fortalecimiento Institucional | CT75: ='[1]LÍNEA 1'!AQ75 -> Sec. Administrativa
AQ76: Implementar y mantener 1 estrategia de comunicaciones para difundir y promover la oferta institucional así como de sus funciones, deberes y/u obligaciones legales dirigida a la población con enfoque diferencial. | AR76: ='[1]LÍNEA 1'!P76 -> 0 | AS76: Número de estrategias de comunicaciones implementadas y mantenidas para difundir y promover la oferta institucional así como de sus funciones, deberes y/u obligaciones legales dirigida a la población con enfoque diferencial. | AT76: 0 | AU76: ='[1]LÍNEA 1'!S76 -> 1 | AV76: ='[1]LÍNEA 1'!T76 -> 1 | AW76: 0.25 | AX76: ='[1]LÍNEA 1'!U76 -> 1 | AY76: 0.25 | AZ76: ='[1]LÍNEA 1'!V76 -> 1 | BA76: 0.25 | BB76: ='[1]LÍNEA 1'!W76 -> 1 | BC76: 0.25 | BD76: ='[8]2016'!$K$18 -> 1 | BE76: ='[8]2017'!$K$18 -> 1 | BF76: ='[8]2018'!$K$18 -> 1 | BG76: ='[8]2019'!$K$18 -> 0 | BH76: =IF(AV76=0," -",BD76/AV76) -> 1 | BI76: =IF(AV76=0," -",IF(BH76>100%,100%,BH76)) -> 1 | BJ76: =IF(AX76=0," -",BE76/AX76) -> 1 | BK76: =IF(AX76=0," -",IF(BJ76>100%,100%,BJ76)) -> 1 | BL76: =IF(AZ76=0," -",BF76/AZ76) -> 1 | BM76: =IF(AZ76=0," -",IF(BL76>100%,100%,BL76)) -> 1 | BN76: =IF(BB76=0," -",BG76/BB76) -> 0 | BO76: =IF(BB76=0," -",IF(BN76>100%,100%,BN76)) -> 0 | BP76: =+AVERAGE(BD76:BG76)/AU76 -> 0.75 | BQ76: =+IF(BP76>100%,100%,BP76) -> 0.75 | BR76: =+BQ76 -> 0.75 | BS76: ='[8]2016'!P18 -> 0 | BT76: ='[8]2016'!Q18 -> 0 | BU76: ='[8]2016'!R18 -> 0 | BV76: - | BW76: - | BX76: ='[8]2017'!P18 -> 0 | BY76: ='[8]2017'!Q18 -> 0 | BZ76: ='[8]2017'!R18 -> 0 | CA76: - | CB76: - | CC76: ='[8]2018'!P18 -> 74554 | CD76: ='[8]2018'!Q18 -> 74554 | CE76: ='[8]2018'!R18 -> 0 | CF76: 1 | CG76: - | CH76: ='[8]2019'!P18 -> 250000 | CI76: ='[8]2019'!Q18 -> 0 | CJ76: ='[8]2019'!R18 -> 0 | CK76: 0 | CL76: - | CM76: 324554 | CN76: 74554 | CO76: 0 | CP76: 0.2297121588 | CQ76: - | CR76: 16. Paz, justicia e instituciones sólidas | CS76: Fortalecimiento Institucional | CT76: ='[1]LÍNEA 1'!AQ76 -> Ofc. Prensa
AU77: ='[1]LÍNEA 1'!S77 -> 0 | AV77: ='[1]LÍNEA 1'!T77 -> 0 | AW77: =+AVERAGE(AW11:AW76) -> 0.1869227994 | AX77: ='[1]LÍNEA 1'!U77 -> 0 | AY77: =+AVERAGE(AY11:AY76) -> 0.3335768398 | AZ77: ='[1]LÍNEA 1'!V77 -> 0 | BA77: =+AVERAGE(BA11:BA76) -> 0.2414862915 | BB77: ='[1]LÍNEA 1'!W77 -> 0 | BC77: =+AVERAGE(BC11:BC76) -> 0.2380140693 | BI77: =+AVERAGE(BI11:BI76) -> 0.8673469388 | BK77: 0.879719457 | BM77: 0.7370056497 | BO77: 0 | BQ77: =+AVERAGE(BQ11:BQ76) -> 0.6419222689
D78: =+RESUMEN!J18 -> 0.5914916254 | E78: GOBIERNO LEGAL Y EFECTIVO | F78: Aumentar en un 30% los ingresos provenientes del impuesto predial. | G78: 0 | H78: 0.3 | I78: =+H78-G78 -> 0.3 | J78: 0 | K78: =+J78-G78 -> 0 | M78: 0 | N78: =+M78-J78 -> 0 | P78: 0.15 | Q78: =+P78-M78 -> 0.15 | S78: 0.3 | T78: =+S78-P78 -> 0.15 | W78: =+IF(V78=0,0,V78-G78) -> 0 | Y78: =+IF(X78=0,0,X78-V78) -> 0 | AA78: =+IF(Z78=0,0,Z78-X78) -> 0 | AC78: =+IF(AB78=0,0,AB78-Z78) -> 0 | AD78: =+IF(K78=0," -",W78/K78) -> - | AE78: =+IF(K78=0," -",IF(AD78>100%,100%,AD78)) -> - | AF78: =+IF(N78=0," -",Y78/N78) -> - | AG78: =+IF(N78=0," -",IF(AF78>100%,100%,AF78)) -> - | AH78: =+IF(Q78=0," -",AA78/Q78) -> 0 | AI78: =+IF(Q78=0," -",IF(AH78>100%,100%,AH78)) -> 0 | AJ78: =+IF(T78=0," -",AC78/T78) -> 0 | AK78: =+IF(T78=0," -",IF(AJ78>100%,100%,AJ78)) -> 0 | AL78: =+SUM(AC78,AA78,Y78,W78)/I78 -> 0 | AM78: =+IF(AL78>100%,100%,IF(AL78<0%,0%,AL78)) -> 0 | AO78: =+RESUMEN!J19 -> 0.5791666667 | AP78: NUEVO MODELO DE ATENCIÓN A LA CIUDADANÍA | AQ78: Formular e implementar 1 plan de la excelencia para la gestión de PQRSD en la Administración Municipal (procedimientos e infraestructura). | AR78: ='[1]LÍNEA 1'!P78 -> 2210289 | AS78: Número de planes de la excelencia formulados e implementados para la gestión de PQRSD en la Administración Municipal (procedimientos e infraestructura). | AT78: 0 | AU78: ='[1]LÍNEA 1'!S78 -> 1 | AV78: ='[1]LÍNEA 1'!T78 -> 0 | AW78: =+AV78/AU78 -> 0 | AX78: ='[1]LÍNEA 1'!U78 -> 1 | AY78: 0.33 | AZ78: ='[1]LÍNEA 1'!V78 -> 1 | BA78: 0.33 | BB78: ='[1]LÍNEA 1'!W78 -> 1 | BC78: 0.34 | BD78: ='[9]2016'!K18 -> 0 | BE78: ='[9]2017'!K18 -> 1 | BF78: ='[9]2018'!K18 -> 1 | BG78: ='[9]2019'!K18 -> 0 | BH78: - | BI78: - | BJ78: 1 | BK78: 1 | BL78: 1 | BM78: 1 | BN78: 0 | BO78: 0 | BP78: =+AVERAGE(BE78:BG78)/AU78 -> 0.6666666667 | BQ78: 0.6666666667 | BR78: 0.6666666667 | BS78: ='[9]2016'!P18 -> 0 | BT78: ='[9]2016'!Q18 -> 0 | BU78: ='[9]2016'!R18 -> 0 | BV78: =IF(BS78=0," -",BT78/BS78) -> - | BW78: =IF(BU78=0," -",IF(BT78=0,100%,BU78/BT78)) -> - | BX78: ='[9]2017'!P18 -> 287480 | BY78: ='[9]2017'!Q18 -> 247987 | BZ78: ='[9]2017'!R18 -> 0 | CA78: =IF(BX78=0," -",BY78/BX78) -> 0.8626234869 | CB78: =IF(BZ78=0," -",IF(BY78=0,100%,BZ78/BY78)) -> - | CC78: ='[9]2018'!P18 -> 172666 | CD78: ='[9]2018'!Q18 -> 60713 | CE78: ='[9]2018'!R18 -> 0 | CF78: =IF(CC78=0," -",CD78/CC78) -> 0.3516210487 | CG78: =IF(CE78=0," -",IF(CD78=0,100%,CE78/CD78)) -> - | CH78: ='[9]2019'!P18 -> 500000 | CI78: ='[9]2019'!Q18 -> 0 | CJ78: ='[9]2019'!R18 -> 0 | CK78: =IF(CH78=0," -",CI78/CH78) -> 0 | CL78: =IF(CJ78=0," -",IF(CI78=0,100%,CJ78/CI78)) -> - | CM78: =+BS78+BX78+CC78+CH78 -> 960146 | CN78: =+BT78+BY78+CD78+CI78 -> 308700 | CO78: =+BU78+BZ78+CE78+CJ78 -> 0 | CP78: =IF(CM78=0," -",CN78/CM78) -> 0.3215136031 | CQ78: =IF(CO78=0," -",IF(CN78=0,100%,CO78/CN78)) -> - | CR78: 16. Paz, justicia e instituciones sólidas | CS78: Fortalecimiento Institucional | CT78: ='[1]LÍNEA 1'!AQ78 -> Sec. Administrativa
AQ79: Crear 1 cargo del nivel directivo y/o asesor para coordinar la atención a la comunidad en la administración municipal. | AR79: ='[1]LÍNEA 1'!P79 -> - | AS79: Número de cargos creados del nivel directivo y/o asesor creados para coordinar la atención a la comunidad en la administración municipal. | AT79: 0 | AU79: ='[1]LÍNEA 1'!S79 -> 1 | AV79: ='[1]LÍNEA 1'!T79 -> 0 | AW79: 0 | AX79: ='[1]LÍNEA 1'!U79 -> 1 | AY79: =+AX79/AU79 -> 1 | AZ79: ='[1]LÍNEA 1'!V79 -> 0 | BA79: =+AZ79/AU79 -> 0 | BB79: ='[1]LÍNEA 1'!W79 -> 0 | BC79: =+BB79/AU79 -> 0 | BD79: ='[9]2016'!K19 -> 0 | BE79: ='[9]2017'!K19 -> 0 | BF79: ='[9]2018'!K19 -> 0 | BG79: ='[9]2019'!K19 -> 0 | BH79: - | BI79: - | BJ79: 0 | BK79: 0 | BL79: - | BM79: - | BN79: - | BO79: - | BP79: =+SUM(BD79:BG79)/AU79 -> 0 | BQ79: 0 | BR79: 0 | BS79: ='[9]2016'!P19 -> 0 | BT79: ='[9]2016'!Q19 -> 0 | BU79: ='[9]2016'!R19 -> 0 | BV79: - | BW79: - | BX79: ='[9]2017'!P19 -> 0 | BY79: ='[9]2017'!Q19 -> 0 | BZ79: ='[9]2017'!R19 -> 0 | CA79: - | CB79: - | CC79: ='[9]2018'!P19 -> 0 | CD79: ='[9]2018'!Q19 -> 0 | CE79: ='[9]2018'!R19 -> 0 | CF79: - | CG79: - | CH79: ='[9]2019'!P19 -> 0 | CI79: ='[9]2019'!Q19 -> 0 | CJ79: ='[9]2019'!R19 -> 0 | CK79: - | CL79: - | CM79: 0 | CN79: 0 | CO79: 0 | CP79: - | CQ79: - | CR79: 16. Paz, justicia e instituciones sólidas | CS79: Fortalecimiento Institucional | CT79: ='[1]LÍNEA 1'!AQ79 -> Sec. Administrativa
AQ80: Implementar y mantener 1 red incluyente de asesores de la comunidad en las oficinas de la Administración Municipal. | AR80: ='[1]LÍNEA 1'!P80 -> 0 | AS80: Número de redes incluyentes de asesores de la comunidad implementadas y mantenidas en las oficinas de la Administración Municipal. | AT80: 0 | AU80: ='[1]LÍNEA 1'!S80 -> 1 | AV80: ='[1]LÍNEA 1'!T80 -> 1 | AW80: 0.25 | AX80: ='[1]LÍNEA 1'!U80 -> 1 | AY80: 0.25 | AZ80: ='[1]LÍNEA 1'!V80 -> 1 | BA80: 0.25 | BB80: ='[1]LÍNEA 1'!W80 -> 1 | BC80: 0.25 | BD80: ='[9]2016'!K20 -> 1 | BE80: ='[9]2017'!K20 -> 1 | BF80: ='[9]2018'!K20 -> 1 | BG80: ='[9]2019'!K20 -> 0 | BH80: 1 | BI80: 1 | BJ80: 1 | BK80: 1 | BL80: 1 | BM80: 1 | BN80: 0 | BO80: 0 | BP80: =+AVERAGE(BD80:BG80)/AU80 -> 0.75 | BQ80: 0.75 | BR80: 0.75 | BS80: ='[9]2016'!P20 -> 0 | BT80: ='[9]2016'!Q20 -> 0 | BU80: ='[9]2016'!R20 -> 0 | BV80: - | BW80: - | BX80: ='[9]2017'!P20 -> 0 | BY80: ='[9]2017'!Q20 -> 0 | BZ80: ='[9]2017'!R20 -> 0 | CA80: - | CB80: - | CC80: ='[9]2018'!P20 -> 0 | CD80: ='[9]2018'!Q20 -> 0 | CE80: ='[9]2018'!R20 -> 0 | CF80: - | CG80: - | CH80: ='[9]2019'!P20 -> 250000 | CI80: ='[9]2019'!Q20 -> 0 | CJ80: ='[9]2019'!R20 -> 0 | CK80: 0 | CL80: - | CM80: 250000 | CN80: 0 | CO80: 0 | CP80: 0 | CQ80: - | CR80: 16. Paz, justicia e instituciones sólidas | CS80: Fortalecimiento Institucional | CT80: ='[1]LÍNEA 1'!AQ80 -> Sec. Administrativa
AQ81: Crear e implementar 2 "Centros de atención municipal especializados (CAME)". | AR81: ='[1]LÍNEA 1'!P81 -> 2210302 | AS81: Número de "Centros de atención municipal especializados (CAME)" creados e implementados. | AT81: 0 | AU81: ='[1]LÍNEA 1'!S81 -> 2 | AV81: ='[1]LÍNEA 1'!T81 -> 0 | AW81: 0 | AX81: ='[1]LÍNEA 1'!U81 -> 1 | AY81: 0.5 | AZ81: ='[1]LÍNEA 1'!V81 -> 1 | BA81: 0.5 | BB81: ='[1]LÍNEA 1'!W81 -> 0 | BC81: 0 | BD81: ='[9]2016'!K21 -> 0 | BE81: ='[9]2017'!K21 -> 1 | BF81: ='[9]2018'!K21 -> 0.8 | BG81: ='[9]2019'!K21 -> 0 | BH81: - | BI81: - | BJ81: 1 | BK81: 1 | BL81: 0.8 | BM81: 0.8 | BN81: - | BO81: - | BP81: =+SUM(BD81:BG81)/AU81 -> 0.9 | BQ81: 0.9 | BR81: 0.9 | BS81: ='[9]2016'!P21 -> 0 | BT81: ='[9]2016'!Q21 -> 0 | BU81: ='[9]2016'!R21 -> 0 | BV81: - | BW81: - | BX81: ='[9]2017'!P21 -> 639325 | BY81: ='[9]2017'!Q21 -> 633955 | BZ81: ='[9]2017'!R21 -> 0 | CA81: 0.9916005162 | CB81: - | CC81: ='[9]2018'!P21 -> 652198 | CD81: ='[9]2018'!Q21 -> 49996 | CE81: ='[9]2018'!R21 -> 0 | CF81: 0.07665770211 | CG81: - | CH81: ='[9]2019'!P21 -> 0 | CI81: ='[9]2019'!Q21 -> 0 | CJ81: ='[9]2019'!R21 -> 0 | CK81: - | CL81: - | CM81: 1291523 | CN81: 683951 | CO81: 0 | CP81: 0.5295693534 | CQ81: - | CR81: 16. Paz, justicia e instituciones sólidas | CS81: Fortalecimiento Institucional | CT81: ='[1]LÍNEA 1'!AQ81 -> Sec. Administrativa
AO82: =+RESUMEN!J20 -> 0.5833333333 | AP82: ACCIONES CONSTITUCIONALES Y ACCIONES LEGALES: RESPUESTA Y GESTIÓN SOCIAL Y ESTRATÉGICA | AQ82: Implementar y mantener el observatorio de acciones constitucionales (derechos de petición, tutelas, acciones populares y acciones de cumplimiento). | AR82: ='[1]LÍNEA 1'!P82 -> 0 | AS82: Número de observatorios de acciones constitucionales (derechos de petición, tutelas, acciones populares y acciones de cumplimiento) implementados y mantenidos. | AT82: 0 | AU82: ='[1]LÍNEA 1'!S82 -> 1 | AV82: ='[1]LÍNEA 1'!T82 -> 1 | AW82: 0.25 | AX82: ='[1]LÍNEA 1'!U82 -> 1 | AY82: 0.25 | AZ82: ='[1]LÍNEA 1'!V82 -> 1 | BA82: 0.25 | BB82: ='[1]LÍNEA 1'!W82 -> 1 | BC82: 0.25 | BD82: ='[14]2016'!K18 -> 0 | BE82: ='[14]2017'!K18 -> 1 | BF82: ='[14]2018'!K18 -> 0.5 | BG82: ='[14]2019'!K18 -> 0 | BH82: 0 | BI82: 0 | BJ82: 1 | BK82: 1 | BL82: 0.5 | BM82: 0.5 | BN82: 0 | BO82: 0 | BP82: 0.375 | BQ82: 0.375 | BR82: 0.375 | BS82: ='[14]2016'!P18 -> 0 | BT82: ='[14]2016'!Q18 -> 0 | BU82: ='[14]2016'!R18 -> 0 | BV82: - | BW82: - | BX82: ='[14]2017'!P18 -> 0 | BY82: ='[14]2017'!Q18 -> 0 | BZ82: ='[14]2017'!R18 -> 0 | CA82: - | CB82: - | CC82: ='[14]2018'!P18 -> 49400 | CD82: ='[14]2018'!Q18 -> 21600 | CE82: ='[14]2018'!R18 -> 0 | CF82: 0.4372469636 | CG82: - | CH82: ='[14]2019'!P18 -> 200000 | CI82: ='[14]2019'!Q18 -> 0 | CJ82: ='[14]2019'!R18 -> 0 | CK82: 0 | CL82: - | CM82: 249400 | CN82: 21600 | CO82: 0 | CP82: 0.08660785886 | CQ82: - | CR82: 16. Paz, justicia e instituciones sólidas | CS82: Justicia y Seguridad | CT82: ='[1]LÍNEA 1'!AQ82 -> Sec. Jurídica
AQ83: Implementar y mantener 1 estrategia para la prevención del daño antijurídico. | AR83: ='[1]LÍNEA 1'!P83 -> - | AS83: Número de estrategias para la prevención del daño antijurídico implementadas y mantenidas. | AT83: 0 | AU83: ='[1]LÍNEA 1'!S83 -> 1 | AV83: ='[1]LÍNEA 1'!T83 -> 1 | AW83: 0.25 | AX83: ='[1]LÍNEA 1'!U83 -> 1 | AY83: 0.25 | AZ83: ='[1]LÍNEA 1'!V83 -> 1 | BA83: 0.25 | BB83: ='[1]LÍNEA 1'!W83 -> 1 | BC83: 0.25 | BD83: ='[14]2016'!K19 -> 1 | BE83: ='[14]2017'!K19 -> 1 | BF83: ='[14]2018'!K19 -> 0.5 | BG83: ='[14]2019'!K19 -> 0 | BH83: 1 | BI83: 1 | BJ83: 1 | BK83: 1 | BL83: 0.5 | BM83: 0.5 | BN83: 0 | BO83: 0 | BP83: 0.625 | BQ83: 0.625 | BR83: 0.625 | BS83: ='[14]2016'!P19 -> 0 | BT83: ='[14]2016'!Q19 -> 0 | BU83: ='[14]2016'!R19 -> 0 | BV83: - | BW83: - | BX83: ='[14]2017'!P19 -> 0 | BY83: ='[14]2017'!Q19 -> 0 | BZ83: ='[14]2017'!R19 -> 0 | CA83: - | CB83: - | CC83: ='[14]2018'!P19 -> 25000 | CD83: ='[14]2018'!Q19 -> 0 | CE83: ='[14]2018'!R19 -> 0 | CF83: 0 | CG83: - | CH83: ='[14]2019'!P19 -> 0 | CI83: ='[14]2019'!Q19 -> 0 | CJ83: ='[14]2019'!R19 -> 0 | CK83: - | CL83: - | CM83: 25000 | CN83: 0 | CO83: 0 | CP83: 0 | CQ83: - | CR83: 16. Paz, justicia e instituciones sólidas | CS83: Justicia y Seguridad | CT83: ='[1]LÍNEA 1'!AQ83 -> Sec. Jurídica
AQ84: Implementar y mantener 1 sistema de información misional que agilice el registro, seguimiento y control de los asuntos de la secretaría jurídica. | AR84: ='[1]LÍNEA 1'!P84 -> 0 | AS84: Número de sistemas de información misional implementados que agilice el registro, seguimiento y control de los asuntos de la secretaría jurídica. | AT84: 0 | AU84: ='[1]LÍNEA 1'!S84 -> 1 | AV84: ='[1]LÍNEA 1'!T84 -> 1 | AW84: 0.25 | AX84: ='[1]LÍNEA 1'!U84 -> 1 | AY84: 0.25 | AZ84: ='[1]LÍNEA 1'!V84 -> 1 | BA84: 0.25 | BB84: ='[1]LÍNEA 1'!W84 -> 1 | BC84: 0.25 | BD84: ='[14]2016'!K20 -> 1 | BE84: ='[14]2017'!K20 -> 1 | BF84: ='[14]2018'!K20 -> 1 | BG84: ='[14]2019'!K20 -> 0 | BH84: 1 | BI84: 1 | BJ84: 1 | BK84: 1 | BL84: 1 | BM84: 1 | BN84: 0 | BO84: 0 | BP84: 0.75 | BQ84: 0.75 | BR84: 0.75 | BS84: ='[14]2016'!P20 -> 19000 | BT84: ='[14]2016'!Q20 -> 19000 | BU84: ='[14]2016'!R20 -> 0 | BV84: 1 | BW84: - | BX84: ='[14]2017'!P20 -> 57000 | BY84: ='[14]2017'!Q20 -> 57000 | BZ84: ='[14]2017'!R20 -> 0 | CA84: 1 | CB84: - | CC84: ='[14]2018'!P20 -> 37000 | CD84: ='[14]2018'!Q20 -> 23171 | CE84: ='[14]2018'!R20 -> 0 | CF84: 0.6262432432 | CG84: - | CH84: ='[14]2019'!P20 -> 300000 | CI84: ='[14]2019'!Q20 -> 0 | CJ84: ='[14]2019'!R20 -> 0 | CK84: 0 | CL84: - | CM84: 413000 | CN84: 99171 | CO84: 0 | CP84: 0.2401234867 | CQ84: - | CR84: 16. Paz, justicia e instituciones sólidas | CS84: Fortalecimiento Institucional | CT84: ='[1]LÍNEA 1'!AQ84 -> Sec. Jurídica
AO85: =+RESUMEN!J21 -> 0.6212444444 | AP85: ADMINISTRACIÓN ARTICULADA Y COHERENTE | AQ85: Ajustar y mantener implementado el Plan Institucional de Capacitación y Formación y el Plan de Bienestar y Estímulos. | AR85: ='[1]LÍNEA 1'!P85 -> 2210526 | AS85: Número de Planes institucionales de capacitación y formación y de bienestar y estímulos ajustados y mantenidos. | AT85: 2 | AU85: ='[1]LÍNEA 1'!S85 -> 2 | AV85: ='[1]LÍNEA 1'!T85 -> 2 | AW85: 0.25 | AX85: ='[1]LÍNEA 1'!U85 -> 2 | AY85: 0.25 | AZ85: ='[1]LÍNEA 1'!V85 -> 2 | BA85: 0.25 | BB85: ='[1]LÍNEA 1'!W85 -> 2 | BC85: 0.25 | BD85: ='[9]2016'!K22 -> 2 | BE85: ='[9]2017'!K22 -> 2 | BF85: ='[9]2018'!K22 -> 1 | BG85: ='[9]2019'!K22 -> 0 | BH85: 1 | BI85: 1 | BJ85: 1 | BK85: 1 | BL85: 0.5 | BM85: 0.5 | BN85: 0 | BO85: 0 | BP85: 0.625 | BQ85: 0.625 | BR85: 0.625 | BS85: ='[9]2016'!P22 -> 600000 | BT85: ='[9]2016'!Q22 -> 600000 | BU85: ='[9]2016'!R22 -> 0 | BV85: 1 | BW85: - | BX85: ='[9]2017'!P22 -> 600000 | BY85: ='[9]2017'!Q22 -> 0 | BZ85: ='[9]2017'!R22 -> 0 | CA85: 0 | CB85: - | CC85: ='[9]2018'!P22 -> 400000 | CD85: ='[9]2018'!Q22 -> 0 | CE85: ='[9]2018'!R22 -> 0 | CF85: 0 | CG85: - | CH85: ='[9]2019'!P22 -> 1000000 | CI85: ='[9]2019'!Q22 -> 0 | CJ85: ='[9]2019'!R22 -> 0 | CK85: 0 | CL85: - | CM85: 2600000 | CN85: 600000 | CO85: 0 | CP85: 0.2307692308 | CQ85: - | CR85: 16. Paz, justicia e instituciones sólidas | CS85: Fortalecimiento Institucional | CT85: ='[1]LÍNEA 1'!AQ85 -> Sec. Administrativa
AQ86: Mantener 1 sistema de gestión y control certificado. | AR86: ='[1]LÍNEA 1'!P86 -> 2210527 | AS86: Número de sistemas de gestión y control certificados mantenidos. | AT86: 1 | AU86: ='[1]LÍNEA 1'!S86 -> 1 | AV86: ='[1]LÍNEA 1'!T86 -> 1 | AW86: 0.25 | AX86: ='[1]LÍNEA 1'!U86 -> 1 | AY86: 0.25 | AZ86: ='[1]LÍNEA 1'!V86 -> 1 | BA86: 0.25 | BB86: ='[1]LÍNEA 1'!W86 -> 1 | BC86: 0.25 | BD86: ='[9]2016'!K23 -> 1 | BE86: ='[9]2017'!K23 -> 1 | BF86: ='[9]2018'!K23 -> 1 | BG86: ='[9]2019'!K23 -> 0 | BH86: 1 | BI86: 1 | BJ86: 1 | BK86: 1 | BL86: 1 | BM86: 1 | BN86: 0 | BO86: 0 | BP86: 0.75 | BQ86: 0.75 | BR86: 0.75 | BS86: ='[9]2016'!P23 -> 0 | BT86: ='[9]2016'!Q23 -> 0 | BU86: ='[9]2016'!R23 -> 0 | BV86: - | BW86: - | BX86: ='[9]2017'!P23 -> 53052 | BY86: ='[9]2017'!Q23 -> 49573 | BZ86: ='[9]2017'!R23 -> 0 | CA86: 0.9344228304 | CB86: - | CC86: ='[9]2018'!P23 -> 0 | CD86: ='[9]2018'!Q23 -> 0 | CE86: ='[9]2018'!R23 -> 0 | CF86: - | CG86: - | CH86: ='[9]2019'!P23 -> 300000 | CI86: ='[9]2019'!Q23 -> 0 | CJ86: ='[9]2019'!R23 -> 0 | CK86: 0 | CL86: - | CM86: 353052 | CN86: 49573 | CO86: 0 | CP86: 0.1404127437 | CQ86: - | CR86: 16. Paz, justicia e instituciones sólidas | CS86: Fortalecimiento Institucional | CT86: ='[1]LÍNEA 1'!AQ86 -> Sec. Administrativa
AQ87: Realizar 3 auditorías de seguimiento por el ente certificador. | AR87: ='[1]LÍNEA 1'!P87 -> 2210527 | AS87: Número de auditorías de seguimiento por el ente certificador realizadas. | AT87: 3 | AU87: ='[1]LÍNEA 1'!S87 -> 3 | AV87: ='[1]LÍNEA 1'!T87 -> 1 | AW87: 0.3333333333 | AX87: ='[1]LÍNEA 1'!U87 -> 0 | AY87: 0 | AZ87: ='[1]LÍNEA 1'!V87 -> 1 | BA87: 0.3333333333 | BB87: ='[1]LÍNEA 1'!W87 -> 1 | BC87: 0.3333333333 | BD87: ='[9]2016'!K24 -> 1 | BE87: ='[9]2017'!K24 -> 0 | BF87: ='[9]2018'!K24 -> 0 | BG87: ='[9]2019'!K24 -> 0 | BH87: 1 | BI87: 1 | BJ87: - | BK87: - | BL87: 0 | BM87: 0 | BN87: 0 | BO87: 0 | BP87: =+SUM(BD87:BG87)/AU87 -> 0.3333333333 | BQ87: 0.3333333333 | BR87: 0.3333333333 | BS87: ='[9]2016'!P24 -> 200000 | BT87: ='[9]2016'!Q24 -> 7637 | BU87: ='[9]2016'!R24 -> 0 | BV87: 0.038185 | BW87: - | BX87: ='[9]2017'!P24 -> 0 | BY87: ='[9]2017'!Q24 -> 0 | BZ87: ='[9]2017'!R24 -> 0 | CA87: - | CB87: - | CC87: ='[9]2018'!P24 -> 11000 | CD87: ='[9]2018'!Q24 -> 0 | CE87: ='[9]2018'!R24 -> 0 | CF87: 0 | CG87: - | CH87: ='[9]2019'!P24 -> 70000 | CI87: ='[9]2019'!Q24 -> 0 | CJ87: ='[9]2019'!R24 -> 0 | CK87: 0 | CL87: - | CM87: 281000 | CN87: 7637 | CO87: 0 | CP87: 0.02717793594 | CQ87: - | CR87: 16. Paz, justicia e instituciones sólidas | CS87: Fortalecimiento Institucional | CT87: ='[1]LÍNEA 1'!AQ87 -> Sec. Administrativa
F88: Lograr una calificación de 85 en el Índice de Desempeño Integral del DNP. | G88: 75 | H88: 85 | I88: =+H88-G88 -> 10 | J88: 75 | K88: =+J88-G88 -> 0 | M88: 80 | N88: =+M88-J88 -> 5 | P88: 85 | Q88: =+P88-M88 -> 5 | S88: 85 | T88: =+S88-P88 -> 0 | V88: 71.9 | W88: =+IF(V88=0,0,V88-G88) -> -3.1 | Y88: =+IF(X88=0,0,X88-V88) -> 0 | AA88: =+IF(Z88=0,0,Z88-X88) -> 0 | AC88: =+IF(AB88=0,0,AB88-Z88) -> 0 | AD88: =+IF(K88=0," -",W88/K88) -> - | AE88: =+IF(K88=0," -",IF(AD88>100%,100%,AD88)) -> - | AF88: =+IF(N88=0," -",Y88/N88) -> 0 | AG88: =+IF(N88=0," -",IF(AF88>100%,100%,AF88)) -> 0 | AH88: =+IF(Q88=0," -",AA88/Q88) -> 0 | AI88: =+IF(Q88=0," -",IF(AH88>100%,100%,AH88)) -> 0 | AJ88: =+IF(T88=0," -",AC88/T88) -> - | AK88: =+IF(T88=0," -",IF(AJ88>100%,100%,AJ88)) -> - | AL88: =+SUM(AC88,AA88,Y88,W88)/I88 -> -0.31 | AM88: =+IF(AL88>100%,100%,IF(AL88<0%,0%,AL88)) -> 0 | AQ88: Realizar 1 auditoría de recertificación por el ente certificador. | AR88: ='[1]LÍNEA 1'!P88 -> 2210527 | AS88: Número de auditorías de recertificación por el ente certificador realizadas. | AT88: 1 | AU88: ='[1]LÍNEA 1'!S88 -> 1 | AV88: ='[1]LÍNEA 1'!T88 -> 0 | AW88: 0 | AX88: ='[1]LÍNEA 1'!U88 -> 1 | AY88: 1 | AZ88: ='[1]LÍNEA 1'!V88 -> 0 | BA88: 0 | BB88: ='[1]LÍNEA 1'!W88 -> 0 | BC88: 0 | BD88: ='[9]2016'!K25 -> 0 | BE88: ='[9]2017'!K25 -> 1 | BF88: ='[9]2018'!K25 -> 0 | BG88: ='[9]2019'!K25 -> 0 | BH88: - | BI88: - | BJ88: 1 | BK88: 1 | BL88: - | BM88: - | BN88: - | BO88: - | BP88: 1 | BQ88: 1 | BR88: 1 | BS88: ='[9]2016'!P25 -> 0 | BT88: ='[9]2016'!Q25 -> 0 | BU88: ='[9]2016'!R25 -> 0 | BV88: - | BW88: - | BX88: ='[9]2017'!P25 -> 0 | BY88: ='[9]2017'!Q25 -> 0 | BZ88: ='[9]2017'!R25 -> 0 | CA88: - | CB88: - | CC88: ='[9]2018'!P25 -> 0 | CD88: ='[9]2018'!Q25 -> 0 | CE88: ='[9]2018'!R25 -> 0 | CF88: - | CG88: - | CH88: ='[9]2019'!P25 -> 0 | CI88: ='[9]2019'!Q25 -> 0 | CJ88: ='[9]2019'!R25 -> 0 | CK88: - | CL88: - | CM88: 0 | CN88: 0 | CO88: 0 | CP88: - | CQ88: - | CR88: 16. Paz, justicia e instituciones sólidas | CS88: Fortalecimiento Institucional | CT88: ='[1]LÍNEA 1'!AQ88 -> Sec. Administrativa
AQ89: Formular e implementar el Programa de Gestión Documental - PGD y el Plan Institucional de Archivos - PINAR. | AR89: ='[1]LÍNEA 1'!P89 -> 2210524 | AS89: Número de Programas de Gestión Documental y Planes Institucional de Archivos formulados e implementados. | AT89: 2 | AU89: ='[1]LÍNEA 1'!S89 -> 2 | AV89: ='[1]LÍNEA 1'!T89 -> 2 | AW89: 0.25 | AX89: ='[1]LÍNEA 1'!U89 -> 2 | AY89: 0.25 | AZ89: ='[1]LÍNEA 1'!V89 -> 2 | BA89: 0.25 | BB89: ='[1]LÍNEA 1'!W89 -> 2 | BC89: 0.25 | BD89: ='[9]2016'!K26 -> 2 | BE89: ='[9]2017'!K26 -> 2 | BF89: ='[9]2018'!K26 -> 1.6 | BG89: ='[9]2019'!K26 -> 0 | BH89: 1 | BI89: 1 | BJ89: 1 | BK89: 1 | BL89: 0.8 | BM89: 0.8 | BN89: 0 | BO89: 0 | BP89: 0.7 | BQ89: 0.7 | BR89: 0.7 | BS89: ='[9]2016'!P26 -> 50000 | BT89: ='[9]2016'!Q26 -> 0 | BU89: ='[9]2016'!R26 -> 0 | BV89: 0 | BW89: - | BX89: ='[9]2017'!P26 -> 300000 | BY89: ='[9]2017'!Q26 -> 279846 | BZ89: ='[9]2017'!R26 -> 0 | CA89: 0.93282 | CB89: - | CC89: ='[9]2018'!P26 -> 0 | CD89: ='[9]2018'!Q26 -> 0 | CE89: ='[9]2018'!R26 -> 0 | CF89: - | CG89: - | CH89: ='[9]2019'!P26 -> 200000 | CI89: ='[9]2019'!Q26 -> 0 | CJ89: ='[9]2019'!R26 -> 0 | CK89: 0 | CL89: - | CM89: 550000 | CN89: 279846 | CO89: 0 | CP89: 0.5088109091 | CQ89: - | CR89: 16. Paz, justicia e instituciones sólidas | CS89: Fortalecimiento Institucional | CT89: ='[1]LÍNEA 1'!AQ89 -> Sec. Administrativa
AQ90: Formular e implementar 1 estrategia de gobierno para la aplicación cabal de la ley 1474 de 2011 estatuto anti-corrupción y el CONPES 167 de 2013. | AR90: ='[1]LÍNEA 1'!P90 -> - | AS90: Número de estrategias de gobierno formuladas e implementadas para la aplicación cabal de la ley 1474 de 2011 estatuto anti-corrupción y el CONPES 167 de 2013. | AT90: 1 | AU90: ='[1]LÍNEA 1'!S90 -> 1 | AV90: ='[1]LÍNEA 1'!T90 -> 1 | AW90: 1 | AX90: ='[1]LÍNEA 1'!U90 -> 1 | AY90: 0.33 | AZ90: ='[1]LÍNEA 1'!V90 -> 1 | BA90: 0.33 | BB90: ='[1]LÍNEA 1'!W90 -> 1 | BC90: 0.34 | BD90: ='[9]2016'!K27 -> 1 | BE90: ='[9]2017'!K27 -> 1 | BF90: ='[9]2018'!K27 -> 1 | BG90: ='[9]2019'!K27 -> 0 | BH90: 1 | BI90: 1 | BJ90: 1 | BK90: 1 | BL90: 1 | BM90: 1 | BN90: 0 | BO90: 0 | BP90: =+AVERAGE(BD90:BG90)/AU90 -> 0.75 | BQ90: 0.75 | BR90: 0.75 | BS90: ='[9]2016'!P27 -> 0 | BT90: ='[9]2016'!Q27 -> 0 | BU90: ='[9]2016'!R27 -> 0 | BV90: - | BW90: - | BX90: ='[9]2017'!P27 -> 0 | BY90: ='[9]2017'!Q27 -> 0 | BZ90: ='[9]2017'!R27 -> 0 | CA90: - | CB90: - | CC90: ='[9]2018'!P27 -> 0 | CD90: ='[9]2018'!Q27 -> 0 | CE90: ='[9]2018'!R27 -> 0 | CF90: - | CG90: - | CH90: ='[9]2019'!P27 -> 0 | CI90: ='[9]2019'!Q27 -> 0 | CJ90: ='[9]2019'!R27 -> 0 | CK90: - | CL90: - | CM90: 0 | CN90: 0 | CO90: 0 | CP90: - | CQ90: - | CR90: 16. Paz, justicia e instituciones sólidas | CS90: Fortalecimiento Institucional | CT90: ='[1]LÍNEA 1'!AQ90 -> Sec. Administrativa
AQ91: Implementar y mantener el 100% de los procesos necesarios para la formulación y ejecución del Plan Anti-corrupción y Atención al Ciudadano. | AR91: ='[1]LÍNEA 1'!P91 -> - | AS91: Porcentaje de procesos necesarios implementados y mantenidos para la formulación y ejecución del Plan Anti-corrupción y Atención al Ciudadano. | AT91: 0 | AU91: ='[1]LÍNEA 1'!S91 -> 1 | AV91: ='[1]LÍNEA 1'!T91 -> 1 | AW91: 0.25 | AX91: ='[1]LÍNEA 1'!U91 -> 1 | AY91: 0.25 | AZ91: ='[1]LÍNEA 1'!V91 -> 1 | BA91: 0.25 | BB91: ='[1]LÍNEA 1'!W91 -> 1 | BC91: 0.25 | BD91: ='[9]2016'!K28 -> 1 | BE91: ='[9]2017'!K28 -> 1 | BF91: ='[9]2018'!K28 -> 0.3 | BG91: ='[9]2019'!K28 -> 0 | BH91: 1 | BI91: 1 | BJ91: 1 | BK91: 1 | BL91: 0.3 | BM91: 0.3 | BN91: 0 | BO91: 0 | BP91: 0.575 | BQ91: 0.575 | BR91: 0.575 | BS91: ='[9]2016'!P28 -> 0 | BT91: ='[9]2016'!Q28 -> 0 | BU91: ='[9]2016'!R28 -> 0 | BV91: - | BW91: - | BX91: ='[9]2017'!P28 -> 0 | BY91: ='[9]2017'!Q28 -> 0 | BZ91: ='[9]2017'!R28 -> 0 | CA91: - | CB91: - | CC91: ='[9]2018'!P28 -> 0 | CD91: ='[9]2018'!Q28 -> 0 | CE91: ='[9]2018'!R28 -> 0 | CF91: - | CG91: - | CH91: ='[9]2019'!P28 -> 0 | CI91: ='[9]2019'!Q28 -> 0 | CJ91: ='[9]2019'!R28 -> 0 | CK91: - | CL91: - | CM91: 0 | CN91: 0 | CO91: 0 | CP91: - | CQ91: - | CR91: 16. Paz, justicia e instituciones sólidas | CS91: Fortalecimiento Institucional | CT91: ='[1]LÍNEA 1'!AQ91 -> Sec. Administrativa
AQ92: Formular e implementar 1 plan de modernización de la planta de personal. | AR92: ='[1]LÍNEA 1'!P92 -> 2210252 | AS92: Porcentaje de avance de la formulación e implementación del plan de modernización de la planta de personal. | AT92: 0 | AU92: ='[1]LÍNEA 1'!S92 -> 1 | AV92: ='[1]LÍNEA 1'!T92 -> 0.1 | AW92: 0.1 | AX92: ='[1]LÍNEA 1'!U92 -> 0.2 | AY92: 0.2 | AZ92: ='[1]LÍNEA 1'!V92 -> 0.35 | BA92: 0.35 | BB92: ='[1]LÍNEA 1'!W92 -> 0.35 | BC92: 0.35 | BD92: ='[9]2016'!K29 -> 0.1 | BE92: ='[9]2017'!K29 -> 0.3 | BF92: ='[9]2018'!K29 -> 0 | BG92: ='[9]2019'!K29 -> 0 | BH92: 1 | BI92: 1 | BJ92: 1.5 | BK92: 1 | BL92: 0 | BM92: 0 | BN92: 0 | BO92: 0 | BP92: =+SUM(BD92:BG92)/AU92 -> 0.4 | BQ92: 0.4 | BR92: 0.4 | BS92: ='[9]2016'!P29 -> 325000 | BT92: ='[9]2016'!Q29 -> 0 | BU92: ='[9]2016'!R29 -> 0 | BV92: 0 | BW92: - | BX92: ='[9]2017'!P29 -> 0 | BY92: ='[9]2017'!Q29 -> 0 | BZ92: ='[9]2017'!R29 -> 0 | CA92: - | CB92: - | CC92: ='[9]2018'!P29 -> 0 | CD92: ='[9]2018'!Q29 -> 0 | CE92: ='[9]2018'!R29 -> 0 | CF92: - | CG92: - | CH92: ='[9]2019'!P29 -> 0 | CI92: ='[9]2019'!Q29 -> 0 | CJ92: ='[9]2019'!R29 -> 0 | CK92: - | CL92: - | CM92: 325000 | CN92: 0 | CO92: 0 | CP92: 0 | CQ92: - | CR92: 16. Paz, justicia e instituciones sólidas | CS92: Fortalecimiento Institucional | CT92: ='[1]LÍNEA 1'!AQ92 -> Sec. Administrativa
AQ93: Crear 1 cargo del nivel directivo y/o asesor adscrito al despacho del Alcalde encargado de la coordinación del gabinete municipal (Jefe de Gabinete). | AR93: ='[1]LÍNEA 1'!P93 -> - | AS93: Número de cargos creados adscritos al despacho del Alcalde para la coordinación del gabinete municipal (Jefe de Gabinete). | AT93: 0 | AU93: ='[1]LÍNEA 1'!S93 -> 1 | AV93: ='[1]LÍNEA 1'!T93 -> 0 | AW93: 0 | AX93: ='[1]LÍNEA 1'!U93 -> 1 | AY93: 1 | AZ93: ='[1]LÍNEA 1'!V93 -> 0 | BA93: 0 | BB93: ='[1]LÍNEA 1'!W93 -> 0 | BC93: 0 | BD93: ='[9]2016'!K30 -> 0 | BE93: ='[9]2017'!K30 -> 0 | BF93: ='[9]2018'!K30 -> 0 | BG93: ='[9]2019'!K30 -> 0 | BH93: - | BI93: - | BJ93: 0 | BK93: 0 | BL93: - | BM93: - | BN93: - | BO93: - | BP93: 0 | BQ93: 0 | BR93: 0 | BS93: ='[9]2016'!P30 -> 0 | BT93: ='[9]2016'!Q30 -> 0 | BU93: ='[9]2016'!R30 -> 0 | BV93: - | BW93: - | BX93: ='[9]2017'!P30 -> 0 | BY93: ='[9]2017'!Q30 -> 0 | BZ93: ='[9]2017'!R30 -> 0 | CA93: - | CB93: - | CC93: ='[9]2018'!P30 -> 0 | CD93: ='[9]2018'!Q30 -> 0 | CE93: ='[9]2018'!R30 -> 0 | CF93: - | CG93: - | CH93: ='[9]2019'!P30 -> 0 | CI93: ='[9]2019'!Q30 -> 0 | CJ93: ='[9]2019'!R30 -> 0 | CK93: - | CL93: - | CM93: 0 | CN93: 0 | CO93: 0 | CP93: - | CQ93: - | CR93: 16. Paz, justicia e instituciones sólidas | CS93: Fortalecimiento Institucional | CT93: ='[1]LÍNEA 1'!AQ93 -> Sec. Administrativa
AQ94: Formular e implementar 1 estrategia de gobierno para la aplicación cabal de la ley 1551 de 2012 por medio de la cual se dictaron normas para modernizar la organización y el funcionamiento de los municipios. | AR94: ='[1]LÍNEA 1'!P94 -> 2210301 | AS94: Número de estrategias de gobierno formuladas e implementadas para la aplicación cabal de la ley 1551 de 2012 por medio de la cual se dictaron normas para modernizar la organización y el funcionamiento de los municipios. | AT94: 0 | AU94: ='[1]LÍNEA 1'!S94 -> 1 | AV94: ='[1]LÍNEA 1'!T94 -> 1 | AW94: 0.25 | AX94: ='[1]LÍNEA 1'!U94 -> 1 | AY94: 0.25 | AZ94: ='[1]LÍNEA 1'!V94 -> 1 | BA94: 0.25 | BB94: ='[1]LÍNEA 1'!W94 -> 1 | BC94: 0.25 | BD94: ='[5]2016'!$K$17 -> 1 | BE94: ='[5]2017'!$K$17 -> 2 | BF94: ='[5]2018'!$K$17 -> 1 | BG94: ='[5]2019'!$K$17 -> 0 | BH94: 1 | BI94: 1 | BJ94: 2 | BK94: 1 | BL94: 1 | BM94: 1 | BN94: 0 | BO94: 0 | BP94: 1 | BQ94: 1 | BR94: 1 | BS94: ='[5]2016'!P17 -> 6950523 | BT94: ='[5]2016'!Q17 -> 6653051 | BU94: ='[5]2016'!R17 -> 0 | BV94: 0.957201494 | BW94: - | BX94: ='[5]2017'!P17 -> 22431254 | BY94: ='[5]2017'!Q17 -> 18616411 | BZ94: ='[5]2017'!R17 -> 0 | CA94: 0.8299317996 | CB94: - | CC94: ='[5]2018'!P17 -> 40410002 | CD94: ='[5]2018'!Q17 -> 36560924 | CE94: ='[5]2018'!R17 -> 0 | CF94: 0.9047493737 | CG94: - | CH94: ='[5]2019'!P17 -> 0 | CI94: ='[5]2019'!Q17 -> 0 | CJ94: ='[5]2019'!R17 -> 0 | CK94: - | CL94: - | CM94: 69791779 | CN94: 61830386 | CO94: 0 | CP94: 0.8859264929 | CQ94: - | CR94: 16. Paz, justicia e instituciones sólidas | CS94: Fortalecimiento Institucional | CT94: ='[1]LÍNEA 1'!AQ94 -> Sec. Hacienda
AQ95: Adecuar física y tecnológicamente el archivo de planos. | AR95: ='[1]LÍNEA 1'!P95 -> 2210158 | AS95: Porcentaje de avance en la adecuación física y tecnológica del archivo de planos. | AT95: 0 | AU95: ='[1]LÍNEA 1'!S95 -> 1 | AV95: ='[1]LÍNEA 1'!T95 -> 0 | AW95: 0 | AX95: ='[1]LÍNEA 1'!U95 -> 0.4 | AY95: 0.4 | AZ95: ='[1]LÍNEA 1'!V95 -> 0 | BA95: 0 | BB95: ='[1]LÍNEA 1'!W95 -> 0.6 | BC95: 0.6 | BD95: ='[6]2016'!$K$16 -> 0 | BE95: ='[6]2017'!$K$16 -> 0.002 | BF95: ='[6]2018'!$K$16 -> 0 | BG95: ='[6]2019'!$K$16 -> 0 | BH95: - | BI95: - | BJ95: 0.005 | BK95: 0.005 | BL95: - | BM95: - | BN95: 0 | BO95: 0 | BP95: =+SUM(BD95:BG95)/AU95 -> 0.002 | BQ95: 0.002 | BR95: 0.002 | BS95: ='[6]2016'!P16 -> 0 | BT95: ='[6]2016'!Q16 -> 0 | BU95: ='[6]2016'!R16 -> 0 | BV95: - | BW95: - | BX95: ='[6]2017'!P16 -> 18133 | BY95: ='[6]2017'!Q16 -> 18133 | BZ95: ='[6]2017'!R16 -> 0 | CA95: 1 | CB95: - | CC95: ='[6]2018'!P16 -> 0 | CD95: ='[6]2018'!Q16 -> 0 | CE95: ='[6]2018'!R16 -> 0 | CF95: - | CG95: - | CH95: ='[6]2019'!P16 -> 0 | CI95: ='[6]2019'!Q16 -> 0 | CJ95: ='[6]2019'!R16 -> 0 | CK95: - | CL95: - | CM95: 18133 | CN95: 18133 | CO95: 0 | CP95: 1 | CQ95: - | CR95: 16. Paz, justicia e instituciones sólidas | CS95: Fortalecimiento Institucional | CT95: ='[1]LÍNEA 1'!AQ95 -> Sec. Planeación
AQ96: Celebrar 20 acuerdos populares en el territorio para comprometer acciones diversas de gobierno ante problemas comunitarios. | AR96: ='[1]LÍNEA 1'!P96 -> 2210289 2210754 | AS96: Número de acuerdos populares celebrados en el territorio para comprometer acciones diversas de gobierno ante problemas comunitarios. | AT96: 0 | AU96: ='[1]LÍNEA 1'!S96 -> 20 | AV96: ='[1]LÍNEA 1'!T96 -> 20 | AW96: 1 | AX96: ='[1]LÍNEA 1'!U96 -> 0 | AY96: 0 | AZ96: ='[1]LÍNEA 1'!V96 -> 0 | BA96: 0 | BB96: ='[1]LÍNEA 1'!W96 -> 0 | BC96: 0 | BD96: ='[3]2016'!$K$29 -> 20 | BE96: ='[3]2017'!$K$30 -> 0 | BF96: ='[3]2018'!$K$30 -> 0 | BG96: ='[3]2019'!$K$30 -> 0 | BH96: 1 | BI96: 1 | BJ96: - | BK96: - | BL96: - | BM96: - | BN96: - | BO96: - | BP96: 1 | BQ96: 1 | BR96: 1 | BS96: ='[3]2016'!P29 -> 0 | BT96: ='[3]2016'!Q29 -> 0 | BU96: ='[3]2016'!R29 -> 0 | BV96: - | BW96: - | BX96: ='[3]2017'!P30 -> 0 | BY96: ='[3]2017'!Q30 -> 0 | BZ96: ='[3]2017'!R30 -> 0 | CA96: - | CB96: - | CC96: ='[3]2018'!P30 -> 0 | CD96: ='[3]2018'!Q30 -> 0 | CE96: ='[3]2018'!R30 -> 0 | CF96: - | CG96: - | CH96: ='[3]2019'!P30 -> 0 | CI96: ='[3]2019'!Q30 -> 0 | CJ96: ='[3]2019'!R30 -> 0 | CK96: - | CL96: - | CM96: 0 | CN96: 0 | CO96: 0 | CP96: - | CQ96: - | CR96: 16. Paz, justicia e instituciones sólidas | CS96: Fortalecimiento Institucional | CT96: ='[1]LÍNEA 1'!AQ96 -> Sec. Desarrollo Social
AQ97: Formular e implementar 1 plan institucional en Bomberos de Bucaramanga. | AR97: ='[1]LÍNEA 1'!P97 -> 22141 22151 22161 | AS97: Número de planes institucionales integrales formulados e implementados en Bomberos de Bucaramanga. | AT97: 0 | AU97: ='[1]LÍNEA 1'!S97 -> 1 | AV97: ='[1]LÍNEA 1'!T97 -> 0 | AW97: 0 | AX97: ='[1]LÍNEA 1'!U97 -> 1 | AY97: 0.33 | AZ97: ='[1]LÍNEA 1'!V97 -> 1 | BA97: 0.33 | BB97: ='[1]LÍNEA 1'!W97 -> 1 | BC97: 0.34 | BD97: ='[15]2016'!$K$12 -> 0 | BE97: ='[15]2017'!$K$12 -> 1 | BF97: ='[15]2018'!$K$12 -> 0.3 | BG97: ='[15]2019'!$K$12 -> 0 | BH97: - | BI97: - | BJ97: 1 | BK97: 1 | BL97: 0.3 | BM97: 0.3 | BN97: 0 | BO97: 0 | BP97: =+AVERAGE(BE97:BG97)/AU97 -> 0.4333333333 | BQ97: 0.4333333333 | BR97: 0.4333333333 | BS97: ='[15]2016'!P12 -> 770000 | BT97: ='[15]2016'!Q12 -> 0 | BU97: ='[15]2016'!R12 -> 0 | BV97: 0 | BW97: - | BX97: ='[15]2017'!P12 -> 1427338 | BY97: ='[15]2017'!Q12 -> 778799 | BZ97: ='[15]2017'!R12 -> 618838 | CA97: 0.5456303973 | CB97: 0.7946055401 | CC97: ='[15]2018'!P12 -> 848875 | CD97: ='[15]2018'!Q12 -> 20000 | CE97: ='[15]2018'!R12 -> 0 | CF97: 0.02356059491 | CG97: - | CH97: ='[15]2019'!P12 -> 891371 | CI97: ='[15]2019'!Q12 -> 0 | CJ97: ='[15]2019'!R12 -> 0 | CK97: 0 | CL97: - | CM97: 3937584 | CN97: 798799 | CO97: 618838 | CP97: 0.2028652595 | CQ97: 0.7747105342 | CR97: 16. Paz, justicia e instituciones sólidas | CS97: Fortalecimiento Institucional | CT97: ='[1]LÍNEA 1'!AQ97 -> Bomberos
F98: Mantener una calificación de solvente en el Índice de Desempeño Fiscal del DNP. | G98: Solvente | H98: Solvente | I98: 1 | J98: Solvente | K98: 1 | M98: Solvente | N98: 1 | P98: Solvente | Q98: 1 | S98: Solvente | T98: 1 | V98: Solvente | W98: =+IF(V98="Solvente",1,0) -> 1 | Y98: =+IF(X98="Solvente",1,0) -> 0 | AA98: =+IF(Z98="Solvente",1,0) -> 0 | AC98: =+IF(AB98="Solvente",1,0) -> 0 | AD98: =+IF(K98=0," -",W98/K98) -> 1 | AE98: =+IF(K98=0," -",IF(AD98>100%,100%,AD98)) -> 1 | AF98: =+IF(N98=0," -",Y98/N98) -> 0 | AG98: =+IF(N98=0," -",IF(AF98>100%,100%,AF98)) -> 0 | AH98: =+IF(Q98=0," -",AA98/Q98) -> 0 | AI98: =+IF(Q98=0," -",IF(AH98>100%,100%,AH98)) -> 0 | AJ98: =+IF(T98=0," -",AC98/T98) -> 0 | AK98: =+IF(T98=0," -",IF(AJ98>100%,100%,AJ98)) -> 0 | AL98: =+SUM(AC98,AA98,Y98,W98)/I98 -> 1 | AM98: =+IF(AL98>100%,100%,IF(AL98<0%,0%,AL98)) -> 1 | AQ98: Formular e implementar 1 plan de adquisición de equipos tecnológicos. | AR98: ='[1]LÍNEA 1'!P98 -> 2210237 | AS98: Porcentaje de avance en la formulación e implementación del plan de adquisición de equipos tecnológicos. | AT98: 0 | AU98: ='[1]LÍNEA 1'!S98 -> 1 | AV98: ='[1]LÍNEA 1'!T98 -> 0 | AW98: 0 | AX98: ='[1]LÍNEA 1'!U98 -> 0.2 | AY98: 0.2 | AZ98: ='[1]LÍNEA 1'!V98 -> 0.4 | BA98: 0.4 | BB98: ='[1]LÍNEA 1'!W98 -> 0.4 | BC98: 0.4 | BD98: ='[10]2016'!$K$28 -> 0.5 | BE98: ='[10]2017'!$K$28 -> 0.2 | BF98: ='[10]2018'!$K$28 -> 0.37 | BG98: ='[10]2019'!$K$28 -> 0 | BH98: - | BI98: - | BJ98: 1 | BK98: 1 | BL98: 0.925 | BM98: 0.925 | BN98: 0 | BO98: 0 | BP98: =+SUM(BD98:BG98)/AU98 -> 1.07 | BQ98: 1 | BR98: 1 | BS98: ='[10]2016'!P28 -> 0 | BT98: ='[10]2016'!Q28 -> 0 | BU98: ='[10]2016'!R28 -> 0 | BV98: - | BW98: - | BX98: ='[10]2017'!P28 -> 2952569 | BY98: ='[10]2017'!Q28 -> 1683843 | BZ98: ='[10]2017'!R28 -> 0 | CA98: 0.5702975951 | CB98: - | CC98: ='[10]2018'!P28 -> 2097632 | CD98: ='[10]2018'!Q28 -> 857600 | CE98: ='[10]2018'!R28 -> 0 | CF98: 0.4088419704 | CG98: - | CH98: ='[10]2019'!P28 -> 1650000 | CI98: ='[10]2019'!Q28 -> 0 | CJ98: ='[10]2019'!R28 -> 0 | CK98: 0 | CL98: - | CM98: 6700201 | CN98: 2541443 | CO98: 0 | CP98: 0.3793084715 | CQ98: - | CR98: 16. Paz, justicia e instituciones sólidas | CS98: Fortalecimiento Institucional | CT98: ='[1]LÍNEA 1'!AQ98 -> Asesor TIC
AQ99: Formular e implementar 1 plan de fortalecimiento institucional para la Dirección de Tránsito de Bucaramanga. | AR99: ='[1]LÍNEA 1'!P99 -> O535060101 O535060102 O535060103 O535060104 | AS99: Número de planes de fortalecimiento institucional para la Dirección de tránsito de Bucaramanga formulados e implementados. | AT99: 1 | AU99: ='[1]LÍNEA 1'!S99 -> 1 | AV99: ='[1]LÍNEA 1'!T99 -> 1 | AW99: 0.25 | AX99: ='[1]LÍNEA 1'!U99 -> 1 | AY99: 0.25 | AZ99: ='[1]LÍNEA 1'!V99 -> 1 | BA99: 0.25 | BB99: ='[1]LÍNEA 1'!W99 -> 1 | BC99: 0.25 | BD99: ='[16]2016'!$K$12 -> 1 | BE99: ='[16]2017'!$K$12 -> 1 | BF99: ='[16]2018'!$K$12 -> 1 | BG99: ='[16]2019'!$K$12 -> 0 | BH99: 1 | BI99: 1 | BJ99: 1 | BK99: 1 | BL99: 1 | BM99: 1 | BN99: 0 | BO99: 0 | BP99: 0.75 | BQ99: 0.75 | BR99: 0.75 | BS99: ='[16]2016'!P12 -> 2830991 | BT99: ='[16]2016'!Q12 -> 234557 | BU99: ='[16]2016'!R12 -> 0 | BV99: 0.08285331886 | BW99: - | BX99: ='[16]2017'!P12 -> 1125100 | BY99: ='[16]2017'!Q12 -> 782923 | BZ99: ='[16]2017'!R12 -> 0 | CA99: 0.6958697005 | CB99: - | CC99: ='[16]2018'!P12 -> 1975825.25 | CD99: ='[16]2018'!Q12 -> 290246.316 | CE99: ='[16]2018'!R12 -> 0 | CF99: 0.1468987786 | CG99: - | CH99: ='[16]2019'!P12 -> 1578890 | CI99: ='[16]2019'!Q12 -> 0 | CJ99: ='[16]2019'!R12 -> 0 | CK99: 0 | CL99: - | CM99: 7510806.25 | CN99: 1307726.316 | CO99: 0 | CP99: 0.1741126415 | CQ99: - | CR99: 16. Paz, justicia e instituciones sólidas | CS99: Fortalecimiento Institucional | CT99: ='[1]LÍNEA 1'!AQ99 -> Dir. Tránsito
AO100: =+RESUMEN!J22 -> 0.3573717949 | AP100: UNA CIUDAD VISIBLE QUE TOMA DECISIONES INTELIGENTES | AQ100: Mantener actualizada la base de datos del SISBEN. | AR100: ='[1]LÍNEA 1'!P100 -> 2210844 | AS100: Número de bases de datos del SISBEN actualizadas. | AT100: 1 | AU100: ='[1]LÍNEA 1'!S100 -> 1 | AV100: ='[1]LÍNEA 1'!T100 -> 1 | AW100: 0.25 | AX100: ='[1]LÍNEA 1'!U100 -> 1 | AY100: 0.25 | AZ100: ='[1]LÍNEA 1'!V100 -> 1 | BA100: 0.25 | BB100: ='[1]LÍNEA 1'!W100 -> 1 | BC100: 0.25 | BD100: ='[6]2016'!K17 -> 1 | BE100: ='[6]2017'!K17 -> 1 | BF100: ='[6]2018'!K17 -> 1 | BG100: ='[6]2019'!K17 -> 0 | BH100: 1 | BI100: 1 | BJ100: 1 | BK100: 1 | BL100: 1 | BM100: 1 | BN100: 0 | BO100: 0 | BP100: 0.75 | BQ100: 0.75 | BR100: 0.75 | BS100: ='[6]2016'!P17 -> 355000 | BT100: ='[6]2016'!Q17 -> 269367 | BU100: ='[6]2016'!R17 -> 0 | BV100: 0.7587802817 | BW100: - | BX100: ='[6]2017'!P17 -> 214127 | BY100: ='[6]2017'!Q17 -> 213327 | BZ100: ='[6]2017'!R17 -> 0 | CA100: 0.9962638995 | CB100: - | CC100: ='[6]2018'!P17 -> 354600 | CD100: ='[6]2018'!Q17 -> 115500 | CE100: ='[6]2018'!R17 -> 0 | CF100: 0.3257191201 | CG100: - | CH100: ='[6]2019'!P17 -> 0 | CI100: ='[6]2019'!Q17 -> 0 | CJ100: ='[6]2019'!R17 -> 0 | CK100: - | CL100: - | CM100: 923727 | CN100: 598194 | CO100: 0 | CP100: 0.6475874365 | CQ100: - | CR100: 16. Paz, justicia e instituciones sólidas | CS100: Salud | CT100: ='[1]LÍNEA 1'!AQ100 -> Sec. Planeación
AQ101: Implementar la nueva metodología SISBEN 4. | AR101: ='[1]LÍNEA 1'!P101 -> 2210844 | AS101: Número de metodologías SISBEN 4 implementadas. | AT101: 0 | AU101: ='[1]LÍNEA 1'!S101 -> 1 | AV101: ='[1]LÍNEA 1'!T101 -> 0 | AW101: 0 | AX101: ='[1]LÍNEA 1'!U101 -> 0 | AY101: 0 | AZ101: ='[1]LÍNEA 1'!V101 -> 0 | BA101: 0 | BB101: ='[1]LÍNEA 1'!W101 -> 1 | BC101: 1 | BD101: ='[6]2016'!K18 -> 0 | BE101: ='[6]2017'!K18 -> 0 | BF101: ='[6]2018'!K18 -> 0 | BG101: ='[6]2019'!K18 -> 0 | BH101: - | BI101: - | BJ101: - | BK101: - | BL101: - | BM101: - | BN101: 0 | BO101: 0 | BP101: =+SUM(BD101:BG101)/AU101 -> 0 | BQ101: 0 | BR101: 0 | BS101: ='[6]2016'!P18 -> 0 | BT101: ='[6]2016'!Q18 -> 0 | BU101: ='[6]2016'!R18 -> 0 | BV101: - | BW101: - | BX101: ='[6]2017'!P18 -> 0 | BY101: ='[6]2017'!Q18 -> 0 | BZ101: ='[6]2017'!R18 -> 0 | CA101: - | CB101: - | CC101: ='[6]2018'!P18 -> 0 | CD101: ='[6]2018'!Q18 -> 0 | CE101: ='[6]2018'!R18 -> 0 | CF101: - | CG101: - | CH101: ='[6]2019'!P18 -> 200000 | CI101: ='[6]2019'!Q18 -> 0 | CJ101: ='[6]2019'!R18 -> 0 | CK101: 0 | CL101: - | CM101: 200000 | CN101: 0 | CO101: 0 | CP101: 0 | CQ101: - | CR101: 16. Paz, justicia e instituciones sólidas | CS101: Salud | CT101: ='[1]LÍNEA 1'!AQ101 -> Sec. Planeación
AQ102: Readecuar 1 oficina para el SISBEN | AR102: ='[1]LÍNEA 1'!P102 -> 2210844 | AS102: Número de oficinas para el SISBEN readecuadas. | AT102: 0 | AU102: ='[1]LÍNEA 1'!S102 -> 1 | AV102: ='[1]LÍNEA 1'!T102 -> 0 | AW102: 0 | AX102: ='[1]LÍNEA 1'!U102 -> 1 | AY102: 1 | AZ102: ='[1]LÍNEA 1'!V102 -> 0 | BA102: 0 | BB102: ='[1]LÍNEA 1'!W102 -> 0 | BC102: 0 | BD102: ='[6]2016'!K19 -> 0 | BE102: ='[6]2017'!K19 -> 0 | BF102: ='[6]2018'!K19 -> 0 | BG102: ='[6]2019'!K19 -> 0 | BH102: - | BI102: - | BJ102: 0 | BK102: 0 | BL102: - | BM102: - | BN102: - | BO102: - | BP102: 0 | BQ102: 0 | BR102: 0 | BS102: ='[6]2016'!P19 -> 0 | BT102: ='[6]2016'!Q19 -> 0 | BU102: ='[6]2016'!R19 -> 0 | BV102: - | BW102: - | BX102: ='[6]2017'!P19 -> 0 | BY102: ='[6]2017'!Q19 -> 0 | BZ102: ='[6]2017'!R19 -> 0 | CA102: - | CB102: - | CC102: ='[6]2018'!P19 -> 0 | CD102: ='[6]2018'!Q19 -> 0 | CE102: ='[6]2018'!R19 -> 0 | CF102: - | CG102: - | CH102: ='[6]2019'!P19 -> 0 | CI102: ='[6]2019'!Q19 -> 0 | CJ102: ='[6]2019'!R19 -> 0 | CK102: - | CL102: - | CM102: 0 | CN102: 0 | CO102: 0 | CP102: - | CQ102: - | CR102: 16. Paz, justicia e instituciones sólidas | CS102: Fortalecimiento Institucional | CT102: ='[1]LÍNEA 1'!AQ102 -> Sec. Planeación
AQ103: Mantener el fortalecimiento del grupo de clasificación socioeconómico y estadístico. | AR103: ='[1]LÍNEA 1'!P103 -> 2210844 | AS103: Número de grupos de clasificación socioeconómico y estadístico fortalecidos. | AT103: 1 | AU103: ='[1]LÍNEA 1'!S103 -> 1 | AV103: ='[1]LÍNEA 1'!T103 -> 1 | AW103: 0.25 | AX103: ='[1]LÍNEA 1'!U103 -> 1 | AY103: 0.25 | AZ103: ='[1]LÍNEA 1'!V103 -> 1 | BA103: 0.25 | BB103: ='[1]LÍNEA 1'!W103 -> 1 | BC103: 0.25 | BD103: ='[6]2016'!K20 -> 1 | BE103: ='[6]2017'!K20 -> 1 | BF103: ='[6]2018'!K20 -> 1 | BG103: ='[6]2019'!K20 -> 0 | BH103: 1 | BI103: 1 | BJ103: 1 | BK103: 1 | BL103: 1 | BM103: 1 | BN103: 0 | BO103: 0 | BP103: 0.75 | BQ103: 0.75 | BR103: 0.75 | BS103: ='[6]2016'!P20 -> 0 | BT103: ='[6]2016'!Q20 -> 0 | BU103: ='[6]2016'!R20 -> 0 | BV103: - | BW103: - | BX103: ='[6]2017'!P20 -> 176000 | BY103: ='[6]2017'!Q20 -> 176000 | BZ103: ='[6]2017'!R20 -> 0 | CA103: 1 | CB103: - | CC103: ='[6]2018'!P20 -> 204600 | CD103: ='[6]2018'!Q20 -> 115500 | CE103: ='[6]2018'!R20 -> 0 | CF103: 0.564516129 | CG103: - | CH103: ='[6]2019'!P20 -> 30000 | CI103: ='[6]2019'!Q20 -> 0 | CJ103: ='[6]2019'!R20 -> 0 | CK103: 0 | CL103: - | CM103: 410600 | CN103: 291500 | CO103: 0 | CP103: 0.709936678 | CQ103: - | CR103: 16. Paz, justicia e instituciones sólidas | CS103: Fortalecimiento Institucional | CT103: ='[1]LÍNEA 1'!AQ103 -> Sec. Planeación
AQ104: Mantener actualizada la base de datos de estratificación urbana y rural. | AR104: ='[1]LÍNEA 1'!P104 -> 2210833 | AS104: Número de base de datos de estratificación urbana y rural actualizada. | AT104: 1 | AU104: ='[1]LÍNEA 1'!S104 -> 1 | AV104: ='[1]LÍNEA 1'!T104 -> 1 | AW104: 0.25 | AX104: ='[1]LÍNEA 1'!U104 -> 1 | AY104: 0.25 | AZ104: ='[1]LÍNEA 1'!V104 -> 1 | BA104: 0.25 | BB104: ='[1]LÍNEA 1'!W104 -> 1 | BC104: 0.25 | BD104: ='[6]2016'!K21 -> 1 | BE104: ='[6]2017'!K21 -> 1 | BF104: ='[6]2018'!K21 -> 1 | BG104: ='[6]2019'!K21 -> 0 | BH104: 1 | BI104: 1 | BJ104: 1 | BK104: 1 | BL104: 1 | BM104: 1 | BN104: 0 | BO104: 0 | BP104: 0.75 | BQ104: 0.75 | BR104: 0.75 | BS104: ='[6]2016'!P21 -> 47245 | BT104: ='[6]2016'!Q21 -> 25101 | BU104: ='[6]2016'!R21 -> 0 | BV104: 0.5312943169 | BW104: - | BX104: ='[6]2017'!P21 -> 495469.8841 | BY104: ='[6]2017'!Q21 -> 273720 | BZ104: ='[6]2017'!R21 -> 0 | CA104: 0.5524452823 | CB104: - | CC104: ='[6]2018'!P21 -> 389908 | CD104: ='[6]2018'!Q21 -> 39600 | CE104: ='[6]2018'!R21 -> 0 | CF104: 0.1015624199 | CG104: - | CH104: ='[6]2019'!P21 -> 0 | CI104: ='[6]2019'!Q21 -> 0 | CJ104: ='[6]2019'!R21 -> 0 | CK104: - | CL104: - | CM104: 932622.8841 | CN104: 338421 | CO104: 0 | CP104: 0.3628701437 | CQ104: - | CR104: 16. Paz, justicia e instituciones sólidas | CS104: Fortalecimiento Institucional | CT104: ='[1]LÍNEA 1'!AQ104 -> Sec. Planeación
AQ105: Realizar la revisión general de la estratificación urbana y rural y su respectiva socialización. | AR105: ='[1]LÍNEA 1'!P105 -> 2210833 | AS105: Número de revisiones y socializaciones generales de la estratificación urbana y rural realizadas. | AT105: 0 | AU105: ='[1]LÍNEA 1'!S105 -> 1 | AV105: ='[1]LÍNEA 1'!T105 -> 0 | AW105: 0 | AX105: ='[1]LÍNEA 1'!U105 -> 1 | AY105: 1 | AZ105: ='[1]LÍNEA 1'!V105 -> 0 | BA105: 0 | BB105: ='[1]LÍNEA 1'!W105 -> 0 | BC105: 0 | BD105: ='[6]2016'!K22 -> 0 | BE105: ='[6]2017'!K22 -> 0 | BF105: ='[6]2018'!K22 -> 0 | BG105: ='[6]2019'!K22 -> 0 | BH105: - | BI105: - | BJ105: 0 | BK105: 0 | BL105: - | BM105: - | BN105: - | BO105: - | BP105: =+SUM(BD105:BG105)/AU105 -> 0 | BQ105: 0 | BR105: 0 | BS105: ='[6]2016'!P22 -> 0 | BT105: ='[6]2016'!Q22 -> 0 | BU105: ='[6]2016'!R22 -> 0 | BV105: - | BW105: - | BX105: ='[6]2017'!P22 -> 0 | BY105: ='[6]2017'!Q22 -> 0 | BZ105: ='[6]2017'!R22 -> 0 | CA105: - | CB105: - | CC105: ='[6]2018'!P22 -> 0 | CD105: ='[6]2018'!Q22 -> 0 | CE105: ='[6]2018'!R22 -> 0 | CF105: - | CG105: - | CH105: ='[6]2019'!P22 -> 0 | CI105: ='[6]2019'!Q22 -> 0 | CJ105: ='[6]2019'!R22 -> 0 | CK105: - | CL105: - | CM105: 0 | CN105: 0 | CO105: 0 | CP105: - | CQ105: - | CR105: 16. Paz, justicia e instituciones sólidas | CS105: Fortalecimiento Institucional | CT105: ='[1]LÍNEA 1'!AQ105 -> Sec. Planeación
AQ106: Implementar y mantener 1 estrategia para fortalecer el observatorio metropolitano y ampliar su alcance. | AR106: ='[1]LÍNEA 1'!P106 -> 2210100 | AS106: Número de estrategias implementadas y mantenidas para fortalecer el Observatorio Metropolitano y ampliar su alcance. | AT106: 0 | AU106: ='[1]LÍNEA 1'!S106 -> 1 | AV106: ='[1]LÍNEA 1'!T106 -> 0 | AW106: 0 | AX106: ='[1]LÍNEA 1'!U106 -> 1 | AY106: 0.33 | AZ106: ='[1]LÍNEA 1'!V106 -> 1 | BA106: 0.33 | BB106: ='[1]LÍNEA 1'!W106 -> 1 | BC106: 0.34 | BD106: ='[6]2016'!K23 -> 0 | BE106: ='[6]2017'!K23 -> 0 | BF106: ='[6]2018'!K23 -> 1 | BG106: ='[6]2019'!K23 -> 0 | BH106: - | BI106: - | BJ106: 0 | BK106: 0 | BL106: 1 | BM106: 1 | BN106: 0 | BO106: 0 | BP106: =+AVERAGE(BE106:BG106)/AU106 -> 0.3333333333 | BQ106: 0.3333333333 | BR106: 0.3333333333 | BS106: ='[6]2016'!P23 -> 0 | BT106: ='[6]2016'!Q23 -> 0 | BU106: ='[6]2016'!R23 -> 0 | BV106: - | BW106: - | BX106: ='[6]2017'!P23 -> 0 | BY106: ='[6]2017'!Q23 -> 0 | BZ106: ='[6]2017'!R23 -> 0 | CA106: - | CB106: - | CC106: ='[6]2018'!P23 -> 0 | CD106: ='[6]2018'!Q23 -> 0 | CE106: ='[6]2018'!R23 -> 0 | CF106: - | CG106: - | CH106: ='[6]2019'!P23 -> 500000 | CI106: ='[6]2019'!Q23 -> 0 | CJ106: ='[6]2019'!R23 -> 0 | CK106: 0 | CL106: - | CM106: 500000 | CN106: 0 | CO106: 0 | CP106: 0 | CQ106: - | CR106: 16. Paz, justicia e instituciones sólidas | CS106: Fortalecimiento Institucional | CT106: ='[1]LÍNEA 1'!AQ106 -> Sec. Planeación
AQ107: Crear 4 rankings MI (Medición Integral) Ciudad. | AR107: ='[1]LÍNEA 1'!P107 -> - | AS107: Número de rankings MI (Medición Integral) Ciudad creados. | AT107: 0 | AU107: ='[1]LÍNEA 1'!S107 -> 4 | AV107: ='[1]LÍNEA 1'!T107 -> 0 | AW107: 0 | AX107: ='[1]LÍNEA 1'!U107 -> 0 | AY107: 0 | AZ107: ='[1]LÍNEA 1'!V107 -> 2 | BA107: 0.5 | BB107: ='[1]LÍNEA 1'!W107 -> 2 | BC107: 0.5 | BD107: ='[6]2016'!K24 -> 1 | BE107: ='[6]2017'!K24 -> 0 | BF107: ='[6]2018'!K24 -> 0 | BG107: ='[6]2019'!K24 -> 0 | BH107: - | BI107: - | BJ107: - | BK107: - | BL107: 0 | BM107: 0 | BN107: 0 | BO107: 0 | BP107: =+SUM(BD107:BG107)/AU107 -> 0.25 | BQ107: 0.25 | BR107: 0.25 | BS107: ='[6]2016'!P24 -> 0 | BT107: ='[6]2016'!Q24 -> 0 | BU107: ='[6]2016'!R24 -> 0 | BV107: - | BW107: - | BX107: ='[6]2017'!P24 -> 0 | BY107: ='[6]2017'!Q24 -> 0 | BZ107: ='[6]2017'!R24 -> 0 | CA107: - | CB107: - | CC107: ='[6]2018'!P24 -> 0 | CD107: ='[6]2018'!Q24 -> 0 | CE107: ='[6]2018'!R24 -> 0 | CF107: - | CG107: - | CH107: ='[6]2019'!P24 -> 0 | CI107: ='[6]2019'!Q24 -> 0 | CJ107: ='[6]2019'!R24 -> 0 | CK107: - | CL107: - | CM107: 0 | CN107: 0 | CO107: 0 | CP107: - | CQ107: - | CR107: 16. Paz, justicia e instituciones sólidas | CS107: Fortalecimiento Institucional | CT107: ='[1]LÍNEA 1'!AQ107 -> Sec. Planeación
F108: Lograr que el 60% de los ciudadanos considere como buena la gestión del Alcalde/Gobierno municipal de acuerdo a la encuesta Cómo Vamos. | G108: 0.3 | H108: 0.6 | I108: =+H108-G108 -> 0.3 | J108: 0.3 | K108: =+J108-G108 -> 0 | M108: 0.4 | N108: =+M108-J108 -> 0.1 | P108: 0.5 | Q108: =+P108-M108 -> 0.1 | S108: 0.6 | T108: =+S108-P108 -> 0.1 | V108: 0.55 | W108: =+IF(V108=0,0,V108-G108) -> 0.25 | Y108: =+IF(X108=0,0,X108-V108) -> 0 | AA108: =+IF(Z108=0,0,Z108-X108) -> 0 | AC108: =+IF(AB108=0,0,AB108-Z108) -> 0 | AD108: =+IF(K108=0," -",W108/K108) -> - | AE108: =+IF(K108=0," -",IF(AD108>100%,100%,AD108)) -> - | AF108: =+IF(N108=0," -",Y108/N108) -> 0 | AG108: =+IF(N108=0," -",IF(AF108>100%,100%,AF108)) -> 0 | AH108: =+IF(Q108=0," -",AA108/Q108) -> 0 | AI108: =+IF(Q108=0," -",IF(AH108>100%,100%,AH108)) -> 0 | AJ108: =+IF(T108=0," -",AC108/T108) -> 0 | AK108: =+IF(T108=0," -",IF(AJ108>100%,100%,AJ108)) -> 0 | AL108: =+SUM(AC108,AA108,Y108,W108)/I108 -> 0.8333333333 | AM108: =+IF(AL108>100%,100%,IF(AL108<0%,0%,AL108)) -> 0.8333333333 | AQ108: Apoyar 4 investigaciones académicas sobre temas urbanos de Bucaramanga que contribuyan a la comprensión de un problema público y a la formulación de políticas para solucionarlo. | AR108: ='[1]LÍNEA 1'!P108 -> 2210100 | AS108: Número de investigaciones académicas apoyadas sobre temas urbanos de Bucaramanga que contribuyan a la comprensión de un problema público y a la formulación de políticas para solucionarlo. | AT108: 0 | AU108: ='[1]LÍNEA 1'!S108 -> 4 | AV108: ='[1]LÍNEA 1'!T108 -> 1 | AW108: 0.25 | AX108: ='[1]LÍNEA 1'!U108 -> 1 | AY108: 0.25 | AZ108: ='[1]LÍNEA 1'!V108 -> 1 | BA108: 0.25 | BB108: ='[1]LÍNEA 1'!W108 -> 1 | BC108: 0.25 | BD108: ='[6]2016'!K25 -> 1 | BE108: ='[6]2017'!K25 -> 1 | BF108: ='[6]2018'!K25 -> 0 | BG108: ='[6]2019'!K25 -> 0 | BH108: 1 | BI108: 1 | BJ108: 1 | BK108: 1 | BL108: 0 | BM108: 0 | BN108: 0 | BO108: 0 | BP108: 0.5 | BQ108: 0.5 | BR108: 0.5 | BS108: ='[6]2016'!P25 -> 0 | BT108: ='[6]2016'!Q25 -> 0 | BU108: ='[6]2016'!R25 -> 0 | BV108: - | BW108: - | BX108: ='[6]2017'!P25 -> 102000 | BY108: ='[6]2017'!Q25 -> 102000 | BZ108: ='[6]2017'!R25 -> 344000 | CA108: 1 | CB108: 3.37254902 | CC108: ='[6]2018'!P25 -> 500000 | CD108: ='[6]2018'!Q25 -> 0 | CE108: ='[6]2018'!R25 -> 0 | CF108: 0 | CG108: - | CH108: ='[6]2019'!P25 -> 100000 | CI108: ='[6]2019'!Q25 -> 0 | CJ108: ='[6]2019'!R25 -> 0 | CK108: 0 | CL108: - | CM108: 702000 | CN108: 102000 | CO108: 344000 | CP108: 0.1452991453 | CQ108: 3.37254902 | CR108: 16. Paz, justicia e instituciones sólidas | CS108: Fortalecimiento Institucional | CT108: ='[1]LÍNEA 1'!AQ108 -> Sec. Planeación
AQ109: Crear y mantener 1 banco de datos y estadísticas para la gestión pública. | AR109: ='[1]LÍNEA 1'!P109 -> 0 | AS109: Número de bancos de datos y estadísticas para la gestión pública creados y mantenidos. | AT109: 0 | AU109: ='[1]LÍNEA 1'!S109 -> 1 | AV109: ='[1]LÍNEA 1'!T109 -> 0 | AW109: 0 | AX109: ='[1]LÍNEA 1'!U109 -> 1 | AY109: 0.33 | AZ109: ='[1]LÍNEA 1'!V109 -> 1 | BA109: 0.33 | BB109: ='[1]LÍNEA 1'!W109 -> 1 | BC109: 0.34 | BD109: ='[17]2016'!$K$12 -> 0 | BE109: ='[17]2017'!$K$12 -> 0.25 | BF109: ='[17]2018'!$K$12 -> 1 | BG109: ='[17]2019'!$K$12 -> 0 | BH109: - | BI109: - | BJ109: 0.25 | BK109: 0.25 | BL109: 1 | BM109: 1 | BN109: 0 | BO109: 0 | BP109: 0.3125 | BQ109: 0.3125 | BR109: 0.3125 | BS109: ='[17]2016'!P12 -> 150000 | BT109: ='[17]2016'!Q12 -> 0 | BU109: ='[17]2016'!R12 -> 0 | BV109: 0 | BW109: - | BX109: ='[17]2017'!P12 -> 85854 | BY109: ='[17]2017'!Q12 -> 24854 | BZ109: ='[17]2017'!R12 -> 0 | CA109: 0.2894914622 | CB109: - | CC109: ='[17]2018'!P12 -> 0 | CD109: ='[17]2018'!Q12 -> 0 | CE109: ='[17]2018'!R12 -> 0 | CF109: - | CG109: - | CH109: ='[17]2019'!P12 -> 200000 | CI109: ='[17]2019'!Q12 -> 0 | CJ109: ='[17]2019'!R12 -> 0 | CK109: 0 | CL109: - | CM109: 435854 | CN109: 24854 | CO109: 0 | CP109: 0.05702368224 | CQ109: - | CR109: 16. Paz, justicia e instituciones sólidas | CS109: Fortalecimiento Institucional | CT109: ='[1]LÍNEA 1'!AQ109 -> Sec. Salud y Ambiente
AQ110: Implementar y mantener 1 estrategia de comunicación y pedagógica para promover la apropiación del territorio y para fortalecer el conocimiento de la propia ciudad entre los ciudadanos. | AR110: ='[1]LÍNEA 1'!P110 -> 2.2.1.35.2 | AS110: Número de estrategias de comunicación y pedagógicas implementadas y mantenidas para promover la apropiación del territorio y para fortalecer el conocimiento de la propia ciudad entre los ciudadanos. | AT110: 0 | AU110: ='[1]LÍNEA 1'!S110 -> 1 | AV110: ='[1]LÍNEA 1'!T110 -> 1 | AW110: 0.25 | AX110: ='[1]LÍNEA 1'!U110 -> 1 | AY110: 0.25 | AZ110: ='[1]LÍNEA 1'!V110 -> 1 | BA110: 0.25 | BB110: ='[1]LÍNEA 1'!W110 -> 1 | BC110: 0.25 | BD110: ='[12]2016'!K14 -> 0 | BE110: ='[12]2017'!K14 -> 0 | BF110: ='[12]2018'!K14 -> 1 | BG110: ='[12]2019'!K14 -> 0 | BH110: 0 | BI110: 0 | BJ110: 0 | BK110: 0 | BL110: 1 | BM110: 1 | BN110: 0 | BO110: 0 | BP110: 0.25 | BQ110: 0.25 | BR110: 0.25 | BS110: ='[12]2016'!P14 -> 60000 | BT110: ='[12]2016'!Q14 -> 0 | BU110: ='[12]2016'!R14 -> 0 | BV110: 0 | BW110: - | BX110: ='[12]2017'!P14 -> 0 | BY110: ='[12]2017'!Q14 -> 0 | BZ110: ='[12]2017'!R14 -> 0 | CA110: - | CB110: - | CC110: ='[12]2018'!P14 -> 111000 | CD110: ='[12]2018'!Q14 -> 11000 | CE110: ='[12]2018'!R14 -> 0 | CF110: 0.0990990991 | CG110: - | CH110: ='[12]2019'!P14 -> 100000 | CI110: ='[12]2019'!Q14 -> 0 | CJ110: ='[12]2019'!R14 -> 0 | CK110: 0 | CL110: - | CM110: 271000 | CN110: 11000 | CO110: 0 | CP110: 0.0405904059 | CQ110: - | CR110: 16. Paz, justicia e instituciones sólidas | CS110: Cultura | CT110: ='[1]LÍNEA 1'!AQ110 -> IMCT
AQ111: Implementar y mantener 1 plataforma en línea sobre temas y datos actualizados de la ciudad (historia, cultura, turismo, geografía, economía, sociales, movilidad, espacio público entre otros factores). | AR111: ='[1]LÍNEA 1'!P111 -> 2.2.1.35.3 | AS111: Número de plataformas en línea implementadas y mantenidas sobre temas y datos actualizados de la ciudad (historia, cultura, turismo, geografía, economía, sociales, movilidad, espacio público entre otros factores). | AT111: 0 | AU111: ='[1]LÍNEA 1'!S111 -> 1 | AV111: ='[1]LÍNEA 1'!T111 -> 1 | AW111: 0.25 | AX111: ='[1]LÍNEA 1'!U111 -> 1 | AY111: 0.25 | AZ111: ='[1]LÍNEA 1'!V111 -> 1 | BA111: 0.25 | BB111: ='[1]LÍNEA 1'!W111 -> 1 | BC111: 0.25 | BD111: ='[12]2016'!K15 -> 0 | BE111: ='[12]2017'!K15 -> 1 | BF111: ='[12]2018'!K15 -> 1 | BG111: ='[12]2019'!K15 -> 0 | BH111: 0 | BI111: 0 | BJ111: 1 | BK111: 1 | BL111: 1 | BM111: 1 | BN111: 0 | BO111: 0 | BP111: 0.5 | BQ111: 0.5 | BR111: 0.5 | BS111: ='[12]2016'!P15 -> 80000 | BT111: ='[12]2016'!Q15 -> 0 | BU111: ='[12]2016'!R15 -> 0 | BV111: 0 | BW111: - | BX111: ='[12]2017'!P15 -> 35200 | BY111: ='[12]2017'!Q15 -> 19200 | BZ111: ='[12]2017'!R15 -> 0 | CA111: 0.5454545455 | CB111: - | CC111: ='[12]2018'!P15 -> 47000 | CD111: ='[12]2018'!Q15 -> 12000 | CE111: ='[12]2018'!R15 -> 0 | CF111: 0.2553191489 | CG111: - | CH111: ='[12]2019'!P15 -> 0 | CI111: ='[12]2019'!Q15 -> 0 | CJ111: ='[12]2019'!R15 -> 0 | CK111: - | CL111: - | CM111: 162200 | CN111: 31200 | CO111: 0 | CP111: 0.1923551171 | CQ111: - | CR111: 16. Paz, justicia e instituciones sólidas | CS111: Cultura | CT111: ='[1]LÍNEA 1'!AQ111 -> IMCT
AQ112: Crear y mantener el libro virtual o plataforma en línea de la historia de las comunas. | AR112: ='[1]LÍNEA 1'!P112 -> 2.2.1.35.4 | AS112: Número de libros virtuales o plataformas en línea creadas y mantenidas de la historia de las comunas. | AT112: 0 | AU112: ='[1]LÍNEA 1'!S112 -> 1 | AV112: ='[1]LÍNEA 1'!T112 -> 1 | AW112: 0.25 | AX112: ='[1]LÍNEA 1'!U112 -> 1 | AY112: 0.25 | AZ112: ='[1]LÍNEA 1'!V112 -> 1 | BA112: 0.25 | BB112: ='[1]LÍNEA 1'!W112 -> 1 | BC112: 0.25 | BD112: ='[12]2016'!K16 -> 0 | BE112: ='[12]2017'!K16 -> 0 | BF112: ='[12]2018'!K16 -> 1 | BG112: ='[12]2019'!K16 -> 0 | BH112: 0 | BI112: 0 | BJ112: 0 | BK112: 0 | BL112: 1 | BM112: 1 | BN112: 0 | BO112: 0 | BP112: 0.25 | BQ112: 0.25 | BR112: 0.25 | BS112: ='[12]2016'!P16 -> 70000 | BT112: ='[12]2016'!Q16 -> 0 | BU112: ='[12]2016'!R16 -> 0 | BV112: 0 | BW112: - | BX112: ='[12]2017'!P16 -> 70000 | BY112: ='[12]2017'!Q16 -> 0 | BZ112: ='[12]2017'!R16 -> 0 | CA112: 0 | CB112: - | CC112: ='[12]2018'!P16 -> 68000 | CD112: ='[12]2018'!Q16 -> 12000 | CE112: ='[12]2018'!R16 -> 0 | CF112: 0.1764705882 | CG112: - | CH112: ='[12]2019'!P16 -> 0 | CI112: ='[12]2019'!Q16 -> 0 | CJ112: ='[12]2019'!R16 -> 0 | CK112: - | CL112: - | CM112: 208000 | CN112: 12000 | CO112: 0 | CP112: 0.05769230769 | CQ112: - | CR112: 16. Paz, justicia e instituciones sólidas | CS112: Cultura | CT112: ='[1]LÍNEA 1'!AQ112 -> IMCT
AO113: =+RESUMEN!J23 -> 0.7208333333 | AP113: FINANZAS PÚBLICAS SOSTENIBLES Y COMPRENSIBLES PARA LA CIUDADANÍA | AQ113: Garantizar que 3 documentos financieros estén disponibles y sean de fácil acceso e interpretación. | AR113: ='[1]LÍNEA 1'!P113 -> - | AS113: Número de documentos financieros disponibles de fácil acceso e interpretación. | AT113: 0 | AU113: ='[1]LÍNEA 1'!S113 -> 3 | AV113: ='[1]LÍNEA 1'!T113 -> 3 | AW113: 0.25 | AX113: ='[1]LÍNEA 1'!U113 -> 3 | AY113: 0.25 | AZ113: ='[1]LÍNEA 1'!V113 -> 3 | BA113: 0.25 | BB113: ='[1]LÍNEA 1'!W113 -> 3 | BC113: 0.25 | BD113: ='[5]2016'!K18 -> 3 | BE113: ='[5]2017'!K18 -> 3 | BF113: ='[5]2018'!K18 -> 2 | BG113: ='[5]2019'!K18 -> 0 | BH113: 1 | BI113: 1 | BJ113: 1 | BK113: 1 | BL113: 0.6666666667 | BM113: 0.6666666667 | BN113: 0 | BO113: 0 | BP113: 0.6666666667 | BQ113: 0.6666666667 | BR113: 0.6666666667 | BS113: ='[5]2016'!P18 -> 0 | BT113: ='[5]2016'!Q18 -> 0 | BU113: ='[5]2016'!R18 -> 0 | BV113: - | BW113: - | BX113: ='[5]2017'!P18 -> 0 | BY113: ='[5]2017'!Q18 -> 0 | BZ113: ='[5]2017'!R18 -> 0 | CA113: - | CB113: - | CC113: ='[5]2018'!P18 -> 0 | CD113: ='[5]2018'!Q18 -> 0 | CE113: ='[5]2018'!R18 -> 0 | CF113: - | CG113: - | CH113: ='[5]2019'!P18 -> 0 | CI113: ='[5]2019'!Q18 -> 0 | CJ113: ='[5]2019'!R18 -> 0 | CK113: - | CL113: - | CM113: 0 | CN113: 0 | CO113: 0 | CP113: - | CQ113: - | CR113: 16. Paz, justicia e instituciones sólidas | CS113: Fortalecimiento Institucional | CT113: ='[1]LÍNEA 1'!AQ113 -> Sec. Hacienda
AQ114: Realizar 16 videos que permitan dar a conocer de manera didáctica al ciudadano la información financiera del municipio. | AR114: ='[1]LÍNEA 1'!P114 -> - | AS114: Número de videos realizados que permitan dar a conocer de manera didáctica al ciudadano la información financiera del municipio. | AT114: 0 | AU114: ='[1]LÍNEA 1'!S114 -> 16 | AV114: ='[1]LÍNEA 1'!T114 -> 4 | AW114: 0.25 | AX114: ='[1]LÍNEA 1'!U114 -> 4 | AY114: 0.25 | AZ114: ='[1]LÍNEA 1'!V114 -> 4 | BA114: 0.25 | BB114: ='[1]LÍNEA 1'!W114 -> 4 | BC114: 0.25 | BD114: ='[5]2016'!K19 -> 4 | BE114: ='[5]2017'!K19 -> 4 | BF114: ='[5]2018'!K19 -> 1 | BG114: ='[5]2019'!K19 -> 0 | BH114: 1 | BI114: 1 | BJ114: 1 | BK114: 1 | BL114: 0.25 | BM114: 0.25 | BN114: 0 | BO114: 0 | BP114: =+SUM(BD114:BG114)/AU114 -> 0.5625 | BQ114: 0.5625 | BR114: 0.5625 | BS114: ='[5]2016'!P19 -> 0 | BT114: ='[5]2016'!Q19 -> 0 | BU114: ='[5]2016'!R19 -> 0 | BV114: - | BW114: - | BX114: ='[5]2017'!P19 -> 0 | BY114: ='[5]2017'!Q19 -> 0 | BZ114: ='[5]2017'!R19 -> 0 | CA114: - | CB114: - | CC114: ='[5]2018'!P19 -> 0 | CD114: ='[5]2018'!Q19 -> 0 | CE114: ='[5]2018'!R19 -> 0 | CF114: - | CG114: - | CH114: ='[5]2019'!P19 -> 0 | CI114: ='[5]2019'!Q19 -> 0 | CJ114: ='[5]2019'!R19 -> 0 | CK114: - | CL114: - | CM114: 0 | CN114: 0 | CO114: 0 | CP114: - | CQ114: - | CR114: 16. Paz, justicia e instituciones sólidas | CS114: Fortalecimiento Institucional | CT114: ='[1]LÍNEA 1'!AQ114 -> Sec. Hacienda
AQ115: Implementar y mantener la norma internacional de información financiera - NIIF. | AR115: ='[1]LÍNEA 1'!P115 -> 2210277 | AS115: Número de normas internacionales de información financiera - NIIF implementadas y mantenidas. | AT115: 0 | AU115: ='[1]LÍNEA 1'!S115 -> 1 | AV115: ='[1]LÍNEA 1'!T115 -> 1 | AW115: 0.25 | AX115: ='[1]LÍNEA 1'!U115 -> 1 | AY115: 0.25 | AZ115: ='[1]LÍNEA 1'!V115 -> 1 | BA115: 0.25 | BB115: ='[1]LÍNEA 1'!W115 -> 1 | BC115: 0.25 | BD115: ='[5]2016'!K20 -> 0.3 | BE115: ='[5]2017'!K20 -> 0.5 | BF115: ='[5]2018'!K20 -> 0.7 | BG115: ='[5]2019'!K20 -> 0 | BH115: 0.3 | BI115: 0.3 | BJ115: 0.5 | BK115: 0.5 | BL115: 0.7 | BM115: 0.7 | BN115: 0 | BO115: 0 | BP115: 0.375 | BQ115: 0.375 | BR115: 0.375 | BS115: ='[5]2016'!P20 -> 68500 | BT115: ='[5]2016'!Q20 -> 59940 | BU115: ='[5]2016'!R20 -> 0 | BV115: 0.8750364964 | BW115: - | BX115: ='[5]2017'!P20 -> 269500 | BY115: ='[5]2017'!Q20 -> 269500 | BZ115: ='[5]2017'!R20 -> 0 | CA115: 1 | CB115: - | CC115: ='[5]2018'!P20 -> 285000 | CD115: ='[5]2018'!Q20 -> 285000 | CE115: ='[5]2018'!R20 -> 0 | CF115: 1 | CG115: - | CH115: ='[5]2019'!P20 -> 0 | CI115: ='[5]2019'!Q20 -> 0 | CJ115: ='[5]2019'!R20 -> 0 | CK115: - | CL115: - | CM115: 623000 | CN115: 614440 | CO115: 0 | CP115: 0.9862600321 | CQ115: - | CR115: 16. Paz, justicia e instituciones sólidas | CS115: Fortalecimiento Institucional | CT115: ='[1]LÍNEA 1'!AQ115 -> Sec. Hacienda
AQ116: Actualizar el estatuto tributario. | AR116: ='[1]LÍNEA 1'!P116 -> - | AS116: Número de estatutos tributarios actualizados. | AT116: 1 | AU116: ='[1]LÍNEA 1'!S116 -> 1 | AV116: ='[1]LÍNEA 1'!T116 -> 0 | AW116: 0 | AX116: ='[1]LÍNEA 1'!U116 -> 1 | AY116: 1 | AZ116: ='[1]LÍNEA 1'!V116 -> 0 | BA116: 0 | BB116: ='[1]LÍNEA 1'!W116 -> 0 | BC116: 0 | BD116: ='[5]2016'!K21 -> 0 | BE116: ='[5]2017'!K21 -> 1 | BF116: ='[5]2018'!K21 -> 0 | BG116: ='[5]2019'!K21 -> 0 | BH116: - | BI116: - | BJ116: 1 | BK116: 1 | BL116: - | BM116: - | BN116: - | BO116: - | BP116: =+SUM(BD116:BG116)/AU116 -> 1 | BQ116: 1 | BR116: 1 | BS116: ='[5]2016'!P21 -> 0 | BT116: ='[5]2016'!Q21 -> 0 | BU116: ='[5]2016'!R21 -> 0 | BV116: - | BW116: - | BX116: ='[5]2017'!P21 -> 0 | BY116: ='[5]2017'!Q21 -> 0 | BZ116: ='[5]2017'!R21 -> 0 | CA116: - | CB116: - | CC116: ='[5]2018'!P21 -> 0 | CD116: ='[5]2018'!Q21 -> 0 | CE116: ='[5]2018'!R21 -> 0 | CF116: - | CG116: - | CH116: ='[5]2019'!P21 -> 0 | CI116: ='[5]2019'!Q21 -> 0 | CJ116: ='[5]2019'!R21 -> 0 | CK116: - | CL116: - | CM116: 0 | CN116: 0 | CO116: 0 | CP116: - | CQ116: - | CR116: 16. Paz, justicia e instituciones sólidas | CS116: Fortalecimiento Institucional | CT116: ='[1]LÍNEA 1'!AQ116 -> Sec. Hacienda
F117: Lograr una calificación de 80 en el componente organización de la información del IGA. | G117: 53.3 | H117: 80 | I117: =+H117-G117 -> 26.7 | J117: 60 | K117: =+J117-G117 -> 6.7 | M117: 80 | N117: =+M117-J117 -> 20 | P117: 80 | Q117: =+P117-M117 -> 0 | S117: 80 | T117: =+S117-P117 -> 0 | V117: 55.8 | W117: =+IF(V117=0,0,V117-G117) -> 2.5 | Y117: =+IF(X117=0,0,X117-V117) -> 0 | AA117: =+IF(Z117=0,0,Z117-X117) -> 0 | AC117: =+IF(AB117=0,0,AB117-Z117) -> 0 | AD117: =+IF(K117=0," -",W117/K117) -> 0.3731343284 | AE117: =+IF(K117=0," -",IF(AD117>100%,100%,AD117)) -> 0.3731343284 | AF117: =+IF(N117=0," -",Y117/N117) -> 0 | AG117: =+IF(N117=0," -",IF(AF117>100%,100%,AF117)) -> 0 | AH117: =+IF(Q117=0," -",AA117/Q117) -> - | AI117: =+IF(Q117=0," -",IF(AH117>100%,100%,AH117)) -> - | AJ117: =+IF(T117=0," -",AC117/T117) -> - | AK117: =+IF(T117=0," -",IF(AJ117>100%,100%,AJ117)) -> - | AL117: =+SUM(AC117,AA117,Y117,W117)/I117 -> 0.0936329588 | AM117: =+IF(AL117>100%,100%,IF(AL117<0%,0%,AL117)) -> 0.0936329588 | AQ117: Realizar 5 acciones tendientes al fortalecimiento de los ingresos. | AR117: ='[1]LÍNEA 1'!P117 -> 2210277 | AS117: Número de acciones realizadas tendientes al fortalecimiento de los ingresos. | AT117: 1 | AU117: ='[1]LÍNEA 1'!S117 -> 5 | AV117: ='[1]LÍNEA 1'!T117 -> 2 | AW117: 0.4 | AX117: ='[1]LÍNEA 1'!U117 -> 3 | AY117: 0.6 | AZ117: ='[1]LÍNEA 1'!V117 -> 0 | BA117: 0 | BB117: ='[1]LÍNEA 1'!W117 -> 0 | BC117: 0 | BD117: ='[5]2016'!K22 -> 1 | BE117: ='[5]2017'!K22 -> 4 | BF117: ='[5]2018'!K22 -> 3 | BG117: ='[5]2019'!K22 -> 0 | BH117: 0.5 | BI117: 0.5 | BJ117: 1.333333333 | BK117: 1 | BL117: - | BM117: - | BN117: - | BO117: - | BP117: 1.6 | BQ117: 1 | BR117: 1 | BS117: ='[5]2016'!P22 -> 312414 | BT117: ='[5]2016'!Q22 -> 283034 | BU117: ='[5]2016'!R22 -> 0 | BV117: 0.9059581197 | BW117: - | BX117: ='[5]2017'!P22 -> 5331547 | BY117: ='[5]2017'!Q22 -> 5312293 | BZ117: ='[5]2017'!R22 -> 0 | CA117: 0.9963886654 | CB117: - | CC117: ='[5]2018'!P22 -> 3915880 | CD117: ='[5]2018'!Q22 -> 644638 | CE117: ='[5]2018'!R22 -> 0 | CF117: 0.1646214899 | CG117: - | CH117: ='[5]2019'!P22 -> 0 | CI117: ='[5]2019'!Q22 -> 0 | CJ117: ='[5]2019'!R22 -> 0 | CK117: - | CL117: - | CM117: 9559841 | CN117: 6239965 | CO117: 0 | CP117: 0.6527268602 | CQ117: - | CR117: 16. Paz, justicia e instituciones sólidas | CS117: Fortalecimiento Institucional | CT117: ='[1]LÍNEA 1'!AQ117 -> Sec. Hacienda
AO118: =+RESUMEN!J24 -> 0.428 | AP118: GESTIÓN INTELIGENTE DEL PATRIMONIO INMOBILIARIO MUNICIPAL | AQ118: Realizar y mantener actualizado en línea 1 inventario del los bienes inmuebles del municipio. | AR118: ='[1]LÍNEA 1'!P118 -> - | AS118: Número de inventarios en línea de los bienes inmuebles del municipio realizados y mantenidos. | AT118: 0 | AU118: ='[1]LÍNEA 1'!S118 -> 1 | AV118: ='[1]LÍNEA 1'!T118 -> 1 | AW118: 0.25 | AX118: ='[1]LÍNEA 1'!U118 -> 1 | AY118: 0.25 | AZ118: ='[1]LÍNEA 1'!V118 -> 1 | BA118: 0.25 | BB118: ='[1]LÍNEA 1'!W118 -> 1 | BC118: 0.25 | BD118: ='[18]2016'!K12 -> 0.85 | BE118: ='[18]2017'!K12 -> 0.536 | BF118: ='[18]2018'!K12 -> 0.59 | BG118: ='[18]2019'!K12 -> 0 | BH118: 0.85 | BI118: 0.85 | BJ118: 0.536 | BK118: 0.536 | BL118: 0.59 | BM118: 0.59 | BN118: 0 | BO118: 0 | BP118: 0.494 | BQ118: 0.494 | BR118: 0.494 | BS118: ='[18]2016'!P12 -> 0 | BT118: ='[18]2016'!Q12 -> 0 | BU118: ='[18]2016'!R12 -> 0 | BV118: - | BW118: - | BX118: ='[18]2017'!P12 -> 0 | BY118: ='[18]2017'!Q12 -> 0 | BZ118: ='[18]2017'!R12 -> 0 | CA118: - | CB118: - | CC118: ='[18]2018'!P12 -> 0 | CD118: ='[18]2018'!Q12 -> 0 | CE118: ='[18]2018'!R12 -> 0 | CF118: - | CG118: - | CH118: ='[18]2019'!P12 -> 0 | CI118: ='[18]2019'!Q12 -> 0 | CJ118: ='[18]2019'!R12 -> 0 | CK118: - | CL118: - | CM118: 0 | CN118: 0 | CO118: 0 | CP118: - | CQ118: - | CR118: 16. Paz, justicia e instituciones sólidas | CS118: Equipamiento | CT118: ='[1]LÍNEA 1'!AQ118 -> DADEP
AQ119: Incorporar 300 predios de propiedad del municipio cuya titulación se encuentra pendiente. | AR119: ='[1]LÍNEA 1'!P119 -> - | AS119: Número de predios de propiedad del municipio cuya titulación se encuentra pendiente incorporados. | AT119: 208 | AU119: ='[1]LÍNEA 1'!S119 -> 300 | AV119: ='[1]LÍNEA 1'!T119 -> 0 | AW119: 0 | AX119: ='[1]LÍNEA 1'!U119 -> 0 | AY119: 0 | AZ119: ='[1]LÍNEA 1'!V119 -> 150 | BA119: 0.5 | BB119: ='[1]LÍNEA 1'!W119 -> 150 | BC119: 0.5 | BD119: ='[18]2016'!K13 -> 0 | BE119: ='[18]2017'!K13 -> 0 | BF119: ='[18]2018'!K13 -> 12 | BG119: ='[18]2019'!K13 -> 0 | BH119: - | BI119: - | BJ119: - | BK119: - | BL119: 0.08 | BM119: 0.08 | BN119: 0 | BO119: 0 | BP119: =+SUM(BD119:BG119)/AU119 -> 0.04 | BQ119: 0.04 | BR119: 0.04 | BS119: ='[18]2016'!P13 -> 0 | BT119: ='[18]2016'!Q13 -> 0 | BU119: ='[18]2016'!R13 -> 0 | BV119: - | BW119: - | BX119: ='[18]2017'!P13 -> 0 | BY119: ='[18]2017'!Q13 -> 0 | BZ119: ='[18]2017'!R13 -> 0 | CA119: - | CB119: - | CC119: ='[18]2018'!P13 -> 0 | CD119: ='[18]2018'!Q13 -> 0 | CE119: ='[18]2018'!R13 -> 0 | CF119: - | CG119: - | CH119: ='[18]2019'!P13 -> 0 | CI119: ='[18]2019'!Q13 -> 0 | CJ119: ='[18]2019'!R13 -> 0 | CK119: - | CL119: - | CM119: 0 | CN119: 0 | CO119: 0 | CP119: - | CQ119: - | CR119: 16. Paz, justicia e instituciones sólidas | CS119: Equipamiento | CT119: ='[1]LÍNEA 1'!AQ119 -> DADEP
AQ120: Adquirir el 100% de los predios requeridos para la ejecución de obras de desarrollo para la ciudad. | AR120: ='[1]LÍNEA 1'!P120 -> - | AS120: Porcentaje de predios requeridos adquiridos para la ejecución de obras de desarrollo para la ciudad. | AT120: 1 | AU120: ='[1]LÍNEA 1'!S120 -> 1 | AV120: ='[1]LÍNEA 1'!T120 -> 1 | AW120: 0.25 | AX120: ='[1]LÍNEA 1'!U120 -> 1 | AY120: 0.25 | AZ120: ='[1]LÍNEA 1'!V120 -> 1 | BA120: 0.25 | BB120: ='[1]LÍNEA 1'!W120 -> 1 | BC120: 0.25 | BD120: ='[7]2016'!$K$15 -> 1 | BE120: ='[7]2017'!$K$14 -> 1 | BF120: ='[7]2018'!$K$14 -> 1 | BG120: ='[7]2019'!$K$14 -> 0 | BH120: 1 | BI120: 1 | BJ120: 1 | BK120: 1 | BL120: 1 | BM120: 1 | BN120: 0 | BO120: 0 | BP120: 0.75 | BQ120: 0.75 | BR120: 0.75 | BS120: ='[7]2016'!P15 -> 0 | BT120: ='[7]2016'!Q15 -> 0 | BU120: ='[7]2016'!R15 -> 0 | BV120: - | BW120: - | BX120: ='[7]2017'!P14 -> 0 | BY120: ='[7]2017'!Q14 -> 0 | BZ120: ='[7]2017'!R14 -> 0 | CA120: - | CB120: - | CC120: ='[7]2018'!P14 -> 0 | CD120: ='[7]2018'!Q14 -> 0 | CE120: ='[7]2018'!R14 -> 0 | CF120: - | CG120: - | CH120: ='[7]2019'!P14 -> 0 | CI120: ='[7]2019'!Q14 -> 0 | CJ120: ='[7]2019'!R14 -> 0 | CK120: - | CL120: - | CM120: 0 | CN120: 0 | CO120: 0 | CP120: - | CQ120: - | CR120: 9. Industria, innovación e infraestructura | CS120: Equipamiento | CT120: ='[1]LÍNEA 1'!AQ120 -> Sec. Infraestructura
AO121: =+RESUMEN!J25 -> 0.6601851852 | AP121: INSPECCIONES Y COMISARÍAS QUE FUNCIONAN | AQ121: Sistematizar el 100% de los procesos que adelantan las inspecciones de policía. | AR121: ='[1]LÍNEA 1'!P121 -> 0 | AS121: Porcentaje de avance en la sistematización de los procesos que adelantan las inspecciones de policía. | AT121: 0 | AU121: ='[1]LÍNEA 1'!S121 -> 1 | AV121: ='[1]LÍNEA 1'!T121 -> 0 | AW121: 0 | AX121: ='[1]LÍNEA 1'!U121 -> 0.7 | AY121: 0.7 | AZ121: ='[1]LÍNEA 1'!V121 -> 0.3 | BA121: 0.3 | BB121: ='[1]LÍNEA 1'!W121 -> 0 | BC121: 0 | BD121: ='[2]2016'!K15 -> 0 | BE121: ='[2]2017'!K15 -> 0.6 | BF121: ='[2]2018'!K15 -> 1 | BG121: ='[2]2019'!K15 -> 0 | BH121: - | BI121: - | BJ121: 0.8571428571 | BK121: 0.8571428571 | BL121: 3.333333333 | BM121: 1 | BN121: - | BO121: - | BP121: =+SUM(BD121:BG121)/AU121 -> 1.6 | BQ121: 1 | BR121: 1 | BS121: ='[2]2016'!P15 -> 225205 | BT121: ='[2]2016'!Q15 -> 0 | BU121: ='[2]2016'!R15 -> 0 | BV121: 0 | BW121: - | BX121: ='[2]2017'!P15 -> 113830 | BY121: ='[2]2017'!Q15 -> 41930 | BZ121: ='[2]2017'!R15 -> 0 | CA121: 0.3683563208 | CB121: - | CC121: ='[2]2018'!P15 -> 0 | CD121: ='[2]2018'!Q15 -> 0 | CE121: ='[2]2018'!R15 -> 0 | CF121: - | CG121: - | CH121: ='[2]2019'!P15 -> 0 | CI121: ='[2]2019'!Q15 -> 0 | CJ121: ='[2]2019'!R15 -> 0 | CK121: - | CL121: - | CM121: 339035 | CN121: 41930 | CO121: 0 | CP121: 0.1236745469 | CQ121: - | CR121: 16. Paz, justicia e instituciones sólidas | CS121: Justicia y Seguridad | CT121: ='[1]LÍNEA 1'!AQ121 -> Sec. Interior
AQ122: Descongestionar 9.000 procesos de las inspecciones iniciados antes del 2012 y que impiden la buena atención al ciudadano. | AR122: ='[1]LÍNEA 1'!P122 -> 2210264 | AS122: Número de procesos descongestionados de las inspecciones iniciados antes del 2012 y que impiden la buena atención al ciudadano. | AT122: 0 | AU122: ='[1]LÍNEA 1'!S122 -> 9000 | AV122: ='[1]LÍNEA 1'!T122 -> 3000 | AW122: 0.3333333333 | AX122: ='[1]LÍNEA 1'!U122 -> 2000 | AY122: 0.2222222222 | AZ122: ='[1]LÍNEA 1'!V122 -> 2000 | BA122: 0.2222222222 | BB122: ='[1]LÍNEA 1'!W122 -> 2000 | BC122: 0.2222222222 | BD122: ='[2]2016'!K16 -> 4077 | BE122: ='[2]2017'!K16 -> 4626 | BF122: ='[2]2018'!K16 -> 1380 | BG122: ='[2]2019'!K16 -> 0 | BH122: 1.359 | BI122: 1 | BJ122: 2.313 | BK122: 1 | BL122: 0.69 | BM122: 0.69 | BN122: 0 | BO122: 0 | BP122: 1.120333333 | BQ122: 1 | BR122: 1 | BS122: ='[2]2016'!P16 -> 256848 | BT122: ='[2]2016'!Q16 -> 256633 | BU122: ='[2]2016'!R16 -> 0 | BV122: 0.999162929 | BW122: - | BX122: ='[2]2017'!P16 -> 201502 | BY122: ='[2]2017'!Q16 -> 200670 | BZ122: ='[2]2017'!R16 -> 0 | CA122: 0.9958710087 | CB122: - | CC122: ='[2]2018'!P16 -> 360000 | CD122: ='[2]2018'!Q16 -> 189000 | CE122: ='[2]2018'!R16 -> 0 | CF122: 0.525 | CG122: - | CH122: ='[2]2019'!P16 -> 0 | CI122: ='[2]2019'!Q16 -> 0 | CJ122: ='[2]2019'!R16 -> 0 | CK122: - | CL122: - | CM122: 818350 | CN122: 646303 | CO122: 0 | CP122: 0.7897635486 | CQ122: - | CR122: 16. Paz, justicia e instituciones sólidas | CS122: Justicia y Seguridad | CT122: ='[1]LÍNEA 1'!AQ122 -> Sec. Interior
AQ123: Formular e implementar 1 plan de descongestión y gestión. | AR123: ='[1]LÍNEA 1'!P123 -> 2210264 | AS123: Número de planes de descongestión y gestión formulados e implementados. | AT123: 1 | AU123: ='[1]LÍNEA 1'!S123 -> 1 | AV123: ='[1]LÍNEA 1'!T123 -> 1 | AW123: 0.25 | AX123: ='[1]LÍNEA 1'!U123 -> 1 | AY123: 0.25 | AZ123: ='[1]LÍNEA 1'!V123 -> 1 | BA123: 0.25 | BB123: ='[1]LÍNEA 1'!W123 -> 1 | BC123: 0.25 | BD123: ='[2]2016'!K17 -> 1 | BE123: ='[2]2017'!K17 -> 1 | BF123: ='[2]2018'!K17 -> 1 | BG123: ='[2]2019'!K17 -> 0 | BH123: 1 | BI123: 1 | BJ123: 1 | BK123: 1 | BL123: 1 | BM123: 1 | BN123: 0 | BO123: 0 | BP123: 0.75 | BQ123: 0.75 | BR123: 0.75 | BS123: ='[2]2016'!P17 -> 0 | BT123: ='[2]2016'!Q17 -> 0 | BU123: ='[2]2016'!R17 -> 0 | BV123: - | BW123: - | BX123: ='[2]2017'!P17 -> 522302 | BY123: ='[2]2017'!Q17 -> 521470 | BZ123: ='[2]2017'!R17 -> 0 | CA123: 0.9984070519 | CB123: - | CC123: ='[2]2018'!P17 -> 253040 | CD123: ='[2]2018'!Q17 -> 177000 | CE123: ='[2]2018'!R17 -> 0 | CF123: 0.6994941511 | CG123: - | CH123: ='[2]2019'!P17 -> 0 | CI123: ='[2]2019'!Q17 -> 0 | CJ123: ='[2]2019'!R17 -> 0 | CK123: - | CL123: - | CM123: 775342 | CN123: 698470 | CO123: 0 | CP123: 0.9008540747 | CQ123: - | CR123: 16. Paz, justicia e instituciones sólidas | CS123: Justicia y Seguridad | CT123: ='[1]LÍNEA 1'!AQ123 -> Sec. Interior
AQ124: Formular e implementar 1 estrategia robusta de transparencia en las inspecciones. | AR124: ='[1]LÍNEA 1'!P124 -> - | AS124: Número de estrategias robustas de transparencia en las inspecciones formulados e implementados. | AT124: 0 | AU124: ='[1]LÍNEA 1'!S124 -> 1 | AV124: ='[1]LÍNEA 1'!T124 -> 1 | AW124: 0.25 | AX124: ='[1]LÍNEA 1'!U124 -> 1 | AY124: 0.25 | AZ124: ='[1]LÍNEA 1'!V124 -> 1 | BA124: 0.25 | BB124: ='[1]LÍNEA 1'!W124 -> 1 | BC124: 0.25 | BD124: ='[2]2016'!K18 -> 1 | BE124: ='[2]2017'!K18 -> 1 | BF124: ='[2]2018'!K18 -> 1 | BG124: ='[2]2019'!K18 -> 0 | BH124: 1 | BI124: 1 | BJ124: 1 | BK124: 1 | BL124: 1 | BM124: 1 | BN124: 0 | BO124: 0 | BP124: 0.75 | BQ124: 0.75 | BR124: 0.75 | BS124: ='[2]2016'!P18 -> 0 | BT124: ='[2]2016'!Q18 -> 0 | BU124: ='[2]2016'!R18 -> 0 | BV124: - | BW124: - | BX124: ='[2]2017'!P18 -> 0 | BY124: ='[2]2017'!Q18 -> 0 | BZ124: ='[2]2017'!R18 -> 0 | CA124: - | CB124: - | CC124: ='[2]2018'!P18 -> 0 | CD124: ='[2]2018'!Q18 -> 0 | CE124: ='[2]2018'!R18 -> 0 | CF124: - | CG124: - | CH124: ='[2]2019'!P18 -> 0 | CI124: ='[2]2019'!Q18 -> 0 | CJ124: ='[2]2019'!R18 -> 0 | CK124: - | CL124: - | CM124: 0 | CN124: 0 | CO124: 0 | CP124: - | CQ124: - | CR124: 16. Paz, justicia e instituciones sólidas | CS124: Justicia y Seguridad | CT124: ='[1]LÍNEA 1'!AQ124 -> Sec. Interior
AQ125: Crear 4 cargos supernumerarios para la descongestión de las inspecciones municipales de policía. | AR125: ='[1]LÍNEA 1'!P125 -> - | AS125: Número de cargos supernumerarios creados para la descongestión de las inspecciones municipales de policía. | AT125: 0 | AU125: ='[1]LÍNEA 1'!S125 -> 4 | AV125: ='[1]LÍNEA 1'!T125 -> 0 | AW125: 0 | AX125: ='[1]LÍNEA 1'!U125 -> 4 | AY125: 1 | AZ125: ='[1]LÍNEA 1'!V125 -> 0 | BA125: 0 | BB125: ='[1]LÍNEA 1'!W125 -> 0 | BC125: 0 | BD125: ='[2]2016'!K19 -> 0 | BE125: ='[2]2017'!K19 -> 0 | BF125: ='[2]2018'!K19 -> 0.3 | BG125: ='[2]2019'!K19 -> 0 | BH125: - | BI125: - | BJ125: 0 | BK125: 0 | BL125: - | BM125: - | BN125: - | BO125: - | BP125: =+SUM(BD125:BG125)/AU125 -> 0.075 | BQ125: 0.075 | BR125: 0.075 | BS125: ='[2]2016'!P19 -> 0 | BT125: ='[2]2016'!Q19 -> 0 | BU125: ='[2]2016'!R19 -> 0 | BV125: - | BW125: - | BX125: ='[2]2017'!P19 -> 0 | BY125: ='[2]2017'!Q19 -> 0 | BZ125: ='[2]2017'!R19 -> 0 | CA125: - | CB125: - | CC125: ='[2]2018'!P19 -> 0 | CD125: ='[2]2018'!Q19 -> 0 | CE125: ='[2]2018'!R19 -> 0 | CF125: - | CG125: - | CH125: ='[2]2019'!P19 -> 0 | CI125: ='[2]2019'!Q19 -> 0 | CJ125: ='[2]2019'!R19 -> 0 | CK125: - | CL125: - | CM125: 0 | CN125: 0 | CO125: 0 | CP125: - | CQ125: - | CR125: 16. Paz, justicia e instituciones sólidas | CS125: Justicia y Seguridad | CT125: ='[1]LÍNEA 1'!AQ125 -> Sec. Interior
F126: Lograr la probabilidad del 75% de cumplir la función administrativa según INTEGRA. | G126: 0.6198 | H126: 0.75 | I126: =+H126-G126 -> 0.1302 | J126: 0.62 | K126: =+J126-G126 -> 0.0002 | M126: 0.65 | N126: =+M126-J126 -> 0.03 | P126: 0.7 | Q126: =+P126-M126 -> 0.05 | S126: 0.75 | T126: =+S126-P126 -> 0.05 | V126: 0.62 | W126: =+IF(V126=0,0,V126-G126) -> 0.0002 | Y126: =+IF(X126=0,0,X126-V126) -> 0 | AA126: =+IF(Z126=0,0,Z126-X126) -> 0 | AC126: =+IF(AB126=0,0,AB126-Z126) -> 0 | AD126: =+IF(K126=0," -",W126/K126) -> 1 | AE126: =+IF(K126=0," -",IF(AD126>100%,100%,AD126)) -> 1 | AF126: =+IF(N126=0," -",Y126/N126) -> 0 | AG126: =+IF(N126=0," -",IF(AF126>100%,100%,AF126)) -> 0 | AH126: =+IF(Q126=0," -",AA126/Q126) -> 0 | AI126: =+IF(Q126=0," -",IF(AH126>100%,100%,AH126)) -> 0 | AJ126: =+IF(T126=0," -",AC126/T126) -> 0 | AK126: =+IF(T126=0," -",IF(AJ126>100%,100%,AJ126)) -> 0 | AL126: =+SUM(AC126,AA126,Y126,W126)/I126 -> 0.00153609831 | AM126: =+IF(AL126>100%,100%,IF(AL126<0%,0%,AL126)) -> 0.00153609831 | AQ126: Mejorar y equipar las 2 sedes de comisaría de familia (Norte y Joya). | AR126: ='[1]LÍNEA 1'!P126 -> 2210264 | AS126: Número de sedes de comisarías de familia (Norte y Joya) mejoradas y equipadas. | AT126: 2 | AU126: ='[1]LÍNEA 1'!S126 -> 2 | AV126: ='[1]LÍNEA 1'!T126 -> 0 | AW126: 0 | AX126: ='[1]LÍNEA 1'!U126 -> 0 | AY126: 0 | AZ126: ='[1]LÍNEA 1'!V126 -> 2 | BA126: 1 | BB126: ='[1]LÍNEA 1'!W126 -> 0 | BC126: 0 | BD126: ='[2]2016'!K20 -> 0 | BE126: ='[2]2017'!K20 -> 0 | BF126: ='[2]2018'!K20 -> 2 | BG126: ='[2]2019'!K20 -> 0 | BH126: - | BI126: - | BJ126: - | BK126: - | BL126: 1 | BM126: 1 | BN126: - | BO126: - | BP126: 1 | BQ126: 1 | BR126: 1 | BS126: ='[2]2016'!P20 -> 0 | BT126: ='[2]2016'!Q20 -> 0 | BU126: ='[2]2016'!R20 -> 0 | BV126: - | BW126: - | BX126: ='[2]2017'!P20 -> 0 | BY126: ='[2]2017'!Q20 -> 0 | BZ126: ='[2]2017'!R20 -> 0 | CA126: - | CB126: - | CC126: ='[2]2018'!P20 -> 150000 | CD126: ='[2]2018'!Q20 -> 84000 | CE126: ='[2]2018'!R20 -> 0 | CF126: 0.56 | CG126: - | CH126: ='[2]2019'!P20 -> 0 | CI126: ='[2]2019'!Q20 -> 0 | CJ126: ='[2]2019'!R20 -> 0 | CK126: - | CL126: - | CM126: 150000 | CN126: 84000 | CO126: 0 | CP126: 0.56 | CQ126: - | CR126: 16. Paz, justicia e instituciones sólidas | CS126: Justicia y Seguridad | CT126: ='[1]LÍNEA 1'!AQ126 -> Sec. Interior
AQ127: Adecuar y equipar las 2 sedes nuevas de comisaría de familia (Oriente y Sur). | AR127: ='[1]LÍNEA 1'!P127 -> - | AS127: Número de sedes nuevas de comisarías de familias (Oriente y Sur) adecuadas y equipadas. | AT127: 0 | AU127: ='[1]LÍNEA 1'!S127 -> 2 | AV127: ='[1]LÍNEA 1'!T127 -> 0 | AW127: 0 | AX127: ='[1]LÍNEA 1'!U127 -> 0 | AY127: 0 | AZ127: ='[1]LÍNEA 1'!V127 -> 0 | BA127: 0 | BB127: ='[1]LÍNEA 1'!W127 -> 2 | BC127: 1 | BD127: ='[2]2016'!K21 -> 0 | BE127: ='[2]2017'!K21 -> 0 | BF127: ='[2]2018'!K21 -> 0 | BG127: ='[2]2019'!K21 -> 0 | BH127: - | BI127: - | BJ127: - | BK127: - | BL127: - | BM127: - | BN127: 0 | BO127: 0 | BP127: 0 | BQ127: 0 | BR127: 0 | BS127: ='[2]2016'!P21 -> 0 | BT127: ='[2]2016'!Q21 -> 0 | BU127: ='[2]2016'!R21 -> 0 | BV127: - | BW127: - | BX127: ='[2]2017'!P21 -> 0 | BY127: ='[2]2017'!Q21 -> 0 | BZ127: ='[2]2017'!R21 -> 0 | CA127: - | CB127: - | CC127: ='[2]2018'!P21 -> 0 | CD127: ='[2]2018'!Q21 -> 0 | CE127: ='[2]2018'!R21 -> 0 | CF127: - | CG127: - | CH127: ='[2]2019'!P21 -> 0 | CI127: ='[2]2019'!Q21 -> 0 | CJ127: ='[2]2019'!R21 -> 0 | CK127: - | CL127: - | CM127: 0 | CN127: 0 | CO127: 0 | CP127: - | CQ127: - | CR127: 16. Paz, justicia e instituciones sólidas | CS127: Justicia y Seguridad | CT127: ='[1]LÍNEA 1'!AQ127 -> Sec. Interior
AQ128: Digitalizar y sistematizar el 100% el procedimiento del funcionamiento de las comisarías de familia. | AR128: ='[1]LÍNEA 1'!P128 -> 0 | AS128: Porcentaje de procedimientos de las comisarías de familia digitalizados y sistematizados, | AT128: 0 | AU128: ='[1]LÍNEA 1'!S128 -> 1 | AV128: ='[1]LÍNEA 1'!T128 -> 0 | AW128: 0 | AX128: ='[1]LÍNEA 1'!U128 -> 1 | AY128: 1 | AZ128: ='[1]LÍNEA 1'!V128 -> 0 | BA128: 0 | BB128: ='[1]LÍNEA 1'!W128 -> 0 | BC128: 0 | BD128: ='[2]2016'!K22 -> 0 | BE128: ='[2]2017'!K22 -> 0.7 | BF128: ='[2]2018'!K22 -> 0 | BG128: ='[2]2019'!K22 -> 0 | BH128: - | BI128: - | BJ128: 0.7 | BK128: 0.7 | BL128: - | BM128: - | BN128: - | BO128: - | BP128: 0.7 | BQ128: 0.7 | BR128: 0.7 | BS128: ='[2]2016'!P22 -> 91425 | BT128: ='[2]2016'!Q22 -> 0 | BU128: ='[2]2016'!R22 -> 0 | BV128: 0 | BW128: - | BX128: ='[2]2017'!P22 -> 17970 | BY128: ='[2]2017'!Q22 -> 17970 | BZ128: ='[2]2017'!R22 -> 0 | CA128: 1 | CB128: - | CC128: ='[2]2018'!P22 -> 0 | CD128: ='[2]2018'!Q22 -> 0 | CE128: ='[2]2018'!R22 -> 0 | CF128: - | CG128: - | CH128: ='[2]2019'!P22 -> 0 | CI128: ='[2]2019'!Q22 -> 0 | CJ128: ='[2]2019'!R22 -> 0 | CK128: - | CL128: - | CM128: 109395 | CN128: 17970 | CO128: 0 | CP128: 0.1642671054 | CQ128: - | CR128: 16. Paz, justicia e instituciones sólidas | CS128: Justicia y Seguridad | CT128: ='[1]LÍNEA 1'!AQ128 -> Sec. Interior
AQ129: Implementar y mantener 1 plan de mejoramiento en las comisarías de familia. | AR129: ='[1]LÍNEA 1'!P129 -> - | AS129: Número de planes de mejoramiento de las comisarías de familia implementadas y mantenidas. | AT129: 1 | AU129: ='[1]LÍNEA 1'!S129 -> 1 | AV129: ='[1]LÍNEA 1'!T129 -> 0 | AW129: 0 | AX129: ='[1]LÍNEA 1'!U129 -> 1 | AY129: 0.33 | AZ129: ='[1]LÍNEA 1'!V129 -> 1 | BA129: 0.33 | BB129: ='[1]LÍNEA 1'!W129 -> 1 | BC129: 0.34 | BD129: ='[2]2016'!K23 -> 0.5 | BE129: ='[2]2017'!K23 -> 1 | BF129: ='[2]2018'!K23 -> 1 | BG129: ='[2]2019'!K23 -> 0 | BH129: - | BI129: - | BJ129: 1 | BK129: 1 | BL129: 1 | BM129: 1 | BN129: 0 | BO129: 0 | BP129: =+AVERAGE(BE129:BG129)/AU129 -> 0.6666666667 | BQ129: 0.6666666667 | BR129: 0.6666666667 | BS129: ='[2]2016'!P23 -> 98000 | BT129: ='[2]2016'!Q23 -> 0 | BU129: ='[2]2016'!R23 -> 0 | BV129: 0 | BW129: - | BX129: ='[2]2017'!P23 -> 179502 | BY129: ='[2]2017'!Q23 -> 178670 | BZ129: ='[2]2017'!R23 -> 0 | CA129: 0.9953649542 | CB129: - | CC129: ='[2]2018'!P23 -> 0 | CD129: ='[2]2018'!Q23 -> 0 | CE129: ='[2]2018'!R23 -> 0 | CF129: - | CG129: - | CH129: ='[2]2019'!P23 -> 0 | CI129: ='[2]2019'!Q23 -> 0 | CJ129: ='[2]2019'!R23 -> 0 | CK129: - | CL129: - | CM129: 277502 | CN129: 178670 | CO129: 0 | CP129: 0.6438512155 | CQ129: - | CR129: 16. Paz, justicia e instituciones sólidas | CS129: Justicia y Seguridad | CT129: ='[1]LÍNEA 1'!AQ129 -> Sec. Interior
AO130: =+RESUMEN!J26 -> 0.7817982456 | AP130: CULTURA DE LA LEGALIDAD Y LA ÉTICA PÚBLICA | AQ130: Realizar 8 capacitaciones dirigidas a servidores públicos en lo atinente al régimen disciplinario de los servidores públicos. | AR130: ='[1]LÍNEA 1'!P130 -> - | AS130: Número de capacitaciones realizadas dirigidas a servidores públicos en lo atinente al régimen disciplinario de los servidores públicos. | AT130: 8 | AU130: ='[1]LÍNEA 1'!S130 -> 8 | AV130: ='[1]LÍNEA 1'!T130 -> 2 | AW130: 0.25 | AX130: ='[1]LÍNEA 1'!U130 -> 2 | AY130: 0.25 | AZ130: ='[1]LÍNEA 1'!V130 -> 2 | BA130: 0.25 | BB130: ='[1]LÍNEA 1'!W130 -> 2 | BC130: 0.25 | BD130: ='[19]2016'!K12 -> 3 | BE130: ='[19]2017'!K12 -> 3 | BF130: ='[19]2018'!K12 -> 6 | BG130: ='[19]2019'!K12 -> 0 | BH130: 1.5 | BI130: 1 | BJ130: 1.5 | BK130: 1 | BL130: 3 | BM130: 1 | BN130: 0 | BO130: 0 | BP130: =+SUM(BD130:BG130)/AU130 -> 1.5 | BQ130: 1 | BR130: 1 | BS130: ='[19]2016'!P12 -> 0 | BT130: ='[19]2016'!Q12 -> 0 | BU130: ='[19]2016'!R12 -> 0 | BV130: - | BW130: - | BX130: ='[19]2017'!P12 -> 0 | BY130: ='[19]2017'!Q12 -> 0 | BZ130: ='[19]2017'!R12 -> 0 | CA130: - | CB130: - | CC130: ='[19]2018'!P12 -> 0 | CD130: ='[19]2018'!Q12 -> 0 | CE130: ='[19]2018'!R12 -> 0 | CF130: - | CG130: - | CH130: ='[19]2019'!P12 -> 0 | CI130: ='[19]2019'!Q12 -> 0 | CJ130: ='[19]2019'!R12 -> 0 | CK130: - | CL130: - | CM130: 0 | CN130: 0 | CO130: 0 | CP130: - | CQ130: - | CR130: 16. Paz, justicia e instituciones sólidas | CS130: Justicia y Seguridad | CT130: ='[1]LÍNEA 1'!AQ130 -> Ofc. Control Interno Disciplinario
AQ131: Crear y mantener 1 base de datos que permita tener acceso ágil a la información de procesos que se adelantan. | AR131: ='[1]LÍNEA 1'!P131 -> - | AS131: Número de bases de datos creadas y mantenidas que permitan tener acceso ágil a la información de procesos que se adelantan. | AT131: 0 | AU131: ='[1]LÍNEA 1'!S131 -> 1 | AV131: ='[1]LÍNEA 1'!T131 -> 1 | AW131: 0.25 | AX131: ='[1]LÍNEA 1'!U131 -> 1 | AY131: 0.25 | AZ131: ='[1]LÍNEA 1'!V131 -> 1 | BA131: 0.25 | BB131: ='[1]LÍNEA 1'!W131 -> 1 | BC131: 0.25 | BD131: ='[19]2016'!K13 -> 1 | BE131: ='[19]2017'!K13 -> 1 | BF131: ='[19]2018'!K13 -> 1 | BG131: ='[19]2019'!K13 -> 0 | BH131: 1 | BI131: 1 | BJ131: 1 | BK131: 1 | BL131: 1 | BM131: 1 | BN131: 0 | BO131: 0 | BP131: 0.75 | BQ131: 0.75 | BR131: 0.75 | BS131: ='[19]2016'!P13 -> 0 | BT131: ='[19]2016'!Q13 -> 0 | BU131: ='[19]2016'!R13 -> 0 | BV131: - | BW131: - | BX131: ='[19]2017'!P13 -> 0 | BY131: ='[19]2017'!Q13 -> 0 | BZ131: ='[19]2017'!R13 -> 0 | CA131: - | CB131: - | CC131: ='[19]2018'!P13 -> 0 | CD131: ='[19]2018'!Q13 -> 0 | CE131: ='[19]2018'!R13 -> 0 | CF131: - | CG131: - | CH131: ='[19]2019'!P13 -> 0 | CI131: ='[19]2019'!Q13 -> 0 | CJ131: ='[19]2019'!R13 -> 0 | CK131: - | CL131: - | CM131: 0 | CN131: 0 | CO131: 0 | CP131: - | CQ131: - | CR131: 16. Paz, justicia e instituciones sólidas | CS131: Justicia y Seguridad | CT131: ='[1]LÍNEA 1'!AQ131 -> Ofc. Control Interno Disciplinario
AQ132: Mantener el seguimiento, asesoría y evaluación a los 19 procesos de la Administración Central. | AR132: ='[1]LÍNEA 1'!P132 -> - | AS132: Número de procesos de la Administración Central con seguimiento, asesoría y evaluación mantenidos. | AT132: 19 | AU132: ='[1]LÍNEA 1'!S132 -> 19 | AV132: ='[1]LÍNEA 1'!T132 -> 19 | AW132: 0.25 | AX132: ='[1]LÍNEA 1'!U132 -> 19 | AY132: 0.25 | AZ132: ='[1]LÍNEA 1'!V132 -> 19 | BA132: 0.25 | BB132: ='[1]LÍNEA 1'!W132 -> 19 | BC132: 0.25 | BD132: ='[20]2016'!$K$12 -> 19 | BE132: ='[20]2017'!$K$12 -> 19 | BF132: ='[20]2018'!$K$12 -> 24 | BG132: ='[20]2019'!$K$12 -> 0 | BH132: 1 | BI132: 1 | BJ132: 1 | BK132: 1 | BL132: 1.263157895 | BM132: 1 | BN132: 0 | BO132: 0 | BP132: 0.8157894737 | BQ132: 0.8157894737 | BR132: 0.8157894737 | BS132: ='[20]2016'!P12 -> 0 | BT132: ='[20]2016'!Q12 -> 0 | BU132: ='[20]2016'!R12 -> 0 | BV132: - | BW132: - | BX132: ='[20]2017'!P12 -> 0 | BY132: ='[20]2017'!Q12 -> 0 | BZ132: ='[20]2017'!R12 -> 0 | CA132: - | CB132: - | CC132: ='[20]2018'!P12 -> 0 | CD132: ='[20]2018'!Q12 -> 0 | CE132: ='[20]2018'!R12 -> 0 | CF132: - | CG132: - | CH132: ='[20]2019'!P12 -> 0 | CI132: ='[20]2019'!Q12 -> 0 | CJ132: ='[20]2019'!R12 -> 0 | CK132: - | CL132: - | CM132: 0 | CN132: 0 | CO132: 0 | CP132: - | CQ132: - | CR132: 16. Paz, justicia e instituciones sólidas | CS132: Justicia y Seguridad | CT132: ='[1]LÍNEA 1'!AQ132 -> Ofc. Control Interno
AQ133: Implementar y mantener 1 estrategia de gobierno para la promoción y adopción de la Cultura de la Legalidad y la Integridad para Colombia CLIC entre los servidores públicos y la ciudadanía. | AR133: ='[1]LÍNEA 1'!P133 -> - | AS133: Número de estrategias de gobierno implementadas y mantenidas para la promoción y adopción de la Cultura de la Legalidad y la Integridad para Colombia CLIC entre los servidores públicos y la ciudadanía. | AT133: 0 | AU133: ='[1]LÍNEA 1'!S133 -> 1 | AV133: ='[1]LÍNEA 1'!T133 -> 1 | AW133: 0.25 | AX133: ='[1]LÍNEA 1'!U133 -> 1 | AY133: 0.25 | AZ133: ='[1]LÍNEA 1'!V133 -> 1 | BA133: 0.25 | BB133: ='[1]LÍNEA 1'!W133 -> 1 | BC133: 0.25 | BD133: ='[14]2016'!K21 -> 0.7 | BE133: ='[14]2017'!K21 -> 1 | BF133: ='[14]2018'!K21 -> 0.3 | BG133: ='[14]2019'!K21 -> 0 | BH133: 0.7 | BI133: 0.7 | BJ133: 1 | BK133: 1 | BL133: 0.3 | BM133: 0.3 | BN133: 0 | BO133: 0 | BP133: 0.5 | BQ133: 0.5 | BR133: 0.5 | BS133: ='[14]2016'!P21 -> 0 | BT133: ='[14]2016'!Q21 -> 0 | BU133: ='[14]2016'!R21 -> 0 | BV133: - | BW133: - | BX133: ='[14]2017'!P21 -> 0 | BY133: ='[14]2017'!Q21 -> 0 | BZ133: ='[14]2017'!R21 -> 0 | CA133: - | CB133: - | CC133: ='[14]2018'!P21 -> 17600 | CD133: ='[14]2018'!Q21 -> 0 | CE133: ='[14]2018'!R21 -> 0 | CF133: 0 | CG133: - | CH133: ='[14]2019'!P21 -> 0 | CI133: ='[14]2019'!Q21 -> 0 | CJ133: ='[14]2019'!R21 -> 0 | CK133: - | CL133: - | CM133: 17600 | CN133: 0 | CO133: 0 | CP133: 0 | CQ133: - | CR133: 16. Paz, justicia e instituciones sólidas | CS133: Justicia y Seguridad | CT133: ='[1]LÍNEA 1'!AQ133 -> Sec. Jurídica
AQ134: Realizar 8 capacitaciones en materia de contratación estatal dirigida a servidores públicos. | AR134: ='[1]LÍNEA 1'!P134 -> 0 | AS134: Número de capacitaciones realizadas en materia de contratación estatal dirigida a servidores públicos. | AT134: 0 | AU134: ='[1]LÍNEA 1'!S134 -> 8 | AV134: ='[1]LÍNEA 1'!T134 -> 2 | AW134: 0.25 | AX134: ='[1]LÍNEA 1'!U134 -> 2 | AY134: 0.25 | AZ134: ='[1]LÍNEA 1'!V134 -> 2 | BA134: 0.25 | BB134: ='[1]LÍNEA 1'!W134 -> 2 | BC134: 0.25 | BD134: ='[14]2016'!K22 -> 7 | BE134: ='[14]2017'!K22 -> 6 | BF134: ='[14]2018'!K22 -> 0 | BG134: ='[14]2019'!K22 -> 0 | BH134: 3.5 | BI134: 1 | BJ134: 3 | BK134: 1 | BL134: 0 | BM134: 0 | BN134: 0 | BO134: 0 | BP134: =+SUM(BD134:BG134)/AU134 -> 1.625 | BQ134: 1 | BR134: 1 | BS134: ='[14]2016'!P22 -> 0 | BT134: ='[14]2016'!Q22 -> 0 | BU134: ='[14]2016'!R22 -> 11400 | BV134: - | BW134: 1 | BX134: ='[14]2017'!P22 -> 29750 | BY134: ='[14]2017'!Q22 -> 23500 | BZ134: ='[14]2017'!R22 -> 0 | CA134: 0.7899159664 | CB134: - | CC134: ='[14]2018'!P22 -> 20000 | CD134: ='[14]2018'!Q22 -> 0 | CE134: ='[14]2018'!R22 -> 0 | CF134: 0 | CG134: - | CH134: ='[14]2019'!P22 -> 50000 | CI134: ='[14]2019'!Q22 -> 0 | CJ134: ='[14]2019'!R22 -> 0 | CK134: 0 | CL134: - | CM134: 99750 | CN134: 23500 | CO134: 11400 | CP134: 0.2355889724 | CQ134: 0.485106383 | CR134: 16. Paz, justicia e instituciones sólidas | CS134: Justicia y Seguridad | CT134: ='[1]LÍNEA 1'!AQ134 -> Sec. Jurídica
AQ135: Implementar y mantener 1 estrategia de comunicaciones pedagógica para socializar y fortalecer el sentido de la ética en la gestión pública entre las diversas dependencias. | AR135: ='[1]LÍNEA 1'!P135 -> - | AS135: Número de estrategias de comunicaciones pedagógicas implementadas y mantenidas para socializar y fortalecer el sentido de la ética en la gestión pública entre las diversas dependencias. | AT135: 0 | AU135: ='[1]LÍNEA 1'!S135 -> 1 | AV135: ='[1]LÍNEA 1'!T135 -> 1 | AW135: 0.25 | AX135: ='[1]LÍNEA 1'!U135 -> 1 | AY135: 0.25 | AZ135: ='[1]LÍNEA 1'!V135 -> 1 | BA135: 0.25 | BB135: ='[1]LÍNEA 1'!W135 -> 1 | BC135: 0.25 | BD135: ='[14]2016'!K23 -> 1 | BE135: ='[14]2017'!K23 -> 1 | BF135: ='[14]2018'!K23 -> 0.5 | BG135: ='[14]2019'!K23 -> 0 | BH135: 1 | BI135: 1 | BJ135: 1 | BK135: 1 | BL135: 0.5 | BM135: 0.5 | BN135: 0 | BO135: 0 | BP135: 0.625 | BQ135: 0.625 | BR135: 0.625 | BS135: ='[14]2016'!P23 -> 0 | BT135: ='[14]2016'!Q23 -> 0 | BU135: ='[14]2016'!R23 -> 0 | BV135: - | BW135: - | BX135: ='[14]2017'!P23 -> 56320 | BY135: ='[14]2017'!Q23 -> 56320 | BZ135: ='[14]2017'!R23 -> 0 | CA135: 1 | CB135: - | CC135: ='[14]2018'!P23 -> 0 | CD135: ='[14]2018'!Q23 -> 0 | CE135: ='[14]2018'!R23 -> 0 | CF135: - | CG135: - | CH135: ='[14]2019'!P23 -> 0 | CI135: ='[14]2019'!Q23 -> 0 | CJ135: ='[14]2019'!R23 -> 0 | CK135: - | CL135: - | CM135: 56320 | CN135: 56320 | CO135: 0 | CP135: 1 | CQ135: - | CR135: 16. Paz, justicia e instituciones sólidas | CS135: Justicia y Seguridad | CT135: ='[1]LÍNEA 1'!AQ135 -> Sec. Jurídica
AU136: ='[1]LÍNEA 1'!S136 -> 0 | AV136: ='[1]LÍNEA 1'!T136 -> 0 | AW136: =+AVERAGE(AW78:AW135) -> 0.183908046 | AX136: ='[1]LÍNEA 1'!U136 -> 0 | AY136: =+AVERAGE(AY78:AY135) -> 0.3500383142 | AZ136: ='[1]LÍNEA 1'!V136 -> 0 | BA136: 0.2342337165 | BB136: ='[1]LÍNEA 1'!W136 -> 0 | BC136: 0.2490613027 | BI136: =+AVERAGE(BI78:BI135) -> 0.8430555556 | BK136: 0.7813361345 | BM136: 0.720037037 | BO136: 0 | BQ136: =+AVERAGE(BQ78:BQ135) -> 0.5784791289
D137: =+RESUMEN!J27 -> 0.7711180556 | E137: GOBIERNO MUNICIPAL EN LÍNEA | F137: Alcanzar un 85% de nivel de satisfacción en trámites electrónicos. | G137: 0.5 | H137: 0.85 | I137: =+H137-G137 -> 0.35 | J137: 0.5 | K137: =+J137-G137 -> 0 | M137: 0.65 | N137: =+M137-J137 -> 0.15 | P137: 0.75 | Q137: =+P137-M137 -> 0.1 | S137: 0.85 | T137: =+S137-P137 -> 0.1 | W137: =+IF(V137=0,0,V137-G137) -> 0 | Y137: =+IF(X137=0,0,X137-V137) -> 0 | AA137: =+IF(Z137=0,0,Z137-X137) -> 0 | AC137: =+IF(AB137=0,0,AB137-Z137) -> 0 | AD137: =+IF(K137=0," -",W137/K137) -> - | AE137: =+IF(K137=0," -",IF(AD137>100%,100%,AD137)) -> - | AF137: =+IF(N137=0," -",Y137/N137) -> 0 | AG137: =+IF(N137=0," -",IF(AF137>100%,100%,AF137)) -> 0 | AH137: =+IF(Q137=0," -",AA137/Q137) -> 0 | AI137: =+IF(Q137=0," -",IF(AH137>100%,100%,AH137)) -> 0 | AJ137: =+IF(T137=0," -",AC137/T137) -> 0 | AK137: =+IF(T137=0," -",IF(AJ137>100%,100%,AJ137)) -> 0 | AL137: =+SUM(AC137,AA137,Y137,W137)/I137 -> 0 | AM137: =+IF(AL137>100%,100%,IF(AL137<0%,0%,AL137)) -> 0 | AO137: =+RESUMEN!J28 -> 0.92975 | AP137: CIUDAD MODELO EN GOBIERNO EN LÍNEA | AQ137: Lograr y mantener el 100% de la implementación del componente TIC servicios. | AR137: ='[1]LÍNEA 1'!P137 -> 2210237 | AS137: Porcentaje de avance de la implementación del componente TIC servicios. | AT137: 0.745 | AU137: ='[1]LÍNEA 1'!S137 -> 1 | AV137: ='[1]LÍNEA 1'!T137 -> 0.3 | AW137: 0.25 | AX137: ='[1]LÍNEA 1'!U137 -> 0.2 | AY137: 0.25 | AZ137: ='[1]LÍNEA 1'!V137 -> 0.15 | BA137: 0.25 | BB137: ='[1]LÍNEA 1'!W137 -> 0.35 | BC137: 0.25 | BD137: ='[10]2016'!K30 -> 0.31 | BE137: ='[10]2017'!K30 -> 0.13 | BF137: ='[10]2018'!K30 -> 0.538 | BG137: ='[10]2019'!K30 -> 0 | BH137: 1.033333333 | BI137: 1 | BJ137: 0.65 | BK137: 0.65 | BL137: 3.586666667 | BM137: 1 | BN137: 0 | BO137: 0 | BP137: =+SUM(BD137:BG137)/AU137 -> 0.978 | BQ137: 0.978 | BR137: 0.978 | BS137: ='[10]2016'!P30 -> 0 | BT137: ='[10]2016'!Q30 -> 0 | BU137: ='[10]2016'!R30 -> 0 | BV137: - | BW137: - | BX137: ='[10]2017'!P30 -> 65000 | BY137: ='[10]2017'!Q30 -> 0 | BZ137: ='[10]2017'!R30 -> 0 | CA137: 0 | CB137: - | CC137: ='[10]2018'!P30 -> 0 | CD137: ='[10]2018'!Q30 -> 0 | CE137: ='[10]2018'!R30 -> 0 | CF137: - | CG137: - | CH137: ='[10]2019'!P30 -> 126000 | CI137: ='[10]2019'!Q30 -> 0 | CJ137: ='[10]2019'!R30 -> 0 | CK137: 0 | CL137: - | CM137: 191000 | CN137: 0 | CO137: 0 | CP137: 0 | CQ137: - | CR137: 16. Paz, justicia e instituciones sólidas | CS137: Fortalecimiento insitucional | CT137: ='[1]LÍNEA 1'!AQ137 -> Asesor TIC
AQ138: Lograr y mantener el 100% de la implementación del componente TIC gobierno abierto. | AR138: ='[1]LÍNEA 1'!P138 -> 2210237 | AS138: Porcentaje de avance de la implementación del componente TIC gobierno abierto. | AT138: 0.44 | AU138: ='[1]LÍNEA 1'!S138 -> 1 | AV138: ='[1]LÍNEA 1'!T138 -> 0.3 | AW138: 0.25 | AX138: ='[1]LÍNEA 1'!U138 -> 0.2 | AY138: 0.25 | AZ138: ='[1]LÍNEA 1'!V138 -> 0.3 | BA138: 0.25 | BB138: ='[1]LÍNEA 1'!W138 -> 0.2 | BC138: 0.25 | BD138: ='[10]2016'!K31 -> 0.29 | BE138: ='[10]2017'!K31 -> 0 | BF138: ='[10]2018'!K31 -> 0.451 | BG138: ='[10]2019'!K31 -> 0 | BH138: 0.9666666667 | BI138: 0.9666666667 | BJ138: 0 | BK138: 0 | BL138: 1.503333333 | BM138: 1 | BN138: 0 | BO138: 0 | BP138: =+SUM(BD138:BG138)/AU138 -> 0.741 | BQ138: 0.741 | BR138: 0.741 | BS138: ='[10]2016'!P31 -> 0 | BT138: ='[10]2016'!Q31 -> 0 | BU138: ='[10]2016'!R31 -> 0 | BV138: - | BW138: - | BX138: ='[10]2017'!P31 -> 35000 | BY138: ='[10]2017'!Q31 -> 0 | BZ138: ='[10]2017'!R31 -> 0 | CA138: 0 | CB138: - | CC138: ='[10]2018'!P31 -> 0 | CD138: ='[10]2018'!Q31 -> 0 | CE138: ='[10]2018'!R31 -> 0 | CF138: - | CG138: - | CH138: ='[10]2019'!P31 -> 118000 | CI138: ='[10]2019'!Q31 -> 0 | CJ138: ='[10]2019'!R31 -> 0 | CK138: 0 | CL138: - | CM138: 153000 | CN138: 0 | CO138: 0 | CP138: 0 | CQ138: - | CR138: 16. Paz, justicia e instituciones sólidas | CS138: Fortalecimiento insitucional | CT138: ='[1]LÍNEA 1'!AQ138 -> Asesor TIC
AQ139: Lograr y mantener el 100% de la implementación del componente TIC gestión. | AR139: ='[1]LÍNEA 1'!P139 -> 2210237 | AS139: Porcentaje de avance de la implementación del componente TIC gestión. | AT139: 0.43 | AU139: ='[1]LÍNEA 1'!S139 -> 1 | AV139: ='[1]LÍNEA 1'!T139 -> 0.3 | AW139: 0.25 | AX139: ='[1]LÍNEA 1'!U139 -> 0.2 | AY139: 0.25 | AZ139: ='[1]LÍNEA 1'!V139 -> 0.2 | BA139: 0.25 | BB139: ='[1]LÍNEA 1'!W139 -> 0.3 | BC139: 0.25 | BD139: ='[10]2016'!K32 -> 0.37 | BE139: ='[10]2017'!K32 -> 0.13 | BF139: ='[10]2018'!K32 -> 0.58 | BG139: ='[10]2019'!K32 -> 0 | BH139: 1.233333333 | BI139: 1 | BJ139: 0.65 | BK139: 0.65 | BL139: 2.9 | BM139: 1 | BN139: 0 | BO139: 0 | BP139: =+SUM(BD139:BG139)/AU139 -> 1.08 | BQ139: 1 | BR139: 1 | BS139: ='[10]2016'!P32 -> 0 | BT139: ='[10]2016'!Q32 -> 0 | BU139: ='[10]2016'!R32 -> 0 | BV139: - | BW139: - | BX139: ='[10]2017'!P32 -> 0 | BY139: ='[10]2017'!Q32 -> 0 | BZ139: ='[10]2017'!R32 -> 0 | CA139: - | CB139: - | CC139: ='[10]2018'!P32 -> 0 | CD139: ='[10]2018'!Q32 -> 0 | CE139: ='[10]2018'!R32 -> 0 | CF139: - | CG139: - | CH139: ='[10]2019'!P32 -> 0 | CI139: ='[10]2019'!Q32 -> 0 | CJ139: ='[10]2019'!R32 -> 0 | CK139: - | CL139: - | CM139: 0 | CN139: 0 | CO139: 0 | CP139: - | CQ139: - | CR139: 16. Paz, justicia e instituciones sólidas | CS139: Fortalecimiento insitucional | CT139: ='[1]LÍNEA 1'!AQ139 -> Asesor TIC
AQ140: Lograr y mantener el 100% de la implementación del componente seguridad de la información y protección de datos. | AR140: ='[1]LÍNEA 1'!P140 -> 2210237 | AS140: Porcentaje de avance de la implementación del componente seguridad de la información y protección de datos. | AT140: 0.15 | AU140: ='[1]LÍNEA 1'!S140 -> 1 | AV140: ='[1]LÍNEA 1'!T140 -> 0.3 | AW140: 0.25 | AX140: ='[1]LÍNEA 1'!U140 -> 0.2 | AY140: 0.25 | AZ140: ='[1]LÍNEA 1'!V140 -> 0.3 | BA140: 0.25 | BB140: ='[1]LÍNEA 1'!W140 -> 0.2 | BC140: 0.25 | BD140: ='[10]2016'!K33 -> 0.3 | BE140: ='[10]2017'!K33 -> 0.55 | BF140: ='[10]2018'!K33 -> 0.876 | BG140: ='[10]2019'!K33 -> 0 | BH140: =IF(AV140=0," -",BD140/AV140) -> 1 | BI140: =IF(AV140=0," -",IF(BH140>100%,100%,BH140)) -> 1 | BJ140: =IF(AX140=0," -",BE140/AX140) -> 2.75 | BK140: =IF(AX140=0," -",IF(BJ140>100%,100%,BJ140)) -> 1 | BL140: =IF(AZ140=0," -",BF140/AZ140) -> 2.92 | BM140: =IF(AZ140=0," -",IF(BL140>100%,100%,BL140)) -> 1 | BN140: =IF(BB140=0," -",BG140/BB140) -> 0 | BO140: =IF(BB140=0," -",IF(BN140>100%,100%,BN140)) -> 0 | BP140: 1.726 | BQ140: =+IF(BP140>100%,100%,BP140) -> 1 | BR140: =+BQ140 -> 1 | BS140: ='[10]2016'!P33 -> 0 | BT140: ='[10]2016'!Q33 -> 0 | BU140: ='[10]2016'!R33 -> 0 | BV140: - | BW140: - | BX140: ='[10]2017'!P33 -> 0 | BY140: ='[10]2017'!Q33 -> 0 | BZ140: ='[10]2017'!R33 -> 0 | CA140: - | CB140: - | CC140: ='[10]2018'!P33 -> 0 | CD140: ='[10]2018'!Q33 -> 0 | CE140: ='[10]2018'!R33 -> 0 | CF140: - | CG140: - | CH140: ='[10]2019'!P33 -> 240000 | CI140: ='[10]2019'!Q33 -> 0 | CJ140: ='[10]2019'!R33 -> 0 | CK140: 0 | CL140: - | CM140: 240000 | CN140: 0 | CO140: 0 | CP140: 0 | CQ140: - | CR140: 16. Paz, justicia e instituciones sólidas | CS140: Fortalecimiento insitucional | CT140: ='[1]LÍNEA 1'!AQ140 -> Asesor TIC
AO141: =+RESUMEN!J29 -> 0.7 | AP141: VIVE DIGITAL PARA LAS CIUDADANAS Y CIUDADANOS | AQ141: Adecuar y mantener en funcionamiento los 8 puntos VIVE DIGITAL. | AR141: ='[1]LÍNEA 1'!P141 -> - | AS141: Número de puntos VIVE DIGITAL adecuados y mantenidos en funcionamiento. | AT141: 8 | AU141: ='[1]LÍNEA 1'!S141 -> 8 | AV141: ='[1]LÍNEA 1'!T141 -> 8 | AW141: 0.25 | AX141: ='[1]LÍNEA 1'!U141 -> 8 | AY141: 0.25 | AZ141: ='[1]LÍNEA 1'!V141 -> 8 | BA141: 0.25 | BB141: ='[1]LÍNEA 1'!W141 -> 8 | BC141: 0.25 | BD141: ='[10]2016'!K34 -> 8 | BE141: ='[10]2017'!K34 -> 8 | BF141: ='[10]2018'!K34 -> 8 | BG141: ='[10]2019'!K34 -> 0 | BH141: 1 | BI141: 1 | BJ141: 1 | BK141: 1 | BL141: 1 | BM141: 1 | BN141: 0 | BO141: 0 | BP141: =+AVERAGE(BD141:BG141)/AU141 -> 0.75 | BQ141: 0.75 | BR141: 0.75 | BS141: ='[10]2016'!P34 -> 0 | BT141: ='[10]2016'!Q34 -> 0 | BU141: ='[10]2016'!R34 -> 0 | BV141: =IF(BS141=0," -",BT141/BS141) -> - | BW141: =IF(BU141=0," -",IF(BT141=0,100%,BU141/BT141)) -> - | BX141: ='[10]2017'!P34 -> 0 | BY141: ='[10]2017'!Q34 -> 0 | BZ141: ='[10]2017'!R34 -> 0 | CA141: =IF(BX141=0," -",BY141/BX141) -> - | CB141: =IF(BZ141=0," -",IF(BY141=0,100%,BZ141/BY141)) -> - | CC141: ='[10]2018'!P34 -> 0 | CD141: ='[10]2018'!Q34 -> 0 | CE141: ='[10]2018'!R34 -> 0 | CF141: =IF(CC141=0," -",CD141/CC141) -> - | CG141: =IF(CE141=0," -",IF(CD141=0,100%,CE141/CD141)) -> - | CH141: ='[10]2019'!P34 -> 0 | CI141: ='[10]2019'!Q34 -> 0 | CJ141: ='[10]2019'!R34 -> 0 | CK141: =IF(CH141=0," -",CI141/CH141) -> - | CL141: =IF(CJ141=0," -",IF(CI141=0,100%,CJ141/CI141)) -> - | CM141: =+BS141+BX141+CC141+CH141 -> 0 | CN141: =+BT141+BY141+CD141+CI141 -> 0 | CO141: =+BU141+BZ141+CE141+CJ141 -> 0 | CP141: =IF(CM141=0," -",CN141/CM141) -> - | CQ141: =IF(CO141=0," -",IF(CN141=0,100%,CO141/CN141)) -> - | CR141: 9. Industria, innovación e infraestructura | CS141: Fortalecimiento insitucional | CT141: ='[1]LÍNEA 1'!AQ141 -> Asesor TIC
F142: Lograr que 10.000 ciudadanos usen datos públicos y participen por redes electrónicas. | G142: 0 | H142: 10000 | I142: =+H142-G142 -> 10000 | J142: 2500 | K142: =+J142-G142 -> 2500 | M142: 5000 | N142: =+M142-K142 -> 2500 | P142: 7500 | Q142: =+P142-M142 -> 2500 | S142: 10000 | T142: =+S142-P142 -> 2500 | W142: =+IF(V142=0,0,V142-G142) -> 0 | Y142: =+IF(X142=0,0,X142-V142) -> 0 | AA142: =+IF(Z142=0,0,Z142-X142) -> 0 | AC142: =+IF(AB142=0,0,AB142-Z142) -> 0 | AD142: =+IF(K142=0," -",W142/K142) -> 0 | AE142: =+IF(K142=0," -",IF(AD142>100%,100%,AD142)) -> 0 | AF142: =+IF(N142=0," -",Y142/N142) -> 0 | AG142: =+IF(N142=0," -",IF(AF142>100%,100%,AF142)) -> 0 | AH142: =+IF(Q142=0," -",AA142/Q142) -> 0 | AI142: =+IF(Q142=0," -",IF(AH142>100%,100%,AH142)) -> 0 | AJ142: =+IF(T142=0," -",AC142/T142) -> 0 | AK142: =+IF(T142=0," -",IF(AJ142>100%,100%,AJ142)) -> 0 | AL142: =+SUM(AC142,AA142,Y142,W142)/I142 -> 0 | AM142: =+IF(AL142>100%,100%,IF(AL142<0%,0%,AL142)) -> 0 | AQ142: Mantener en funcionamiento el VIVE LAB. | AR142: ='[1]LÍNEA 1'!P142 -> - | AS142: Número de VIVE LABS mantenidos en funcionamiento. | AT142: 1 | AU142: ='[1]LÍNEA 1'!S142 -> 1 | AV142: ='[1]LÍNEA 1'!T142 -> 1 | AW142: 0.25 | AX142: ='[1]LÍNEA 1'!U142 -> 1 | AY142: 0.25 | AZ142: ='[1]LÍNEA 1'!V142 -> 1 | BA142: 0.25 | BB142: ='[1]LÍNEA 1'!W142 -> 1 | BC142: 0.25 | BD142: ='[10]2016'!K35 -> 1 | BE142: ='[10]2017'!K35 -> 1 | BF142: ='[10]2018'!K35 -> 1 | BG142: ='[10]2019'!K35 -> 0 | BH142: 1 | BI142: 1 | BJ142: 1 | BK142: 1 | BL142: 1 | BM142: 1 | BN142: 0 | BO142: 0 | BP142: 0.75 | BQ142: 0.75 | BR142: 0.75 | BS142: ='[10]2016'!P35 -> 0 | BT142: ='[10]2016'!Q35 -> 0 | BU142: ='[10]2016'!R35 -> 0 | BV142: - | BW142: - | BX142: ='[10]2017'!P35 -> 0 | BY142: ='[10]2017'!Q35 -> 0 | BZ142: ='[10]2017'!R35 -> 0 | CA142: - | CB142: - | CC142: ='[10]2018'!P35 -> 0 | CD142: ='[10]2018'!Q35 -> 0 | CE142: ='[10]2018'!R35 -> 0 | CF142: - | CG142: - | CH142: ='[10]2019'!P35 -> 0 | CI142: ='[10]2019'!Q35 -> 0 | CJ142: ='[10]2019'!R35 -> 0 | CK142: - | CL142: - | CM142: 0 | CN142: 0 | CO142: 0 | CP142: - | CQ142: - | CR142: 16. Paz, justicia e instituciones sólidas | CS142: Fortalecimiento insitucional | CT142: ='[1]LÍNEA 1'!AQ142 -> Asesor TIC
AQ143: Capacitar 5.000 ciudadanos en los puntos VIVE DIGITAL y VIVE LAB. | AR143: ='[1]LÍNEA 1'!P143 -> - | AS143: Número de ciudadanos capacitados en los puntos VIVE DIGITAL y VIVE LAB. | AT143: 0 | AU143: ='[1]LÍNEA 1'!S143 -> 5000 | AV143: ='[1]LÍNEA 1'!T143 -> 250 | AW143: =+AV143/AU143 -> 0.05 | AX143: ='[1]LÍNEA 1'!U143 -> 1550 | AY143: =+AX143/AU143 -> 0.31 | AZ143: ='[1]LÍNEA 1'!V143 -> 1600 | BA143: =+AZ143/AU143 -> 0.32 | BB143: ='[1]LÍNEA 1'!W143 -> 1600 | BC143: =+BB143/AU143 -> 0.32 | BD143: ='[10]2016'!K36 -> 702 | BE143: ='[10]2017'!K36 -> 8618 | BF143: ='[10]2018'!K36 -> 6142 | BG143: ='[10]2019'!K36 -> 0 | BH143: 2.808 | BI143: 1 | BJ143: 5.56 | BK143: 1 | BL143: 3.83875 | BM143: 1 | BN143: 0 | BO143: 0 | BP143: =+SUM(BD143:BG143)/AU143 -> 3.0924 | BQ143: 1 | BR143: 1 | BS143: ='[10]2016'!P36 -> 0 | BT143: ='[10]2016'!Q36 -> 0 | BU143: ='[10]2016'!R36 -> 0 | BV143: - | BW143: - | BX143: ='[10]2017'!P36 -> 0 | BY143: ='[10]2017'!Q36 -> 0 | BZ143: ='[10]2017'!R36 -> 0 | CA143: - | CB143: - | CC143: ='[10]2018'!P36 -> 0 | CD143: ='[10]2018'!Q36 -> 0 | CE143: ='[10]2018'!R36 -> 0 | CF143: - | CG143: - | CH143: ='[10]2019'!P36 -> 0 | CI143: ='[10]2019'!Q36 -> 0 | CJ143: ='[10]2019'!R36 -> 0 | CK143: - | CL143: - | CM143: 0 | CN143: 0 | CO143: 0 | CP143: - | CQ143: - | CR143: 16. Paz, justicia e instituciones sólidas | CS143: Fortalecimiento insitucional | CT143: ='[1]LÍNEA 1'!AQ143 -> Asesor TIC
AQ144: Atender 30.000 ciudadanos en los puntos VIVE DIGITAL y VIVE LAB. | AR144: ='[1]LÍNEA 1'!P144 -> - | AS144: Número de ciudadanos atendidos en los puntos VIVE DIGITAL y VIVE LAB. | AT144: 0 | AU144: ='[1]LÍNEA 1'!S144 -> 30000 | AV144: ='[1]LÍNEA 1'!T144 -> 3750 | AW144: 0.125 | AX144: ='[1]LÍNEA 1'!U144 -> 8750 | AY144: 0.2916666667 | AZ144: ='[1]LÍNEA 1'!V144 -> 8750 | BA144: 0.2916666667 | BB144: ='[1]LÍNEA 1'!W144 -> 8750 | BC144: 0.2916666667 | BD144: ='[10]2016'!K37 -> 29973 | BE144: ='[10]2017'!K37 -> 90155 | BF144: ='[10]2018'!K37 -> 50172 | BG144: ='[10]2019'!K37 -> 0 | BH144: 7.9928 | BI144: 1 | BJ144: 10.30342857 | BK144: 1 | BL144: 5.733942857 | BM144: 1 | BN144: 0 | BO144: 0 | BP144: 5.676666667 | BQ144: 1 | BR144: 1 | BS144: ='[10]2016'!P37 -> 0 | BT144: ='[10]2016'!Q37 -> 0 | BU144: ='[10]2016'!R37 -> 0 | BV144: - | BW144: - | BX144: ='[10]2017'!P37 -> 0 | BY144: ='[10]2017'!Q37 -> 0 | BZ144: ='[10]2017'!R37 -> 0 | CA144: - | CB144: - | CC144: ='[10]2018'!P37 -> 0 | CD144: ='[10]2018'!Q37 -> 0 | CE144: ='[10]2018'!R37 -> 0 | CF144: - | CG144: - | CH144: ='[10]2019'!P37 -> 0 | CI144: ='[10]2019'!Q37 -> 0 | CJ144: ='[10]2019'!R37 -> 0 | CK144: - | CL144: - | CM144: 0 | CN144: 0 | CO144: 0 | CP144: - | CQ144: - | CR144: 16. Paz, justicia e instituciones sólidas | CS144: Fortalecimiento insitucional | CT144: ='[1]LÍNEA 1'!AQ144 -> Asesor TIC
AQ145: Construir y mantener 1 punto VIVE DIGITAL. | AR145: ='[1]LÍNEA 1'!P145 -> 2210198 | AS145: Número de puntos vive DIGITAL construidos y mantenidos. | AT145: 8 | AU145: ='[1]LÍNEA 1'!S145 -> 1 | AV145: ='[1]LÍNEA 1'!T145 -> 0 | AW145: 0.25 | AX145: ='[1]LÍNEA 1'!U145 -> 0 | AY145: 0.25 | AZ145: ='[1]LÍNEA 1'!V145 -> 1 | BA145: 0.25 | BB145: ='[1]LÍNEA 1'!W145 -> 1 | BC145: 0.25 | BD145: ='[7]2016'!$K$17 -> 0 | BE145: ='[7]2017'!$K$16 -> 0 | BF145: ='[7]2018'!$K$16 -> 0 | BG145: ='[7]2019'!$K$16 -> 0 | BH145: - | BI145: - | BJ145: - | BK145: - | BL145: 0 | BM145: 0 | BN145: 0 | BO145: 0 | BP145: 0 | BQ145: 0 | BR145: 0 | BS145: ='[7]2016'!P17 -> 0 | BT145: ='[7]2016'!Q17 -> 0 | BU145: ='[7]2016'!R17 -> 0 | BV145: - | BW145: - | BX145: ='[7]2017'!P16 -> 0 | BY145: ='[7]2017'!Q16 -> 0 | BZ145: ='[7]2017'!R16 -> 0 | CA145: - | CB145: - | CC145: ='[7]2018'!P16 -> 0 | CD145: ='[7]2018'!Q16 -> 0 | CE145: ='[7]2018'!R16 -> 0 | CF145: - | CG145: - | CH145: ='[7]2019'!P16 -> 0 | CI145: ='[7]2019'!Q16 -> 0 | CJ145: ='[7]2019'!R16 -> 0 | CK145: - | CL145: - | CM145: 0 | CN145: 0 | CO145: 0 | CP145: - | CQ145: - | CR145: 9. Industria, innovación e infraestructura | CS145: Promoción del Desarrollo | CT145: ='[1]LÍNEA 1'!AQ145 -> Sec. Infraestructura
AO146: =+RESUMEN!J30 -> 0.7625 | AP146: GESTIÓN Y MEJORAMIENTO DE LOS SISTEMAS DE INFORMACIÓN | AQ146: Crear y/o documentar 4 sistemas de información pertenecientes al Core de la Alcaldía. | AR146: ='[1]LÍNEA 1'!P146 -> 0 | AS146: Número de sistemas de información creados y/o documentados pertenecientes al Core de la Alcaldía. | AT146: 1 | AU146: ='[1]LÍNEA 1'!S146 -> 4 | AV146: ='[1]LÍNEA 1'!T146 -> 0 | AW146: 0 | AX146: ='[1]LÍNEA 1'!U146 -> 2 | AY146: 0.5 | AZ146: ='[1]LÍNEA 1'!V146 -> 1 | BA146: 0.25 | BB146: ='[1]LÍNEA 1'!W146 -> 1 | BC146: 0.25 | BD146: ='[10]2016'!K38 -> 0.3 | BE146: ='[10]2017'!K38 -> 0.8 | BF146: ='[10]2018'!K38 -> 1 | BG146: ='[10]2019'!K38 -> 0 | BH146: - | BI146: - | BJ146: 0.4 | BK146: 0.4 | BL146: 1 | BM146: 1 | BN146: 0 | BO146: 0 | BP146: =+SUM(BD146:BG146)/AU146 -> 0.525 | BQ146: 0.525 | BR146: 0.525 | BS146: ='[10]2016'!P38 -> 0 | BT146: ='[10]2016'!Q38 -> 0 | BU146: ='[10]2016'!R38 -> 0 | BV146: - | BW146: - | BX146: ='[10]2017'!P38 -> 0 | BY146: ='[10]2017'!Q38 -> 0 | BZ146: ='[10]2017'!R38 -> 0 | CA146: - | CB146: - | CC146: ='[10]2018'!P38 -> 0 | CD146: ='[10]2018'!Q38 -> 0 | CE146: ='[10]2018'!R38 -> 0 | CF146: - | CG146: - | CH146: ='[10]2019'!P38 -> 0 | CI146: ='[10]2019'!Q38 -> 0 | CJ146: ='[10]2019'!R38 -> 0 | CK146: - | CL146: - | CM146: 0 | CN146: 0 | CO146: 0 | CP146: - | CQ146: - | CR146: 16. Paz, justicia e instituciones sólidas | CS146: Fortalecimiento insitucional | CT146: ='[1]LÍNEA 1'!AQ146 -> Asesor TIC
F147: Lograr una calificación de 90 en el Índice de Gobierno Abierto - IGA. | G147: 77 | H147: 90 | I147: =+H147-G147 -> 13 | J147: 80 | K147: =+J147-G147 -> 3 | M147: 85 | N147: =+M147-J147 -> 5 | P147: 90 | Q147: =+P147-M147 -> 5 | S147: 90 | T147: =+S147-P147 -> 0 | V147: 71.8 | W147: =+IF(V147=0,0,V147-G147) -> -5.2 | Y147: =+IF(X147=0,0,X147-V147) -> 0 | AA147: =+IF(Z147=0,0,Z147-X147) -> 0 | AC147: =+IF(AB147=0,0,AB147-Z147) -> 0 | AD147: =+IF(K147=0," -",W147/K147) -> -1.733333333 | AE147: =+IF(K147=0," -",IF(AD147>100%,100%,AD147)) -> -1.733333333 | AF147: =+IF(N147=0," -",Y147/N147) -> 0 | AG147: =+IF(N147=0," -",IF(AF147>100%,100%,AF147)) -> 0 | AH147: =+IF(Q147=0," -",AA147/Q147) -> 0 | AI147: =+IF(Q147=0," -",IF(AH147>100%,100%,AH147)) -> 0 | AJ147: =+IF(T147=0," -",AC147/T147) -> - | AK147: =+IF(T147=0," -",IF(AJ147>100%,100%,AJ147)) -> - | AL147: =+SUM(AC147,AA147,Y147,W147)/I147 -> -0.4 | AM147: =+IF(AL147>100%,100%,IF(AL147<0%,0%,AL147)) -> 0 | AQ147: Implementar 1 ambiente de desarrollo y prueba para los sistemas de información de la Alcaldía. | AR147: ='[1]LÍNEA 1'!P147 -> 0 | AS147: Porcentaje de avance en la implementación del ambiente de desarrollo y prueba para los sistemas de información de la Alcaldía. | AT147: 0 | AU147: ='[1]LÍNEA 1'!S147 -> 1 | AV147: ='[1]LÍNEA 1'!T147 -> 0 | AW147: 0 | AX147: ='[1]LÍNEA 1'!U147 -> 0 | AY147: 0 | AZ147: ='[1]LÍNEA 1'!V147 -> 0.5 | BA147: 0.5 | BB147: ='[1]LÍNEA 1'!W147 -> 0.5 | BC147: 0.5 | BD147: ='[10]2016'!K39 -> 0 | BE147: ='[10]2017'!K39 -> 0 | BF147: ='[10]2018'!K39 -> 1 | BG147: ='[10]2019'!K39 -> 0 | BH147: - | BI147: - | BJ147: - | BK147: - | BL147: 2 | BM147: 1 | BN147: 0 | BO147: 0 | BP147: 1 | BQ147: 1 | BR147: 1 | BS147: ='[10]2016'!P39 -> 0 | BT147: ='[10]2016'!Q39 -> 0 | BU147: ='[10]2016'!R39 -> 0 | BV147: - | BW147: - | BX147: ='[10]2017'!P39 -> 0 | BY147: ='[10]2017'!Q39 -> 0 | BZ147: ='[10]2017'!R39 -> 0 | CA147: - | CB147: - | CC147: ='[10]2018'!P39 -> 0 | CD147: ='[10]2018'!Q39 -> 0 | CE147: ='[10]2018'!R39 -> 0 | CF147: - | CG147: - | CH147: ='[10]2019'!P39 -> 0 | CI147: ='[10]2019'!Q39 -> 0 | CJ147: ='[10]2019'!R39 -> 0 | CK147: - | CL147: - | CM147: 0 | CN147: 0 | CO147: 0 | CP147: - | CQ147: - | CR147: 16. Paz, justicia e instituciones sólidas | CS147: Fortalecimiento insitucional | CT147: ='[1]LÍNEA 1'!AQ147 -> Asesor TIC
AO148: =+RESUMEN!J31 -> 0.6922222222 | AP148: TECNOLOGÍA PARA LA INTERACCIÓN CIUDADANA | AQ148: Mantener actualizados 10 grupos de contenidos de información pública en el portal web. | AR148: ='[1]LÍNEA 1'!P148 -> 0 | AS148: Número de grupos de contenidos de información pública en el portal web mantenidos. | AT148: 10 | AU148: ='[1]LÍNEA 1'!S148 -> 10 | AV148: ='[1]LÍNEA 1'!T148 -> 10 | AW148: 0.25 | AX148: ='[1]LÍNEA 1'!U148 -> 10 | AY148: 0.25 | AZ148: ='[1]LÍNEA 1'!V148 -> 10 | BA148: 0.25 | BB148: ='[1]LÍNEA 1'!W148 -> 10 | BC148: 0.25 | BD148: ='[10]2016'!K40 -> 10 | BE148: ='[10]2017'!K40 -> 10 | BF148: ='[10]2018'!K40 -> 10 | BG148: ='[10]2019'!K40 -> 0 | BH148: 1 | BI148: 1 | BJ148: 1 | BK148: 1 | BL148: 1 | BM148: 1 | BN148: 0 | BO148: 0 | BP148: 0.75 | BQ148: 0.75 | BR148: 0.75 | BS148: ='[10]2016'!P40 -> 0 | BT148: ='[10]2016'!Q40 -> 0 | BU148: ='[10]2016'!R40 -> 0 | BV148: - | BW148: - | BX148: ='[10]2017'!P40 -> 0 | BY148: ='[10]2017'!Q40 -> 0 | BZ148: ='[10]2017'!R40 -> 0 | CA148: - | CB148: - | CC148: ='[10]2018'!P40 -> 0 | CD148: ='[10]2018'!Q40 -> 0 | CE148: ='[10]2018'!R40 -> 0 | CF148: - | CG148: - | CH148: ='[10]2019'!P40 -> 17000 | CI148: ='[10]2019'!Q40 -> 0 | CJ148: ='[10]2019'!R40 -> 0 | CK148: 0 | CL148: - | CM148: 17000 | CN148: 0 | CO148: 0 | CP148: 0 | CQ148: - | CR148: 16. Paz, justicia e instituciones sólidas | CS148: Fortalecimiento insitucional | CT148: ='[1]LÍNEA 1'!AQ148 -> Asesor TIC
AQ149: Formular y mantener 2 planes de implementación de Gobierno en Línea de los Institutos Descentralizados y las Instituciones Educativas Oficiales. | AR149: ='[1]LÍNEA 1'!P149 -> 0 | AS149: Número de planes de implementación de Gobierno en Línea formulados e implementados de los institutos descentralizados y las Instituciones Educativas Oficiales. | AT149: 0 | AU149: ='[1]LÍNEA 1'!S149 -> 2 | AV149: ='[1]LÍNEA 1'!T149 -> 0 | AW149: 0 | AX149: ='[1]LÍNEA 1'!U149 -> 2 | AY149: 0.33 | AZ149: ='[1]LÍNEA 1'!V149 -> 2 | BA149: 0.33 | BB149: ='[1]LÍNEA 1'!W149 -> 2 | BC149: 0.34 | BD149: ='[10]2016'!K41 -> 0 | BE149: ='[10]2017'!K41 -> 0.96 | BF149: ='[10]2018'!K41 -> 1 | BG149: ='[10]2019'!K41 -> 0 | BH149: - | BI149: - | BJ149: 0.48 | BK149: 0.48 | BL149: 0.5 | BM149: 0.5 | BN149: 0 | BO149: 0 | BP149: =+AVERAGE(BE149:BG149)/AU149 -> 0.3266666667 | BQ149: 0.3266666667 | BR149: 0.3266666667 | BS149: ='[10]2016'!P41 -> 0 | BT149: ='[10]2016'!Q41 -> 0 | BU149: ='[10]2016'!R41 -> 0 | BV149: - | BW149: - | BX149: ='[10]2017'!P41 -> 0 | BY149: ='[10]2017'!Q41 -> 0 | BZ149: ='[10]2017'!R41 -> 0 | CA149: - | CB149: - | CC149: ='[10]2018'!P41 -> 0 | CD149: ='[10]2018'!Q41 -> 0 | CE149: ='[10]2018'!R41 -> 0 | CF149: - | CG149: - | CH149: ='[10]2019'!P41 -> 17000 | CI149: ='[10]2019'!Q41 -> 0 | CJ149: ='[10]2019'!R41 -> 0 | CK149: 0 | CL149: - | CM149: 17000 | CN149: 0 | CO149: 0 | CP149: 0 | CQ149: - | CR149: 16. Paz, justicia e instituciones sólidas | CS149: Fortalecimiento insitucional | CT149: ='[1]LÍNEA 1'!AQ149 -> Asesor TIC
AQ150: Rediseñar la web de portales web. | AR150: ='[1]LÍNEA 1'!P150 -> - | AS150: Número de portales web rediseñadas. | AT150: 0 | AU150: ='[1]LÍNEA 1'!S150 -> 1 | AV150: ='[1]LÍNEA 1'!T150 -> 1 | AW150: 1 | AX150: ='[1]LÍNEA 1'!U150 -> 0 | AY150: 0 | AZ150: ='[1]LÍNEA 1'!V150 -> 0 | BA150: 0 | BB150: ='[1]LÍNEA 1'!W150 -> 0 | BC150: 0 | BD150: ='[10]2016'!K42 -> 1 | BE150: ='[10]2017'!K42 -> 0 | BF150: ='[10]2018'!K42 -> 0 | BG150: ='[10]2019'!K42 -> 0 | BH150: 1 | BI150: 1 | BJ150: - | BK150: - | BL150: - | BM150: - | BN150: - | BO150: - | BP150: =+SUM(BD150:BG150)/AU150 -> 1 | BQ150: 1 | BR150: 1 | BS150: ='[10]2016'!P42 -> 0 | BT150: ='[10]2016'!Q42 -> 0 | BU150: ='[10]2016'!R42 -> 0 | BV150: - | BW150: - | BX150: ='[10]2017'!P42 -> 0 | BY150: ='[10]2017'!Q42 -> 0 | BZ150: ='[10]2017'!R42 -> 0 | CA150: - | CB150: - | CC150: ='[10]2018'!P42 -> 0 | CD150: ='[10]2018'!Q42 -> 0 | CE150: ='[10]2018'!R42 -> 0 | CF150: - | CG150: - | CH150: ='[10]2019'!P42 -> 0 | CI150: ='[10]2019'!Q42 -> 0 | CJ150: ='[10]2019'!R42 -> 0 | CK150: - | CL150: - | CM150: 0 | CN150: 0 | CO150: 0 | CP150: - | CQ150: - | CR150: 16. Paz, justicia e instituciones sólidas | CS150: Promoción del Desarrollo | CT150: ='[1]LÍNEA 1'!AQ150 -> Asesor TIC
AU151: ='[1]LÍNEA 1'!S151 -> 0 | AV151: ='[1]LÍNEA 1'!T151 -> 0 | AW151: =+AVERAGE(AW137:AW150) -> 0.2267857143 | AX151: ='[1]LÍNEA 1'!U151 -> 0 | AY151: =+AVERAGE(AY137:AY150) -> 0.2451190476 | AZ151: ='[1]LÍNEA 1'!V151 -> 0 | BA151: 0.2636904762 | BB151: ='[1]LÍNEA 1'!W151 -> 0 | BC151: 0.2644047619 | BI151: =+AVERAGE(BI137:BI150) -> 0.9966666667 | BK151: 0.7436363636 | BM151: 0.8846153846 | BO151: 0 | BQ151: =+AVERAGE(BQ137:BQ150) -> 0.7729047619
D152: =+RESUMEN!J32 -> 0.586 | E152: GOBERNANZA URBANA | F152: Disminuir a 1.400 número de quejas presentadas por las obras que se ejecutan. | G152: 1536 | H152: 1400 | I152: =+H152-G152 -> -136 | J152: 1526 | K152: =+J152-G152 -> -10 | M152: 1500 | N152: =+M152-J152 -> -26 | P152: 1450 | Q152: =+P152-M152 -> -50 | S152: 1400 | T152: =+S152-P152 -> -50 | V152: 2705 | W152: =+IF(V152=0,0,V152-G152) -> 1169 | Y152: =+IF(X152=0,0,X152-V152) -> 0 | AA152: =+IF(Z152=0,0,Z152-X152) -> 0 | AC152: =+IF(AB152=0,0,AB152-Z152) -> 0 | AD152: =+IF(K152=0," -",W152/K152) -> -116.9 | AE152: =+IF(K152=0," -",IF(AD152>100%,100%,AD152)) -> -116.9 | AF152: =+IF(N152=0," -",Y152/N152) -> 0 | AG152: =+IF(N152=0," -",IF(AF152>100%,100%,AF152)) -> 0 | AH152: =+IF(Q152=0," -",AA152/Q152) -> 0 | AI152: =+IF(Q152=0," -",IF(AH152>100%,100%,AH152)) -> 0 | AJ152: =+IF(T152=0," -",AC152/T152) -> 0 | AK152: =+IF(T152=0," -",IF(AJ152>100%,100%,AJ152)) -> 0 | AL152: =+SUM(AC152,AA152,Y152,W152)/I152 -> -8.595588235 | AM152: =+IF(AL152>100%,100%,IF(AL152<0%,0%,AL152)) -> 0 | AO152: =+RESUMEN!J33 -> 0.6686111111 | AP152: ORDENAMIENTO TERRITORIAL EN MARHA | AQ152: Realizar visita de control de obra al 100% de las obras licenciadas por los curadores urbanos. | AR152: ='[1]LÍNEA 1'!P152 -> 2210987 | AS152: Porcentaje de la obras licenciadas por los curadores urbanos con control de obra. | AT152: 0.9 | AU152: ='[1]LÍNEA 1'!S152 -> 1 | AV152: ='[1]LÍNEA 1'!T152 -> 1 | AW152: 0.25 | AX152: ='[1]LÍNEA 1'!U152 -> 1 | AY152: 0.25 | AZ152: ='[1]LÍNEA 1'!V152 -> 1 | BA152: 0.25 | BB152: ='[1]LÍNEA 1'!W152 -> 1 | BC152: 0.25 | BD152: ='[6]2016'!K27 -> 0.85 | BE152: ='[6]2017'!K27 -> 0.14 | BF152: ='[6]2018'!K27 -> 0.09 | BG152: ='[6]2019'!K27 -> 0 | BH152: 0.85 | BI152: 0.85 | BJ152: 0.14 | BK152: 0.14 | BL152: 0.09 | BM152: 0.09 | BN152: 0 | BO152: 0 | BP152: 0.27 | BQ152: 0.27 | BR152: 0.27 | BS152: ='[6]2016'!P27 -> 740333 | BT152: ='[6]2016'!Q27 -> 222835 | BU152: ='[6]2016'!R27 -> 0 | BV152: 0.3009929316 | BW152: - | BX152: ='[6]2017'!P27 -> 0 | BY152: ='[6]2017'!Q27 -> 0 | BZ152: ='[6]2017'!R27 -> 0 | CA152: - | CB152: - | CC152: ='[6]2018'!P27 -> 124100 | CD152: ='[6]2018'!Q27 -> 69921 | CE152: ='[6]2018'!R27 -> 0 | CF152: 0.5634246575 | CG152: - | CH152: ='[6]2019'!P27 -> 0 | CI152: ='[6]2019'!Q27 -> 0 | CJ152: ='[6]2019'!R27 -> 0 | CK152: - | CL152: - | CM152: 864433 | CN152: 292756 | CO152: 0 | CP152: 0.3386682369 | CQ152: - | CR152: 16. Paz, justicia e instituciones sólidas | CS152: Fortalecimiento insitucional | CT152: ='[1]LÍNEA 1'!AQ152 -> Sec. Planeación
AQ153: Realizar visita de control de obra al 100% de las obras sin licencia. | AR153: ='[1]LÍNEA 1'!P153 -> 2210987 2210158 | AS153: Porcentaje de obras sin licencia con visita de control de obra. | AT153: 0.7 | AU153: ='[1]LÍNEA 1'!S153 -> 1 | AV153: ='[1]LÍNEA 1'!T153 -> 1 | AW153: 0.25 | AX153: ='[1]LÍNEA 1'!U153 -> 1 | AY153: 0.25 | AZ153: ='[1]LÍNEA 1'!V153 -> 1 | BA153: 0.25 | BB153: ='[1]LÍNEA 1'!W153 -> 1 | BC153: 0.25 | BD153: ='[6]2016'!K28 -> 0.9 | BE153: ='[6]2017'!K28 -> 0.93 | BF153: ='[6]2018'!K28 -> 0.5 | BG153: ='[6]2019'!K28 -> 0 | BH153: 0.9 | BI153: 0.9 | BJ153: 0.93 | BK153: 0.93 | BL153: 0.5 | BM153: 0.5 | BN153: 0 | BO153: 0 | BP153: 0.5825 | BQ153: 0.5825 | BR153: 0.5825 | BS153: ='[6]2016'!P28 -> 740333 | BT153: ='[6]2016'!Q28 -> 222835 | BU153: ='[6]2016'!R28 -> 0 | BV153: 0.3009929316 | BW153: - | BX153: ='[6]2017'!P28 -> 462325 | BY153: ='[6]2017'!Q28 -> 442180 | BZ153: ='[6]2017'!R28 -> 0 | CA153: 0.9564267561 | CB153: - | CC153: ='[6]2018'!P28 -> 124000 | CD153: ='[6]2018'!Q28 -> 69921 | CE153: ='[6]2018'!R28 -> 0 | CF153: 0.5638790323 | CG153: - | CH153: ='[6]2019'!P28 -> 0 | CI153: ='[6]2019'!Q28 -> 0 | CJ153: ='[6]2019'!R28 -> 0 | CK153: - | CL153: - | CM153: 1326658 | CN153: 734936 | CO153: 0 | CP153: 0.5539754782 | CQ153: - | CR153: 16. Paz, justicia e instituciones sólidas | CS153: Fortalecimiento insitucional | CT153: ='[1]LÍNEA 1'!AQ153 -> Sec. Planeación
AQ154: Realizar visita de control de obra al 100% de las obras que presenten queja o solicitud. | AR154: ='[1]LÍNEA 1'!P154 -> 2210987 2210158 | AS154: Porcentaje de obras con visita de control de obra por queja o solicitud. | AT154: 0.7 | AU154: ='[1]LÍNEA 1'!S154 -> 1 | AV154: ='[1]LÍNEA 1'!T154 -> 1 | AW154: 0.25 | AX154: ='[1]LÍNEA 1'!U154 -> 1 | AY154: 0.25 | AZ154: ='[1]LÍNEA 1'!V154 -> 1 | BA154: 0.25 | BB154: ='[1]LÍNEA 1'!W154 -> 1 | BC154: 0.25 | BD154: ='[6]2016'!K29 -> 0.95 | BE154: ='[6]2017'!K29 -> 0.93 | BF154: ='[6]2018'!K29 -> 0.78 | BG154: ='[6]2019'!K29 -> 0 | BH154: 0.95 | BI154: 0.95 | BJ154: 0.93 | BK154: 0.93 | BL154: 0.78 | BM154: 0.78 | BN154: 0 | BO154: 0 | BP154: 0.665 | BQ154: 0.665 | BR154: 0.665 | BS154: ='[6]2016'!P29 -> 740333 | BT154: ='[6]2016'!Q29 -> 222835 | BU154: ='[6]2016'!R29 -> 0 | BV154: 0.3009929316 | BW154: - | BX154: ='[6]2017'!P29 -> 462325 | BY154: ='[6]2017'!Q29 -> 442180 | BZ154: ='[6]2017'!R29 -> 0 | CA154: 0.9564267561 | CB154: - | CC154: ='[6]2018'!P29 -> 124000 | CD154: ='[6]2018'!Q29 -> 69921 | CE154: ='[6]2018'!R29 -> 0 | CF154: 0.5638790323 | CG154: - | CH154: ='[6]2019'!P29 -> 0 | CI154: ='[6]2019'!Q29 -> 0 | CJ154: ='[6]2019'!R29 -> 0 | CK154: - | CL154: - | CM154: 1326658 | CN154: 734936 | CO154: 0 | CP154: 0.5539754782 | CQ154: - | CR154: 16. Paz, justicia e instituciones sólidas | CS154: Fortalecimiento insitucional | CT154: ='[1]LÍNEA 1'!AQ154 -> Sec. Planeación
AQ155: Elaborar 1 documento guía para la aplicación de los elementos relevantes del POT. | AR155: ='[1]LÍNEA 1'!P155 -> 2210906 | AS155: Número de documentos guías elaborados para la aplicación de los elementos relevantes del POT. | AT155: 0 | AU155: ='[1]LÍNEA 1'!S155 -> 1 | AV155: ='[1]LÍNEA 1'!T155 -> 0 | AW155: 0 | AX155: ='[1]LÍNEA 1'!U155 -> 1 | AY155: 1 | AZ155: ='[1]LÍNEA 1'!V155 -> 0 | BA155: 0 | BB155: ='[1]LÍNEA 1'!W155 -> 0 | BC155: 0 | BD155: ='[6]2016'!K30 -> 0 | BE155: ='[6]2017'!K30 -> 1 | BF155: ='[6]2018'!K30 -> 0 | BG155: ='[6]2019'!K30 -> 0 | BH155: - | BI155: - | BJ155: 1 | BK155: 1 | BL155: - | BM155: - | BN155: - | BO155: - | BP155: =+SUM(BD155:BG155)/AU155 -> 1 | BQ155: 1 | BR155: 1 | BS155: ='[6]2016'!P30 -> 0 | BT155: ='[6]2016'!Q30 -> 0 | BU155: ='[6]2016'!R30 -> 0 | BV155: - | BW155: - | BX155: ='[6]2017'!P30 -> 0 | BY155: ='[6]2017'!Q30 -> 0 | BZ155: ='[6]2017'!R30 -> 0 | CA155: - | CB155: - | CC155: ='[6]2018'!P30 -> 0 | CD155: ='[6]2018'!Q30 -> 0 | CE155: ='[6]2018'!R30 -> 0 | CF155: - | CG155: - | CH155: ='[6]2019'!P30 -> 0 | CI155: ='[6]2019'!Q30 -> 0 | CJ155: ='[6]2019'!R30 -> 0 | CK155: - | CL155: - | CM155: 0 | CN155: 0 | CO155: 0 | CP155: - | CQ155: - | CR155: 16. Paz, justicia e instituciones sólidas | CS155: Promoción del Desarrollo | CT155: ='[1]LÍNEA 1'!AQ155 -> Sec. Planeación
AQ156: Desarrollar el plug-in para el POT on-line. | AR156: ='[1]LÍNEA 1'!P156 -> 2210158 | AS156: Número de plugs-in para el POT on-line desarrollados. | AT156: 0 | AU156: ='[1]LÍNEA 1'!S156 -> 1 | AV156: ='[1]LÍNEA 1'!T156 -> 1 | AW156: 1 | AX156: ='[1]LÍNEA 1'!U156 -> 0 | AY156: 0 | AZ156: ='[1]LÍNEA 1'!V156 -> 0 | BA156: 0 | BB156: ='[1]LÍNEA 1'!W156 -> 0 | BC156: 0 | BD156: ='[6]2016'!K31 -> 1 | BE156: ='[6]2017'!K31 -> 1 | BF156: ='[6]2018'!K31 -> 0 | BG156: ='[6]2019'!K31 -> 0 | BH156: 1 | BI156: 1 | BJ156: - | BK156: - | BL156: - | BM156: - | BN156: - | BO156: - | BP156: 2 | BQ156: 1 | BR156: 1 | BS156: ='[6]2016'!P31 -> 0 | BT156: ='[6]2016'!Q31 -> 0 | BU156: ='[6]2016'!R31 -> 0 | BV156: - | BW156: - | BX156: ='[6]2017'!P31 -> 44000 | BY156: ='[6]2017'!Q31 -> 44000 | BZ156: ='[6]2017'!R31 -> 0 | CA156: 1 | CB156: - | CC156: ='[6]2018'!P31 -> 0 | CD156: ='[6]2018'!Q31 -> 0 | CE156: ='[6]2018'!R31 -> 0 | CF156: - | CG156: - | CH156: ='[6]2019'!P31 -> 0 | CI156: ='[6]2019'!Q31 -> 0 | CJ156: ='[6]2019'!R31 -> 0 | CK156: - | CL156: - | CM156: 44000 | CN156: 44000 | CO156: 0 | CP156: 1 | CQ156: - | CR156: 16. Paz, justicia e instituciones sólidas | CS156: Promoción del Desarrollo | CT156: ='[1]LÍNEA 1'!AQ156 -> Sec. Planeación
AQ157: Realizar 1 estudio para aplicar la plusvalía en el municipio. | AR157: ='[1]LÍNEA 1'!P157 -> 2210158 | AS157: Porcentaje de avance en la realización del estudio para aplicar la plusvalía en el municipio. | AT157: 0 | AU157: ='[1]LÍNEA 1'!S157 -> 1 | AV157: ='[1]LÍNEA 1'!T157 -> 0 | AW157: 0 | AX157: ='[1]LÍNEA 1'!U157 -> 1 | AY157: 1 | AZ157: ='[1]LÍNEA 1'!V157 -> 0 | BA157: 0 | BB157: ='[1]LÍNEA 1'!W157 -> 0 | BC157: 0 | BD157: ='[6]2016'!K32 -> 0 | BE157: ='[6]2017'!K32 -> 0.8 | BF157: ='[6]2018'!K32 -> 0.05 | BG157: ='[6]2019'!K32 -> 0 | BH157: - | BI157: - | BJ157: 0.8 | BK157: 0.8 | BL157: - | BM157: - | BN157: - | BO157: - | BP157: 0.85 | BQ157: 0.85 | BR157: 0.85 | BS157: ='[6]2016'!P32 -> 0 | BT157: ='[6]2016'!Q32 -> 0 | BU157: ='[6]2016'!R32 -> 0 | BV157: - | BW157: - | BX157: ='[6]2017'!P32 -> 62000 | BY157: ='[6]2017'!Q32 -> 61999 | BZ157: ='[6]2017'!R32 -> 0 | CA157: 0.999983871 | CB157: - | CC157: ='[6]2018'!P32 -> 0 | CD157: ='[6]2018'!Q32 -> 0 | CE157: ='[6]2018'!R32 -> 0 | CF157: - | CG157: - | CH157: ='[6]2019'!P32 -> 0 | CI157: ='[6]2019'!Q32 -> 0 | CJ157: ='[6]2019'!R32 -> 0 | CK157: - | CL157: - | CM157: 62000 | CN157: 61999 | CO157: 0 | CP157: 0.999983871 | CQ157: - | CR157: 16. Paz, justicia e instituciones sólidas | CS157: Promoción del Desarrollo | CT157: ='[1]LÍNEA 1'!AQ157 -> Sec. Planeación
F158: Lograr 10.000 M2 de espacio público efectivo por aportes de deberes urbanísticos. | G158: 0 | H158: 10000 | I158: =+H158-G158 -> 10000 | J158: 2500 | K158: =+J158-G158 -> 2500 | M158: 5000 | N158: =+M158-J158 -> 2500 | P158: 7500 | Q158: =+P158-M158 -> 2500 | S158: 10000 | T158: =+S158-P158 -> 2500 | V158: 8510 | W158: =+IF(V158=0,0,V158-G158) -> 8510 | Y158: =+IF(X158=0,0,X158-V158) -> 0 | AA158: =+IF(Z158=0,0,Z158-X158) -> 0 | AC158: =+IF(AB158=0,0,AB158-Z158) -> 0 | AD158: =+IF(K158=0," -",W158/K158) -> 3.404 | AE158: =+IF(K158=0," -",IF(AD158>100%,100%,AD158)) -> 1 | AF158: =+IF(N158=0," -",Y158/N158) -> 0 | AG158: =+IF(N158=0," -",IF(AF158>100%,100%,AF158)) -> 0 | AH158: =+IF(Q158=0," -",AA158/Q158) -> 0 | AI158: =+IF(Q158=0," -",IF(AH158>100%,100%,AH158)) -> 0 | AJ158: =+IF(T158=0," -",AC158/T158) -> 0 | AK158: =+IF(T158=0," -",IF(AJ158>100%,100%,AJ158)) -> 0 | AL158: =+SUM(AC158,AA158,Y158,W158)/I158 -> 0.851 | AM158: =+IF(AL158>100%,100%,IF(AL158<0%,0%,AL158)) -> 0.851 | AQ158: Realizar 1 estudios de estructuración zonal. | AR158: ='[1]LÍNEA 1'!P158 -> 2210158 | AS158: Porcentaje de avance en la realización del estudio de estructuración zonal. | AT158: 0 | AU158: ='[1]LÍNEA 1'!S158 -> 1 | AV158: ='[1]LÍNEA 1'!T158 -> 0 | AW158: 0 | AX158: ='[1]LÍNEA 1'!U158 -> 0.6 | AY158: 0.6 | AZ158: ='[1]LÍNEA 1'!V158 -> 0.4 | BA158: 0.4 | BB158: ='[1]LÍNEA 1'!W158 -> 0 | BC158: 0 | BD158: ='[6]2016'!K33 -> 0 | BE158: ='[6]2017'!K33 -> 0.6 | BF158: ='[6]2018'!K33 -> 0.3 | BG158: ='[6]2019'!K33 -> 0 | BH158: - | BI158: - | BJ158: 1 | BK158: 1 | BL158: 0.75 | BM158: 0.75 | BN158: - | BO158: - | BP158: 0.9 | BQ158: 0.9 | BR158: 0.9 | BS158: ='[6]2016'!P33 -> 0 | BT158: ='[6]2016'!Q33 -> 0 | BU158: ='[6]2016'!R33 -> 0 | BV158: - | BW158: - | BX158: ='[6]2017'!P33 -> 0 | BY158: ='[6]2017'!Q33 -> 0 | BZ158: ='[6]2017'!R33 -> 0 | CA158: - | CB158: - | CC158: ='[6]2018'!P33 -> 0 | CD158: ='[6]2018'!Q33 -> 0 | CE158: ='[6]2018'!R33 -> 0 | CF158: - | CG158: - | CH158: ='[6]2019'!P33 -> 0 | CI158: ='[6]2019'!Q33 -> 0 | CJ158: ='[6]2019'!R33 -> 0 | CK158: - | CL158: - | CM158: 0 | CN158: 0 | CO158: 0 | CP158: - | CQ158: - | CR158: 16. Paz, justicia e instituciones sólidas | CS158: Promoción del Desarrollo | CT158: ='[1]LÍNEA 1'!AQ158 -> Sec. Planeación
AQ159: Mantener actualizado el expediente municipal. | AR159: ='[1]LÍNEA 1'!P159 -> 2210158 | AS159: Número de expedientes municipales actualizados. | AT159: 1 | AU159: ='[1]LÍNEA 1'!S159 -> 1 | AV159: ='[1]LÍNEA 1'!T159 -> 1 | AW159: 0.25 | AX159: ='[1]LÍNEA 1'!U159 -> 1 | AY159: 0.25 | AZ159: ='[1]LÍNEA 1'!V159 -> 1 | BA159: 0.25 | BB159: ='[1]LÍNEA 1'!W159 -> 1 | BC159: 0.25 | BD159: ='[6]2016'!K34 -> 1 | BE159: ='[6]2017'!K34 -> 1 | BF159: ='[6]2018'!K34 -> 1 | BG159: ='[6]2019'!K34 -> 0 | BH159: 1 | BI159: 1 | BJ159: 1 | BK159: 1 | BL159: 1 | BM159: 1 | BN159: 0 | BO159: 0 | BP159: 0.75 | BQ159: 0.75 | BR159: 0.75 | BS159: ='[6]2016'!P34 -> 32500 | BT159: ='[6]2016'!Q34 -> 32500 | BU159: ='[6]2016'!R34 -> 0 | BV159: 1 | BW159: - | BX159: ='[6]2017'!P34 -> 241000 | BY159: ='[6]2017'!Q34 -> 241000 | BZ159: ='[6]2017'!R34 -> 0 | CA159: 1 | CB159: - | CC159: ='[6]2018'!P34 -> 304500 | CD159: ='[6]2018'!Q34 -> 162000 | CE159: ='[6]2018'!R34 -> 0 | CF159: 0.5320197044 | CG159: - | CH159: ='[6]2019'!P34 -> 0 | CI159: ='[6]2019'!Q34 -> 0 | CJ159: ='[6]2019'!R34 -> 0 | CK159: - | CL159: - | CM159: 578000 | CN159: 435500 | CO159: 0 | CP159: 0.7534602076 | CQ159: - | CR159: 16. Paz, justicia e instituciones sólidas | CS159: Promoción del Desarrollo | CT159: ='[1]LÍNEA 1'!AQ159 -> Sec. Planeación
AQ160: Actualizar la lista indicativa de Bienes de Interés Cultural - BIC. | AR160: ='[1]LÍNEA 1'!P160 -> - | AS160: Número de listas indicativas de bienes de interés cultural actualizadas. | AT160: 1 | AU160: ='[1]LÍNEA 1'!S160 -> 1 | AV160: ='[1]LÍNEA 1'!T160 -> 0 | AW160: 0 | AX160: ='[1]LÍNEA 1'!U160 -> 0 | AY160: 0 | AZ160: ='[1]LÍNEA 1'!V160 -> 0 | BA160: 0 | BB160: ='[1]LÍNEA 1'!W160 -> 1 | BC160: 1 | BD160: ='[6]2016'!K35 -> 0 | BE160: ='[6]2017'!K35 -> 0 | BF160: ='[6]2018'!K35 -> 0 | BG160: ='[6]2019'!K35 -> 0 | BH160: - | BI160: - | BJ160: - | BK160: - | BL160: - | BM160: - | BN160: 0 | BO160: 0 | BP160: =+SUM(BD160:BG160)/AU160 -> 0 | BQ160: 0 | BR160: 0 | BS160: ='[6]2016'!P35 -> 0 | BT160: ='[6]2016'!Q35 -> 0 | BU160: ='[6]2016'!R35 -> 0 | BV160: - | BW160: - | BX160: ='[6]2017'!P35 -> 0 | BY160: ='[6]2017'!Q35 -> 0 | BZ160: ='[6]2017'!R35 -> 0 | CA160: - | CB160: - | CC160: ='[6]2018'!P35 -> 0 | CD160: ='[6]2018'!Q35 -> 0 | CE160: ='[6]2018'!R35 -> 0 | CF160: - | CG160: - | CH160: ='[6]2019'!P35 -> 0 | CI160: ='[6]2019'!Q35 -> 0 | CJ160: ='[6]2019'!R35 -> 0 | CK160: - | CL160: - | CM160: 0 | CN160: 0 | CO160: 0 | CP160: - | CQ160: - | CR160: 16. Paz, justicia e instituciones sólidas | CS160: Promoción del Desarrollo | CT160: ='[1]LÍNEA 1'!AQ160 -> Sec. Planeación
AO161: =+RESUMEN!J34 -> 0.5416666667 | AP161: DISEÑO URBANO INTELIGENTE Y SUSTENTABLE | AQ161: Conformar y mantener el equipo de diseño del taller de arquitectura. | AR161: ='[1]LÍNEA 1'!P161 -> 2210269 | AS161: Número de equipos de diseño del taller de arquitectura conformados y mantenidos. | AT161: 0 | AU161: ='[1]LÍNEA 1'!S161 -> 1 | AV161: ='[1]LÍNEA 1'!T161 -> 1 | AW161: 0.25 | AX161: ='[1]LÍNEA 1'!U161 -> 1 | AY161: 0.25 | AZ161: ='[1]LÍNEA 1'!V161 -> 1 | BA161: 0.25 | BB161: ='[1]LÍNEA 1'!W161 -> 1 | BC161: 0.25 | BD161: ='[6]2016'!K36 -> 1 | BE161: ='[7]2017'!K18 -> 1 | BF161: ='[7]2018'!K18 -> 1 | BG161: ='[7]2019'!K18 -> 0 | BH161: 1 | BI161: 1 | BJ161: 1 | BK161: 1 | BL161: 1 | BM161: 1 | BN161: 0 | BO161: 0 | BP161: 0.75 | BQ161: 0.75 | BR161: 0.75 | BS161: ='[6]2016'!P36 -> 1000000 | BT161: ='[6]2016'!Q36 -> 241300 | BU161: ='[6]2016'!R36 -> 0 | BV161: 0.2413 | BW161: - | BX161: ='[7]2017'!P18 -> 700156 | BY161: ='[7]2017'!Q18 -> 670807 | BZ161: ='[7]2017'!R18 -> 0 | CA161: 0.9580821988 | CB161: - | CC161: ='[7]2018'!P18 -> 461880 | CD161: ='[7]2018'!Q18 -> 461880 | CE161: ='[7]2018'!R18 -> 0 | CF161: 1 | CG161: - | CH161: ='[7]2019'!P18 -> 400000 | CI161: ='[7]2019'!Q18 -> 0 | CJ161: ='[7]2019'!R18 -> 0 | CK161: 0 | CL161: - | CM161: 2562036 | CN161: 1373987 | CO161: 0 | CP161: 0.536287156 | CQ161: - | CR161: 16. Paz, justicia e instituciones sólidas | CS161: Promoción del Desarrollo | CT161: ='[1]LÍNEA 1'!AQ161 -> Sec. Infraestructura
AQ162: Realizar 150 propuestas para proyectos básicos que contengan los lineamientos de diseño urbano. | AR162: ='[1]LÍNEA 1'!P162 -> 2210905 | AS162: Número de propuestas para proyectos básicos realizados que contengan los lineamientos de diseño urbano. | AT162: 0 | AU162: ='[1]LÍNEA 1'!S162 -> 150 | AV162: ='[1]LÍNEA 1'!T162 -> 15 | AW162: 0.1 | AX162: ='[1]LÍNEA 1'!U162 -> 60 | AY162: 0.4 | AZ162: ='[1]LÍNEA 1'!V162 -> 50 | BA162: 0.3333333333 | BB162: ='[1]LÍNEA 1'!W162 -> 25 | BC162: 0.1666666667 | BD162: ='[6]2016'!K37 -> 15 | BE162: ='[7]2017'!K19 -> 35 | BF162: ='[7]2018'!K19 -> 0 | BG162: ='[7]2019'!K19 -> 0 | BH162: 1 | BI162: 1 | BJ162: 0.5833333333 | BK162: 0.5833333333 | BL162: 0 | BM162: 0 | BN162: 0 | BO162: 0 | BP162: =+SUM(BD162:BG162)/AU162 -> 0.3333333333 | BQ162: 0.3333333333 | BR162: 0.3333333333 | BS162: ='[6]2016'!P37 -> 0 | BT162: ='[6]2016'!Q37 -> 0 | BU162: ='[6]2016'!R37 -> 0 | BV162: - | BW162: - | BX162: ='[7]2017'!P19 -> 0 | BY162: ='[7]2017'!Q19 -> 0 | BZ162: ='[7]2017'!R19 -> 0 | CA162: - | CB162: - | CC162: ='[7]2018'!P19 -> 200000 | CD162: ='[7]2018'!Q19 -> 0 | CE162: ='[7]2018'!R19 -> 0 | CF162: 0 | CG162: - | CH162: ='[7]2019'!P19 -> 0 | CI162: ='[7]2019'!Q19 -> 0 | CJ162: ='[7]2019'!R19 -> 0 | CK162: - | CL162: - | CM162: 200000 | CN162: 0 | CO162: 0 | CP162: 0 | CQ162: - | CR162: 11. Ciudades y comunidades sostenibles | CS162: Promoción del Desarrollo | CT162: ='[1]LÍNEA 1'!AQ162 -> Sec. Infraestructura
AO163: =+RESUMEN!J35 -> 0.7625 | AP163: UNA CIUDAD QUE HACE Y EJECUTA PLANES | AQ163: Estructurar 1 Plan Integral Zonal - PIZ. | AR163: ='[1]LÍNEA 1'!P163 -> 2210158 | AS163: Porcentaje de avance de la estructuración del Plan Integral Zonal - PIZ. | AT163: 0 | AU163: ='[1]LÍNEA 1'!S163 -> 1 | AV163: ='[1]LÍNEA 1'!T163 -> 0 | AW163: 0 | AX163: ='[1]LÍNEA 1'!U163 -> 1 | AY163: 1 | AZ163: ='[1]LÍNEA 1'!V163 -> 0 | BA163: 0 | BB163: ='[1]LÍNEA 1'!W163 -> 0 | BC163: 0 | BD163: ='[6]2016'!K38 -> 0 | BE163: ='[6]2017'!K36 -> 0.9 | BF163: ='[6]2018'!K36 -> 0.1 | BG163: ='[6]2019'!K36 -> 0 | BH163: - | BI163: - | BJ163: 0.9 | BK163: 0.9 | BL163: - | BM163: - | BN163: - | BO163: - | BP163: 1 | BQ163: 1 | BR163: 1 | BS163: ='[6]2016'!P38 -> 0 | BT163: ='[6]2016'!Q38 -> 0 | BU163: ='[6]2016'!R38 -> 0 | BV163: - | BW163: - | BX163: ='[6]2017'!P36 -> 1035842 | BY163: ='[6]2017'!Q36 -> 1035842 | BZ163: ='[6]2017'!R36 -> 259672 | CA163: 1 | CB163: 0.2506868808 | CC163: ='[6]2018'!P36 -> 0 | CD163: ='[6]2018'!Q36 -> 0 | CE163: ='[6]2018'!R36 -> 0 | CF163: - | CG163: - | CH163: ='[6]2019'!P36 -> 0 | CI163: ='[6]2019'!Q36 -> 0 | CJ163: ='[6]2019'!R36 -> 0 | CK163: - | CL163: - | CM163: 1035842 | CN163: 1035842 | CO163: 259672 | CP163: 1 | CQ163: 0.2506868808 | CR163: 11. Ciudades y comunidades sostenibles | CS163: Promoción del Desarrollo | CT163: ='[1]LÍNEA 1'!AQ163 -> Sec. Planeación
F164: Lograr la evaluación del 100% del modelo territorial planteado en el Plan de Ordenamiento Territorial - POT. | G164: 0.3 | H164: 1 | I164: =+H164-G164 -> 0.7 | J164: 0.3 | K164: =+J164-G164 -> 0 | M164: 0.6 | N164: =+M164-J164 -> 0.3 | P164: 0.9 | Q164: =+P164-M164 -> 0.3 | S164: 1 | T164: =+S164-P164 -> 0.1 | V164: 0.9 | W164: =+IF(V164=0,0,V164-G164) -> 0.6 | Y164: =+IF(X164=0,0,X164-V164) -> 0 | AA164: =+IF(Z164=0,0,Z164-X164) -> 0 | AC164: =+IF(AB164=0,0,AB164-Z164) -> 0 | AD164: =+IF(K164=0," -",W164/K164) -> - | AE164: =+IF(K164=0," -",IF(AD164>100%,100%,AD164)) -> - | AF164: =+IF(N164=0," -",Y164/N164) -> 0 | AG164: =+IF(N164=0," -",IF(AF164>100%,100%,AF164)) -> 0 | AH164: =+IF(Q164=0," -",AA164/Q164) -> 0 | AI164: =+IF(Q164=0," -",IF(AH164>100%,100%,AH164)) -> 0 | AJ164: =+IF(T164=0," -",AC164/T164) -> 0 | AK164: =+IF(T164=0," -",IF(AJ164>100%,100%,AJ164)) -> 0 | AL164: =+SUM(AC164,AA164,Y164,W164)/I164 -> 0.8571428571 | AM164: =+IF(AL164>100%,100%,IF(AL164<0%,0%,AL164)) -> 0.8571428571 | AQ164: Ejecutar 1 Plan Integral Zonal. | AR164: ='[1]LÍNEA 1'!P164 -> 2210158 | AS164: Porcentaje de avance en la ejecución del Plan Integral Zonal - PIZ. | AT164: 0 | AU164: ='[1]LÍNEA 1'!S164 -> 1 | AV164: ='[1]LÍNEA 1'!T164 -> 0 | AW164: 0 | AX164: ='[1]LÍNEA 1'!U164 -> 0 | AY164: 0 | AZ164: ='[1]LÍNEA 1'!V164 -> 0.25 | BA164: 0.25 | BB164: ='[1]LÍNEA 1'!W164 -> 0.75 | BC164: 0.75 | BD164: ='[6]2016'!K39 -> 0 | BE164: ='[6]2017'!K37 -> 0 | BF164: ='[6]2018'!K37 -> 0 | BG164: ='[6]2019'!K37 -> 0 | BH164: - | BI164: - | BJ164: - | BK164: - | BL164: 0 | BM164: 0 | BN164: 0 | BO164: 0 | BP164: 0 | BQ164: 0 | BR164: 0 | BS164: ='[6]2016'!P39 -> 0 | BT164: ='[6]2016'!Q39 -> 0 | BU164: ='[6]2016'!R39 -> 0 | BV164: - | BW164: - | BX164: ='[6]2017'!P37 -> 0 | BY164: ='[6]2017'!Q37 -> 0 | BZ164: ='[6]2017'!R37 -> 0 | CA164: - | CB164: - | CC164: ='[6]2018'!P37 -> 0 | CD164: ='[6]2018'!Q37 -> 0 | CE164: ='[6]2018'!R37 -> 0 | CF164: - | CG164: - | CH164: ='[6]2019'!P37 -> 100000 | CI164: ='[6]2019'!Q37 -> 0 | CJ164: ='[6]2019'!R37 -> 0 | CK164: 0 | CL164: - | CM164: 100000 | CN164: 0 | CO164: 0 | CP164: 0 | CQ164: - | CR164: 11. Ciudades y comunidades sostenibles | CS164: Promoción del Desarrollo | CT164: ='[1]LÍNEA 1'!AQ164 -> Sec. Planeación
AQ165: Realizar 1 estudio que contenga los lineamientos y directrices generales del gran bosque de los cerros orientales de escala metropolitana. | AR165: ='[1]LÍNEA 1'!P165 -> 2210270 | AS165: Porcentaje de avance de la realización del estudio que contenga los lineamientos y directrices generales del gran bosque de los cerros orientales de escala metropolitana. | AT165: 0 | AU165: ='[1]LÍNEA 1'!S165 -> 1 | AV165: ='[1]LÍNEA 1'!T165 -> 0 | AW165: 0 | AX165: ='[1]LÍNEA 1'!U165 -> 1 | AY165: 1 | AZ165: ='[1]LÍNEA 1'!V165 -> 0 | BA165: 0 | BB165: ='[1]LÍNEA 1'!W165 -> 0 | BC165: 0 | BD165: ='[6]2016'!$K$40 -> 0 | BE165: ='[7]2017'!$K$20 -> 1 | BF165: ='[7]2018'!$K$20 -> 0 | BG165: ='[7]2019'!$K$20 -> 0 | BH165: - | BI165: - | BJ165: 1 | BK165: 1 | BL165: - | BM165: - | BN165: - | BO165: - | BP165: 1 | BQ165: 1 | BR165: 1 | BS165: ='[6]2016'!P40 -> 0 | BT165: ='[6]2016'!Q40 -> 0 | BU165: ='[6]2016'!R40 -> 0 | BV165: - | BW165: - | BX165: ='[7]2017'!P20 -> 0 | BY165: ='[7]2017'!Q20 -> 0 | BZ165: ='[7]2017'!R20 -> 0 | CA165: - | CB165: - | CC165: ='[7]2018'!P20 -> 0 | CD165: ='[7]2018'!Q20 -> 0 | CE165: ='[7]2018'!R20 -> 0 | CF165: - | CG165: - | CH165: ='[7]2019'!P20 -> 0 | CI165: ='[7]2019'!Q20 -> 0 | CJ165: ='[7]2019'!R20 -> 0 | CK165: - | CL165: - | CM165: 0 | CN165: 0 | CO165: 0 | CP165: - | CQ165: - | CR165: 11. Ciudades y comunidades sostenibles | CS165: Equipamiento | CT165: ='[1]LÍNEA 1'!AQ165 -> Sec. Infraestructura
AQ166: Formular el Plan Maestro de Espacio Público. | AR166: ='[1]LÍNEA 1'!P166 -> 2210158 | AS166: Porcentaje de avance de la formulación del Plan Maestro de Espacio Público. | AT166: 0 | AU166: ='[1]LÍNEA 1'!S166 -> 1 | AV166: ='[1]LÍNEA 1'!T166 -> 0 | AW166: 0 | AX166: ='[1]LÍNEA 1'!U166 -> 1 | AY166: 1 | AZ166: ='[1]LÍNEA 1'!V166 -> 0 | BA166: 0 | BB166: ='[1]LÍNEA 1'!W166 -> 0 | BC166: 0 | BD166: ='[6]2016'!$K$41 -> 0 | BE166: ='[6]2017'!$K$38 -> 0.95 | BF166: ='[6]2018'!$K$38 -> 0.05 | BG166: ='[6]2019'!$K$38 -> 0 | BH166: - | BI166: - | BJ166: 0.95 | BK166: 0.95 | BL166: - | BM166: - | BN166: - | BO166: - | BP166: 1 | BQ166: 1 | BR166: 1 | BS166: ='[6]2016'!P41 -> 0 | BT166: ='[6]2016'!Q41 -> 0 | BU166: ='[6]2016'!R41 -> 0 | BV166: - | BW166: - | BX166: ='[6]2017'!P38 -> 1014000 | BY166: ='[6]2017'!Q38 -> 1014000 | BZ166: ='[6]2017'!R38 -> 243800 | CA166: 1 | CB166: 0.240433925 | CC166: ='[6]2018'!P38 -> 0 | CD166: ='[6]2018'!Q38 -> 0 | CE166: ='[6]2018'!R38 -> 0 | CF166: - | CG166: - | CH166: ='[6]2019'!P38 -> 0 | CI166: ='[6]2019'!Q38 -> 0 | CJ166: ='[6]2019'!R38 -> 0 | CK166: - | CL166: - | CM166: 1014000 | CN166: 1014000 | CO166: 243800 | CP166: 1 | CQ166: 0.240433925 | CR166: 11. Ciudades y comunidades sostenibles | CS166: Promoción del Desarrollo | CT166: ='[1]LÍNEA 1'!AQ166 -> Sec. Planeación
AQ167: Realizar el 100% de los diseños, estudios, consultorías e interventorías para ejecutar los proyectos y las obras del Plan de Desarrollo 2016 - 2019 y otros planes de ciudad. | AR167: ='[1]LÍNEA 1'!P167 -> 2210271 | AS167: Porcentaje de diseños, estudios, consultorías e interventorias realizadas para para ejecutar los proyectos y las obras del Plan de Desarrollo 2016 - 2019 y otros planes de ciudad. | AT167: 1 | AU167: ='[1]LÍNEA 1'!S167 -> 1 | AV167: ='[1]LÍNEA 1'!T167 -> 1 | AW167: 0.25 | AX167: ='[1]LÍNEA 1'!U167 -> 1 | AY167: 0.25 | AZ167: ='[1]LÍNEA 1'!V167 -> 1 | BA167: 0.25 | BB167: ='[1]LÍNEA 1'!W167 -> 1 | BC167: 0.25 | BD167: ='[7]2016'!$K$19 -> 1 | BE167: ='[7]2017'!$K$21 -> 1 | BF167: ='[7]2018'!$K$21 -> 1 | BG167: ='[7]2019'!$K$21 -> 0 | BH167: 1 | BI167: 1 | BJ167: 1 | BK167: 1 | BL167: 1 | BM167: 1 | BN167: 0 | BO167: 0 | BP167: 0.75 | BQ167: 0.75 | BR167: 0.75 | BS167: ='[7]2016'!P19 -> 385956 | BT167: ='[7]2016'!Q19 -> 302350 | BU167: ='[7]2016'!R19 -> 0 | BV167: 0.7833794526 | BW167: - | BX167: ='[7]2017'!P21 -> 3874264 | BY167: ='[7]2017'!Q21 -> 3859550 | BZ167: ='[7]2017'!R21 -> 0 | CA167: 0.9962021174 | CB167: - | CC167: ='[7]2018'!P21 -> 2839655 | CD167: ='[7]2018'!Q21 -> 1242467 | CE167: ='[7]2018'!R21 -> 0 | CF167: 0.4375415323 | CG167: - | CH167: ='[7]2019'!P21 -> 0 | CI167: ='[7]2019'!Q21 -> 0 | CJ167: ='[7]2019'!R21 -> 0 | CK167: - | CL167: - | CM167: 7099875 | CN167: 5404367 | CO167: 0 | CP167: 0.761191852 | CQ167: - | CR167: 16. Paz, justicia e instituciones sólidas | CS167: Promoción del Desarrollo | CT167: ='[1]LÍNEA 1'!AQ167 -> Sec. Infraestructura
AQ168: Ajustar el Plan Local de Seguridad Vial. | AR168: ='[1]LÍNEA 1'!P168 -> - | AS168: Número de ajustes al Plan Local de Seguridad Vial realizados. | AT168: 1 | AU168: ='[1]LÍNEA 1'!S168 -> 1 | AV168: ='[1]LÍNEA 1'!T168 -> 1 | AW168: 1 | AX168: ='[1]LÍNEA 1'!U168 -> 0 | AY168: 0 | AZ168: ='[1]LÍNEA 1'!V168 -> 0 | BA168: 0 | BB168: ='[1]LÍNEA 1'!W168 -> 0 | BC168: 0 | BD168: ='[16]2016'!$K$14 -> 1 | BE168: ='[16]2017'!$K$14 -> 0 | BF168: ='[16]2018'!$K$14 -> - | BG168: ='[16]2019'!$K$14 -> 0 | BH168: 1 | BI168: 1 | BJ168: - | BK168: - | BL168: - | BM168: - | BN168: - | BO168: - | BP168: =+SUM(BD168:BG168)/AU168 -> 1 | BQ168: 1 | BR168: 1 | BS168: ='[16]2016'!P14 -> 0 | BT168: ='[16]2016'!Q14 -> 0 | BU168: ='[16]2016'!R14 -> 0 | BV168: - | BW168: - | BX168: ='[16]2017'!P14 -> 0 | BY168: ='[16]2017'!Q14 -> 0 | BZ168: ='[16]2017'!R14 -> 0 | CA168: - | CB168: - | CC168: ='[16]2018'!P14 -> 0 | CD168: ='[16]2018'!Q14 -> 0 | CE168: ='[16]2018'!R14 -> 0 | CF168: - | CG168: - | CH168: ='[16]2019'!P14 -> 0 | CI168: ='[16]2019'!Q14 -> 0 | CJ168: ='[16]2019'!R14 -> 0 | CK168: - | CL168: - | CM168: 0 | CN168: 0 | CO168: 0 | CP168: - | CQ168: - | CR168: 11. Ciudades y comunidades sostenibles | CS168: Promoción del Desarrollo | CT168: ='[1]LÍNEA 1'!AQ168 -> Dir. Tránsito
AQ169: Formular e implementar el Plan Estratégico de Seguridad Vial en METROLÍNEA. | AR169: ='[1]LÍNEA 1'!P169 -> 21032501 | AS169: Número de Planes Estratégicos de Seguridad Vial en METROLÍNEA formulados e implementados. | AT169: 0.01 | AU169: ='[1]LÍNEA 1'!S169 -> 1 | AV169: ='[1]LÍNEA 1'!T169 -> 1 | AW169: 0.25 | AX169: ='[1]LÍNEA 1'!U169 -> 1 | AY169: 0.25 | AZ169: ='[1]LÍNEA 1'!V169 -> 1 | BA169: 0.25 | BB169: ='[1]LÍNEA 1'!W169 -> 1 | BC169: 0.25 | BD169: ='[21]2016'!$K$12 -> 0.4 | BE169: ='[21]2017'!$K$12 -> 1 | BF169: ='[21]2018'!$K$12 -> 1 | BG169: ='[21]2019'!$K$12 -> 0 | BH169: 0.4 | BI169: 0.4 | BJ169: 1 | BK169: 1 | BL169: 1 | BM169: 1 | BN169: 0 | BO169: 0 | BP169: 0.6 | BQ169: 0.6 | BR169: 0.6 | BS169: ='[21]2016'!P12 -> 0 | BT169: ='[21]2016'!Q12 -> 0 | BU169: ='[21]2016'!R12 -> 0 | BV169: - | BW169: - | BX169: ='[21]2017'!P12 -> 0 | BY169: ='[21]2017'!Q12 -> 0 | BZ169: ='[21]2017'!R12 -> 0 | CA169: - | CB169: - | CC169: ='[21]2018'!P12 -> 50000 | CD169: ='[21]2018'!Q12 -> 0 | CE169: ='[21]2018'!R12 -> 0 | CF169: 0 | CG169: - | CH169: ='[21]2019'!P12 -> 50000 | CI169: ='[21]2019'!Q12 -> 0 | CJ169: ='[21]2019'!R12 -> 0 | CK169: 0 | CL169: - | CM169: 100000 | CN169: 0 | CO169: 0 | CP169: 0 | CQ169: - | CR169: 11. Ciudades y comunidades sostenibles | CS169: Transporte | CT169: ='[1]LÍNEA 1'!AQ169 -> METROLÍNEA
F170: Construir 20 obras de infraestructura de espacio público ideadas por el taller de arquitectura. | G170: 0 | H170: 20 | I170: =+H170-G170 -> 20 | J170: 2 | K170: =+J170-G170 -> 2 | M170: 8 | N170: =+M170-J170 -> 6 | P170: 14 | Q170: =+P170-M170 -> 6 | S170: 20 | T170: =+S170-P170 -> 6 | V170: 3 | W170: =+IF(V170=0,0,V170-G170) -> 3 | Y170: =+IF(X170=0,0,X170-V170) -> 0 | AA170: =+IF(Z170=0,0,Z170-X170) -> 0 | AC170: =+IF(AB170=0,0,AB170-Z170) -> 0 | AD170: =+IF(K170=0," -",W170/K170) -> 1.5 | AE170: =+IF(K170=0," -",IF(AD170>100%,100%,AD170)) -> 1 | AF170: =+IF(N170=0," -",Y170/N170) -> 0 | AG170: =+IF(N170=0," -",IF(AF170>100%,100%,AF170)) -> 0 | AH170: =+IF(Q170=0," -",AA170/Q170) -> 0 | AI170: =+IF(Q170=0," -",IF(AH170>100%,100%,AH170)) -> 0 | AJ170: =+IF(T170=0," -",AC170/T170) -> 0 | AK170: =+IF(T170=0," -",IF(AJ170>100%,100%,AJ170)) -> 0 | AL170: =+SUM(AC170,AA170,Y170,W170)/I170 -> 0.15 | AM170: =+IF(AL170>100%,100%,IF(AL170<0%,0%,AL170)) -> 0.15 | AQ170: Apoyar el proceso de formulación y ejecución del Plan Maestro Santander Life en coordinación con el Área Metropolitana de Bucaramanga. | AR170: ='[1]LÍNEA 1'!P170 -> 0542900401 | AS170: Número de Planes Maestros Santander Life apoyados en su proceso de formulación y ejecución en coordinación con el Área Metropolitana de Bucaramanga. | AT170: 0 | AU170: ='[1]LÍNEA 1'!S170 -> 1 | AV170: ='[1]LÍNEA 1'!T170 -> 1 | AW170: 0.25 | AX170: ='[1]LÍNEA 1'!U170 -> 1 | AY170: 0.25 | AZ170: ='[1]LÍNEA 1'!V170 -> 1 | BA170: 0.25 | BB170: ='[1]LÍNEA 1'!W170 -> 1 | BC170: 0.25 | BD170: ='[22]2016'!$K$12 -> 1 | BE170: ='[22]2017'!$K$12 -> 1 | BF170: ='[22]2018'!$K$12 -> 1 | BG170: ='[22]2019'!$K$12 -> 0 | BH170: 1 | BI170: 1 | BJ170: 1 | BK170: 1 | BL170: 1 | BM170: 1 | BN170: 0 | BO170: 0 | BP170: 0.75 | BQ170: 0.75 | BR170: 0.75 | BS170: ='[22]2016'!P12 -> 0 | BT170: ='[22]2016'!Q12 -> 0 | BU170: ='[22]2016'!R12 -> 0 | BV170: - | BW170: - | BX170: ='[22]2017'!P12 -> 0 | BY170: ='[22]2017'!Q12 -> 0 | BZ170: ='[22]2017'!R12 -> 0 | CA170: - | CB170: - | CC170: ='[22]2018'!P12 -> 0 | CD170: ='[22]2018'!Q12 -> 0 | CE170: ='[22]2018'!R12 -> 0 | CF170: - | CG170: - | CH170: ='[22]2019'!P12 -> 0 | CI170: ='[22]2019'!Q12 -> 0 | CJ170: ='[22]2019'!R12 -> 0 | CK170: - | CL170: - | CM170: 0 | CN170: 0 | CO170: 0 | CP170: - | CQ170: - | CR170: 11. Ciudades y comunidades sostenibles | CS170: Promoción del Desarrollo | CT170: ='[1]LÍNEA 1'!AQ170 -> IMEBU
AO171: =+RESUMEN!J36 -> 0.56 | AP171: TERRITORIOS VULNERABLES, TERRITORIOS VISIBLES | AQ171: Elaborar 1 documento guía que contenga la norma, lineamientos y procesos para la legalización de asentamientos. | AR171: ='[1]LÍNEA 1'!P171 -> 2210159 | AS171: Porcentaje de avance en la elaboración del documento guía que contenga la norma, lineamientos y procesos para la legalización de asentamientos. | AT171: 0 | AU171: ='[1]LÍNEA 1'!S171 -> 1 | AV171: ='[1]LÍNEA 1'!T171 -> 0.1 | AW171: 0.1 | AX171: ='[1]LÍNEA 1'!U171 -> 0.9 | AY171: 0.9 | AZ171: ='[1]LÍNEA 1'!V171 -> 0 | BA171: 0 | BB171: ='[1]LÍNEA 1'!W171 -> 0 | BC171: 0 | BD171: ='[6]2016'!K42 -> 0.15 | BE171: ='[6]2017'!K39 -> 0.5 | BF171: ='[6]2018'!K39 -> 0.15 | BG171: ='[6]2019'!K39 -> 0 | BH171: 1.5 | BI171: 1 | BJ171: 0.5555555556 | BK171: 0.5555555556 | BL171: - | BM171: - | BN171: - | BO171: - | BP171: =+SUM(BD171:BG171)/AU171 -> 0.8 | BQ171: 0.8 | BR171: 0.8 | BS171: ='[6]2016'!P42 -> 36750 | BT171: ='[6]2016'!Q42 -> 36750 | BU171: ='[6]2016'!R42 -> 0 | BV171: 1 | BW171: - | BX171: ='[6]2017'!P39 -> 0 | BY171: ='[6]2017'!Q39 -> 0 | BZ171: ='[6]2017'!R39 -> 0 | CA171: - | CB171: - | CC171: ='[6]2018'!P39 -> 93500 | CD171: ='[6]2018'!Q39 -> 76200 | CE171: ='[6]2018'!R39 -> 0 | CF171: 0.814973262 | CG171: - | CH171: ='[6]2019'!P39 -> 0 | CI171: ='[6]2019'!Q39 -> 0 | CJ171: ='[6]2019'!R39 -> 0 | CK171: - | CL171: - | CM171: 130250 | CN171: 112950 | CO171: 0 | CP171: 0.8671785029 | CQ171: - | CR171: 11. Ciudades y comunidades sostenibles | CS171: Promoción del Desarrollo | CT171: ='[1]LÍNEA 1'!AQ171 -> Sec. Planeación
AQ172: Elaborar 1 documento guía que contenga el proceso para obtener la titularidad del predio en barrios legalizados. | AR172: ='[1]LÍNEA 1'!P172 -> 2210159 | AS172: Porcentaje de avance en la elaboración del documento guía que contenga el proceso para obtener la titularidad del predio en barrios legalizados. | AT172: 0 | AU172: ='[1]LÍNEA 1'!S172 -> 1 | AV172: ='[1]LÍNEA 1'!T172 -> 0.1 | AW172: 0.1 | AX172: ='[1]LÍNEA 1'!U172 -> 0.9 | AY172: 0.9 | AZ172: ='[1]LÍNEA 1'!V172 -> 0 | BA172: 0 | BB172: ='[1]LÍNEA 1'!W172 -> 0 | BC172: 0 | BD172: ='[6]2016'!K43 -> 0.15 | BE172: ='[6]2017'!K40 -> 0.5 | BF172: ='[6]2018'!K40 -> 0.15 | BG172: ='[6]2019'!K40 -> 0 | BH172: 1.5 | BI172: 1 | BJ172: 0.5555555556 | BK172: 0.5555555556 | BL172: - | BM172: - | BN172: - | BO172: - | BP172: 0.8 | BQ172: 0.8 | BR172: 0.8 | BS172: ='[6]2016'!P43 -> 0 | BT172: ='[6]2016'!Q43 -> 0 | BU172: ='[6]2016'!R43 -> 0 | BV172: - | BW172: - | BX172: ='[6]2017'!P40 -> 0 | BY172: ='[6]2017'!Q40 -> 0 | BZ172: ='[6]2017'!R40 -> 0 | CA172: - | CB172: - | CC172: ='[6]2018'!P40 -> 93500 | CD172: ='[6]2018'!Q40 -> 76200 | CE172: ='[6]2018'!R40 -> 0 | CF172: 0.814973262 | CG172: - | CH172: ='[6]2019'!P40 -> 0 | CI172: ='[6]2019'!Q40 -> 0 | CJ172: ='[6]2019'!R40 -> 0 | CK172: - | CL172: - | CM172: 93500 | CN172: 76200 | CO172: 0 | CP172: 0.814973262 | CQ172: - | CR172: 11. Ciudades y comunidades sostenibles | CS172: Promoción del Desarrollo | CT172: ='[1]LÍNEA 1'!AQ172 -> Sec. Planeación
AQ173: Revisar y asignar las nomenclaturas de 10 barrios legalizados. | AR173: ='[1]LÍNEA 1'!P173 -> 2210159 | AS173: Número de barrios legalizados con la revisión y asignación de nomenclaturas. | AT173: 0 | AU173: ='[1]LÍNEA 1'!S173 -> 10 | AV173: ='[1]LÍNEA 1'!T173 -> 1 | AW173: 0.1 | AX173: ='[1]LÍNEA 1'!U173 -> 3 | AY173: 0.3 | AZ173: ='[1]LÍNEA 1'!V173 -> 4 | BA173: 0.4 | BB173: ='[1]LÍNEA 1'!W173 -> 2 | BC173: 0.2 | BD173: ='[6]2016'!K44 -> 0.5 | BE173: ='[6]2017'!K41 -> 5 | BF173: ='[6]2018'!K41 -> 2 | BG173: ='[6]2019'!K41 -> 0 | BH173: 0.5 | BI173: 0.5 | BJ173: 1.666666667 | BK173: 1 | BL173: 0.5 | BM173: 0.5 | BN173: 0 | BO173: 0 | BP173: 0.75 | BQ173: 0.75 | BR173: 0.75 | BS173: ='[6]2016'!P44 -> 0 | BT173: ='[6]2016'!Q44 -> 0 | BU173: ='[6]2016'!R44 -> 0 | BV173: - | BW173: - | BX173: ='[6]2017'!P41 -> 0 | BY173: ='[6]2017'!Q41 -> 0 | BZ173: ='[6]2017'!R41 -> 0 | CA173: - | CB173: - | CC173: ='[6]2018'!P41 -> 0 | CD173: ='[6]2018'!Q41 -> 0 | CE173: ='[6]2018'!R41 -> 0 | CF173: - | CG173: - | CH173: ='[6]2019'!P41 -> 80000 | CI173: ='[6]2019'!Q41 -> 0 | CJ173: ='[6]2019'!R41 -> 0 | CK173: 0 | CL173: - | CM173: 80000 | CN173: 0 | CO173: 0 | CP173: 0 | CQ173: - | CR173: 11. Ciudades y comunidades sostenibles | CS173: Promoción del Desarrollo | CT173: ='[1]LÍNEA 1'!AQ173 -> Sec. Planeación
AQ174: Implementar y mantener 1 capítulo especial dentro del observatorio metropolitano para estudiar los territorios vulnerables y generar información sobre sus condiciones y problemáticas. | AR174: ='[1]LÍNEA 1'!P174 -> - | AS174: Número de capítulos especiales implementados y mantenidos dentro del observatorio metropolitano para estudiar los territorios vulnerables y generar información sobre sus condiciones y problemáticas. | AT174: 0 | AU174: ='[1]LÍNEA 1'!S174 -> 1 | AV174: ='[1]LÍNEA 1'!T174 -> 0 | AW174: 0 | AX174: ='[1]LÍNEA 1'!U174 -> 1 | AY174: 0.33 | AZ174: ='[1]LÍNEA 1'!V174 -> 1 | BA174: 0.33 | BB174: ='[1]LÍNEA 1'!W174 -> 1 | BC174: 0.34 | BD174: ='[6]2016'!K45 -> 0 | BE174: ='[6]2017'!K42 -> 0 | BF174: ='[6]2018'!K42 -> 0 | BG174: ='[6]2019'!K42 -> 0 | BH174: - | BI174: - | BJ174: 0 | BK174: 0 | BL174: 0 | BM174: 0 | BN174: 0 | BO174: 0 | BP174: =+AVERAGE(BE174:BG174)/AU174 -> 0 | BQ174: 0 | BR174: 0 | BS174: ='[6]2016'!P45 -> 0 | BT174: ='[6]2016'!Q45 -> 0 | BU174: ='[6]2016'!R45 -> 0 | BV174: - | BW174: - | BX174: ='[6]2017'!P42 -> 0 | BY174: ='[6]2017'!Q42 -> 0 | BZ174: ='[6]2017'!R42 -> 0 | CA174: - | CB174: - | CC174: ='[6]2018'!P42 -> 0 | CD174: ='[6]2018'!Q42 -> 0 | CE174: ='[6]2018'!R42 -> 0 | CF174: - | CG174: - | CH174: ='[6]2019'!P42 -> 0 | CI174: ='[6]2019'!Q42 -> 0 | CJ174: ='[6]2019'!R42 -> 0 | CK174: - | CL174: - | CM174: 0 | CN174: 0 | CO174: 0 | CP174: - | CQ174: - | CR174: 11. Ciudades y comunidades sostenibles | CS174: Atención a grupos vulnerables - Promoción Social | CT174: ='[1]LÍNEA 1'!AQ174 -> Sec. Planeación
AQ175: Realizar 20 audiencias con representantes de las fuerzas vivas de la ciudad, la comunidad afectada y los medios de comunicación para dar a conocer y discutir la realidad de los territorios vulnerables. | AR175: ='[1]LÍNEA 1'!P175 -> - | AS175: Número de audiencias realizadas con representantes de las fuerzas vivas de la ciudad, la comunidad afectada y los medios de comunicación para dar a conocer y discutir la realidad de los territorios vulnerables. | AT175: 0 | AU175: ='[1]LÍNEA 1'!S175 -> 20 | AV175: ='[1]LÍNEA 1'!T175 -> 0 | AW175: 0 | AX175: ='[1]LÍNEA 1'!U175 -> 7 | AY175: 0.35 | AZ175: ='[1]LÍNEA 1'!V175 -> 7 | BA175: 0.35 | BB175: ='[1]LÍNEA 1'!W175 -> 6 | BC175: 0.3 | BD175: ='[6]2016'!K46 -> 0 | BE175: ='[6]2017'!K43 -> 8 | BF175: ='[6]2018'!K43 -> 1 | BG175: ='[6]2019'!K43 -> 0 | BH175: - | BI175: - | BJ175: 1.142857143 | BK175: 1 | BL175: 0.1428571429 | BM175: 0.1428571429 | BN175: 0 | BO175: 0 | BP175: =+SUM(BD175:BG175)/AU175 -> 0.45 | BQ175: 0.45 | BR175: 0.45 | BS175: ='[6]2016'!P46 -> 0 | BT175: ='[6]2016'!Q46 -> 0 | BU175: ='[6]2016'!R46 -> 0 | BV175: - | BW175: - | BX175: ='[6]2017'!P43 -> 0 | BY175: ='[6]2017'!Q43 -> 0 | BZ175: ='[6]2017'!R43 -> 0 | CA175: - | CB175: - | CC175: ='[6]2018'!P43 -> 0 | CD175: ='[6]2018'!Q43 -> 0 | CE175: ='[6]2018'!R43 -> 0 | CF175: - | CG175: - | CH175: ='[6]2019'!P43 -> 0 | CI175: ='[6]2019'!Q43 -> 0 | CJ175: ='[6]2019'!R43 -> 0 | CK175: - | CL175: - | CM175: 0 | CN175: 0 | CO175: 0 | CP175: - | CQ175: - | CR175: 16. Paz, justicia e instituciones sólidas | CS175: Atención a grupos vulnerables - Promoción Social | CT175: ='[1]LÍNEA 1'!AQ175 -> Sec. Planeación
F176: Construir 10 obras o proyectos de infraestructura pública en territorios limítrofes concertados con el Área. | G176: 0 | H176: 10 | I176: =+H176-G176 -> 10 | J176: 1 | K176: =+J176-G176 -> 1 | M176: 4 | N176: =+M176-J176 -> 3 | P176: 7 | Q176: =+P176-M176 -> 3 | S176: 10 | T176: =+S176-P176 -> 3 | V176: 0 | W176: =+IF(V176=0,0,V176-G176) -> 0 | Y176: =+IF(X176=0,0,X176-V176) -> 0 | AA176: =+IF(Z176=0,0,Z176-X176) -> 0 | AC176: =+IF(AB176=0,0,AB176-Z176) -> 0 | AD176: =+IF(K176=0," -",W176/K176) -> 0 | AE176: =+IF(K176=0," -",IF(AD176>100%,100%,AD176)) -> 0 | AF176: =+IF(N176=0," -",Y176/N176) -> 0 | AG176: =+IF(N176=0," -",IF(AF176>100%,100%,AF176)) -> 0 | AH176: =+IF(Q176=0," -",AA176/Q176) -> 0 | AI176: =+IF(Q176=0," -",IF(AH176>100%,100%,AH176)) -> 0 | AJ176: =+IF(T176=0," -",AC176/T176) -> 0 | AK176: =+IF(T176=0," -",IF(AJ176>100%,100%,AJ176)) -> 0 | AL176: =+SUM(AC176,AA176,Y176,W176)/I176 -> 0 | AM176: =+IF(AL176>100%,100%,IF(AL176<0%,0%,AL176)) -> 0 | AO176: =+RESUMEN!J37 -> 0.3972222222 | AP176: TERRITORIOS METROPOLITANOS, PLANES CONJUNTOS | AQ176: Realizar el Plan Maestro Conjunto para el desarrollo del Valle del Río de Oro en coordinación con el Área Metropolitana de Bucaramanga y el municipio de Girón. | AR176: ='[1]LÍNEA 1'!P176 -> - | AS176: Número de Planes Maestros Conjuntos realizados para el desarrollo del Valle del Río de Oro en coordinación con el Área Metropolitana de Bucaramanga y el municipio de Girón. | AT176: 0 | AU176: ='[1]LÍNEA 1'!S176 -> 1 | AV176: ='[1]LÍNEA 1'!T176 -> 0 | AW176: 0 | AX176: ='[1]LÍNEA 1'!U176 -> 0 | AY176: 0 | AZ176: ='[1]LÍNEA 1'!V176 -> 0 | BA176: 0 | BB176: ='[1]LÍNEA 1'!W176 -> 1 | BC176: 1 | BD176: ='[6]2016'!K47 -> 0 | BE176: ='[6]2017'!K44 -> 0 | BF176: ='[6]2018'!K44 -> 0 | BG176: ='[6]2019'!K44 -> 0 | BH176: - | BI176: - | BJ176: - | BK176: - | BL176: - | BM176: - | BN176: 0 | BO176: 0 | BP176: 0 | BQ176: 0 | BR176: 0 | BS176: ='[6]2016'!P47 -> 0 | BT176: ='[6]2016'!Q47 -> 0 | BU176: ='[6]2016'!R47 -> 0 | BV176: - | BW176: - | BX176: ='[6]2017'!P44 -> 0 | BY176: ='[6]2017'!Q44 -> 0 | BZ176: ='[6]2017'!R44 -> 0 | CA176: - | CB176: - | CC176: ='[6]2018'!P44 -> 0 | CD176: ='[6]2018'!Q44 -> 0 | CE176: ='[6]2018'!R44 -> 0 | CF176: - | CG176: - | CH176: ='[6]2019'!P44 -> 0 | CI176: ='[6]2019'!Q44 -> 0 | CJ176: ='[6]2019'!R44 -> 0 | CK176: - | CL176: - | CM176: 0 | CN176: 0 | CO176: 0 | CP176: - | CQ176: - | CR176: 11. Ciudades y comunidades sostenibles | CS176: Ambiental | CT176: ='[1]LÍNEA 1'!AQ176 -> Sec. Planeación
AQ177: Formular 1 plan de acción conjunto para el desarrollo y el mejoramiento de la infraestructura pública en el sur de Bucaramanga, norte de Floridablanca en coordinación con el Área Metropolitana y la Alcaldía de dicho municipio. | AR177: ='[1]LÍNEA 1'!P177 -> 0 | AS177: Número de planes de acción formulados para el desarrollo y el mejoramiento de la infraestructura pública en el sur de Bucaramanga, norte de Floridablanca en coordinación con el Área Metropolitana y la Alcaldía de dicho municipio. | AT177: 0 | AU177: ='[1]LÍNEA 1'!S177 -> 1 | AV177: ='[1]LÍNEA 1'!T177 -> 0 | AW177: 0 | AX177: ='[1]LÍNEA 1'!U177 -> 1 | AY177: 1 | AZ177: ='[1]LÍNEA 1'!V177 -> 0 | BA177: 0 | BB177: ='[1]LÍNEA 1'!W177 -> 0 | BC177: 0 | BD177: ='[13]2016'!K17 -> 0.25 | BE177: ='[13]2017'!K17 -> 0.8 | BF177: ='[13]2018'!K17 -> 1 | BG177: ='[13]2019'!K17 -> 0 | BH177: - | BI177: - | BJ177: 0.8 | BK177: 0.8 | BL177: - | BM177: - | BN177: - | BO177: - | BP177: 2.05 | BQ177: 1 | BR177: 1 | BS177: ='[13]2016'!P17 -> 505440 | BT177: ='[13]2016'!Q17 -> 505440 | BU177: ='[13]2016'!R17 -> 0 | BV177: 1 | BW177: - | BX177: ='[13]2017'!P17 -> 505440 | BY177: ='[13]2017'!Q17 -> 505440 | BZ177: ='[13]2017'!R17 -> 0 | CA177: 1 | CB177: - | CC177: ='[13]2018'!P17 -> 505440 | CD177: ='[13]2018'!Q17 -> 505440 | CE177: ='[13]2018'!R17 -> 0 | CF177: 1 | CG177: - | CH177: ='[13]2019'!P17 -> 0 | CI177: ='[13]2019'!Q17 -> 0 | CJ177: ='[13]2019'!R17 -> 0 | CK177: - | CL177: - | CM177: 1516320 | CN177: 1516320 | CO177: 0 | CP177: 1 | CQ177: - | CR177: 11. Ciudades y comunidades sostenibles | CS177: Equipamiento | CT177: ='[1]LÍNEA 1'!AQ177 -> AMB
AQ178: Implementar y mantener 1 estrategia de mejoramiento del ornato en sectores limítrofes con los municipios de Girón y Floridablanca en coordinación con el Área Metropolitana de Bucaramanga. | AR178: ='[1]LÍNEA 1'!P178 -> - | AS178: Número de estrategias de mejoramiento del ornato implementadas y mantenidas en sectores limítrofes con los municipios de Girón y Floridablanca en coordinación con el Área Metropolitana de Bucaramanga. | AT178: 0 | AU178: ='[1]LÍNEA 1'!S178 -> 1 | AV178: ='[1]LÍNEA 1'!T178 -> 0 | AW178: 0 | AX178: ='[1]LÍNEA 1'!U178 -> 1 | AY178: 0.33 | AZ178: ='[1]LÍNEA 1'!V178 -> 1 | BA178: 0.33 | BB178: ='[1]LÍNEA 1'!W178 -> 1 | BC178: 0.34 | BD178: ='[13]2016'!K18 -> 0.25 | BE178: ='[13]2017'!K18 -> 0.8 | BF178: ='[13]2018'!K18 -> 0.85 | BG178: ='[13]2019'!K18 -> 0 | BH178: - | BI178: - | BJ178: 0.8 | BK178: 0.8 | BL178: 0.85 | BM178: 0.85 | BN178: 0 | BO178: 0 | BP178: =+AVERAGE(BE178:BG178)/AU178 -> 0.55 | BQ178: 0.55 | BR178: 0.55 | BS178: ='[13]2016'!P18 -> 505440 | BT178: ='[13]2016'!Q18 -> 505440 | BU178: ='[13]2016'!R18 -> 0 | BV178: 1 | BW178: - | BX178: ='[13]2017'!P18 -> 505440 | BY178: ='[13]2017'!Q18 -> 505440 | BZ178: ='[13]2017'!R18 -> 0 | CA178: 1 | CB178: - | CC178: ='[13]2018'!P18 -> 505440 | CD178: ='[13]2018'!Q18 -> 505440 | CE178: ='[13]2018'!R18 -> 0 | CF178: 1 | CG178: - | CH178: ='[13]2019'!P18 -> 0 | CI178: ='[13]2019'!Q18 -> 0 | CJ178: ='[13]2019'!R18 -> 0 | CK178: - | CL178: - | CM178: 1516320 | CN178: 1516320 | CO178: 0 | CP178: 1 | CQ178: - | CR178: 11. Ciudades y comunidades sostenibles | CS178: Promoción del Desarrollo | CT178: ='[1]LÍNEA 1'!AQ178 -> AMB
AQ179: Crear y mantener 1 centro de estudios urbanos y territoriales en el Área Metropolitana de Bucaramanga. | AR179: ='[1]LÍNEA 1'!P179 -> - | AS179: Número de centros de estudios urbanos y territoriales creados y mantenidos en el Área Metropolitana de Bucaramanga. | AT179: 0 | AU179: ='[1]LÍNEA 1'!S179 -> 1 | AV179: ='[1]LÍNEA 1'!T179 -> 0 | AW179: 0 | AX179: ='[1]LÍNEA 1'!U179 -> 1 | AY179: 0.33 | AZ179: ='[1]LÍNEA 1'!V179 -> 1 | BA179: 0.33 | BB179: ='[1]LÍNEA 1'!W179 -> 1 | BC179: 0.34 | BD179: ='[13]2016'!K19 -> 0 | BE179: ='[13]2017'!K19 -> 0 | BF179: ='[13]2018'!K19 -> 0.25 | BG179: ='[13]2019'!K19 -> 0 | BH179: - | BI179: - | BJ179: 0 | BK179: 0 | BL179: 0.25 | BM179: 0.25 | BN179: 0 | BO179: 0 | BP179: =+AVERAGE(BE179:BG179)/AU179 -> 0.08333333333 | BQ179: 0.08333333333 | BR179: 0.08333333333 | BS179: ='[13]2016'!P19 -> 0 | BT179: ='[13]2016'!Q19 -> 0 | BU179: ='[13]2016'!R19 -> 0 | BV179: - | BW179: - | BX179: ='[13]2017'!P19 -> 0 | BY179: ='[13]2017'!Q19 -> 0 | BZ179: ='[13]2017'!R19 -> 0 | CA179: - | CB179: - | CC179: ='[13]2018'!P19 -> 500000 | CD179: ='[13]2018'!Q19 -> 500000 | CE179: ='[13]2018'!R19 -> 0 | CF179: 1 | CG179: - | CH179: ='[13]2019'!P19 -> 0 | CI179: ='[13]2019'!Q19 -> 0 | CJ179: ='[13]2019'!R19 -> 0 | CK179: - | CL179: - | CM179: 500000 | CN179: 500000 | CO179: 0 | CP179: 1 | CQ179: - | CR179: 11. Ciudades y comunidades sostenibles | CS179: Promoción del Desarrollo | CT179: ='[1]LÍNEA 1'!AQ179 -> AMB
AQ180: Generar 8 espacios de encuentro entre gabinetes para el diálogo y coordinación institucional con el gobierno del municipio de Girón. | AR180: ='[1]LÍNEA 1'!P180 -> - | AS180: Número de espacios de encuentro generados entre gabinetes para el diálogo y coordinación institucional con el gobierno del municipio de Girón. | AT180: 0 | AU180: ='[1]LÍNEA 1'!S180 -> 8 | AV180: ='[1]LÍNEA 1'!T180 -> 0 | AW180: 0 | AX180: ='[1]LÍNEA 1'!U180 -> 2 | AY180: 0.25 | AZ180: ='[1]LÍNEA 1'!V180 -> 3 | BA180: 0.375 | BB180: ='[1]LÍNEA 1'!W180 -> 3 | BC180: 0.375 | BD180: ='[13]2016'!K20 -> 0 | BE180: ='[13]2017'!K20 -> 2 | BF180: ='[13]2018'!K20 -> 1 | BG180: ='[13]2019'!K20 -> 0 | BH180: - | BI180: - | BJ180: 1 | BK180: 1 | BL180: 0.3333333333 | BM180: 0.3333333333 | BN180: 0 | BO180: 0 | BP180: =+SUM(BD180:BG180)/AU180 -> 0.375 | BQ180: 0.375 | BR180: 0.375 | BS180: ='[13]2016'!P20 -> 0 | BT180: ='[13]2016'!Q20 -> 0 | BU180: ='[13]2016'!R20 -> 0 | BV180: - | BW180: - | BX180: ='[13]2017'!P20 -> 5000 | BY180: ='[13]2017'!Q20 -> 5000 | BZ180: ='[13]2017'!R20 -> 0 | CA180: 1 | CB180: - | CC180: ='[13]2018'!P20 -> 0 | CD180: ='[13]2018'!Q20 -> 0 | CE180: ='[13]2018'!R20 -> 0 | CF180: - | CG180: - | CH180: ='[13]2019'!P20 -> 0 | CI180: ='[13]2019'!Q20 -> 0 | CJ180: ='[13]2019'!R20 -> 0 | CK180: - | CL180: - | CM180: 5000 | CN180: 5000 | CO180: 0 | CP180: 1 | CQ180: - | CR180: 16. Paz, justicia e instituciones sólidas | CS180: Fortalecimiento insitucional | CT180: ='[1]LÍNEA 1'!AQ180 -> AMB
AQ181: Generar 8 espacios de encuentro entre gabinetes para el diálogo y coordinación institucional con el gobierno del municipio de Floridablanca. | AR181: ='[1]LÍNEA 1'!P181 -> - | AS181: Número de espacios de encuentro generados entre gabinetes para el diálogo y coordinación institucional con el gobierno del municipio de Floridablanca. | AT181: 0 | AU181: ='[1]LÍNEA 1'!S181 -> 8 | AV181: ='[1]LÍNEA 1'!T181 -> 0 | AW181: 0 | AX181: ='[1]LÍNEA 1'!U181 -> 2 | AY181: 0.25 | AZ181: ='[1]LÍNEA 1'!V181 -> 3 | BA181: 0.375 | BB181: ='[1]LÍNEA 1'!W181 -> 3 | BC181: 0.375 | BD181: ='[13]2016'!K21 -> 0 | BE181: ='[13]2017'!K21 -> 2 | BF181: ='[13]2018'!K21 -> 1 | BG181: ='[13]2019'!K21 -> 0 | BH181: - | BI181: - | BJ181: 1 | BK181: 1 | BL181: 0.3333333333 | BM181: 0.3333333333 | BN181: 0 | BO181: 0 | BP181: 0.375 | BQ181: 0.375 | BR181: 0.375 | BS181: ='[13]2016'!P21 -> 0 | BT181: ='[13]2016'!Q21 -> 0 | BU181: ='[13]2016'!R21 -> 0 | BV181: - | BW181: - | BX181: ='[13]2017'!P21 -> 5000 | BY181: ='[13]2017'!Q21 -> 5000 | BZ181: ='[13]2017'!R21 -> 0 | CA181: 1 | CB181: - | CC181: ='[13]2018'!P21 -> 0 | CD181: ='[13]2018'!Q21 -> 0 | CE181: ='[13]2018'!R21 -> 0 | CF181: - | CG181: - | CH181: ='[13]2019'!P21 -> 0 | CI181: ='[13]2019'!Q21 -> 0 | CJ181: ='[13]2019'!R21 -> 0 | CK181: - | CL181: - | CM181: 5000 | CN181: 5000 | CO181: 0 | CP181: 1 | CQ181: - | CR181: 16. Paz, justicia e instituciones sólidas | CS181: Fortalecimiento insitucional | CT181: ='[1]LÍNEA 1'!AQ181 -> AMB
AW182: =+AVERAGE(AW152:AW181) -> 0.1466666667 | AY182: =+AVERAGE(AY152:AY181) -> 0.4313333333 | BA182: 0.1824444444 | BC182: 0.2395555556 | BI182: =+AVERAGE(BI152:BI181) -> 0.9 | BK182: 0.7977777778 | BM182: 0.5294179894 | BO182: 0 | BQ182: =+AVERAGE(BQ152:BQ181) -> 0.6128055556
BD186: 2016 | BE186: 2017 | BF186: 2018 | BG186: 2019 | BH186: CA
AZ187: Administrativa | BD187: =+AVERAGE(BI30:BI31,BI67:BI68,BI75,BI78:BI81,BI85:BI93) -> 1 | BE187: =+AVERAGE(BK30:BK31,BK67:BK68,BK75,BK78:BK81,BK85:BK93) -> 0.7058823529 | BF187: =+AVERAGE(BM30:BM31,BM67:BM68,BM75,BM78:BM81,BM85:BM93) -> 0.6727272727 | BG187: =+AVERAGE(BO30:BO31,BO67:BO68,BO75,BO78:BO81,BO85:BO93) -> 0 | BH187: =+AVERAGE(BQ30:BQ31,BQ67:BQ68,BQ75,BQ78:BQ81,BQ85:BQ93) -> 0.5111111111
AZ188: AMB | BD188: =+AVERAGE(BI57:BI60,BI177:BI181) ->  | BE188: =+AVERAGE(BK57:BK60,BK177:BK181) -> 0.7166666667 | BF188: =+AVERAGE(BM57:BM60,BM177:BM181) -> 0.4708333333 | BG188: =+AVERAGE(BO57:BO60,BO177:BO181) -> 0 | BH188: =+AVERAGE(BQ57:BQ60,BQ177:BQ181) -> 0.5175925926
AZ189: Bomberos | BD189: =+BI97 -> - | BE189: =+BK97 -> 1 | BF189: =+BM97 -> 0.3 | BG189: =+BO97 -> 0 | BH189: =+BQ97 -> 0.4333333333
AZ190: Control Interno | BD190: =+BI132 -> 1 | BE190: =+BK132 -> 1 | BF190: =+BM132 -> 1 | BG190: =+BO132 -> 0 | BH190: =+BQ132 -> 0.8157894737
AZ191: Control Interno Disciplinario | BD191: =+AVERAGE(BI130:BI131) -> 1 | BE191: =+AVERAGE(BK130:BK131) -> 1 | BF191: =+AVERAGE(BM130:BM131) -> 1 | BG191: =+AVERAGE(BO130:BO131) -> 0 | BH191: =+AVERAGE(BQ130:BQ131) -> 0.875
AZ192: DADEP | BD192: =+AVERAGE(BI118:BI119) -> 0.85 | BE192: =+AVERAGE(BK118:BK119) -> 0.536 | BF192: =+AVERAGE(BM118:BM119) -> 0.335 | BG192: =+AVERAGE(BO118:BO119) -> 0 | BH192: =+AVERAGE(BQ118:BQ119) -> 0.267
AZ193: Desarrollo Social | BD193: =+AVERAGE(BI12,BI18,BI25:BI29,BI35:BI43,BI96) -> 0.6923076923 | BE193: =+AVERAGE(BK12,BK18,BK25:BK29,BK35:BK43,BK96) -> 0.85125 | BF193: =+AVERAGE(BM12,BM18,BM25:BM29,BM35:BM43,BM96) -> 0.6733333333 | BG193: =+AVERAGE(BO12,BO18,BO25:BO29,BO35:BO43,BO96) -> 0 | BH193: =+AVERAGE(BQ12,BQ18,BQ25:BQ29,BQ35:BQ43,BQ96) -> 0.658627451
AZ194: Educación | BD194: =+BI13 -> 1 | BE194: =+BK13 -> 1 | BF194: =+BM13 -> 0.4 | BG194: =+BO13 -> 0 | BH194: =+BQ13 -> 0.5428571429
AZ195: Hacienda | BD195: =+AVERAGE(BI16,BI55,BI94,BI113:BI117) -> 0.8285714286 | BE195: =+AVERAGE(BK16,BK55,BK94,BK113:BK117) -> 0.9375 | BF195: =+AVERAGE(BM16,BM55,BM94,BM113:BM117) -> 0.6027777778 | BG195: =+AVERAGE(BO16,BO55,BO94,BO113:BO117) -> 0 | BH195: =+AVERAGE(BQ16,BQ55,BQ94,BQ113:BQ117) -> 0.7228422619
AZ196: IMCT | BD196: =+AVERAGE(BI56,BI110:BI112) -> 0 | BE196: =+AVERAGE(BK56,BK110:BK112) -> 0.5 | BF196: =+AVERAGE(BM56,BM110:BM112) -> 0.75 | BG196: =+AVERAGE(BO56,BO110:BO112) -> 0 | BH196: =+AVERAGE(BQ56,BQ110:BQ112) -> 0.3125
AZ197: IMEBU | BD197: =+BI170 -> 1 | BE197: =+BK170 -> 1 | BF197: =+BM170 -> 1 | BG197: =+BO170 -> 0 | BH197: =+BQ170 -> 0.75
AZ198: Infraestructura | BD198: =+AVERAGE(BI19,BI45,BI120,BI145,BI167) -> 0.6666666667 | BE198: =+AVERAGE(BK19,BK45,BK120,BK145,BK167) -> 0.8529411765 | BF198: =+AVERAGE(BM19,BM45,BM120,BM145,BM167) -> 0.5 | BG198: =+AVERAGE(BO19,BO45,BO120,BO145,BO167) -> 0 | BH198: =+AVERAGE(BQ19,BQ45,BQ120,BQ145,BQ167) -> 0.5205882353
AZ199: Interior | BD199: =+AVERAGE(BI11,BI32,BI121:BI129) -> 0.95 | BE199: =+AVERAGE(BK11,BK32,BK121:BK129) -> 0.8396825397 | BF199: =+AVERAGE(BM11,BM32,BM121:BM129) -> 0.96125 | BG199: =+AVERAGE(BO11,BO32,BO121:BO129) -> 0 | BH199: =+AVERAGE(BQ11,BQ32,BQ121:BQ129) -> 0.6878787879
AZ200: Jurídica | BD200: =+AVERAGE(BI62:BI66,BI82:BI84,BI133:BI135) -> 0.845 | BE200: =+AVERAGE(BK62:BK66,BK82:BK84,BK133:BK135) -> 1 | BF200: =+AVERAGE(BM62:BM66,BM82:BM84,BM133:BM135) -> 0.57 | BG200: =+AVERAGE(BO62:BO66,BO82:BO84,BO133:BO135) -> 0 | BH200: =+AVERAGE(BQ62:BQ66,BQ82:BQ84,BQ133:BQ135) -> 0.6738636364
AZ201: Metrolínea | BD201: =+BI169 -> 0.4 | BE201: =+BK169 -> 1 | BF201: =+BM169 -> 1 | BG201: =+BO169 -> 0 | BH201: =+BQ169 -> 0.6
AZ202: Planeación | BD202: =+AVERAGE(BI17,BI44,BI71,BI95,BI100:BI108,BI152:BI166,BI171:BI176) -> 0.9529411765 | BE202: =+AVERAGE(BK17,BK44,BK71,BK95,BK100:BK108,BK152:BK166,BK171:BK176) -> 0.726765873 | BF202: =+AVERAGE(BM17,BM44,BM71,BM95,BM100:BM108,BM152:BM166,BM171:BM176) -> 0.5631428571 | BG202: =+AVERAGE(BO17,BO44,BO71,BO95,BO100:BO108,BO152:BO166,BO171:BO176) -> 0 | BH202: =+AVERAGE(BQ17,BQ44,BQ71,BQ95,BQ100:BQ108,BQ152:BQ166,BQ171:BQ176) -> 0.5400343137
AZ203: Prensa | BD203: =+AVERAGE(BI20:BI24,BI61,BI76) -> 1 | BE203: =+AVERAGE(BK20:BK24,BK61,BK76) -> 1 | BF203: =+AVERAGE(BM20:BM24,BM61,BM76) -> 0.6547619048 | BG203: =+AVERAGE(BO20:BO24,BO61,BO76) -> 0 | BH203: =+AVERAGE(BQ20:BQ24,BQ61,BQ76) -> 0.7142857143
AZ204: Salud y Ambiente | BD204: =+BI109 -> - | BE204: =+BK109 -> 0.25 | BF204: =+BM109 -> 1 | BG204: =+BO109 -> 0 | BH204: =+BQ109 -> 0.3125
AZ205: Sistemas | BD205: =+AVERAGE(BI33:BI34,BI46,BI48:BI70,BI72:BI74,BI98,BI137:BI144,BI146:BI150) -> 0.9572222222 | BE205: =+AVERAGE(BK33:BK34,BK46,BK48:BK70,BK72:BK74,BK98,BK137:BK144,BK146:BK150) -> 0.85825 | BF205: =+AVERAGE(BM33:BM34,BM46,BM48:BM70,BM72:BM74,BM98,BM137:BM144,BM146:BM150) -> 0.858125 | BG205: =+AVERAGE(BO33:BO34,BO46,BO48:BO70,BO72:BO74,BO98,BO137:BO144,BO146:BO150) -> 0 | BH205: =+AVERAGE(BQ33:BQ34,BQ46,BQ48:BQ70,BQ72:BQ74,BQ98,BQ137:BQ144,BQ146:BQ150) -> 0.711513289
AZ206: Tránsito | BD206: =+AVERAGE(BI99,BI168) -> 1 | BE206: =+AVERAGE(BK99,BK168) -> 1 | BF206: =+AVERAGE(BM99,BM168) -> 1 | BG206: =+AVERAGE(BO99,BO168) -> 0 | BH206: =+AVERAGE(BQ99,BQ168) -> 0.875
AZ207: UTSP | BD207: =+BI47 -> 1 | BE207: =+BK47 -> 1 | BF207: =+BM47 -> 1 | BG207: =+BO47 -> 0 | BH207: =+BQ47 -> 0.75

Sheet LÍNEA 2
B3: ALCALDÍA DE BUCARAMANGA
B4: PLAN DE DESARROLLO 2016 - 2019 "GOBIERNO DE LAS CIUDADANAS Y LOS CIUDADANOS"
B5: LÍNEA ESTRATÉGICA 2: INCLUSIÓN SOCIAL
B8: POND | C8: LÍNEA ESTRATÉGICA | D8: POND | E8: COMPONENTE | F8: META DE RESULTADO | G8: LÍNEA BASE | H8: RESULTADO CUATRIENIO | J8: META POR VIGENCIA | V8: LOGRO POR VIGENCIA | AD8: PORCENTAJE DE CUMPLIMIENTO | AO8: POND | AP8: PROGRAMA | AQ8: META DE PRODUCTO | AR8: RUBRO PPTAL | AS8: INDICADOR DE PRODUCTO | BD8: LOGRO POR VIGENCIA | BH8: PORCENTAJE DE CUMPLIMIENTO | BS8: RECURSOS POR FUENTE DE FINANCIACIÓN PARA CADA VIGENCIA (Cifras en Miles de Pesos) | CR8: ODS | CS8: SECTOR
BS9: 2016 | BX9: 2017 | CC9: 2018 | CH9: 2019 | CM9: 2016 - 2019
J10: 2016 | M10: 2017 | P10: 2018 | S10: 2019 | V10: 2016 | X10: 2017 | Z10: 2018 | AB10: 2019 | AD10: 2016 | AF10: 2017 | AH10: 2018 | AJ10: 2019 | AL10: 2016 - 2019 | AS10: NOMBRE INDICADOR | AT10: LÍNEA BASE | AU10: ESPERADO CUATRIENIO | AV10: 2016 | AX10: 2017 | AZ10: 2018 | BB10: 2019 | BD10: 2016 | BE10: 2017 | BF10: 2018 | BG10: 2019 | BH10: 2016 | BJ10: 2017 | BL10: 2018 | BN10: 2019 | BP10: 2016 - 2019 | BS10: RECURSOS PROGRAMADOS | BT10: RECURSOS EJECUTADOS | BU10: RECURSOS GESTIONADOS | BV10: PORCENTAJE EJECUCIÓN | BW10: NIVEL DE GESTIÓN | BX10: RECURSOS PROGRAMADOS | BY10: RECURSOS EJECUTADOS | BZ10: RECURSOS GESTIONADOS | CA10: PORCENTAJE EJECUCIÓN | CB10: NIVEL DE GESTIÓN | CC10: RECURSOS PROGRAMADOS | CD10: RECURSOS EJECUTADOS | CE10: RECURSOS GESTIONADOS | CF10: PORCENTAJE EJECUCIÓN | CG10: NIVEL DE GESTIÓN | CH10: RECURSOS PROGRAMADOS | CI10: RECURSOS EJECUTADOS | CJ10: RECURSOS GESTIONADOS | CK10: PORCENTAJE EJECUCIÓN | CL10: NIVEL DE GESTIÓN | CM10: RECURSOS PROGRAMADOS | CN10: RECURSOS EJECUTADOS | CO10: RECURSOS GESTIONADOS | CP10: PORCENTAJE EJECUCIÓN | CQ10: NIVEL DE GESTIÓN | CT10: RESPONSABLE
B11: =+RESUMEN!J38 -> 0.5576073533 | C11: 2 - INCLUSIÓN SOCIAL | D11: =+RESUMEN!J39 -> 0.5250294863 | E11: ATENCIÓN PRIORITARIA Y FOCALIZADA A GRUPOS DE POBLACIÓN VULNERABLE | F11: Disminuir a 1,2% el índice de pobreza extrema. | G11: 0.013 | H11: 0.012 | I11: =+H11-G11 -> -0.001 | J11: 0.013 | K11: =+J11-G11 -> 0 | M11: 0.013 | N11: =+M11-J11 -> 0 | P11: 0.013 | Q11: =+P11-M11 -> 0 | S11: 0.012 | T11: =+S11-P11 -> -0.001 | V11: 0.012 | W11: =+IF(V11=0,0,V11-G11) -> -0.001 | Y11: =+IF(X11=0,0,X11-V11) -> 0 | AA11: =+IF(Z11=0,0,Z11-X11) -> 0 | AC11: =+IF(AB11=0,0,AB11-Z11) -> 0 | AD11: =+IF(K11=0," -",W11/K11) -> - | AE11: =+IF(K11=0," -",IF(AD11>100%,100%,AD11)) -> - | AF11: =+IF(N11=0," -",Y11/N11) -> - | AG11: =+IF(N11=0," -",IF(AF11>100%,100%,AF11)) -> - | AH11: =+IF(Q11=0," -",AA11/Q11) -> - | AI11: =+IF(Q11=0," -",IF(AH11>100%,100%,AH11)) -> - | AJ11: =+IF(T11=0," -",AC11/T11) -> 0 | AK11: =+IF(T11=0," -",IF(AJ11>100%,100%,AJ11)) -> 0 | AL11: =+SUM(AC11,AA11,Y11,W11)/I11 -> 1 | AM11: =+IF(AL11>100%,100%,IF(AL11<0%,0%,AL11)) -> 1 | AO11: =+RESUMEN!J40 -> 0.78125 | AP11: HABITANTE DE CALLE | AQ11: Realizar 16 brigadas extramurales de atención al habitante de calle. | AR11: ='[1]LÍNEA 2'!P11 -> 2210713 | AS11: Número de brigadas extramurales de atención al habitante de calle realizadas. | AT11: 9 | AU11: ='[1]LÍNEA 2'!S11 -> 16 | AV11: ='[1]LÍNEA 2'!T11 -> 4 | AW11: =+AV11/AU11 -> 0.25 | AX11: ='[1]LÍNEA 2'!U11 -> 4 | AY11: =+AX11/AU11 -> 0.25 | AZ11: ='[1]LÍNEA 2'!V11 -> 4 | BA11: =+AZ11/AU11 -> 0.25 | BB11: ='[1]LÍNEA 2'!W11 -> 4 | BC11: =+BB11/AU11 -> 0.25 | BD11: ='[3]2016'!K31 -> 8 | BE11: ='[3]2017'!K32 -> 4 | BF11: ='[3]2018'!K32 -> 1 | BG11: ='[3]2019'!K32 -> 0 | BH11: =IF(AV11=0," -",BD11/AV11) -> 2 | BI11: =IF(AV11=0," -",IF(BH11>100%,100%,BH11)) -> 1 | BJ11: =IF(AX11=0," -",BE11/AX11) -> 1 | BK11: =IF(AX11=0," -",IF(BJ11>100%,100%,BJ11)) -> 1 | BL11: =IF(AZ11=0," -",BF11/AZ11) -> 0.25 | BM11: =IF(AZ11=0," -",IF(BL11>100%,100%,BL11)) -> 0.25 | BN11: =IF(BB11=0," -",BG11/BB11) -> 0 | BO11: =IF(BB11=0," -",IF(BN11>100%,100%,BN11)) -> 0 | BP11: =+SUM(BD11:BG11)/AU11 -> 0.8125 | BQ11: =+IF(BP11>100%,100%,BP11) -> 0.8125 | BR11: =+BQ11 -> 0.8125 | BS11: ='[3]2016'!P31 -> 188000 | BT11: ='[3]2016'!Q31 -> 18535 | BU11: ='[3]2016'!R31 -> 0 | BV11: =IF(BS11=0," -",BT11/BS11) -> 0.09859042553 | BW11: =IF(BU11=0," -",IF(BT11=0,100%,BU11/BT11)) -> - | BX11: ='[3]2017'!P32 -> 0 | BY11: ='[3]2017'!Q32 -> 0 | BZ11: ='[3]2017'!R32 -> 0 | CA11: =IF(BX11=0," -",BY11/BX11) -> - | CB11: =IF(BZ11=0," -",IF(BY11=0,100%,BZ11/BY11)) -> - | CC11: ='[3]2018'!P32 -> 119000 | CD11: ='[3]2018'!Q32 -> 118320 | CE11: ='[3]2018'!R32 -> 33480 | CF11: =IF(CC11=0," -",CD11/CC11) -> 0.9942857143 | CG11: =IF(CE11=0," -",IF(CD11=0,100%,CE11/CD11)) -> 0.2829614604 | CH11: ='[3]2019'!P32 -> 40000 | CI11: ='[3]2019'!Q32 -> 0 | CJ11: ='[3]2019'!R32 -> 0 | CK11: =IF(CH11=0," -",CI11/CH11) -> 0 | CL11: =IF(CJ11=0," -",IF(CI11=0,100%,CJ11/CI11)) -> - | CM11: =+BS11+BX11+CC11+CH11 -> 347000 | CN11: 136855 | CO11: 33480 | CP11: =IF(CM11=0," -",CN11/CM11) -> 0.3943948127 | CQ11: =IF(CO11=0," -",IF(CN11=0,100%,CO11/CN11)) -> 0.244638486 | CR11: 2. Hambre cero | CS11: Atención a grupos vulnerables - Promoción Social | CT11: ='[1]LÍNEA 2'!AQ11 -> Sec. Desarrollo Social
AQ12: Mantener 500 cupos de servicios integrales intramurales y/o extramurales para habitantes de calle. | AR12: ='[1]LÍNEA 2'!P12 -> 2210713 | AS12: Número de cupos de servicios integrales intramurales y/o extramurales mantenidos para habitantes de calle. | AT12: 321 | AU12: ='[1]LÍNEA 2'!S12 -> 500 | AV12: ='[1]LÍNEA 2'!T12 -> 500 | AW12: 0.25 | AX12: ='[1]LÍNEA 2'!U12 -> 500 | AY12: 0.25 | AZ12: ='[1]LÍNEA 2'!V12 -> 500 | BA12: 0.25 | BB12: ='[1]LÍNEA 2'!W12 -> 500 | BC12: 0.25 | BD12: ='[3]2016'!K32 -> 5346 | BE12: ='[3]2017'!K33 -> 272 | BF12: ='[3]2018'!K33 -> 552 | BG12: ='[3]2019'!K33 -> 0 | BH12: =IF(AV12=0," -",BD12/AV12) -> 10.692 | BI12: =IF(AV12=0," -",IF(BH12>100%,100%,BH12)) -> 1 | BJ12: =IF(AX12=0," -",BE12/AX12) -> 0.544 | BK12: =IF(AX12=0," -",IF(BJ12>100%,100%,BJ12)) -> 0.544 | BL12: =IF(AZ12=0," -",BF12/AZ12) -> 1.104 | BM12: =IF(AZ12=0," -",IF(BL12>100%,100%,BL12)) -> 1 | BN12: =IF(BB12=0," -",BG12/BB12) -> 0 | BO12: =IF(BB12=0," -",IF(BN12>100%,100%,BN12)) -> 0 | BP12: =+AVERAGE(BD12:BG12)/AU12 -> 3.085 | BQ12: =+IF(BP12>100%,100%,BP12) -> 1 | BR12: =+BQ12 -> 1 | BS12: ='[3]2016'!P32 -> 433000 | BT12: ='[3]2016'!Q32 -> 350000 | BU12: ='[3]2016'!R32 -> 0 | BV12: =IF(BS12=0," -",BT12/BS12) -> 0.8083140878 | BW12: =IF(BU12=0," -",IF(BT12=0,100%,BU12/BT12)) -> - | BX12: ='[3]2017'!P33 -> 889885 | BY12: ='[3]2017'!Q33 -> 882733 | BZ12: ='[3]2017'!R33 -> 0 | CA12: =IF(BX12=0," -",BY12/BX12) -> 0.9919630065 | CB12: =IF(BZ12=0," -",IF(BY12=0,100%,BZ12/BY12)) -> - | CC12: ='[3]2018'!P33 -> 913200 | CD12: ='[3]2018'!Q33 -> 861880 | CE12: ='[3]2018'!R33 -> 374406 | CF12: =IF(CC12=0," -",CD12/CC12) -> 0.9438020149 | CG12: =IF(CE12=0," -",IF(CD12=0,100%,CE12/CD12)) -> 0.4344061818 | CH12: ='[3]2019'!P33 -> 646012 | CI12: ='[3]2019'!Q33 -> 0 | CJ12: ='[3]2019'!R33 -> 0 | CK12: =IF(CH12=0," -",CI12/CH12) -> 0 | CL12: =IF(CJ12=0," -",IF(CI12=0,100%,CJ12/CI12)) -> - | CM12: 2882097 | CN12: 2094613 | CO12: 374406 | CP12: =IF(CM12=0," -",CN12/CM12) -> 0.7267670033 | CQ12: =IF(CO12=0," -",IF(CN12=0,100%,CO12/CN12)) -> 0.1787471003 | CR12: 2. Hambre cero | CS12: Atención a grupos vulnerables - Promoción Social | CT12: ='[1]LÍNEA 2'!AQ12 -> Sec. Desarrollo Social
AQ13: Brindar asistencia exequial al 100% de los habitantes de calle que se encuentran dentro del censo. | AR13: ='[1]LÍNEA 2'!P13 -> 2210092 | AS13: Porcentaje de habitantes de calle con asistencia exequial que se encuentran dentro del censo. | AT13: 0.41 | AU13: ='[1]LÍNEA 2'!S13 -> 1 | AV13: ='[1]LÍNEA 2'!T13 -> 1 | AW13: 0.25 | AX13: ='[1]LÍNEA 2'!U13 -> 1 | AY13: 0.25 | AZ13: ='[1]LÍNEA 2'!V13 -> 1 | BA13: 0.25 | BB13: ='[1]LÍNEA 2'!W13 -> 1 | BC13: 0.25 | BD13: ='[3]2016'!K33 -> 0.5 | BE13: ='[3]2017'!K34 -> 1 | BF13: ='[3]2018'!K34 -> 1 | BG13: ='[3]2019'!K34 -> 0 | BH13: 0.5 | BI13: 0.5 | BJ13: 1 | BK13: 1 | BL13: 1 | BM13: 1 | BN13: 0 | BO13: 0 | BP13: 0.625 | BQ13: 0.625 | BR13: 0.625 | BS13: ='[3]2016'!P33 -> 26000 | BT13: ='[3]2016'!Q33 -> 7500 | BU13: ='[3]2016'!R33 -> 0 | BV13: =IF(BS13=0," -",BT13/BS13) -> 0.2884615385 | BW13: =IF(BU13=0," -",IF(BT13=0,100%,BU13/BT13)) -> - | BX13: ='[3]2017'!P34 -> 48000 | BY13: ='[3]2017'!Q34 -> 48000 | BZ13: ='[3]2017'!R34 -> 0 | CA13: =IF(BX13=0," -",BY13/BX13) -> 1 | CB13: =IF(BZ13=0," -",IF(BY13=0,100%,BZ13/BY13)) -> - | CC13: ='[3]2018'!P34 -> 94000 | CD13: ='[3]2018'!Q34 -> 94000 | CE13: ='[3]2018'!R34 -> 0 | CF13: =IF(CC13=0," -",CD13/CC13) -> 1 | CG13: =IF(CE13=0," -",IF(CD13=0,100%,CE13/CD13)) -> - | CH13: ='[3]2019'!P34 -> 30000 | CI13: ='[3]2019'!Q34 -> 0 | CJ13: ='[3]2019'!R34 -> 0 | CK13: =IF(CH13=0," -",CI13/CH13) -> 0 | CL13: =IF(CJ13=0," -",IF(CI13=0,100%,CJ13/CI13)) -> - | CM13: =+BS13+BX13+CC13+CH13 -> 198000 | CN13: =+BT13+BY13+CD13+CI13 -> 149500 | CO13: =+BU13+BZ13+CE13+CJ13 -> 0 | CP13: =IF(CM13=0," -",CN13/CM13) -> 0.7550505051 | CQ13: =IF(CO13=0," -",IF(CN13=0,100%,CO13/CN13)) -> - | CR13: 2. Hambre cero | CS13: Atención a grupos vulnerables - Promoción Social | CT13: ='[1]LÍNEA 2'!AQ13 -> Sec. Desarrollo Social
AQ14: Implementar y mantener 1 estrategia en salud, alimentación y aseo para el habitante de calle. | AR14: ='[1]LÍNEA 2'!P14 -> 2210713 | AS14: Número de estrategias en salud, alimentación y aseo, implementadas y mantenidas para el habitante de calle. | AT14: 1 | AU14: ='[1]LÍNEA 2'!S14 -> 1 | AV14: ='[1]LÍNEA 2'!T14 -> 1 | AW14: 0.25 | AX14: ='[1]LÍNEA 2'!U14 -> 1 | AY14: 0.25 | AZ14: ='[1]LÍNEA 2'!V14 -> 1 | BA14: 0.25 | BB14: ='[1]LÍNEA 2'!W14 -> 1 | BC14: 0.25 | BD14: ='[3]2016'!K34 -> 1 | BE14: ='[3]2017'!K35 -> 1 | BF14: ='[3]2018'!K35 -> 1 | BG14: ='[3]2019'!K35 -> 0 | BH14: 1 | BI14: 1 | BJ14: 1 | BK14: 1 | BL14: 1 | BM14: 1 | BN14: 0 | BO14: 0 | BP14: 0.75 | BQ14: 0.75 | BR14: 0.75 | BS14: ='[3]2016'!P34 -> 149000 | BT14: ='[3]2016'!Q34 -> 133715 | BU14: ='[3]2016'!R34 -> 0 | BV14: 0.8974161074 | BW14: - | BX14: ='[3]2017'!P35 -> 88525 | BY14: ='[3]2017'!Q35 -> 88525 | BZ14: ='[3]2017'!R35 -> 0 | CA14: 1 | CB14: - | CC14: ='[3]2018'!P35 -> 90000 | CD14: ='[3]2018'!Q35 -> 90000 | CE14: ='[3]2018'!R35 -> 38571 | CF14: 1 | CG14: 0.4285666667 | CH14: ='[3]2019'!P35 -> 25000 | CI14: ='[3]2019'!Q35 -> 0 | CJ14: ='[3]2019'!R35 -> 0 | CK14: 0 | CL14: - | CM14: 352525 | CN14: 312240 | CO14: 38571 | CP14: 0.8857244167 | CQ14: 0.1235299769 | CR14: 2. Hambre cero | CS14: Atención a grupos vulnerables - Promoción Social | CT14: ='[1]LÍNEA 2'!AQ14 -> Sec. Desarrollo Social
AQ15: Fortalecer la estrategia para la caracterización, atención y seguimiento de la situación de los habitantes de calle. | AR15: ='[1]LÍNEA 2'!P15 -> 2210713 | AS15: Número de estrategias fortalecidas para la caracterización, atención y seguimiento de la situación de los habitantes de calle. | AT15: 1 | AU15: ='[1]LÍNEA 2'!S15 -> 1 | AV15: ='[1]LÍNEA 2'!T15 -> 1 | AW15: 0.25 | AX15: ='[1]LÍNEA 2'!U15 -> 1 | AY15: 0.25 | AZ15: ='[1]LÍNEA 2'!V15 -> 1 | BA15: 0.25 | BB15: ='[1]LÍNEA 2'!W15 -> 1 | BC15: 0.25 | BD15: ='[3]2016'!K35 -> 1 | BE15: ='[3]2017'!K36 -> 1 | BF15: ='[3]2018'!K36 -> 1 | BG15: ='[3]2019'!K36 -> 0 | BH15: 1 | BI15: 1 | BJ15: 1 | BK15: 1 | BL15: 1 | BM15: 1 | BN15: 0 | BO15: 0 | BP15: 0.75 | BQ15: 0.75 | BR15: 0.75 | BS15: ='[3]2016'!P35 -> 80000 | BT15: ='[3]2016'!Q35 -> 77900 | BU15: ='[3]2016'!R35 -> 0 | BV15: 0.97375 | BW15: - | BX15: ='[3]2017'!P36 -> 40350 | BY15: ='[3]2017'!Q36 -> 40350 | BZ15: ='[3]2017'!R36 -> 0 | CA15: 1 | CB15: - | CC15: ='[3]2018'!P36 -> 34200 | CD15: ='[3]2018'!Q36 -> 34200 | CE15: ='[3]2018'!R36 -> 0 | CF15: 1 | CG15: - | CH15: ='[3]2019'!P36 -> 0 | CI15: ='[3]2019'!Q36 -> 0 | CJ15: ='[3]2019'!R36 -> 0 | CK15: - | CL15: - | CM15: 154550 | CN15: 152450 | CO15: 0 | CP15: 0.9864121643 | CQ15: - | CR15: 2. Hambre cero | CS15: Atención a grupos vulnerables - Promoción Social | CT15: ='[1]LÍNEA 2'!AQ15 -> Sec. Desarrollo Social
AQ16: Mantener 1 programa de plan retorno para habitante de calle. | AR16: ='[1]LÍNEA 2'!P16 -> 2210713 | AS16: Número de programas de plan retorno mantenidos para habitante de calle. | AT16: 1 | AU16: ='[1]LÍNEA 2'!S16 -> 1 | AV16: ='[1]LÍNEA 2'!T16 -> 1 | AW16: 0.25 | AX16: ='[1]LÍNEA 2'!U16 -> 1 | AY16: 0.25 | AZ16: ='[1]LÍNEA 2'!V16 -> 1 | BA16: 0.25 | BB16: ='[1]LÍNEA 2'!W16 -> 1 | BC16: 0.25 | BD16: ='[3]2016'!K36 -> 1 | BE16: ='[3]2017'!K37 -> 1 | BF16: ='[3]2018'!K37 -> 1 | BG16: ='[3]2019'!K37 -> 0 | BH16: 1 | BI16: 1 | BJ16: 1 | BK16: 1 | BL16: 1 | BM16: 1 | BN16: 0 | BO16: 0 | BP16: 0.75 | BQ16: 0.75 | BR16: 0.75 | BS16: ='[3]2016'!P36 -> 20000 | BT16: ='[3]2016'!Q36 -> 15000 | BU16: ='[3]2016'!R36 -> 0 | BV16: 0.75 | BW16: - | BX16: ='[3]2017'!P37 -> 20000 | BY16: ='[3]2017'!Q37 -> 20000 | BZ16: ='[3]2017'!R37 -> 0 | CA16: 1 | CB16: - | CC16: ='[3]2018'!P37 -> 60000 | CD16: ='[3]2018'!Q37 -> 60000 | CE16: ='[3]2018'!R37 -> 25714 | CF16: 1 | CG16: 0.4285666667 | CH16: ='[3]2019'!P37 -> 28529 | CI16: ='[3]2019'!Q37 -> 0 | CJ16: ='[3]2019'!R37 -> 0 | CK16: 0 | CL16: - | CM16: 128529 | CN16: 95000 | CO16: 25714 | CP16: 0.7391328027 | CQ16: 0.2706736842 | CR16: 2. Hambre cero | CS16: Atención a grupos vulnerables - Promoción Social | CT16: ='[1]LÍNEA 2'!AQ16 -> Sec. Desarrollo Social
AO17: =+RESUMEN!J41 -> 0.520327381 | AP17: POBLACIÓN CON DISCAPACIDAD | AQ17: Garantizar y mantener 200 cupos de atención integral en procesos de habilitación y rehabilitación a niñas, niños y adolescentes con discapacidad en extrema vulnerabilidad. | AR17: ='[1]LÍNEA 2'!P17 -> 2210709 | AS17: Número de cupos de atención integral garantizados en procesos de habilitación y rehabilitación a niñas, niños y adolescentes con discapacidad en extrema vulnerabilidad. | AT17: 0 | AU17: ='[1]LÍNEA 2'!S17 -> 200 | AV17: ='[1]LÍNEA 2'!T17 -> 200 | AW17: 0.25 | AX17: ='[1]LÍNEA 2'!U17 -> 200 | AY17: 0.25 | AZ17: ='[1]LÍNEA 2'!V17 -> 200 | BA17: 0.25 | BB17: ='[1]LÍNEA 2'!W17 -> 200 | BC17: 0.25 | BD17: ='[3]2016'!K37 -> 186 | BE17: ='[3]2017'!K38 -> 200 | BF17: ='[3]2018'!K38 -> 203 | BG17: ='[3]2019'!K38 -> 0 | BH17: 0.93 | BI17: 0.93 | BJ17: 1 | BK17: 1 | BL17: 1.015 | BM17: 1 | BN17: 0 | BO17: 0 | BP17: 0.73625 | BQ17: 0.73625 | BR17: 0.73625 | BS17: ='[3]2016'!P37 -> 516700 | BT17: ='[3]2016'!Q37 -> 273200 | BU17: ='[3]2016'!R37 -> 46400 | BV17: 0.5287400813 | BW17: 0.1698389458 | BX17: ='[3]2017'!P38 -> 549000 | BY17: ='[3]2017'!Q38 -> 543500 | BZ17: ='[3]2017'!R38 -> 0 | CA17: 0.9899817851 | CB17: - | CC17: ='[3]2018'!P38 -> 617807 | CD17: ='[3]2018'!Q38 -> 614400 | CE17: ='[3]2018'!R38 -> 232163 | CF17: 0.9944853328 | CG17: 0.3778694661 | CH17: ='[3]2019'!P38 -> 167098 | CI17: ='[3]2019'!Q38 -> 0 | CJ17: ='[3]2019'!R38 -> 0 | CK17: 0 | CL17: - | CM17: 1850605 | CN17: 1431100 | CO17: 278563 | CP17: 0.7733146728 | CQ17: 0.1946495703 | CR17: 10. Reducción de las desigualdades | CS17: Atención a grupos vulnerables - Promoción Social | CT17: ='[1]LÍNEA 2'!AQ17 -> Sec. Desarrollo Social
AQ18: Garantizar 210 cupos en programas de rehabilitación integral a personas adultas en extrema vulnerabilidad con discapacidad, física, visual, auditiva, cognitiva, psicosocial y múltiple. | AR18: ='[1]LÍNEA 2'!P18 -> 2210709 | AS18: Número de cupos garantizados en programas de rehabilitación integral a personas adultas en extrema vulnerabilidad con discapacidad, física, visual, auditiva, cognitiva, psicosocial y múltiple. | AT18: 6 | AU18: ='[1]LÍNEA 2'!S18 -> 210 | AV18: ='[1]LÍNEA 2'!T18 -> 210 | AW18: 0.25 | AX18: ='[1]LÍNEA 2'!U18 -> 210 | AY18: 0.25 | AZ18: ='[1]LÍNEA 2'!V18 -> 210 | BA18: 0.25 | BB18: ='[1]LÍNEA 2'!W18 -> 210 | BC18: 0.25 | BD18: ='[3]2016'!K38 -> 0 | BE18: ='[3]2017'!K39 -> 0 | BF18: ='[3]2018'!K39 -> 0 | BG18: ='[3]2019'!K39 -> 0 | BH18: 0 | BI18: 0 | BJ18: 0 | BK18: 0 | BL18: 0 | BM18: 0 | BN18: 0 | BO18: 0 | BP18: 0 | BQ18: 0 | BR18: 0 | BS18: ='[3]2016'!P38 -> 70000 | BT18: ='[3]2016'!Q38 -> 0 | BU18: ='[3]2016'!R38 -> 0 | BV18: 0 | BW18: - | BX18: ='[3]2017'!P39 -> 0 | BY18: ='[3]2017'!Q39 -> 0 | BZ18: ='[3]2017'!R39 -> 0 | CA18: - | CB18: - | CC18: ='[3]2018'!P39 -> 100000 | CD18: ='[3]2018'!Q39 -> 0 | CE18: ='[3]2018'!R39 -> 0 | CF18: 0 | CG18: - | CH18: ='[3]2019'!P39 -> 231276 | CI18: ='[3]2019'!Q39 -> 0 | CJ18: ='[3]2019'!R39 -> 0 | CK18: 0 | CL18: - | CM18: 401276 | CN18: 0 | CO18: 0 | CP18: 0 | CQ18: - | CR18: 10. Reducción de las desigualdades | CS18: Atención a grupos vulnerables - Promoción Social | CT18: ='[1]LÍNEA 2'!AQ18 -> Sec. Desarrollo Social
AQ19: Crear y mantener 1 unidad generadora de datos que realice el registro de localización y caracterización de las personas con discapacidad. | AR19: ='[1]LÍNEA 2'!P19 -> 2210709 | AS19: Número de unidades generadoras de datos que realice el registro de localización y caracterización de las personas con discapacidad creados y mantenidos. | AT19: 1 | AU19: ='[1]LÍNEA 2'!S19 -> 1 | AV19: ='[1]LÍNEA 2'!T19 -> 1 | AW19: 0.25 | AX19: ='[1]LÍNEA 2'!U19 -> 1 | AY19: 0.25 | AZ19: ='[1]LÍNEA 2'!V19 -> 1 | BA19: 0.25 | BB19: ='[1]LÍNEA 2'!W19 -> 1 | BC19: 0.25 | BD19: ='[3]2016'!K39 -> 1 | BE19: ='[3]2017'!K40 -> 1 | BF19: ='[3]2018'!K40 -> 1 | BG19: ='[3]2019'!K40 -> 0 | BH19: 1 | BI19: 1 | BJ19: 1 | BK19: 1 | BL19: 1 | BM19: 1 | BN19: 0 | BO19: 0 | BP19: 0.75 | BQ19: 0.75 | BR19: 0.75 | BS19: ='[3]2016'!P39 -> 51900 | BT19: ='[3]2016'!Q39 -> 51900 | BU19: ='[3]2016'!R39 -> 0 | BV19: 1 | BW19: - | BX19: ='[3]2017'!P40 -> 68250 | BY19: ='[3]2017'!Q40 -> 68250 | BZ19: ='[3]2017'!R40 -> 31500 | CA19: 1 | CB19: 0.4615384615 | CC19: ='[3]2018'!P40 -> 0 | CD19: ='[3]2018'!Q40 -> 0 | CE19: ='[3]2018'!R40 -> 0 | CF19: - | CG19: - | CH19: ='[3]2019'!P40 -> 0 | CI19: ='[3]2019'!Q40 -> 0 | CJ19: ='[3]2019'!R40 -> 0 | CK19: - | CL19: - | CM19: 120150 | CN19: 120150 | CO19: 31500 | CP19: 1 | CQ19: 0.2621722846 | CR19: 10. Reducción de las desigualdades | CS19: Atención a grupos vulnerables - Promoción Social | CT19: ='[1]LÍNEA 2'!AQ19 -> Sec. Desarrollo Social
AQ20: Implementar y mantener la estrategia de rehabilitación basada en la comunidad en las instituciones que ofrecen los servicios de habilitación y rehabilitación a través del Comité Local de RBC. | AR20: ='[1]LÍNEA 2'!P20 -> - | AS20: Número de estrategias de rehabilitación basada en la comunidad en las instituciones que ofrecen los servicios de habilitación y rehabilitación a través del Comité Local de RBC implementadas y mantenidas. | AT20: 0 | AU20: ='[1]LÍNEA 2'!S20 -> 1 | AV20: ='[1]LÍNEA 2'!T20 -> 0 | AW20: 0 | AX20: ='[1]LÍNEA 2'!U20 -> 1 | AY20: 0.33 | AZ20: ='[1]LÍNEA 2'!V20 -> 1 | BA20: 0.33 | BB20: ='[1]LÍNEA 2'!W20 -> 1 | BC20: 0.34 | BD20: ='[3]2016'!K40 -> 0 | BE20: ='[3]2017'!K41 -> 0 | BF20: ='[3]2018'!K41 -> 1 | BG20: ='[3]2019'!K41 -> 0 | BH20: - | BI20: - | BJ20: 0 | BK20: 0 | BL20: 1 | BM20: 1 | BN20: 0 | BO20: 0 | BP20: =+AVERAGE(BE20:BG20)/AU20 -> 0.3333333333 | BQ20: 0.3333333333 | BR20: 0.3333333333 | BS20: ='[3]2016'!P40 -> 0 | BT20: ='[3]2016'!Q40 -> 0 | BU20: ='[3]2016'!R40 -> 0 | BV20: - | BW20: - | BX20: ='[3]2017'!P41 -> 0 | BY20: ='[3]2017'!Q41 -> 0 | BZ20: ='[3]2017'!R41 -> 0 | CA20: - | CB20: - | CC20: ='[3]2018'!P41 -> 60000 | CD20: ='[3]2018'!Q41 -> 40000 | CE20: ='[3]2018'!R41 -> 17143 | CF20: 0.6666666667 | CG20: 0.428575 | CH20: ='[3]2019'!P41 -> 0 | CI20: ='[3]2019'!Q41 -> 0 | CJ20: ='[3]2019'!R41 -> 0 | CK20: - | CL20: - | CM20: 60000 | CN20: 40000 | CO20: 17143 | CP20: 0.6666666667 | CQ20: 0.428575 | CR20: 10. Reducción de las desigualdades | CS20: Atención a grupos vulnerables - Promoción Social | CT20: ='[1]LÍNEA 2'!AQ20 -> Sec. Desarrollo Social
AQ21: Mantener el banco de ayudas técnicas, tecnológicas e informáticas BATI. | AR21: ='[1]LÍNEA 2'!P21 -> 2210709 | AS21: Número de bancos de ayudas técnicas, tecnológicas e informáticas BATI mantenidos. | AT21: 1 | AU21: ='[1]LÍNEA 2'!S21 -> 1 | AV21: ='[1]LÍNEA 2'!T21 -> 1 | AW21: 0.25 | AX21: ='[1]LÍNEA 2'!U21 -> 1 | AY21: 0.25 | AZ21: ='[1]LÍNEA 2'!V21 -> 1 | BA21: 0.25 | BB21: ='[1]LÍNEA 2'!W21 -> 1 | BC21: 0.25 | BD21: ='[3]2016'!K41 -> 1 | BE21: ='[3]2017'!K42 -> 1 | BF21: ='[3]2018'!K42 -> 0 | BG21: ='[3]2019'!K42 -> 0 | BH21: 1 | BI21: 1 | BJ21: 1 | BK21: 1 | BL21: 0 | BM21: 0 | BN21: 0 | BO21: 0 | BP21: 0.5 | BQ21: 0.5 | BR21: 0.5 | BS21: ='[3]2016'!P41 -> 284400 | BT21: ='[3]2016'!Q41 -> 51900 | BU21: ='[3]2016'!R41 -> 0 | BV21: 0.1824894515 | BW21: - | BX21: ='[3]2017'!P42 -> 123500 | BY21: ='[3]2017'!Q42 -> 123020 | BZ21: ='[3]2017'!R42 -> 0 | CA21: 0.9961133603 | CB21: - | CC21: ='[3]2018'!P42 -> 104000 | CD21: ='[3]2018'!Q42 -> 0 | CE21: ='[3]2018'!R42 -> 0 | CF21: 0 | CG21: - | CH21: ='[3]2019'!P42 -> 285291 | CI21: ='[3]2019'!Q42 -> 0 | CJ21: ='[3]2019'!R42 -> 0 | CK21: 0 | CL21: - | CM21: 797191 | CN21: 174920 | CO21: 0 | CP21: 0.21942044 | CQ21: - | CR21: 10. Reducción de las desigualdades | CS21: Atención a grupos vulnerables - Promoción Social | CT21: ='[1]LÍNEA 2'!AQ21 -> Sec. Desarrollo Social
AQ22: Implementar y mantener 1 programa de orientación ocupacional y proyecto de vida a personas con discapacidad física, auditiva, visual, cognitiva, psicosocial y múltiple. | AR22: ='[1]LÍNEA 2'!P22 -> 2210709 | AS22: Número de programas de orientación ocupacional y proyecto de vida implementadas y mantenidas a personas con discapacidad física, auditiva, visual, cognitiva, psicosocial y múltiple. | AT22: 0 | AU22: ='[1]LÍNEA 2'!S22 -> 1 | AV22: ='[1]LÍNEA 2'!T22 -> 1 | AW22: 0.25 | AX22: ='[1]LÍNEA 2'!U22 -> 1 | AY22: 0.25 | AZ22: ='[1]LÍNEA 2'!V22 -> 1 | BA22: 0.25 | BB22: ='[1]LÍNEA 2'!W22 -> 1 | BC22: 0.25 | BD22: ='[3]2016'!K42 -> 1 | BE22: ='[3]2017'!K43 -> 1 | BF22: ='[3]2018'!K43 -> 1 | BG22: ='[3]2019'!K43 -> 0 | BH22: 1 | BI22: 1 | BJ22: 1 | BK22: 1 | BL22: 1 | BM22: 1 | BN22: 0 | BO22: 0 | BP22: 0.75 | BQ22: 0.75 | BR22: 0.75 | BS22: ='[3]2016'!P42 -> 70000 | BT22: ='[3]2016'!Q42 -> 70000 | BU22: ='[3]2016'!R42 -> 14000 | BV22: 1 | BW22: 0.2 | BX22: ='[3]2017'!P43 -> 126750 | BY22: ='[3]2017'!Q43 -> 126750 | BZ22: ='[3]2017'!R43 -> 0 | CA22: 1 | CB22: - | CC22: ='[3]2018'!P43 -> 199000 | CD22: ='[3]2018'!Q43 -> 148800 | CE22: ='[3]2018'!R43 -> 51429 | CF22: 0.7477386935 | CG22: 0.345625 | CH22: ='[3]2019'!P43 -> 0 | CI22: ='[3]2019'!Q43 -> 0 | CJ22: ='[3]2019'!R43 -> 0 | CK22: - | CL22: - | CM22: 395750 | CN22: 345550 | CO22: 65429 | CP22: 0.8731522426 | CQ22: 0.1893474172 | CR22: 10. Reducción de las desigualdades | CS22: Atención a grupos vulnerables - Promoción Social | CT22: ='[1]LÍNEA 2'!AQ22 -> Sec. Desarrollo Social
AQ23: Mantener 1 intérprete de lengua de señas colombiana que garantice a la población con discapacidad auditiva el acceso a la información, las comunicaciones y los servicios que ofrece la administración municipal. | AR23: ='[1]LÍNEA 2'!P23 -> 2210709 | AS23: Número de intérpretes de lengua de señas colombianas mantenidas que garantice a la población con discapacidad auditiva el acceso a la información, las comunicaciones y los servicios que ofrece la administración municipal. | AT23: 0 | AU23: ='[1]LÍNEA 2'!S23 -> 1 | AV23: ='[1]LÍNEA 2'!T23 -> 1 | AW23: 0.25 | AX23: ='[1]LÍNEA 2'!U23 -> 1 | AY23: 0.25 | AZ23: ='[1]LÍNEA 2'!V23 -> 1 | BA23: 0.25 | BB23: ='[1]LÍNEA 2'!W23 -> 1 | BC23: 0.25 | BD23: ='[3]2016'!K43 -> 1 | BE23: ='[3]2017'!K44 -> 1 | BF23: ='[3]2018'!K44 -> 0 | BG23: ='[3]2019'!K44 -> 0 | BH23: 1 | BI23: 1 | BJ23: 1 | BK23: 1 | BL23: 0 | BM23: 0 | BN23: 0 | BO23: 0 | BP23: 0.5 | BQ23: 0.5 | BR23: 0.5 | BS23: ='[3]2016'!P43 -> 0 | BT23: ='[3]2016'!Q43 -> 0 | BU23: ='[3]2016'!R43 -> 0 | BV23: - | BW23: - | BX23: ='[3]2017'!P44 -> 15750 | BY23: ='[3]2017'!Q44 -> 15750 | BZ23: ='[3]2017'!R44 -> 0 | CA23: 1 | CB23: - | CC23: ='[3]2018'!P44 -> 0 | CD23: ='[3]2018'!Q44 -> 0 | CE23: ='[3]2018'!R44 -> 0 | CF23: - | CG23: - | CH23: ='[3]2019'!P44 -> 0 | CI23: ='[3]2019'!Q44 -> 0 | CJ23: ='[3]2019'!R44 -> 0 | CK23: - | CL23: - | CM23: 15750 | CN23: 15750 | CO23: 0 | CP23: 1 | CQ23: - | CR23: 10. Reducción de las desigualdades | CS23: Atención a grupos vulnerables - Promoción Social | CT23: ='[1]LÍNEA 2'!AQ23 -> Sec. Desarrollo Social
AQ24: Realizar 4 conmemoraciones del día nacional de las personas con discapacidad. | AR24: ='[1]LÍNEA 2'!P24 -> 2210709 | AS24: Número de conmemoraciones del día nacional de las personas con discapacidad realizados. | AT24: 4 | AU24: ='[1]LÍNEA 2'!S24 -> 4 | AV24: ='[1]LÍNEA 2'!T24 -> 1 | AW24: =+AV24/AU24 -> 0.25 | AX24: ='[1]LÍNEA 2'!U24 -> 1 | AY24: =+AX24/AU24 -> 0.25 | AZ24: ='[1]LÍNEA 2'!V24 -> 1 | BA24: =+AZ24/AU24 -> 0.25 | BB24: ='[1]LÍNEA 2'!W24 -> 1 | BC24: =+BB24/AU24 -> 0.25 | BD24: ='[3]2016'!K44 -> 0 | BE24: ='[3]2017'!K45 -> 1 | BF24: ='[3]2018'!K45 -> 0.1 | BG24: ='[3]2019'!K45 -> 0 | BH24: 0 | BI24: 0 | BJ24: 1 | BK24: 1 | BL24: 0.1 | BM24: 0.1 | BN24: 0 | BO24: 0 | BP24: =+SUM(BD24:BG24)/AU24 -> 0.275 | BQ24: 0.275 | BR24: 0.275 | BS24: ='[3]2016'!P44 -> 12000 | BT24: ='[3]2016'!Q44 -> 0 | BU24: ='[3]2016'!R44 -> 0 | BV24: 0 | BW24: - | BX24: ='[3]2017'!P45 -> 0 | BY24: ='[3]2017'!Q45 -> 0 | BZ24: ='[3]2017'!R45 -> 0 | CA24: - | CB24: - | CC24: ='[3]2018'!P45 -> 10000 | CD24: ='[3]2018'!Q45 -> 10000 | CE24: ='[3]2018'!R45 -> 0 | CF24: 1 | CG24: - | CH24: ='[3]2019'!P45 -> 10920 | CI24: ='[3]2019'!Q45 -> 0 | CJ24: ='[3]2019'!R45 -> 0 | CK24: 0 | CL24: - | CM24: 32920 | CN24: 10000 | CO24: 0 | CP24: 0.3037667072 | CQ24: - | CR24: 10. Reducción de las desigualdades | CS24: Atención a grupos vulnerables - Promoción Social | CT24: ='[1]LÍNEA 2'!AQ24 -> Sec. Desarrollo Social
AQ25: Brindar 24.000 entradas a personas con discapacidad a espacios de recreación, deporte y cultura. | AR25: ='[1]LÍNEA 2'!P25 -> - | AS25: Número de entradas brindadas a personas con discapacidad espacios de recreación, deporte y cultura. | AT25: 8666 | AU25: ='[1]LÍNEA 2'!S25 -> 24000 | AV25: ='[1]LÍNEA 2'!T25 -> 6000 | AW25: 0.25 | AX25: ='[1]LÍNEA 2'!U25 -> 6000 | AY25: 0.25 | AZ25: ='[1]LÍNEA 2'!V25 -> 6000 | BA25: 0.25 | BB25: ='[1]LÍNEA 2'!W25 -> 6000 | BC25: 0.25 | BD25: ='[3]2016'!K45 -> 10000 | BE25: ='[3]2017'!K46 -> 6000 | BF25: ='[3]2018'!K46 -> 9784 | BG25: ='[3]2019'!K46 -> 0 | BH25: 1.666666667 | BI25: 1 | BJ25: 1 | BK25: 1 | BL25: 1.630666667 | BM25: 1 | BN25: 0 | BO25: 0 | BP25: =+SUM(BD25:BG25)/AU25 -> 1.074333333 | BQ25: 1 | BR25: 1 | BS25: ='[3]2016'!P45 -> 50000 | BT25: ='[3]2016'!Q45 -> 50000 | BU25: ='[3]2016'!R45 -> 15000 | BV25: 1 | BW25: 0.3 | BX25: ='[3]2017'!P46 -> 30000 | BY25: ='[3]2017'!Q46 -> 30000 | BZ25: ='[3]2017'!R46 -> 0 | CA25: 1 | CB25: - | CC25: ='[3]2018'!P46 -> 50000 | CD25: ='[3]2018'!Q46 -> 49996 | CE25: ='[3]2018'!R46 -> 21427 | CF25: 0.99992 | CG25: 0.4285742859 | CH25: ='[3]2019'!P46 -> 0 | CI25: ='[3]2019'!Q46 -> 0 | CJ25: ='[3]2019'!R46 -> 0 | CK25: - | CL25: - | CM25: 130000 | CN25: 129996 | CO25: 36427 | CP25: 0.9999692308 | CQ25: 0.2802163143 | CR25: 10. Reducción de las desigualdades | CS25: Atención a grupos vulnerables - Promoción Social | CT25: ='[1]LÍNEA 2'!AQ25 -> Sec. Desarrollo Social
AQ26: Mantener a 400 niñas, niños y adolescentes con discapacidad cognitiva, visual, física, auditiva y múltiple, que no se encuentran incluidos en instituciones educativas oficiales con atención integral en habilitación y rehabilitación. | AR26: ='[1]LÍNEA 2'!P26 -> - | AS26: Número de niñas, niños y adolescentes con discapacidad cognitiva, visual, física, auditiva y múltiple que no se encuentran incluidos en instituciones educativas oficiales con atención integral en habilitación y rehabilitación. | AT26: 1500 | AU26: ='[1]LÍNEA 2'!S26 -> 400 | AV26: ='[1]LÍNEA 2'!T26 -> 400 | AW26: 0.25 | AX26: ='[1]LÍNEA 2'!U26 -> 400 | AY26: 0.25 | AZ26: ='[1]LÍNEA 2'!V26 -> 400 | BA26: 0.25 | BB26: ='[1]LÍNEA 2'!W26 -> 400 | BC26: 0.25 | BD26: ='[3]2016'!K46 -> 186 | BE26: ='[3]2017'!K47 -> 139 | BF26: ='[3]2018'!K47 -> 139 | BG26: ='[3]2019'!K47 -> 0 | BH26: 0.465 | BI26: 0.465 | BJ26: 0.3475 | BK26: 0.3475 | BL26: 0.3475 | BM26: 0.3475 | BN26: 0 | BO26: 0 | BP26: 0.29 | BQ26: 0.29 | BR26: 0.29 | BS26: ='[3]2016'!P46 -> 0 | BT26: ='[3]2016'!Q46 -> 0 | BU26: ='[3]2016'!R46 -> 0 | BV26: - | BW26: - | BX26: ='[3]2017'!P47 -> 0 | BY26: ='[3]2017'!Q47 -> 0 | BZ26: ='[3]2017'!R47 -> 0 | CA26: - | CB26: - | CC26: ='[3]2018'!P47 -> 0 | CD26: ='[3]2018'!Q47 -> 0 | CE26: ='[3]2018'!R47 -> 0 | CF26: - | CG26: - | CH26: ='[3]2019'!P47 -> 0 | CI26: ='[3]2019'!Q47 -> 0 | CJ26: ='[3]2019'!R47 -> 0 | CK26: - | CL26: - | CM26: 0 | CN26: 0 | CO26: 0 | CP26: - | CQ26: - | CR26: 10. Reducción de las desigualdades | CS26: Atención a grupos vulnerables - Promoción Social | CT26: ='[1]LÍNEA 2'!AQ26 -> Sec. Desarrollo Social
AQ27: Mantener 11 personas como apoyos de modelo lingüístico e intérpretes de lengua de señas colombiana en instituciones educativas oficiales para la atención de niñas, niños y adolescentes con discapacidad auditiva. | AR27: ='[1]LÍNEA 2'!P27 -> 2210709 | AS27: Número de personas como apoyo de modelo lingüístico e intérpretes de lengua de señas colombiana en instituciones educativas oficiales mantenidos para la atención de niñas, niños y adolescentes con discapacidad auditiva. | AT27: 11 | AU27: ='[1]LÍNEA 2'!S27 -> 11 | AV27: ='[1]LÍNEA 2'!T27 -> 11 | AW27: 0.25 | AX27: ='[1]LÍNEA 2'!U27 -> 11 | AY27: 0.25 | AZ27: ='[1]LÍNEA 2'!V27 -> 11 | BA27: 0.25 | BB27: ='[1]LÍNEA 2'!W27 -> 11 | BC27: 0.25 | BD27: ='[3]2016'!K47 -> 11 | BE27: ='[3]2017'!K48 -> 11 | BF27: ='[3]2018'!K48 -> 11 | BG27: ='[3]2019'!K48 -> 0 | BH27: 1 | BI27: 1 | BJ27: 1 | BK27: 1 | BL27: 1 | BM27: 1 | BN27: 0 | BO27: 0 | BP27: 0.75 | BQ27: 0.75 | BR27: 0.75 | BS27: ='[3]2016'!P47 -> 102500 | BT27: ='[3]2016'!Q47 -> 88833 | BU27: ='[3]2016'!R47 -> 0 | BV27: 0.8666634146 | BW27: - | BX27: ='[3]2017'!P48 -> 135000 | BY27: ='[3]2017'!Q48 -> 135000 | BZ27: ='[3]2017'!R48 -> 0 | CA27: 1 | CB27: - | CC27: ='[3]2018'!P48 -> 0 | CD27: ='[3]2018'!Q48 -> 0 | CE27: ='[3]2018'!R48 -> 0 | CF27: - | CG27: - | CH27: ='[3]2019'!P48 -> 0 | CI27: ='[3]2019'!Q48 -> 0 | CJ27: ='[3]2019'!R48 -> 0 | CK27: - | CL27: - | CM27: 237500 | CN27: 223833 | CO27: 0 | CP27: 0.9424547368 | CQ27: - | CR27: 10. Reducción de las desigualdades | CS27: Atención a grupos vulnerables - Promoción Social | CT27: ='[1]LÍNEA 2'!AQ27 -> Sec. Desarrollo Social
